Workbook

Sheet Instructions
A1: 2.2 Version - 7/1/2013 | B1: Aggression Replacement Training: EPISCenter - Data Collection and Analysis Tool
B2: Please enter the appropriate information in the yellow boxes below.
A3: Agency name: | B3: Greater Norristown Police Athletic League
A4: Contact name: | B4: Brett Wells
A5: Email: | B5: brett.wells@greaternorristownpal.org
A6: Phone: | B6: 610-278-8040
A7: Grant Number: | B7: 24805
A8: County: | B8: Montgomery
A9: Grant Start Date: | B9: 2013-10-01 | D9: =TEXT(B9,"yyyy") -> 2013
B10: Grant start date must be entered above for the spreadsheet to accurately summarize outcomes. Please use mm/dd/yyyy format.
A11: Instructions for Completing Performance Measures
A13: These spreadsheets are designed to help you complete your performance measures for ART. To orient you to this workbook below is a list of the spreadsheets included here and instructions on how to use them.
A15: This workbook contains the following spreadsheets (tabs):
A17: 1. Process Performance Measures (PMs) Yr1 and Yr2: Please enter the appropriate number for the cells highlighted in yellow for the specific year and quarter for which you are reporting.
A19: 2. Outcome Performance Measures (PMs) Yr1 and Yr2: The PMs in these tabs are calculated for you using the data you enter in the Programs, AQ PrePost, HIT PrePost, SS PrePost, and 12 month FollowUp tabs. You do not need to enter any information in these tabs.
A21: 3. Programs: Enter youth names, gender, attendance, administrative withdrawals, and program start/completion date information.
A23: 4. AQ PrePost: Enter answers directly from the Agression Questionaire Pre and Post Surveys for each youth. Total and T scores will be automatically calculated.
A25: 5. HIT PrePost: Enter answers from the "How I Think" questionaire Pre and Post Surveys for each youth. Total and mean scores will automatically be calculated.
A27: 6. SS PrePost: Enter raw scores from the "Skillstreaming Checklist" Pre and Post Surveys for each youth.
A29: 7. Observations: Scores from 3rd party fidelity observations are entered on this tab. (Should be 20% or more of sessions)
A31: 8. Outcome Data: Outcome and 12 month Follow-Up survey information is entered here for each youth.
A33: Some general characteristics of the spreadsheets (tabs) include:
A35: 1. The spreadsheet is locked, so you will only be able to enter information into the appropriate cells. You are expected to enter information into cells highlighted yellow.
A37: 2. Certain cells will only accept certain values. If you enter a value out of the accepted range, you will receive an error message that tells you the range of values that can be entered. Also, if you click on one of these cells, the information for the accepted response options will appear in a tan box.
A39: 3. When information is entered into the program tabs, the PMs are automatically calculated for you in the Outcomes PM tab.
A41: 4. Boxes may turn red in the Process or Outcome tabs. To make sure that the information entered is consistent, we have placed rules on the cells; these rules are described in column H. When a rule is broken the cell turns red. Cells may turn red as you are entering information, this is not a problem. If they remain red after you have entered all of the information, refer to the rules to determine why the cell has remained red.
A43: Before submitting your Performance Measures in Egrants, you will need to complete the following steps:
A45: 1. Review the Process & Outcome tabs to assure there are no red cells (see #4 above if you have red cells).
A47: 2. Create a new Excel file that has identifying information of participants removed. After all data have been entered, return to the "Instructions" tab and click the green button below. This will save the current file as a new file with identifying information removed. It will automatically save with your Grant Number, County, and Date. This new copy of the spreadsheet is the one that you should upload into Egrants.
A49: =$A$1 -> 2.2 Version - 7/1/2013 | B49: If you have any questions, please contact your EPISCenter TA Provider at 814-863-2569

Sheet Process PMs Yr1
A1: =Instructions!$A$1 -> 2.2 Version - 7/1/2013 | B1: Agency | E1: Program | F1: Contact | G1: Email: | H1: Phone
B2: =Instructions!$B$3 -> Greater Norristown Police Athletic League | E2: ART | F2: =Instructions!$B$4 -> Brett Wells | G2: =Instructions!$B$5 -> brett.wells@greaternorristownpal.org
A3: Year 1 - Quarter 1 | B3: Year 1 - Quarter 2 | C3: Year 1 - Quarter 3 | D3: Year 1 - Quarter 4
A4: =TEXT(datecalcs!$A$4,"mmm. yyyy")&" - "&TEXT(datecalcs!$B$4,"mmm. yyyy") -> Oct. 2013 - Dec. 2013 | B4: =TEXT(datecalcs!$A$5,"mmm. yyyy")&" - "&TEXT(datecalcs!$B$5,"mmm. yyyy") -> Jan. 2014 - Mar. 2014 | C4: =TEXT(datecalcs!$A$6,"mmm. yyyy")&" - "&TEXT(datecalcs!$B$6,"mmm. yyyy") -> Apr. 2014 - Jun. 2014 | D4: =TEXT(datecalcs!$A$7,"mmm. yyyy")&" - "&TEXT(datecalcs!$B$7,"mmm. yyyy") -> Jul. 2014 - Sep. 2014 | E4: Cumulative | F4: Performance Measure | G4: Description | H4: Rules | I4: PM#
A5: Data for sites to enter
A6: 12 | B6: 0 | C6: 0 | D6: 0 | E6: =SUM(A6:D6) -> 12 | F6: Number of ART facilitators trained. | G6: Data: This information should be collected by internal tracking systems. Number for PM: Count each ART facilitator that completed ART initial training during this quarter. Count each trainee only once in the quarter they completed training. | I6: P1
A7: 0 | B7: 0 | C7: 0 | D7: 0 | E7: 0 | F7: Number of ART facilitators who became eligible for proficiency. | G7: Data: This information should be collected by internal tracking systems. Number for PM: Count each ART facilitator that became eligible for proficiency (defined as having facilitated 36 or more sessions and at least 12 in each of the 3 program components) during this quarter. Count each facilitator only once in the quarter they became eligible for proficiency. | H7: The total number of ART facilitators who became eligible for proficiency should be less than or equal to the total number of ART facilitators trained | I7: P2
A8: 0 | B8: 0 | C8: 0 | D8: 0 | E8: 0 | F8: Number of ART facilitators who achieved proficiency. | G8: Data: This information should be collected by internal tracking systems. Number for PM: Count each ART facilitator who has achieved proficiency (defined by being eligible for trainer proficiency and achieving a score of 2 or greater in all video review categories when evaluated by a master trainer) this quarter. Count each facilitator only once in the quarter they became proficient. | H8: The total number of ART facilitators who became proficient should be less than or equal to the total number of ART facilitators who became eligible for proficiency | I8: P3
A9: 0 | B9: 0 | C9: 0 | D9: 0 | E9: 0 | F9: Number facilitators who attended an Agency Trainer training. | G9: Data: This information should be collected by internal tracking systems. Number for PM: Count each trainee only once. | I9: P4
A10: 0 | B10: 0 | C10: 0 | D10: 0 | E10: 0 | F10: Number of ART facilitators who became eligible for Agency Trainer proficiency. | G10: Data: This information should be collected by internal tracking systems. Eligible for proficiency is defined as having facilitated 72 or more sessions, with at least 24 in each of the 3 program components and has completed the Agency Trainer training. Number for PM: Count each facilitator only once. | H10: The total number of ART facilitators who became eligible for Agency Trainer proficiency should be less than or equal to the total number of ART facilitators who attended an Agency Trainer training. | I10: P5
A11: 0 | B11: 0 | C11: 2 | D11: 0 | E11: 2 | F11: Total number of ART sessions delivered. | G11: Data: This information should be collected by internal tracking systems. Number for PM: Count the total number of ART Skill Streaming, Anger Management and Moral Reasoning sessions delivered within this quarter. | I11: P6
A12: 0 | B12: 0 | C12: 0 | E12: 0 | F12: Total number of ART session fidelity forms completed. | G12: Data: This information should be collected from the ART fidelity forms completed by external observers and facilitators facilitating the sessions. Number for PM: Count of the number of ART fidelity forms completed by external observers and facilitators for sessions delivered within this quarter. | I12: P7
A13: 0 | B13: 1 | C13: 1 | D13: 1 | E13: 3 | F13: Number of Reports to the Collaborative Board: Number of data/outcome reports presented to the collaborative board that supported the project and/or number of written or oral presentations made during this reporting period to the collaborative board that supported the project. | G13: Data: Grantees are required to report to the collaborative board that supported the grant proposal at least quarterly and to provide a written data report highlighting program outcomes at least annually. The annual written data report must be submitted to the collaborative board prior to the end of each fiscal year. The written data report must also be attached in E-grants. Meeting minutes or other documentation may also be attached. This information should be collected using internal tracking systems. Number for PM: Count each report only once. Only report this for reports/presentations given within this quarter. | I13: P8
A14: Data that will be calculated for sites
A15: =COUNTIF(Programs!$BI$8:$BI$1040,A28) -> 0 | B15: =COUNTIF(Programs!$BI$8:$BI$1040,B28) -> 0 | C15: =COUNTIF(Programs!$BI$8:$BI$1040,C28) -> 2 | D15: =COUNTIF(Programs!$BI$8:$BI$1040,D28) -> 0 | E15: =SUM(A15:D15) -> 2 | F15: Number of times full ART curriculum was delivered. | G15: Number for PM: Count of the number of times a complete 30 session program was completed within this quarter. Completion is counted in the quarter that final program session was delivered. | I15: P9
A16: =COUNTIF(Programs!$BJ$9:$BJ$1040,A28) -> 0 | B16: =COUNTIF(Programs!$BJ$9:$BJ$1040,B28) -> 0 | C16: =COUNTIF(Programs!$BJ$9:$BJ$1040,C28) -> 15 | D16: =COUNTIF(Programs!$BJ$9:$BJ$1040,D28) -> 0 | E16: 15 | F16: Number of youth served. | G16: Number for PM: Count of the number of youth who participated in at least one ART session in a program completed within this quarter. | I16: P10
A17: =Programs!AR7 -> 0 | B17: =Programs!AS7 -> 0 | C17: =Programs!AT7 -> 13 | D17: =Programs!AU7 -> 0 | E17: 13 | F17: Number of youth completing the ART curriculum. | G17: Number for PM: Count of the number of unduplicated youth who completed all 28 or more sessions of a program completed within this quarter. Completion is counted in the quarter that final program session was delivered. | I17: P11
A18: =COUNTIF(Observations!$H$7:$H$1000,A28) -> 0 | B18: =COUNTIF(Observations!$H$7:$H$1000,B28) -> 6 | C18: =COUNTIF(Observations!$H$7:$H$1000,C28) -> 2 | D18: =COUNTIF(Observations!$H$7:$H$1000,D28) -> 4 | E18: 12 | F18: Total number of fidelity observations completed. | G18: Number for PM: Count of the number of fidelity observations completed this quarter by a trained observer not participating in the facilitation of the session. | I18: P12
A19: =COUNTIF(Observations!$I$7:$I$1000,A28) -> 0 | B19: =COUNTIF(Observations!$I$7:$I$1000,B28) -> 4 | C19: =COUNTIF(Observations!$I$7:$I$1000,C28) -> 2 | D19: =COUNTIF(Observations!$I$7:$I$1000,D28) -> 4 | E19: 10 | F19: Number of fidelity observations completed. that met minimum fidelity. | G19: Number for PM: Count of the number of fidelity observations completed this quarter by a trained observer not participating in the facilitation of the session, that minimum fidelity of 75%. | I19: P13
A20: =COUNTIF('SS PrePost'!$GD$4:$GD$1040,A28) -> 0 | B20: =COUNTIF('SS PrePost'!$GD$4:$GD$1040,B28) -> 0 | C20: =COUNTIF('SS PrePost'!$GD$4:$GD$1040,C28) -> 15 | D20: =COUNTIF('SS PrePost'!$GD$4:$GD$1040,D28) -> 0 | E20: 15 | F20: Number of Youth completing the Skillstreaming Checklist pre-post. | G20: Number for PM: Count of the number of youth who completed both the Pre and Post Skillstreaming checklist in a program completed within this quarter. | I20: P14
A21: =COUNTIF('AQ PrePost'!$EQ$4:$EQ$1040,A28) -> 0 | B21: =COUNTIF('AQ PrePost'!$EQ$4:$EQ$1040,B28) -> 0 | C21: =COUNTIF('AQ PrePost'!$EQ$4:$EQ$1040,C28) -> 15 | D21: =COUNTIF('AQ PrePost'!$EQ$4:$EQ$1040,D28) -> 0 | E21: 15 | F21: Number of Youth completing the AQ pre-post. | G21: Number for PM: Count of the number of youth who completed both the Pre and Post Aggression Questionnaire in a program completed within this quarter. | I21: P15
A22: =COUNTIF('HIT PrePost'!$GC$4:$GC$1040,A28) -> 0 | B22: =COUNTIF('HIT PrePost'!$GC$4:$GC$1040,B28) -> 0 | C22: =COUNTIF('HIT PrePost'!$GC$4:$GC$1040,C28) -> 15 | D22: =COUNTIF('HIT PrePost'!$GC$4:$GC$1040,D28) -> 0 | E22: 15 | F22: Number of Youth completing the HIT pre-post. | G22: Number for PM: Count of the number of youth who completed both the Pre and Post "How I Think" Questionnaire in a program completed within this quarter. | I22: P16
A23: =Programs!BA7 -> 0 | B23: =Programs!BB7 -> 0 | C23: =Programs!BC7 -> 0 | D23: =Programs!BD7 -> 0 | E23: 0 | F23: Number of youth who were administratively withdrawn. | G23: Number for PM: Count of the number of youth who were administratively withdrawn from a program completed within this quarter for administrative reasons including: the family moved out of the service area, losing funding, being removed from the program by the referral source against the advice of the ART program, or the youth being placed for an event that occurred prior to involvement in ART. Administrative withdrawals are cases where youth fail to complete the ART program for a reason/s beyond the agency's control. Documentation must be maintained for future monitoring purposes. | I23: P17
A24: =COUNTIF('12 Mos FollowUp'!$S$4:$S$1040,A$28) -> 0 | B24: =COUNTIF('12 Mos FollowUp'!$S$4:$S$1040,B$28) -> 0 | C24: =COUNTIF('12 Mos FollowUp'!$S$4:$S$1040,C$28) -> 0 | D24: =COUNTIF('12 Mos FollowUp'!$S$4:$S$1040,D$28) -> 0 | E24: =SUM(A24:D24) -> 0 | F24: Number of Youth who have participated in ART more than once. | G24: Number for PM: Count of the number of youth who completed both the Pre and Post Skillstreaming checklist in a program completed within this quarter. | I24: P18
A25: =COUNTIF('12 Mos FollowUp'!$T$4:$T$1040,A$28) -> 0 | B25: =COUNTIF('12 Mos FollowUp'!$T$4:$T$1040,B$28) -> 0 | C25: =COUNTIF('12 Mos FollowUp'!$T$4:$T$1040,C$28) -> 0 | D25: =COUNTIF('12 Mos FollowUp'!$T$4:$T$1040,D$28) -> 0 | E25: =SUM(A25:D25) -> 0 | F25: Number of Youth who were mandated to participate in ART. | G25: Number for PM: Count of the number of youth who completed both the Pre and Post Aggression Questionnaire in a program completed within this quarter. | I25: P19
A26: =COUNTIF('12 Mos FollowUp'!$U$4:$U$1040,A$28) -> 0 | B26: =COUNTIF('12 Mos FollowUp'!$U$4:$U$1040,B$28) -> 0 | C26: =COUNTIF('12 Mos FollowUp'!$U$4:$U$1040,C$28) -> 0 | D26: =COUNTIF('12 Mos FollowUp'!$U$4:$U$1040,D$28) -> 0 | E26: =SUM(A26:D26) -> 0 | F26: Number of Youth who had justice envolvement before particpating in ART. | G26: Number for PM: Count of the number of youth who completed both the Pre and Post "How I Think" Questionnaire in a program completed within this quarter. | I26: P20
A28: 1 | B28: 2 | C28: 3 | D28: 4

Sheet Outcome PMs Yr1
A1: =Instructions!$A$1 -> 2.2 Version - 7/1/2013 | B1: Agency | E1: Program | F1: Contact | G1: Email | H1: Phone
B2: =Instructions!$B$3 -> Greater Norristown Police Athletic League | E2: ='Process PMs Yr1'!E2 -> ART | F2: ='Process PMs Yr1'!F2 -> Brett Wells | G2: ='Process PMs Yr1'!G2 -> brett.wells@greaternorristownpal.org | H2: ='Process PMs Yr1'!H2 -> 0
A3: Year 1 - Quarter 1 | B3: Year 1 - Quarter 2 | C3: Year 1 - Quarter 3 | D3: Year 1 - Quarter 4
A4: =TEXT(datecalcs!$A$4,"mmm. yyyy")&" - "&TEXT(datecalcs!$B$4,"mmm. yyyy") -> Oct. 2013 - Dec. 2013 | B4: =TEXT(datecalcs!$A$5,"mmm. yyyy")&" - "&TEXT(datecalcs!$B$5,"mmm. yyyy") -> Jan. 2014 - Mar. 2014 | C4: =TEXT(datecalcs!$A$6,"mmm. yyyy")&" - "&TEXT(datecalcs!$B$6,"mmm. yyyy") -> Apr. 2014 - Jun. 2014 | D4: =TEXT(datecalcs!$A$7,"mmm. yyyy")&" - "&TEXT(datecalcs!$B$7,"mmm. yyyy") -> Jul. 2014 - Sep. 2014 | E4: Cumulative | F4: Percentage | G4: Performance Measure | H4: Description | I4: Rules | J4: Rules | K4: PM#
A5: Data that will be calculated for sites
A6: =COUNTIF('12 Mos FollowUp'!$P$4:$P$1040,A$34) -> 0 | B6: =COUNTIF('12 Mos FollowUp'!$P$4:$P$1040,B$34) -> 0 | C6: =COUNTIF('12 Mos FollowUp'!$P$4:$P$1040,C$34) -> 0 | D6: =COUNTIF('12 Mos FollowUp'!$P$4:$P$1040,D$34) -> 0 | E6: =SUM(A6:D6) -> 0 | F6: N/A | G6: Number of youth who completed a 12 month follow-up. | H6: Number for PM: Count of the number of youth who completed a 12 month follow-up survey this quarter. | K6: O1
A7: =COUNTIF('12 Mos FollowUp'!$R$4:$R$1040,A$34) -> 0 | B7: =COUNTIF('12 Mos FollowUp'!$R$4:$R$1040,B$34) -> 0 | C7: =COUNTIF('12 Mos FollowUp'!$R$4:$R$1040,C$34) -> 0 | D7: =COUNTIF('12 Mos FollowUp'!$R$4:$R$1040,D$34) -> 0 | E7: =SUM(A7:D7) -> 0 | F7: =IF(E6=0,"N/A",E7/E6) -> N/A | G7: Number of youth that were placed out of home placement within 12 months of completion of ART program | H7: Number for PM: Count of the number of youth who had an out-of-home placement within 12 months of program completion. | K7: O2
A8: =COUNTIF('12 Mos FollowUp'!$Q$4:$Q$1040,A$34) -> 0 | B8: =COUNTIF('12 Mos FollowUp'!$Q$4:$Q$1040,B$34) -> 0 | C8: =COUNTIF('12 Mos FollowUp'!$Q$4:$Q$1040,C$34) -> 0 | D8: =COUNTIF('12 Mos FollowUp'!$Q$4:$Q$1040,D$34) -> 0 | E8: =SUM(A8:D8) -> 0 | F8: =IF(E6=0,"N/A",E8/E6) -> N/A | G8: Number of youth who offended within 12 months of program completion. | H8: Number for PM: Count of the number of youth who offended within 12 months of program completion. | K8: O3
A9: =COUNTIF('AQ PrePost'!$ER$4:$ER$1040,A$34) -> 0 | B9: =COUNTIF('AQ PrePost'!$ER$4:$ER$1040,B$34) -> 0 | C9: =COUNTIF('AQ PrePost'!$ER$4:$ER$1040,C$34) -> 2 | D9: =COUNTIF('AQ PrePost'!$ER$4:$ER$1040,D$34) -> 0 | E9: =SUM(A9:D9) -> 2 | F9: =IF('Process PMs Yr1'!$E$21=0,"N/A",E9/'Process PMs Yr1'!$E$21) -> 0.1333333333 | G9: Number of youth with reduced Physical Aggression. | H9: Data: This data can be collected from the Aggression Questionnaire. Report on this measure for all youth whose ART Program ended during this reporting period and who completed pre- and post- Aggression Questionnaire Surveys. Scoring: To create an Physical Aggression summary score, calculate the average of items 8,10,11,17,23,24,25,27 at pre-test and post-test. Lower scores represent less physical aggression. Number for PM: Count of the number of youth who had positive change (calculation yet to be determined) in this category. Only include youth who completed ART program within this quarter in your count. | K9: O4
A10: =COUNTIF('AQ PrePost'!$ET$4:$ET$1040,A$34) -> 0 | B10: =COUNTIF('AQ PrePost'!$ET$4:$ET$1040,B$34) -> 0 | C10: =COUNTIF('AQ PrePost'!$ET$4:$ET$1040,C$34) -> 3 | D10: =COUNTIF('AQ PrePost'!$ET$4:$ET$1040,D$34) -> 0 | E10: =SUM(A10:D10) -> 3 | F10: =IF('Process PMs Yr1'!$E$21=0,"N/A",E10/'Process PMs Yr1'!$E$21) -> 0.2 | G10: Number of youth with reduced Verbal Aggression. | H10: Data: This data can be collected from the Aggression Questionnaire. Report on this measure for all youth whose ART Program ended during this reporting period and who completed pre- and post- Aggression Questionnaire Surveys. Scoring: To create an Verbal Aggression summary score, calculate the average of items 1,4,6,20,26 at pre-test and post-test. Lower scores represent less verbal aggression. Number for PM: Count of the number of youth who had positive change (calculation yet to be determined) in this category. Only include youth who completed ART program within this quarter in your count. | K10: O5
A11: =COUNTIF('AQ PrePost'!$EV$4:$EV$1040,A$34) -> 0 | B11: =COUNTIF('AQ PrePost'!$EV$4:$EV$1040,B$34) -> 0 | C11: =COUNTIF('AQ PrePost'!$EV$4:$EV$1040,C$34) -> 4 | D11: =COUNTIF('AQ PrePost'!$EV$4:$EV$1040,D$34) -> 0 | E11: 4 | F11: =IF('Process PMs Yr1'!$E$21=0,"N/A",E11/'Process PMs Yr1'!$E$21) -> 0.2666666667 | G11: Number of youth with reduced Anger. | H11: Data: This data can be collected from the Aggression Questionnaire. Report on this measure for all youth whose ART Program ended during this reporting period and who completed pre- and post- Aggression Questionnaire Surveys. Scoring: To create an Anger summary score, calculate the average of items 3,7,12,19,22,29,32 at pre-test and post-test. Lower scores represent less anger. Number for PM: Count of the number of youth who had positive change (calculation yet to be determined) in this category. Only include youth who completed ART program within this quarter in your count. | K11: O6
A12: =COUNTIF('AQ PrePost'!$EX$4:$EX$1040,A$34) -> 0 | B12: =COUNTIF('AQ PrePost'!$EX$4:$EX$1040,B$34) -> 0 | C12: =COUNTIF('AQ PrePost'!$EX$4:$EX$1040,C$34) -> 1 | D12: =COUNTIF('AQ PrePost'!$EX$4:$EX$1040,D$34) -> 0 | E12: 1 | F12: =IF('Process PMs Yr1'!$E$21=0,"N/A",E12/'Process PMs Yr1'!$E$21) -> 0.06666666667 | G12: Number of youth with reduced Hostility. | H12: Data: This data can be collected from the Aggression Questionnaire. Report on this measure for all youth whose ART Program ended during this reporting period and who completed pre- and post- Aggression Questionnaire Surveys. Scoring: To create an Physical Aggression summary score, calculate the average of items 2,5,9,16,21,28,31,33 at pre-test and post-test. Lower scores represent less hostility. Number for PM: Count of the number of youth who had positive change (calculation yet to be determined) in this category. Only include youth who completed ART program within this quarter in your count. | K12: O7
A13: =COUNTIF('AQ PrePost'!$EZ$4:$EZ$1040,A$34) -> 0 | B13: =COUNTIF('AQ PrePost'!$EZ$4:$EZ$1040,B$34) -> 0 | C13: =COUNTIF('AQ PrePost'!$EZ$4:$EZ$1040,C$34) -> 1 | D13: =COUNTIF('AQ PrePost'!$EZ$4:$EZ$1040,D$34) -> 0 | E13: 1 | F13: =IF('Process PMs Yr1'!$E$21=0,"N/A",E13/'Process PMs Yr1'!$E$21) -> 0.06666666667 | G13: Number of youth with reduced Indirect Aggression. | H13: Data: This data can be collected from the Aggression Questionnaire. Report on this measure for all youth whose ART Program ended during this reporting period and who completed pre- and post- Aggression Questionnaire Surveys. Scoring: To create an Physical Aggression summary score, calculate the average of items 13,14,15,18,30,34 at pre-test and post-test. Lower scores represent less indirect aggression. Number for PM: Count of the number of youth who had positive change (calculation yet to be determined) in this category. Only include youth who completed ART program within this quarter in your count. | K13: O8
A14: =COUNTIF('AQ PrePost'!$FB$4:$FB$1040,A$34) -> 0 | B14: =COUNTIF('AQ PrePost'!$FB$4:$FB$1040,B$34) -> 0 | C14: =COUNTIF('AQ PrePost'!$FB$4:$FB$1040,C$34) -> 2 | D14: =COUNTIF('AQ PrePost'!$FB$4:$FB$1040,D$34) -> 0 | E14: 2 | F14: =IF('Process PMs Yr1'!$E$21=0,"N/A",E14/'Process PMs Yr1'!$E$21) -> 0.1333333333 | G14: Number of youth with reduced overall aggression (as defined by the AQ). | H14: Data: This data can be collected from the Aggression Questionnaire. Report on this measure for all youth whose ART Program ended during this reporting period and who completed pre- and post- Aggression Questionnaire Surveys. Scoring: To create an Physical Aggression summary score, calculate the average of items 1-34 at pre-test and post-test. Lower scores represent lower overall aggression. Number for PM: Count of the number of youth who had positive change (calculation yet to be determined) in this category. Only include youth who completed ART program within this quarter in your count. | K14: O9
A15: =COUNTIF('HIT PrePost'!$GH$4:$GH$1040,A$34) -> 0 | B15: =COUNTIF('HIT PrePost'!$GH$4:$GH$1040,B$34) -> 0 | C15: =COUNTIF('HIT PrePost'!$GH$4:$GH$1040,C$34) -> 1 | D15: =COUNTIF('HIT PrePost'!$GH$4:$GH$1040,D$34) -> 0 | E15: 1 | F15: =IF('Process PMs Yr1'!$E$22=0,"N/A",E15/'Process PMs Yr1'!$E$22) -> 0.06666666667 | G15: Number of youth with reduced Self-Centeredness (SC). | H15: Data: This data can be collected from the How I Think Questionnaire. Report on this measure for all youth whose ART Program ended during this reporting period and who completed pre- and post- How I Think Questionnaire Surveys. Scoring: To create an Physical Aggression summary score, calculate the average of items 3,7,10,22,28,37,42,52,54 at pre-test and post-test. Lower scores represent reduced self-centeredness. Number for PM: Count of the number of youth who had positive change (calculation yet to be determined) in this category. Only include youth who completed ART program within this quarter in your count. | K15: O10
A16: =COUNTIF('HIT PrePost'!$GJ$4:$GJ$1040,A$34) -> 0 | B16: =COUNTIF('HIT PrePost'!$GJ$4:$GJ$1040,B$34) -> 0 | C16: =COUNTIF('HIT PrePost'!$GJ$4:$GJ$1040,C$34) -> 2 | D16: =COUNTIF('HIT PrePost'!$GJ$4:$GJ$1040,D$34) -> 0 | E16: 2 | F16: =IF('Process PMs Yr1'!$E$22=0,"N/A",E16/'Process PMs Yr1'!$E$22) -> 0.1333333333 | G16: Number of youth with reduced instances Blaming Others (BO). | H16: Data: This data can be collected from the How I Think Questionnaire. Report on this measure for all youth whose ART Program ended during this reporting period and who completed pre- and post- How I Think Questionnaire Surveys. Scoring: To create an Physical Aggression summary score, calculate the average of items 6,11,21,25,26,36,39,44,46,50 at pre-test and post-test. Lower scores represent less instance blaming others. Number for PM: Count of the number of youth who had positive change (calculation yet to be determined) in this category. Only include youth who completed ART program within this quarter in your count. | K16: O11
A17: =COUNTIF('HIT PrePost'!$GL$4:$GL$1040,A$34) -> 0 | B17: =COUNTIF('HIT PrePost'!$GL$4:$GL$1040,B$34) -> 0 | C17: =COUNTIF('HIT PrePost'!$GL$4:$GL$1040,C$34) -> 2 | D17: =COUNTIF('HIT PrePost'!$GL$4:$GL$1040,D$34) -> 0 | E17: 2 | F17: =IF('Process PMs Yr1'!$E$22=0,"N/A",E17/'Process PMs Yr1'!$E$22) -> 0.1333333333 | G17: Number of youth with reduced Minimizing/Mislabeling (MM). | H17: Data: This data can be collected from the How I Think Questionnaire. Report on this measure for all youth whose ART Program ended during this reporting period and who completed pre- and post- How I Think Questionnaire Surveys. Scoring: To create an Physical Aggression summary score, calculate the average of items 5,12,14,17,19,30,33,40,47 at pre-test and post-test. Lower scores represent instance minimizing/mislabeling. Number for PM: Count of the number of youth who had positive change (calculation yet to be determined) in this category. Only include youth who completed ART program within this quarter in your count. | K17: O12
A18: =COUNTIF('HIT PrePost'!$GN$4:$GN$1040,A$34) -> 0 | B18: =COUNTIF('HIT PrePost'!$GN$4:$GN$1040,B$34) -> 0 | C18: =COUNTIF('HIT PrePost'!$GN$4:$GN$1040,C$34) -> 2 | D18: =COUNTIF('HIT PrePost'!$GN$4:$GN$1040,D$34) -> 0 | E18: 2 | F18: =IF('Process PMs Yr1'!$E$22=0,"N/A",E18/'Process PMs Yr1'!$E$22) -> 0.1333333333 | G18: Number of youth with reduced instances of Assuming the Worst (AW). | H18: Data: This data can be collected from the How I Think Questionnaire. Report on this measure for all youth whose ART Program ended during this reporting period and who completed pre- and post- How I Think Questionnaire Surveys. Scoring: To create an Physical Aggression summary score, calculate the average of items 2,8,15,18,23,29,32,35,43,49,53 at pre-test and post-test. Lower scores represent fewer instances of "assuming the worst". Number for PM: Count of the number of youth who had positive change (calculation yet to be determined) in this category. Only include youth who completed ART program within this quarter in your count. | K18: O13
A19: =COUNTIF('HIT PrePost'!$GP$4:$GP$1040,A$34) -> 0 | B19: =COUNTIF('HIT PrePost'!$GP$4:$GP$1040,B$34) -> 0 | C19: =COUNTIF('HIT PrePost'!$GP$4:$GP$1040,C$34) -> 1 | D19: =COUNTIF('HIT PrePost'!$GP$4:$GP$1040,D$34) -> 0 | E19: 1 | F19: =IF('Process PMs Yr1'!$E$22=0,"N/A",E19/'Process PMs Yr1'!$E$22) -> 0.06666666667 | G19: Number of youth with reduced Opposition Defiance behaviors (OD). | H19: Data: This data can be collected from the How I Think Questionnaire. Report on this measure for all youth whose ART Program ended during this reporting period and who completed pre- and post- How I Think Questionnaire Surveys. Scoring: To create an Physical Aggression summary score, calculate the average of items 2,6,12,18,29,37,40,42,46,54 at pre-test and post-test. Lower scores represent less instances of oppositional defiant behaviors. Number for PM: Count of the number of youth who had positive change (calculation yet to be determined) in this category. Only include youth who completed ART program within this quarter in your count. | K19: O14
A20: =COUNTIF('HIT PrePost'!$GR$4:$GR$1040,A$34) -> 0 | B20: =COUNTIF('HIT PrePost'!$GR$4:$GR$1040,B$34) -> 0 | C20: =COUNTIF('HIT PrePost'!$GR$4:$GR$1040,C$34) -> 3 | D20: =COUNTIF('HIT PrePost'!$GR$4:$GR$1040,D$34) -> 0 | E20: 3 | F20: =IF('Process PMs Yr1'!$E$22=0,"N/A",E20/'Process PMs Yr1'!$E$22) -> 0.2 | G20: Number of youth with reduced Physical Aggression (PA). | H20: Data: This data can be collected from the How I Think Questionnaire. Report on this measure for all youth whose ART Program ended during this reporting period and who completed pre- and post- How I Think Questionnaire Surveys. Scoring: To create an Physical Aggression summary score, calculate the average of items 5,10,15,19,23,28,32,36,44,50 at pre-test and post-test. Lower scores represent less physical aggression. Number for PM: Count of the number of youth who had positive change (calculation yet to be determined) in this category. Only include youth who completed ART program within this quarter in your count. | K20: O15
A21: =COUNTIF('HIT PrePost'!$GT$4:$GT$1040,A$34) -> 0 | B21: =COUNTIF('HIT PrePost'!$GT$4:$GT$1040,B$34) -> 0 | C21: =COUNTIF('HIT PrePost'!$GT$4:$GT$1040,C$34) -> 2 | D21: =COUNTIF('HIT PrePost'!$GT$4:$GT$1040,D$34) -> 0 | E21: 2 | F21: =IF('Process PMs Yr1'!$E$22=0,"N/A",E21/'Process PMs Yr1'!$E$22) -> 0.1333333333 | G21: Number of youth with reduced instances of Lying (L). | H21: Data: This data can be collected from the How I Think Questionnaire. Report on this measure for all youth whose ART Program ended during this reporting period and who completed pre- and post- How I Think Questionnaire Surveys. Scoring: To create an Physical Aggression summary score, calculate the average of items 3,8,14,21,26,33,49,52 at pre-test and post-test. Lower scores represent less instances lying. Number for PM: Count of the number of youth who had positive change (calculation yet to be determined) in this category. Only include youth who completed ART program within this quarter in your count. | K21: O16
A22: =COUNTIF('HIT PrePost'!$GV$4:$GV$1040,A$34) -> 0 | B22: =COUNTIF('HIT PrePost'!$GV$4:$GV$1040,B$34) -> 0 | C22: =COUNTIF('HIT PrePost'!$GV$4:$GV$1040,C$34) -> 1 | D22: =COUNTIF('HIT PrePost'!$GV$4:$GV$1040,D$34) -> 0 | E22: 1 | F22: =IF('Process PMs Yr1'!$E$22=0,"N/A",E22/'Process PMs Yr1'!$E$22) -> 0.06666666667 | G22: Number of youth with reduced instance of Stealing (S). | H22: Data: This data can be collected from the How I Think Questionnaire. Report on this measure for all youth whose ART Program ended during this reporting period and who completed pre- and post- How I Think Questionnaire Surveys. Scoring: To create an Physical Aggression summary score, calculate the average of items 7,11,17,22,25,30,35,39,43,47,53 at pre-test and post-test. Lower scores represent less instances stealing. Number for PM: Count of the number of youth who had positive change (calculation yet to be determined) in this category. Only include youth who completed ART program within this quarter in your count. | K22: O17
A23: =COUNTIF('HIT PrePost'!$GW$4:$GW$1040,A$34) -> 0 | B23: =COUNTIF('HIT PrePost'!$GW$4:$GW$1040,B$34) -> 0 | C23: =COUNTIF('HIT PrePost'!$GW$4:$GW$1040,C$34) -> 2 | D23: =COUNTIF('HIT PrePost'!$GW$4:$GW$1040,D$34) -> 0 | E23: 2 | F23: =IF('Process PMs Yr1'!$E$22=0,"N/A",E23/'Process PMs Yr1'!$E$22) -> 0.1333333333 | G23: Number of youth with reduced overt aggression (being outwarldy aggressive). | H23: Data: This data can be collected from the How I Think Questionnaire. Report on this measure for all youth whose ART Program ended during this reporting period and who completed pre- and post- How I Think Questionnaire Surveys. Scoring: To create an Physical Aggression summary score, calculate the average of contructs OD and PA at pre-test and post-test. Lower scores represent less instance being outwardly agressive. Number for PM: Count of the number of youth who had positive change (calculation yet to be determined) in this category. Only include youth who completed ART program within this quarter in your count. | K23: O18
A24: =COUNTIF('HIT PrePost'!$GX$4:$GX$1040,A$34) -> 0 | B24: =COUNTIF('HIT PrePost'!$GX$4:$GX$1040,B$34) -> 0 | C24: =COUNTIF('HIT PrePost'!$GX$4:$GX$1040,C$34) -> 2 | D24: =COUNTIF('HIT PrePost'!$GX$4:$GX$1040,D$34) -> 0 | E24: 2 | F24: =IF('Process PMs Yr1'!$E$22=0,"N/A",E24/'Process PMs Yr1'!$E$22) -> 0.1333333333 | G24: Number of youth with reduced covert aggression (being inwardly aggressive). | H24: Data: This data can be collected from the How I Think Questionnaire. Report on this measure for all youth whose ART Program ended during this reporting period and who completed pre- and post- How I Think Questionnaire Surveys. Scoring: To create an Physical Aggression summary score, calculate the average of contructs L and S at pre-test and post-test. Lower scores represent less instance being inwardly agressive. Number for PM: Count of the number of youth who had positive change (calculation yet to be determined) in this category. Only include youth who completed ART program within this quarter in your count. | K24: O19
A25: =COUNTIF('HIT PrePost'!$GY$4:$GY$1040,A$34) -> 0 | B25: =COUNTIF('HIT PrePost'!$GY$4:$GY$1040,B$34) -> 0 | C25: =COUNTIF('HIT PrePost'!$GY$4:$GY$1040,C$34) -> 2 | D25: =COUNTIF('HIT PrePost'!$GY$4:$GY$1040,D$34) -> 0 | E25: 2 | F25: =IF('Process PMs Yr1'!$E$22=0,"N/A",E25/'Process PMs Yr1'!$E$22) -> 0.1333333333 | G25: Number of youth with reduced HIT Total Score (reduced cognitive distortions). | H25: Data: This data can be collected from the How I Think Questionnaire. Report on this measure for all youth whose ART Program ended during this reporting period and who completed pre- and post- How I Think Questionnaire Surveys. Scoring: To create an Physical Aggression summary score, calculate the average all contructs SC,BO,MM,AW,OD,PA,L,S at pre-test and post-test. Lower scores represent less instances of cognitive distortions. Number for PM: Count of the number of youth who had positive change (calculation yet to be determined) in this category. Only include youth who completed ART program within this quarter in your count. | K25: O20
A26: =COUNTIF('SS PrePost'!$GF$4:$GF$1040,A34) -> 0 | B26: =COUNTIF('SS PrePost'!$GF$4:$GF$1040,B34) -> 0 | C26: =COUNTIF('SS PrePost'!$GF$4:$GF$1040,C34) -> 3 | D26: =COUNTIF('SS PrePost'!$GF$4:$GF$1040,D34) -> 0 | E26: 3 | F26: =IF('Process PMs Yr1'!$E$20=0,"N/A",E26/'Process PMs Yr1'!$E$20) -> 0.2 | G26: Number of youth with improved Beginning Social Skills. | H26: Data: This data can be collected from the Skillstreaming Checklist. Report on this measure for all youth whose ART Program ended during this reporting period and who completed pre- and post- Skillstreaming Checklist Surveys. Scoring: To create an Beginning Social Skills summary score, calculate the average of items 1-8 at pre-test and post-test. Higher scores represent improved beginning social skills. Number for PM: Count of the number of youth who had positive change (calculation yet to be determined) in this category. Only include youth who completed ART program within this quarter in your count. | K26: O21
A27: =COUNTIF('SS PrePost'!$GH$4:$GH$1040,A34) -> 0 | B27: =COUNTIF('SS PrePost'!$GH$4:$GH$1040,B34) -> 0 | C27: =COUNTIF('SS PrePost'!$GH$4:$GH$1040,C34) -> 2 | D27: =COUNTIF('SS PrePost'!$GH$4:$GH$1040,D34) -> 0 | E27: 2 | F27: =IF('Process PMs Yr1'!$E$20=0,"N/A",E27/'Process PMs Yr1'!$E$20) -> 0.1333333333 | G27: Number of youth with improved Advanced Social Skills. | H27: Data: This data can be collected from the Skillstreaming Checklist. Report on this measure for all youth whose ART Program ended during this reporting period and who completed pre- and post- Skillstreaming Checklist Surveys. Scoring: To create an Advanced Social Skills summary score, calculate the average of items 9-14 at pre-test and post-test. Higher scores represent improved advanced social skills. Number for PM: Count of the number of youth who had positive change (calculation yet to be determined) in this category. Only include youth who completed ART program within this quarter in your count. | K27: O22
A28: =COUNTIF('SS PrePost'!$GJ$4:$GJ$1040,A34) -> 0 | B28: =COUNTIF('SS PrePost'!$GJ$4:$GJ$1040,B34) -> 0 | C28: =COUNTIF('SS PrePost'!$GJ$4:$GJ$1040,C34) -> 4 | D28: =COUNTIF('SS PrePost'!$GJ$4:$GJ$1040,D34) -> 0 | E28: 4 | F28: =IF('Process PMs Yr1'!$E$20=0,"N/A",E28/'Process PMs Yr1'!$E$20) -> 0.2666666667 | G28: Number of youth with improved Skills for Dealing with Feelings. | H28: Data: This data can be collected from the Skillstreaming Checklist. Report on this measure for all youth whose ART Program ended during this reporting period and who completed pre- and post- Skillstreaming Checklist Surveys. Scoring: To create an Beginning Social Skills summary score, calculate the average of items 15-21 at pre-test and post-test. Higher scores represent improved skills for dealing with feelings. Number for PM: Count of the number of youth who had positive change (calculation yet to be determined) in this category. Only include youth who completed ART program within this quarter in your count. | K28: O23
A29: =COUNTIF('SS PrePost'!$GL$4:$GL$1040,A34) -> 0 | B29: =COUNTIF('SS PrePost'!$GL$4:$GL$1040,B34) -> 0 | C29: =COUNTIF('SS PrePost'!$GL$4:$GL$1040,C34) -> 5 | D29: =COUNTIF('SS PrePost'!$GL$4:$GL$1040,D34) -> 0 | E29: 5 | F29: =IF('Process PMs Yr1'!$E$20=0,"N/A",E29/'Process PMs Yr1'!$E$20) -> 0.3333333333 | G29: Number of youth with improved Skill Alternatives to Aggression. | H29: Data: This data can be collected from the Skillstreaming Checklist. Report on this measure for all youth whose ART Program ended during this reporting period and who completed pre- and post- Skillstreaming Checklist Surveys. Scoring: To create an Advanced Social Skills summary score, calculate the average of items 22-30 at pre-test and post-test. Higher scores represent improved skills of alternatives to aggression. Number for PM: Count of the number of youth who had positive change (calculation yet to be determined) in this category. Only include youth who completed ART program within this quarter in your count. | K29: O24
A30: =COUNTIF('SS PrePost'!$GN$4:$GN$1040,A34) -> 0 | B30: =COUNTIF('SS PrePost'!$GN$4:$GN$1040,B34) -> 0 | C30: =COUNTIF('SS PrePost'!$GN$4:$GN$1040,C34) -> 6 | D30: =COUNTIF('SS PrePost'!$GN$4:$GN$1040,D34) -> 0 | E30: 6 | F30: =IF('Process PMs Yr1'!$E$20=0,"N/A",E30/'Process PMs Yr1'!$E$20) -> 0.4 | G30: Number of youth with improved Skills for Dealing with Stress. | H30: Data: This data can be collected from the Skillstreaming Checklist. Report on this measure for all youth whose ART Program ended during this reporting period and who completed pre- and post- Skillstreaming Checklist Surveys. Scoring: To create an Beginning Social Skills summary score, calculate the average of items 31-42 at pre-test and post-test. Higher scores represent improved skills dealing with stress. Number for PM: Count of the number of youth who had positive change (calculation yet to be determined) in this category. Only include youth who completed ART program within this quarter in your count. | K30: O25
A31: =COUNTIF('SS PrePost'!$GP$4:$GP$1040,A34) -> 0 | B31: =COUNTIF('SS PrePost'!$GP$4:$GP$1040,B34) -> 0 | C31: =COUNTIF('SS PrePost'!$GP$4:$GP$1040,C34) -> 3 | D31: =COUNTIF('SS PrePost'!$GP$4:$GP$1040,D34) -> 0 | E31: 3 | F31: =IF('Process PMs Yr1'!$E$20=0,"N/A",E31/'Process PMs Yr1'!$E$20) -> 0.2 | G31: Number of youth with improved Planning Skills. | H31: Data: This data can be collected from the Skillstreaming Checklist. Report on this measure for all youth whose ART Program ended during this reporting period and who completed pre- and post- Skillstreaming Checklist Surveys. Scoring: To create an Advanced Social Skills summary score, calculate the average of items 43-50 at pre-test and post-test. Higher scores represent improved planning skills. Number for PM: Count of the number of youth who had positive change (calculation yet to be determined) in this category. Only include youth who completed ART program within this quarter in your count. | K31: O26
A32: =COUNTIF('SS PrePost'!$GR$4:$GR$1040,A34) -> 0 | B32: =COUNTIF('SS PrePost'!$GR$4:$GR$1040,B34) -> 0 | C32: =COUNTIF('SS PrePost'!$GR$4:$GR$1040,C34) -> 3 | D32: =COUNTIF('SS PrePost'!$GR$4:$GR$1040,D34) -> 0 | E32: 3 | F32: =IF('Process PMs Yr1'!$E$20=0,"N/A",E32/'Process PMs Yr1'!$E$20) -> 0.2 | G32: Number of youth with improved Skillstreaming Total Score. | H32: Data: This data can be collected from the Skillstreaming Checklist. Report on this measure for all youth whose ART Program ended during this reporting period and who completed pre- and post- Skillstreaming Checklist Surveys. Scoring: To create an Beginning Social Skills summary score, calculate the average of items 1-50 at pre-test and post-test. Higher scores represent improved social skills overall. Number for PM: Count of the number of youth who had positive change (calculation yet to be determined) in this category. Only include youth who completed ART program within this quarter in your count. | K32: O27
A34: 1 | B34: 2 | C34: 3 | D34: 4

Sheet Process PMs Yr2
A1: =Instructions!$A$1 -> 2.2 Version - 7/1/2013 | B1: Agency | E1: Program | F1: Contact | G1: Email: | H1: Phone
B2: =Instructions!$B$3 -> Greater Norristown Police Athletic League | E2: ART | F2: =Instructions!$B$4 -> Brett Wells | G2: =Instructions!$B$5 -> brett.wells@greaternorristownpal.org
A3: Year 2 - Quarter 1 | B3: Year 2 - Quarter 2 | C3: Year 2 - Quarter 3 | D3: Year 2 - Quarter 4
A4: =TEXT(datecalcs!$A$8,"mmm. yyyy")&" - "&TEXT(datecalcs!$B$8,"mmm. yyyy") -> Oct. 2014 - Dec. 2014 | B4: =TEXT(datecalcs!$A$9,"mmm. yyyy")&" - "&TEXT(datecalcs!$B$9,"mmm. yyyy") -> Jan. 2015 - Mar. 2015 | C4: =TEXT(datecalcs!$A$10,"mmm. yyyy")&" - "&TEXT(datecalcs!$B$10,"mmm. yyyy") -> Apr. 2015 - Jun. 2015 | D4: =TEXT(datecalcs!$A$11,"mmm. yyyy")&" - "&TEXT(datecalcs!$B$11,"mmm. yyyy") -> Jul. 2015 - Sep. 2015 | E4: Cumulative | F4: Performance Measure | G4: Description | H4: Rules | I4: PM#
A5: Data for sites to enter
A6: 0 | B6: 0 | E6: =SUM(A6:D6) -> 0 | F6: Number of ART facilitators trained. | G6: Data: This information should be collected by internal tracking systems. Number for PM: Count each ART facilitator that completed ART initial training during this quarter. Count each trainee only once in the quarter they completed training. | I6: P1
A7: 0 | B7: 0 | E7: 0 | F7: Number of ART facilitators who became eligible for proficiency. | G7: Data: This information should be collected by internal tracking systems. Number for PM: Count each ART facilitator that became eligible for proficiency (defined as having facilitated 36 or more sessions and at least 12 in each of the 3 program components) during this quarter. Count each facilitator only once in the quarter they became eligible for proficiency. | H7: The total number of ART facilitators who became eligible for proficiency should be less than or equal to the total number of ART facilitators trained | I7: P2
A8: 0 | B8: 0 | E8: 0 | F8: Number of ART facilitators who achieved proficiency. | G8: Data: This information should be collected by internal tracking systems. Number for PM: Count each ART facilitator who has achieved proficiency (defined by being eligible for trainer proficiency and achieving a score of 2 or greater in all video review categories when evaluated by a master trainer) this quarter. Count each facilitator only once in the quarter they became proficient. | H8: The total number of ART facilitators who became proficient should be less than or equal to the total number of ART facilitators who became eligible for proficiency | I8: P3
A9: 0 | B9: 0 | E9: 0 | F9: Number facilitators who attended an Agency Trainer training. | G9: Data: This information should be collected by internal tracking systems. Number for PM: Count each trainee only once. | I9: P4
A10: 0 | B10: 0 | E10: 0 | F10: Number of ART facilitators who became eligible for Agency Trainer proficiency. | G10: Data: This information should be collected by internal tracking systems. Eligible for proficiency is defined as having facilitated 72 or more sessions, with at least 24 in each of the 3 program components and has completed the Agency Trainer training. Number for PM: Count each facilitator only once. | H10: The total number of ART facilitators who became eligible for Agency Trainer proficiency should be less than or equal to the total number of ART facilitators who attended an Agency Trainer training. | I10: P5
A11: 0 | B11: 1 | E11: 1 | F11: Total number of ART sessions delivered. | G11: Data: This information should be collected by internal tracking systems. Number for PM: Count the total number of ART Skill Streaming, Anger Management and Moral Reasoning sessions delivered within this quarter. | I11: P6
B12: 3 | E12: 3 | F12: Total number of ART session fidelity forms completed. | G12: Data: This information should be collected from the ART fidelity forms completed by external observers and facilitators facilitating the sessions. Number for PM: Count of the number of ART fidelity forms completed by external observers and facilitators for sessions delivered within this quarter. | I12: P7
A13: 1 | B13: 1 | E13: =SUM(A13:D13) -> 2 | F13: Number of Reports to the Collaborative Board: Number of data/outcome reports presented to the collaborative board that supported the project and/or number of written or oral presentations made during this reporting period to the collaborative board that supported the project. | G13: Data: Grantees are required to report to the collaborative board that supported the grant proposal at least quarterly and to provide a written data report highlighting program outcomes at least annually. The annual written data report must be submitted to the collaborative board prior to the end of each fiscal year. The written data report must also be attached in E-grants. Meeting minutes or other documentation may also be attached. This information should be collected using internal tracking systems. Number for PM: Count each report only once. Only report this for reports/presentations given within this quarter. | I13: P8
A14: Data that will be calculated for sites
A15: =COUNTIF(Programs!$BI$8:$BI$1040,A28) -> 1 | B15: =COUNTIF(Programs!$BI$8:$BI$1040,B28) -> 1 | C15: =COUNTIF(Programs!$BI$8:$BI$1040,C28) -> 0 | D15: =COUNTIF(Programs!$BI$8:$BI$1040,D28) -> 0 | E15: =SUM(A15:D15) -> 2 | F15: Number of times full ART curriculum was delivered. | G15: Number for PM: Count of the number of times a complete 30 session program was completed within this quarter. Completion is counted in the quarter that final program session was delivered. | I15: P9
A16: =COUNTIF(Programs!$BJ$9:$BJ$1040,A28) -> 8 | B16: =COUNTIF(Programs!$BJ$9:$BJ$1040,B28) -> 12 | C16: =COUNTIF(Programs!$BJ$9:$BJ$1040,C28) -> 0 | D16: =COUNTIF(Programs!$BJ$9:$BJ$1040,D28) -> 0 | E16: 20 | F16: Number of youth served. | G16: Number for PM: Count of the number of youth who participated in at least one ART session in a program completed within this quarter. | I16: P10
A17: =Programs!AV7 -> 8 | B17: =Programs!AW7 -> 6 | C17: =Programs!AX7 -> 0 | D17: =Programs!AY7 -> 0 | E17: 14 | F17: Number of youth completing the ART curriculum. | G17: Number for PM: Count of the number of unduplicated youth who completed all 28 or more sessions of a program completed within this quarter. Completion is counted in the quarter that final program session was delivered. | I17: P11
A18: =COUNTIF(Observations!$H$7:$H$1000,A28) -> 0 | B18: =COUNTIF(Observations!$H$7:$H$1000,B28) -> 3 | C18: =COUNTIF(Observations!$H$7:$H$1000,C28) -> 0 | D18: =COUNTIF(Observations!$H$7:$H$1000,D28) -> 0 | E18: 3 | F18: Total number of fidelity observations completed. | G18: Number for PM: Count of the number of fidelity observations completed this quarter by a trained observer not participating in the facilitation of the session. | I18: P12
A19: =COUNTIF(Observations!$I$7:$I$1000,A28) -> 0 | B19: =COUNTIF(Observations!$I$7:$I$1000,B28) -> 3 | C19: =COUNTIF(Observations!$I$7:$I$1000,C28) -> 0 | D19: =COUNTIF(Observations!$I$7:$I$1000,D28) -> 0 | E19: 3 | F19: Number of fidelity observations completed. that met minimum fidelity. | G19: Number for PM: Count of the number of fidelity observations completed this quarter by a trained observer not participating in the facilitation of the session, that minimum fidelity of 75%. | I19: P13
A20: =COUNTIF('SS PrePost'!$GD$4:$GD$1040,A28) -> 8 | B20: =COUNTIF('SS PrePost'!$GD$4:$GD$1040,B28) -> 12 | C20: =COUNTIF('SS PrePost'!$GD$4:$GD$1040,C28) -> 0 | D20: =COUNTIF('SS PrePost'!$GD$4:$GD$1040,D28) -> 0 | E20: 20 | F20: Number of Youth completing the Skillstreaming Checklist pre-post. | G20: Number for PM: Count of the number of youth who completed both the Pre and Post Skillstreaming checklist in a program completed within this quarter. | I20: P14
A21: =COUNTIF('AQ PrePost'!$EQ$4:$EQ$1040,A28) -> 7 | B21: =COUNTIF('AQ PrePost'!$EQ$4:$EQ$1040,B28) -> 12 | C21: =COUNTIF('AQ PrePost'!$EQ$4:$EQ$1040,C28) -> 0 | D21: =COUNTIF('AQ PrePost'!$EQ$4:$EQ$1040,D28) -> 0 | E21: 19 | F21: Number of Youth completing the AQ pre-post. | G21: Number for PM: Count of the number of youth who completed both the Pre and Post Aggression Questionnaire in a program completed within this quarter. | I21: P15
A22: =COUNTIF('HIT PrePost'!$GC$4:$GC$1040,A28) -> 7 | B22: =COUNTIF('HIT PrePost'!$GC$4:$GC$1040,B28) -> 10 | C22: =COUNTIF('HIT PrePost'!$GC$4:$GC$1040,C28) -> 0 | D22: =COUNTIF('HIT PrePost'!$GC$4:$GC$1040,D28) -> 0 | E22: 17 | F22: Number of Youth completing the HIT pre-post. | G22: Number for PM: Count of the number of youth who completed both the Pre and Post "How I Think" Questionnaire in a program completed within this quarter. | I22: P16
A23: =Programs!BE7 -> 0 | B23: =Programs!BF7 -> 0 | C23: =Programs!BG7 -> 0 | D23: =Programs!BH7 -> 0 | E23: 0 | F23: Number of youth who were administratively withdrawn. | G23: Number for PM: Count of the number of youth who were administratively withdrawn from a program completed within this quarter for administrative reasons including: the family moved out of the service area, losing funding, being removed from the program by the referral source against the advice of the ART program, or the youth being placed for an event that occurred prior to involvement in ART. Administrative withdrawals are cases where youth fail to complete the ART program for a reason/s beyond the agency's control. Documentation must be maintained for future monitoring purposes. | I23: P17
A24: =COUNTIF('12 Mos FollowUp'!$S$4:$S$1040,A$28) -> 0 | B24: =COUNTIF('12 Mos FollowUp'!$S$4:$S$1040,B$28) -> 0 | C24: =COUNTIF('12 Mos FollowUp'!$S$4:$S$1040,C$28) -> 0 | D24: =COUNTIF('12 Mos FollowUp'!$S$4:$S$1040,D$28) -> 0 | E24: 0 | F24: Number of Youth who have participated in ART more than once. | G24: Number for PM: Count of the number of youth who completed both the Pre and Post Skillstreaming checklist in a program completed within this quarter. | I24: P18
A25: =COUNTIF('12 Mos FollowUp'!$T$4:$T$1040,A$28) -> 0 | B25: =COUNTIF('12 Mos FollowUp'!$T$4:$T$1040,B$28) -> 0 | C25: =COUNTIF('12 Mos FollowUp'!$T$4:$T$1040,C$28) -> 0 | D25: =COUNTIF('12 Mos FollowUp'!$T$4:$T$1040,D$28) -> 0 | E25: 0 | F25: Number of Youth who were mandated to participate in ART. | G25: Number for PM: Count of the number of youth who completed both the Pre and Post Aggression Questionnaire in a program completed within this quarter. | I25: P19
A26: =COUNTIF('12 Mos FollowUp'!$U$4:$U$1040,A$28) -> 0 | B26: =COUNTIF('12 Mos FollowUp'!$U$4:$U$1040,B$28) -> 0 | C26: =COUNTIF('12 Mos FollowUp'!$U$4:$U$1040,C$28) -> 0 | D26: =COUNTIF('12 Mos FollowUp'!$U$4:$U$1040,D$28) -> 0 | E26: 0 | F26: Number of Youth who had justice envolvement before particpating in ART. | G26: Number for PM: Count of the number of youth who completed both the Pre and Post "How I Think" Questionnaire in a program completed within this quarter. | I26: P20
A28: 5 | B28: 6 | C28: 7 | D28: 8

Sheet Outcome PMs Yr2
A1: =Instructions!$A$1 -> 2.2 Version - 7/1/2013 | B1: Agency | E1: Program | F1: Contact | G1: Email | H1: Phone
B2: =Instructions!$B$3 -> Greater Norristown Police Athletic League | E2: ='Process PMs Yr1'!E2 -> ART | F2: ='Process PMs Yr1'!F2 -> Brett Wells | G2: ='Process PMs Yr1'!G2 -> brett.wells@greaternorristownpal.org | H2: ='Process PMs Yr1'!H2 -> 0
A3: Year 2 - Quarter 1 | B3: Year 2 - Quarter 2 | C3: Year 2 - Quarter 3 | D3: Year 2 - Quarter 4
A4: =TEXT(datecalcs!$A$8,"mmm. yyyy")&" - "&TEXT(datecalcs!$B$8,"mmm. yyyy") -> Oct. 2014 - Dec. 2014 | B4: =TEXT(datecalcs!$A$9,"mmm. yyyy")&" - "&TEXT(datecalcs!$B$9,"mmm. yyyy") -> Jan. 2015 - Mar. 2015 | C4: =TEXT(datecalcs!$A$10,"mmm. yyyy")&" - "&TEXT(datecalcs!$B$10,"mmm. yyyy") -> Apr. 2015 - Jun. 2015 | D4: =TEXT(datecalcs!$A$11,"mmm. yyyy")&" - "&TEXT(datecalcs!$B$11,"mmm. yyyy") -> Jul. 2015 - Sep. 2015 | E4: Cumulative | F4: Percentage | G4: Performance Measure | H4: Description | I4: Rules | K4: PM#
A5: Data that will be calculated for sites
A6: =COUNTIF('12 Mos FollowUp'!$P$4:$P$1040,A$34) -> 0 | B6: =COUNTIF('12 Mos FollowUp'!$P$4:$P$1040,B$34) -> 0 | C6: =COUNTIF('12 Mos FollowUp'!$P$4:$P$1040,C$34) -> 0 | D6: =COUNTIF('12 Mos FollowUp'!$P$4:$P$1040,D$34) -> 0 | E6: =SUM(A6:D6) -> 0 | F6: N/A | G6: Number of youth who completed a 12 month follow-up. | H6: Number for PM: Count of the number of youth who completed a 12 month follow-up survey this quarter. | K6: O1
A7: =COUNTIF('12 Mos FollowUp'!$R$4:$R$1040,A$34) -> 0 | B7: =COUNTIF('12 Mos FollowUp'!$R$4:$R$1040,B$34) -> 0 | C7: =COUNTIF('12 Mos FollowUp'!$R$4:$R$1040,C$34) -> 0 | D7: =COUNTIF('12 Mos FollowUp'!$R$4:$R$1040,D$34) -> 0 | E7: =SUM(A7:D7) -> 0 | F7: =IF(E6=0,"N/A",E7/E6) -> N/A | G7: Number of youth that were placed out of home placement within 12 months of completion of ART program | H7: Number for PM: Count of the number of youth who had an out-of-home placement within 12 months of program completion. | K7: O2
A8: =COUNTIF('12 Mos FollowUp'!$Q$4:$Q$1040,A$34) -> 0 | B8: =COUNTIF('12 Mos FollowUp'!$Q$4:$Q$1040,B$34) -> 0 | C8: =COUNTIF('12 Mos FollowUp'!$Q$4:$Q$1040,C$34) -> 0 | D8: =COUNTIF('12 Mos FollowUp'!$Q$4:$Q$1040,D$34) -> 0 | E8: =SUM(A8:D8) -> 0 | F8: =IF(E6=0,"N/A",E8/E6) -> N/A | G8: Number of youth who offended within 12 months of program completion. | H8: Number for PM: Count of the number of youth who offended within 12 months of program completion. | K8: O3
A9: =COUNTIF('AQ PrePost'!$ER$4:$ER$1040,A$34) -> 0 | B9: =COUNTIF('AQ PrePost'!$ER$4:$ER$1040,B$34) -> 2 | C9: =COUNTIF('AQ PrePost'!$ER$4:$ER$1040,C$34) -> 0 | D9: =COUNTIF('AQ PrePost'!$ER$4:$ER$1040,D$34) -> 0 | E9: =SUM(A9:D9) -> 2 | F9: =IF('Process PMs Yr2'!$E$20=0,"N/A",E9/'Process PMs Yr2'!$E$21) -> 0.1052631579 | G9: Number of youth with reduced Physical Aggression. | H9: Data: This data can be collected from the Aggression Questionnaire. Report on this measure for all youth whose ART Program ended during this reporting period and who completed pre- and post- Aggression Questionnaire Surveys. Scoring: To create an Physical Aggression summary score, calculate the average of items 8,10,11,17,23,24,25,27 at pre-test and post-test. Lower scores represent less physical aggression. Number for PM: Count of the number of youth who had positive change (calculation yet to be determined) in this category. Only include youth who completed ART program within this quarter in your count. | K9: O4
A10: =COUNTIF('AQ PrePost'!$ET$4:$ET$1040,A$34) -> 0 | B10: =COUNTIF('AQ PrePost'!$ET$4:$ET$1040,B$34) -> 3 | C10: =COUNTIF('AQ PrePost'!$ET$4:$ET$1040,C$34) -> 0 | D10: =COUNTIF('AQ PrePost'!$ET$4:$ET$1040,D$34) -> 0 | E10: =SUM(A10:D10) -> 3 | F10: =IF('Process PMs Yr2'!$E$20=0,"N/A",E10/'Process PMs Yr2'!$E$21) -> 0.1578947368 | G10: Number of youth with reduced Verbal Aggression. | H10: Data: This data can be collected from the Aggression Questionnaire. Report on this measure for all youth whose ART Program ended during this reporting period and who completed pre- and post- Aggression Questionnaire Surveys. Scoring: To create an Verbal Aggression summary score, calculate the average of items 1,4,6,20,26 at pre-test and post-test. Lower scores represent less verbal aggression. Number for PM: Count of the number of youth who had positive change (calculation yet to be determined) in this category. Only include youth who completed ART program within this quarter in your count. | K10: O5
A11: =COUNTIF('AQ PrePost'!$EV$4:$EV$1040,A$34) -> 0 | B11: =COUNTIF('AQ PrePost'!$EV$4:$EV$1040,B$34) -> 3 | C11: =COUNTIF('AQ PrePost'!$EV$4:$EV$1040,C$34) -> 0 | D11: =COUNTIF('AQ PrePost'!$EV$4:$EV$1040,D$34) -> 0 | E11: 3 | F11: =IF('Process PMs Yr2'!$E$20=0,"N/A",E11/'Process PMs Yr2'!$E$21) -> 0.1578947368 | G11: Number of youth with reduced Anger. | H11: Data: This data can be collected from the Aggression Questionnaire. Report on this measure for all youth whose ART Program ended during this reporting period and who completed pre- and post- Aggression Questionnaire Surveys. Scoring: To create an Anger summary score, calculate the average of items 3,7,12,19,22,29,32 at pre-test and post-test. Lower scores represent less anger. Number for PM: Count of the number of youth who had positive change (calculation yet to be determined) in this category. Only include youth who completed ART program within this quarter in your count. | K11: O6
A12: =COUNTIF('AQ PrePost'!$EX$4:$EX$1040,A$34) -> 0 | B12: =COUNTIF('AQ PrePost'!$EX$4:$EX$1040,B$34) -> 2 | C12: =COUNTIF('AQ PrePost'!$EX$4:$EX$1040,C$34) -> 0 | D12: =COUNTIF('AQ PrePost'!$EX$4:$EX$1040,D$34) -> 0 | E12: 2 | F12: =IF('Process PMs Yr2'!$E$20=0,"N/A",E12/'Process PMs Yr2'!$E$21) -> 0.1052631579 | G12: Number of youth with reduced Hostility. | H12: Data: This data can be collected from the Aggression Questionnaire. Report on this measure for all youth whose ART Program ended during this reporting period and who completed pre- and post- Aggression Questionnaire Surveys. Scoring: To create an Physical Aggression summary score, calculate the average of items 2,5,9,16,21,28,31,33 at pre-test and post-test. Lower scores represent less hostility. Number for PM: Count of the number of youth who had positive change (calculation yet to be determined) in this category. Only include youth who completed ART program within this quarter in your count. | K12: O7
A13: =COUNTIF('AQ PrePost'!$EZ$4:$EZ$1040,A$34) -> 0 | B13: =COUNTIF('AQ PrePost'!$EZ$4:$EZ$1040,B$34) -> 3 | C13: =COUNTIF('AQ PrePost'!$EZ$4:$EZ$1040,C$34) -> 0 | D13: =COUNTIF('AQ PrePost'!$EZ$4:$EZ$1040,D$34) -> 0 | E13: 3 | F13: =IF('Process PMs Yr2'!$E$20=0,"N/A",E13/'Process PMs Yr2'!$E$21) -> 0.1578947368 | G13: Number of youth with reduced Indirect Aggression. | H13: Data: This data can be collected from the Aggression Questionnaire. Report on this measure for all youth whose ART Program ended during this reporting period and who completed pre- and post- Aggression Questionnaire Surveys. Scoring: To create an Physical Aggression summary score, calculate the average of items 13,14,15,18,30,34 at pre-test and post-test. Lower scores represent less indirect aggression. Number for PM: Count of the number of youth who had positive change (calculation yet to be determined) in this category. Only include youth who completed ART program within this quarter in your count. | K13: O8
A14: =COUNTIF('AQ PrePost'!$FB$4:$FB$1040,A$34) -> 0 | B14: =COUNTIF('AQ PrePost'!$FB$4:$FB$1040,B$34) -> 2 | C14: =COUNTIF('AQ PrePost'!$FB$4:$FB$1040,C$34) -> 0 | D14: =COUNTIF('AQ PrePost'!$FB$4:$FB$1040,D$34) -> 0 | E14: 2 | F14: =IF('Process PMs Yr2'!$E$20=0,"N/A",E14/'Process PMs Yr2'!$E$21) -> 0.1052631579 | G14: Number of youth with reduced overall aggression (as defined by the AQ). | H14: Data: This data can be collected from the Aggression Questionnaire. Report on this measure for all youth whose ART Program ended during this reporting period and who completed pre- and post- Aggression Questionnaire Surveys. Scoring: To create an Physical Aggression summary score, calculate the average of items 1-34 at pre-test and post-test. Lower scores represent lower overall aggression. Number for PM: Count of the number of youth who had positive change (calculation yet to be determined) in this category. Only include youth who completed ART program within this quarter in your count. | K14: O9
A15: =COUNTIF('HIT PrePost'!$GH$4:$GH$1040,A$34) -> 0 | B15: =COUNTIF('HIT PrePost'!$GH$4:$GH$1040,B$34) -> 2 | C15: =COUNTIF('HIT PrePost'!$GH$4:$GH$1040,C$34) -> 0 | D15: =COUNTIF('HIT PrePost'!$GH$4:$GH$1040,D$34) -> 0 | E15: 2 | F15: =IF('Process PMs Yr2'!$E$21=0,"N/A",E15/'Process PMs Yr2'!$E$22) -> 0.1176470588 | G15: Number of youth with reduced Self-Centeredness (SC). | H15: Data: This data can be collected from the How I Think Questionnaire. Report on this measure for all youth whose ART Program ended during this reporting period and who completed pre- and post- How I Think Questionnaire Surveys. Scoring: To create an Physical Aggression summary score, calculate the average of items 3,7,10,22,28,37,42,52,54 at pre-test and post-test. Lower scores represent reduced self-centeredness. Number for PM: Count of the number of youth who had positive change (calculation yet to be determined) in this category. Only include youth who completed ART program within this quarter in your count. | K15: O10
A16: =COUNTIF('HIT PrePost'!$GJ$4:$GJ$1040,A$34) -> 0 | B16: =COUNTIF('HIT PrePost'!$GJ$4:$GJ$1040,B$34) -> 2 | C16: =COUNTIF('HIT PrePost'!$GJ$4:$GJ$1040,C$34) -> 0 | D16: =COUNTIF('HIT PrePost'!$GJ$4:$GJ$1040,D$34) -> 0 | E16: 2 | F16: =IF('Process PMs Yr2'!$E$21=0,"N/A",E16/'Process PMs Yr2'!$E$22) -> 0.1176470588 | G16: Number of youth with reduced instances Blaming Others (BO). | H16: Data: This data can be collected from the How I Think Questionnaire. Report on this measure for all youth whose ART Program ended during this reporting period and who completed pre- and post- How I Think Questionnaire Surveys. Scoring: To create an Physical Aggression summary score, calculate the average of items 6,11,21,25,26,36,39,44,46,50 at pre-test and post-test. Lower scores represent less instance blaming others. Number for PM: Count of the number of youth who had positive change (calculation yet to be determined) in this category. Only include youth who completed ART program within this quarter in your count. | K16: O11
A17: =COUNTIF('HIT PrePost'!$GL$4:$GL$1040,A$34) -> 0 | B17: =COUNTIF('HIT PrePost'!$GL$4:$GL$1040,B$34) -> 3 | C17: =COUNTIF('HIT PrePost'!$GL$4:$GL$1040,C$34) -> 0 | D17: =COUNTIF('HIT PrePost'!$GL$4:$GL$1040,D$34) -> 0 | E17: 3 | F17: =IF('Process PMs Yr2'!$E$21=0,"N/A",E17/'Process PMs Yr2'!$E$22) -> 0.1764705882 | G17: Number of youth with reduced Minimizing/Mislabeling (MM). | H17: Data: This data can be collected from the How I Think Questionnaire. Report on this measure for all youth whose ART Program ended during this reporting period and who completed pre- and post- How I Think Questionnaire Surveys. Scoring: To create an Physical Aggression summary score, calculate the average of items 5,12,14,17,19,30,33,40,47 at pre-test and post-test. Lower scores represent instance minimizing/mislabeling. Number for PM: Count of the number of youth who had positive change (calculation yet to be determined) in this category. Only include youth who completed ART program within this quarter in your count. | K17: O12
A18: =COUNTIF('HIT PrePost'!$GN$4:$GN$1040,A$34) -> 0 | B18: =COUNTIF('HIT PrePost'!$GN$4:$GN$1040,B$34) -> 3 | C18: =COUNTIF('HIT PrePost'!$GN$4:$GN$1040,C$34) -> 0 | D18: =COUNTIF('HIT PrePost'!$GN$4:$GN$1040,D$34) -> 0 | E18: 3 | F18: =IF('Process PMs Yr2'!$E$21=0,"N/A",E18/'Process PMs Yr2'!$E$22) -> 0.1764705882 | G18: Number of youth with reduced instances of Assuming the Worst (AW). | H18: Data: This data can be collected from the How I Think Questionnaire. Report on this measure for all youth whose ART Program ended during this reporting period and who completed pre- and post- How I Think Questionnaire Surveys. Scoring: To create an Physical Aggression summary score, calculate the average of items 2,8,15,18,23,29,32,35,43,49,53 at pre-test and post-test. Lower scores represent fewer instances of "assuming the worst". Number for PM: Count of the number of youth who had positive change (calculation yet to be determined) in this category. Only include youth who completed ART program within this quarter in your count. | K18: O13
A19: =COUNTIF('HIT PrePost'!$GP$4:$GP$1040,A$34) -> 0 | B19: =COUNTIF('HIT PrePost'!$GP$4:$GP$1040,B$34) -> 4 | C19: =COUNTIF('HIT PrePost'!$GP$4:$GP$1040,C$34) -> 0 | D19: =COUNTIF('HIT PrePost'!$GP$4:$GP$1040,D$34) -> 0 | E19: 4 | F19: =IF('Process PMs Yr2'!$E$21=0,"N/A",E19/'Process PMs Yr2'!$E$22) -> 0.2352941176 | G19: Number of youth with reduced Opposition Defiance behaviors (OD). | H19: Data: This data can be collected from the How I Think Questionnaire. Report on this measure for all youth whose ART Program ended during this reporting period and who completed pre- and post- How I Think Questionnaire Surveys. Scoring: To create an Physical Aggression summary score, calculate the average of items 2,6,12,18,29,37,40,42,46,54 at pre-test and post-test. Lower scores represent less instances of oppositional defiant behaviors. Number for PM: Count of the number of youth who had positive change (calculation yet to be determined) in this category. Only include youth who completed ART program within this quarter in your count. | K19: O14
A20: =COUNTIF('HIT PrePost'!$GR$4:$GR$1040,A$34) -> 0 | B20: =COUNTIF('HIT PrePost'!$GR$4:$GR$1040,B$34) -> 2 | C20: =COUNTIF('HIT PrePost'!$GR$4:$GR$1040,C$34) -> 0 | D20: =COUNTIF('HIT PrePost'!$GR$4:$GR$1040,D$34) -> 0 | E20: 2 | F20: =IF('Process PMs Yr2'!$E$21=0,"N/A",E20/'Process PMs Yr2'!$E$22) -> 0.1176470588 | G20: Number of youth with reduced Physical Aggression (PA). | H20: Data: This data can be collected from the How I Think Questionnaire. Report on this measure for all youth whose ART Program ended during this reporting period and who completed pre- and post- How I Think Questionnaire Surveys. Scoring: To create an Physical Aggression summary score, calculate the average of items 5,10,15,19,23,28,32,36,44,50 at pre-test and post-test. Lower scores represent less physical aggression. Number for PM: Count of the number of youth who had positive change (calculation yet to be determined) in this category. Only include youth who completed ART program within this quarter in your count. | K20: O15
A21: =COUNTIF('HIT PrePost'!$GT$4:$GT$1040,A$34) -> 0 | B21: =COUNTIF('HIT PrePost'!$GT$4:$GT$1040,B$34) -> 4 | C21: =COUNTIF('HIT PrePost'!$GT$4:$GT$1040,C$34) -> 0 | D21: =COUNTIF('HIT PrePost'!$GT$4:$GT$1040,D$34) -> 0 | E21: 4 | F21: =IF('Process PMs Yr2'!$E$21=0,"N/A",E21/'Process PMs Yr2'!$E$22) -> 0.2352941176 | G21: Number of youth with reduced instances of Lying (L). | H21: Data: This data can be collected from the How I Think Questionnaire. Report on this measure for all youth whose ART Program ended during this reporting period and who completed pre- and post- How I Think Questionnaire Surveys. Scoring: To create an Physical Aggression summary score, calculate the average of items 3,8,14,21,26,33,49,52 at pre-test and post-test. Lower scores represent less instances lying. Number for PM: Count of the number of youth who had positive change (calculation yet to be determined) in this category. Only include youth who completed ART program within this quarter in your count. | K21: O16
A22: =COUNTIF('HIT PrePost'!$GV$4:$GV$1040,A$34) -> 0 | B22: =COUNTIF('HIT PrePost'!$GV$4:$GV$1040,B$34) -> 3 | C22: =COUNTIF('HIT PrePost'!$GV$4:$GV$1040,C$34) -> 0 | D22: =COUNTIF('HIT PrePost'!$GV$4:$GV$1040,D$34) -> 0 | E22: 3 | F22: =IF('Process PMs Yr2'!$E$21=0,"N/A",E22/'Process PMs Yr2'!$E$22) -> 0.1764705882 | G22: Number of youth with reduced instance of Stealing (S). | H22: Data: This data can be collected from the How I Think Questionnaire. Report on this measure for all youth whose ART Program ended during this reporting period and who completed pre- and post- How I Think Questionnaire Surveys. Scoring: To create an Physical Aggression summary score, calculate the average of items 7,11,17,22,25,30,35,39,43,47,53 at pre-test and post-test. Lower scores represent less instances stealing. Number for PM: Count of the number of youth who had positive change (calculation yet to be determined) in this category. Only include youth who completed ART program within this quarter in your count. | K22: O17
A23: =COUNTIF('HIT PrePost'!$GW$4:$GW$1040,A$34) -> 0 | B23: =COUNTIF('HIT PrePost'!$GW$4:$GW$1040,B$34) -> 3 | C23: =COUNTIF('HIT PrePost'!$GW$4:$GW$1040,C$34) -> 0 | D23: =COUNTIF('HIT PrePost'!$GW$4:$GW$1040,D$34) -> 0 | E23: 3 | F23: =IF('Process PMs Yr2'!$E$21=0,"N/A",E23/'Process PMs Yr2'!$E$22) -> 0.1764705882 | G23: Number of youth with reduced overt aggression (being outwarldy aggressive). | H23: Data: This data can be collected from the How I Think Questionnaire. Report on this measure for all youth whose ART Program ended during this reporting period and who completed pre- and post- How I Think Questionnaire Surveys. Scoring: To create an Physical Aggression summary score, calculate the average of contructs OD and PA at pre-test and post-test. Lower scores represent less instance being outwardly agressive. Number for PM: Count of the number of youth who had positive change (calculation yet to be determined) in this category. Only include youth who completed ART program within this quarter in your count. | K23: O18
A24: =COUNTIF('HIT PrePost'!$GX$4:$GX$1040,A$34) -> 0 | B24: =COUNTIF('HIT PrePost'!$GX$4:$GX$1040,B$34) -> 3 | C24: =COUNTIF('HIT PrePost'!$GX$4:$GX$1040,C$34) -> 0 | D24: =COUNTIF('HIT PrePost'!$GX$4:$GX$1040,D$34) -> 0 | E24: 3 | F24: =IF('Process PMs Yr2'!$E$21=0,"N/A",E24/'Process PMs Yr2'!$E$22) -> 0.1764705882 | G24: Number of youth with reduced covert aggression (being inwardly aggressive). | H24: Data: This data can be collected from the How I Think Questionnaire. Report on this measure for all youth whose ART Program ended during this reporting period and who completed pre- and post- How I Think Questionnaire Surveys. Scoring: To create an Physical Aggression summary score, calculate the average of contructs L and S at pre-test and post-test. Lower scores represent less instance being inwardly agressive. Number for PM: Count of the number of youth who had positive change (calculation yet to be determined) in this category. Only include youth who completed ART program within this quarter in your count. | K24: O19
A25: =COUNTIF('HIT PrePost'!$GY$4:$GY$1040,A$34) -> 0 | B25: =COUNTIF('HIT PrePost'!$GY$4:$GY$1040,B$34) -> 2 | C25: =COUNTIF('HIT PrePost'!$GY$4:$GY$1040,C$34) -> 0 | D25: =COUNTIF('HIT PrePost'!$GY$4:$GY$1040,D$34) -> 0 | E25: 2 | F25: =IF('Process PMs Yr2'!$E$21=0,"N/A",E25/'Process PMs Yr2'!$E$22) -> 0.1176470588 | G25: Number of youth with reduced HIT Total Score (reduced cognitive distortions). | H25: Data: This data can be collected from the How I Think Questionnaire. Report on this measure for all youth whose ART Program ended during this reporting period and who completed pre- and post- How I Think Questionnaire Surveys. Scoring: To create an Physical Aggression summary score, calculate the average all contructs SC,BO,MM,AW,OD,PA,L,S at pre-test and post-test. Lower scores represent less instances of cognitive distortions. Number for PM: Count of the number of youth who had positive change (calculation yet to be determined) in this category. Only include youth who completed ART program within this quarter in your count. | K25: O20
A26: =COUNTIF('SS PrePost'!$GF$4:$GF$1040,A34) -> 1 | B26: =COUNTIF('SS PrePost'!$GF$4:$GF$1040,B34) -> 4 | C26: =COUNTIF('SS PrePost'!$GF$4:$GF$1040,C34) -> 0 | D26: =COUNTIF('SS PrePost'!$GF$4:$GF$1040,D34) -> 0 | E26: 5 | F26: =IF('Process PMs Yr2'!$E$17=0,"N/A",E26/'Process PMs Yr2'!$E$20) -> 0.25 | G26: Number of youth with improved Beginning Social Skills. | H26: Data: This data can be collected from the Skillstreaming Checklist. Report on this measure for all youth whose ART Program ended during this reporting period and who completed pre- and post- Skillstreaming Checklist Surveys. Scoring: To create an Beginning Social Skills summary score, calculate the average of items 1-8 at pre-test and post-test. Higher scores represent improved beginning social skills. Number for PM: Count of the number of youth who had positive change (calculation yet to be determined) in this category. Only include youth who completed ART program within this quarter in your count. | K26: O21
A27: =COUNTIF('SS PrePost'!$GH$4:$GH$1040,A34) -> 3 | B27: =COUNTIF('SS PrePost'!$GH$4:$GH$1040,B34) -> 5 | C27: =COUNTIF('SS PrePost'!$GH$4:$GH$1040,C34) -> 0 | D27: =COUNTIF('SS PrePost'!$GH$4:$GH$1040,D34) -> 0 | E27: 8 | F27: =IF('Process PMs Yr2'!$E$17=0,"N/A",E27/'Process PMs Yr2'!$E$20) -> 0.4 | G27: Number of youth with improved Advanced Social Skills. | H27: Data: This data can be collected from the Skillstreaming Checklist. Report on this measure for all youth whose ART Program ended during this reporting period and who completed pre- and post- Skillstreaming Checklist Surveys. Scoring: To create an Advanced Social Skills summary score, calculate the average of items 9-14 at pre-test and post-test. Higher scores represent improved advanced social skills. Number for PM: Count of the number of youth who had positive change (calculation yet to be determined) in this category. Only include youth who completed ART program within this quarter in your count. | K27: O22
A28: =COUNTIF('SS PrePost'!$GJ$4:$GJ$1040,A34) -> 2 | B28: =COUNTIF('SS PrePost'!$GJ$4:$GJ$1040,B34) -> 6 | C28: =COUNTIF('SS PrePost'!$GJ$4:$GJ$1040,C34) -> 0 | D28: =COUNTIF('SS PrePost'!$GJ$4:$GJ$1040,D34) -> 0 | E28: 8 | F28: =IF('Process PMs Yr2'!$E$17=0,"N/A",E28/'Process PMs Yr2'!$E$20) -> 0.4 | G28: Number of youth with improved Skills for Dealing with Feelings. | H28: Data: This data can be collected from the Skillstreaming Checklist. Report on this measure for all youth whose ART Program ended during this reporting period and who completed pre- and post- Skillstreaming Checklist Surveys. Scoring: To create an Beginning Social Skills summary score, calculate the average of items 15-21 at pre-test and post-test. Higher scores represent improved skills for dealing with feelings. Number for PM: Count of the number of youth who had positive change (calculation yet to be determined) in this category. Only include youth who completed ART program within this quarter in your count. | K28: O23
A29: =COUNTIF('SS PrePost'!$GL$4:$GL$1040,A34) -> 1 | B29: =COUNTIF('SS PrePost'!$GL$4:$GL$1040,B34) -> 8 | C29: =COUNTIF('SS PrePost'!$GL$4:$GL$1040,C34) -> 0 | D29: =COUNTIF('SS PrePost'!$GL$4:$GL$1040,D34) -> 0 | E29: 9 | F29: =IF('Process PMs Yr2'!$E$17=0,"N/A",E29/'Process PMs Yr2'!$E$20) -> 0.45 | G29: Number of youth with improved Skill Alternatives to Aggression. | H29: Data: This data can be collected from the Skillstreaming Checklist. Report on this measure for all youth whose ART Program ended during this reporting period and who completed pre- and post- Skillstreaming Checklist Surveys. Scoring: To create an Advanced Social Skills summary score, calculate the average of items 22-30 at pre-test and post-test. Higher scores represent improved skills of alternatives to aggression. Number for PM: Count of the number of youth who had positive change (calculation yet to be determined) in this category. Only include youth who completed ART program within this quarter in your count. | K29: O24
A30: =COUNTIF('SS PrePost'!$GN$4:$GN$1040,A34) -> 1 | B30: =COUNTIF('SS PrePost'!$GN$4:$GN$1040,B34) -> 8 | C30: =COUNTIF('SS PrePost'!$GN$4:$GN$1040,C34) -> 0 | D30: =COUNTIF('SS PrePost'!$GN$4:$GN$1040,D34) -> 0 | E30: 9 | F30: =IF('Process PMs Yr2'!$E$17=0,"N/A",E30/'Process PMs Yr2'!$E$20) -> 0.45 | G30: Number of youth with improved Skills for Dealing with Stress. | H30: Data: This data can be collected from the Skillstreaming Checklist. Report on this measure for all youth whose ART Program ended during this reporting period and who completed pre- and post- Skillstreaming Checklist Surveys. Scoring: To create an Beginning Social Skills summary score, calculate the average of items 31-42 at pre-test and post-test. Higher scores represent improved skills dealing with stress. Number for PM: Count of the number of youth who had positive change (calculation yet to be determined) in this category. Only include youth who completed ART program within this quarter in your count. | K30: O25
A31: =COUNTIF('SS PrePost'!$GP$4:$GP$1040,A34) -> 2 | B31: =COUNTIF('SS PrePost'!$GP$4:$GP$1040,B34) -> 9 | C31: =COUNTIF('SS PrePost'!$GP$4:$GP$1040,C34) -> 0 | D31: =COUNTIF('SS PrePost'!$GP$4:$GP$1040,D34) -> 0 | E31: 11 | F31: =IF('Process PMs Yr2'!$E$17=0,"N/A",E31/'Process PMs Yr2'!$E$20) -> 0.55 | G31: Number of youth with improved Planning Skills. | H31: Data: This data can be collected from the Skillstreaming Checklist. Report on this measure for all youth whose ART Program ended during this reporting period and who completed pre- and post- Skillstreaming Checklist Surveys. Scoring: To create an Advanced Social Skills summary score, calculate the average of items 43-50 at pre-test and post-test. Higher scores represent improved planning skills. Number for PM: Count of the number of youth who had positive change (calculation yet to be determined) in this category. Only include youth who completed ART program within this quarter in your count. | K31: O26
A32: =COUNTIF('SS PrePost'!$GR$4:$GR$1040,A34) -> 1 | B32: =COUNTIF('SS PrePost'!$GR$4:$GR$1040,B34) -> 6 | C32: =COUNTIF('SS PrePost'!$GR$4:$GR$1040,C34) -> 0 | D32: =COUNTIF('SS PrePost'!$GR$4:$GR$1040,D34) -> 0 | E32: 7 | F32: =IF('Process PMs Yr2'!$E$17=0,"N/A",E32/'Process PMs Yr2'!$E$20) -> 0.35 | G32: Number of youth with improved Skillstreaming Total Score. | H32: Data: This data can be collected from the Skillstreaming Checklist. Report on this measure for all youth whose ART Program ended during this reporting period and who completed pre- and post- Skillstreaming Checklist Surveys. Scoring: To create an Beginning Social Skills summary score, calculate the average of items 1-50 at pre-test and post-test. Higher scores represent improved social skills overall. Number for PM: Count of the number of youth who had positive change (calculation yet to be determined) in this category. Only include youth who completed ART program within this quarter in your count. | K32: O27
A34: 5 | B34: 6 | C34: 7 | D34: 8

Sheet Programs
A1: =Instructions!$A$1 -> 2.2 Version - 7/1/2013 | B1: =Instructions!$B$9 -> 2013-10-01 | D1: Jump to program # | E1: 1 | F1: 2 | G1: 3 | H1: 4 | I1: 5 | J1: 6 | K1: 7 | L1: 8 | M1: 9 | N1: 10 | O1: 11 | P1: 12 | Q1: 13 | R1: 14 | S1: 15 | T1: 16 | U1: 17 | V1: 18 | W1: 19 | X1: 20 | Z1: =Instructions!$A$1 -> 2.2 Version - 7/1/2013 | AP1: =AZ7/(COUNT(BJ9:BJ379)-SUM(BA7:BH7)) -> 0.7714285714 | AQ1: Program Completion Rate | AS1: These columns will be hidden from user.
B2: Grant Start Date
AR3: Complete if | AU3: 28 | AV3: or more sessions (changing CELL AU3 effects all completion calculation)
B4: Program #1 | AR4: Summary of all Quarters across all 20 Programs
B5: Start Date | C5: 2014-02-17 | D5: Qtr | E5: Attendance | AN5: =IF(C6,((YEAR(C6)-YEAR($B$1))*12+MONTH(C6)-MONTH($B$1)+1),"") -> 8 | AR5: Completed Program byQuarter | BA5: Admin Withdrawls | BI5: QTR Prog. | BJ5: Youth Served
B6: Completion Date | C6: 2014-05-02 | D6: =IF(C6,INT((AN5+2)/3),"") -> 3 | E6: SS1 | F6: SS2 | G6: SS3 | H6: SS4 | I6: SS5 | J6: SS6 | K6: SS7 | L6: SS8 | M6: SS9 | N6: SS10 | O6: AC1 | P6: AC2 | Q6: AC3 | R6: AC4 | S6: AC5 | T6: AC6 | U6: AC7 | V6: AC8 | W6: AC9 | X6: AC10 | Y6: MR1 | Z6: MR2 | AA6: MR3 | AB6: MR4 | AC6: MR5 | AD6: MR6 | AE6: MR7 | AF6: MR8 | AG6: MR9 | AH6: MR10 | AK6: Program 1 Summary | AN6: Month | AP6: =COUNTIF(AN9:AN18,30) -> 7 | AR6: 1 | AS6: 2 | AT6: 3 | AU6: 4 | AV6: 5 | AW6: 6 | AX6: 7 | AY6: 8 | AZ6: TOTAL | BA6: 1 | BB6: 2 | BC6: 3 | BD6: 4 | BE6: 5 | BF6: 6 | BG6: 7 | BH6: 8 | BI6: Completed | BJ6: by Qtr | BN6: Orange Box indicates they are among 10 lowest agerage skills scores for this group.
B7: Group Environment | C7: Community | D7: SS Choice | E7: =LEFT($AQ9,2) ->  | F7: =LEFT($AQ10,2) ->  | G7: =LEFT($AQ11,2) ->  | H7: =LEFT($AQ12,2) ->  | I7: =LEFT($AQ13,2) ->  | J7: =LEFT($AQ14,2) ->  | K7: =LEFT($AQ15,2) ->  | L7: =LEFT($AQ16,2) ->  | M7: =LEFT($AQ17,2) ->  | N7: =LEFT($AQ18,2) ->  | AR7: =SUM(AR9:AR1000) -> 0 | AS7: 0 | AT7: 13 | AU7: 0 | AV7: 8 | AW7: 6 | AX7: 0 | AY7: 0 | AZ7: =SUM(AR7:AY7) -> 27 | BA7: =COUNTIF($BA$9:$BA$1000,BA$6) -> 0 | BB7: 0 | BC7: 0 | BD7: 0 | BE7: 0 | BF7: 0 | BG7: 0 | BH7: 0 | BI7: in this col | BJ7: in this col. | BN7: Skills in purple boxes are those recommended in ART manual.
B8: Participant Name | C8: Gender | AI8: Administrative Withdrawal? | AK8: SS Sessions Attended | AL8: AC Sessions Attended | AM8: MR Sessions Attended | AN8: TOTAL Sessions attended | AQ8: Skillstreaming Sessions | AR8: There is a 1 in columns below if the youth has completed the program. Defined by attending number of sessions in cell AU4. | BI8: =D6 -> 3 | BN8: Mean Skill 01 | BO8: Mean Skill 02 | BP8: Mean Skill 03 | BQ8: Mean Skill 04 | BR8: Mean Skill 05 | BS8: Mean Skill 06 | BT8: Mean Skill 07 | BU8: Mean Skill 08 | BV8: Mean Skill 09 | BW8: Mean Skill 10 | BX8: Mean Skill 11 | BY8: Mean Skill 12 | BZ8: Mean Skill 13 | CA8: Mean Skill 14 | CB8: Mean Skill 15 | CC8: Mean Skill 16 | CD8: Mean Skill 17 | CE8: Mean Skill 18 | CF8: Mean Skill 19 | CG8: Mean Skill 20 | CH8: Mean Skill 21 | CI8: Mean Skill 22 | CJ8: Mean Skill 23 | CK8: Mean Skill 24 | CL8: Mean Skill 25 | CM8: Mean Skill 26 | CN8: Mean Skill 27 | CO8: Mean Skill 28 | CP8: Mean Skill 29 | CQ8: Mean Skill 30 | CR8: Mean Skill 31 | CS8: Mean Skill 32 | CT8: Mean Skill 33 | CU8: Mean Skill 34 | CV8: Mean Skill 35 | CW8: Mean Skill 36 | CX8: Mean Skill 37 | CY8: Mean Skill 38 | CZ8: Mean Skill 39 | DA8: Mean Skill 40 | DB8: Mean Skill 41 | DC8: Mean Skill 42 | DD8: Mean Skill 43 | DE8: Mean Skill 44 | DF8: Mean Skill 45 | DG8: Mean Skill 46 | DH8: Mean Skill 47 | DI8: Mean Skill 48 | DJ8: Mean Skill 49 | DK8: Mean Skill 50
A9: 1 | B9: Dennys Moreno | C9: Male | D9: =$D$6 -> 3 | E9: Yes | F9: Yes | G9: Yes | H9: Yes | I9: Yes | J9: Yes | K9: Yes | L9: Yes | M9: Yes | N9: Yes | O9: Yes | P9: Yes | Q9: Yes | R9: Yes | S9: Yes | T9: Yes | U9: Yes | V9: Yes | W9: Yes | X9: Yes | Y9: Yes | Z9: Yes | AA9: Yes | AB9: Yes | AC9: Yes | AD9: Yes | AE9: Yes | AF9: Yes | AG9: Yes | AH9: Yes | AK9: =COUNTIF(E9:N9,"Yes") -> 10 | AL9: =COUNTIF(O9:X9,"Yes") -> 10 | AM9: =COUNTIF(Y9:AH9,"Yes") -> 10 | AN9: =SUM(AK9:AM9) -> 30 | AP9: SS1 | AR9: =IF(AND($D9=AR$6,$AN9>=$AU$3),1,0) -> 0 | AS9: =IF(AND($D9=AS$6,$AN9>=$AU$3),1,0) -> 0 | AT9: 1 | AU9: 0 | AV9: 0 | AW9: 0 | AX9: 0 | AY9: 0 | BA9: =IF(AI9="YES",D9,"") ->  | BJ9: =IF(AN9>0,D9,"") -> 3 | BM9: =SMALL(BN9:DK9,10) -> 3.142857143 | BN9: =AVERAGE('SS PrePost'!D4:D15) -> 3.571428571 | BO9: =AVERAGE('SS PrePost'!E4:E15) -> 3.714285714 | BP9: =AVERAGE('SS PrePost'!F4:F15) -> 3.714285714 | BQ9: =AVERAGE('SS PrePost'!G4:G15) -> 2.857142857 | BR9: =AVERAGE('SS PrePost'!H4:H15) -> 3.142857143 | BS9: =AVERAGE('SS PrePost'!I4:I15) -> 3.285714286 | BT9: =AVERAGE('SS PrePost'!J4:J15) -> 3.285714286 | BU9: =AVERAGE('SS PrePost'!K4:K15) -> 3.714285714 | BV9: =AVERAGE('SS PrePost'!L4:L15) -> 3.285714286 | BW9: =AVERAGE('SS PrePost'!M4:M15) -> 3.142857143 | BX9: =AVERAGE('SS PrePost'!N4:N15) -> 3.428571429 | BY9: =AVERAGE('SS PrePost'!O4:O15) -> 3.714285714 | BZ9: =AVERAGE('SS PrePost'!P4:P15) -> 3.428571429 | CA9: =AVERAGE('SS PrePost'!Q4:Q15) -> 2.857142857 | CB9: =AVERAGE('SS PrePost'!R4:R15) -> 3.714285714 | CC9: =AVERAGE('SS PrePost'!S4:S15) -> 3.571428571 | CD9: =AVERAGE('SS PrePost'!T4:T15) -> 3.571428571 | CE9: =AVERAGE('SS PrePost'!U4:U15) -> 3.142857143 | CF9: =AVERAGE('SS PrePost'!V4:V15) -> 3.857142857 | CG9: =AVERAGE('SS PrePost'!W4:W15) -> 3.142857143 | CH9: =AVERAGE('SS PrePost'!X4:X15) -> 3.285714286 | CI9: =AVERAGE('SS PrePost'!Y4:Y15) -> 3.285714286 | CJ9: =AVERAGE('SS PrePost'!Z4:Z15) -> 3.571428571 | CK9: =AVERAGE('SS PrePost'!AA4:AA15) -> 3.571428571 | CL9: =AVERAGE('SS PrePost'!AB4:AB15) -> 3.714285714 | CM9: =AVERAGE('SS PrePost'!AC4:AC15) -> 2.714285714 | CN9: =AVERAGE('SS PrePost'!AD4:AD15) -> 4.142857143 | CO9: =AVERAGE('SS PrePost'!AE4:AE15) -> 2.857142857 | CP9: =AVERAGE('SS PrePost'!AF4:AF15) -> 3.285714286 | CQ9: =AVERAGE('SS PrePost'!AG4:AG15) -> 3.428571429 | CR9: =AVERAGE('SS PrePost'!AH4:AH15) -> 3.571428571 | CS9: =AVERAGE('SS PrePost'!AI4:AI15) -> 3.285714286 | CT9: =AVERAGE('SS PrePost'!AJ4:AJ15) -> 3.857142857 | CU9: =AVERAGE('SS PrePost'!AK4:AK15) -> 3 | CV9: =AVERAGE('SS PrePost'!AL4:AL15) -> 3 | CW9: =AVERAGE('SS PrePost'!AM4:AM15) -> 4.142857143 | CX9: =AVERAGE('SS PrePost'!AN4:AN15) -> 3.571428571 | CY9: =AVERAGE('SS PrePost'!AO4:AO15) -> 3.714285714 | CZ9: =AVERAGE('SS PrePost'!AP4:AP15) -> 3.428571429 | DA9: =AVERAGE('SS PrePost'!AQ4:AQ15) -> 3.285714286 | DB9: =AVERAGE('SS PrePost'!AR4:AR15) -> 3.285714286 | DC9: =AVERAGE('SS PrePost'!AS4:AS15) -> 4 | DD9: =AVERAGE('SS PrePost'!AT4:AT15) -> 3.571428571 | DE9: =AVERAGE('SS PrePost'!AU4:AU15) -> 3.857142857 | DF9: =AVERAGE('SS PrePost'!AV4:AV15) -> 3.857142857 | DG9: =AVERAGE('SS PrePost'!AW4:AW15) -> 3.714285714 | DH9: =AVERAGE('SS PrePost'!AX4:AX15) -> 3.714285714 | DI9: =AVERAGE('SS PrePost'!AY4:AY15) -> 3.857142857 | DJ9: =AVERAGE('SS PrePost'!AZ4:AZ15) -> 3.571428571 | DK9: =AVERAGE('SS PrePost'!BA4:BA15) -> 3.714285714
A10: 2 | B10: Daeshaun Widener | C10: Male | D10: =$D$6 -> 3 | E10: Yes | F10: Yes | G10: Yes | H10: Yes | I10: Yes | J10: Yes | K10: Yes | L10: Yes | M10: Yes | N10: Yes | O10: Yes | P10: Yes | Q10: Yes | R10: Yes | S10: Yes | T10: Yes | U10: Yes | V10: Yes | W10: Yes | X10: Yes | Y10: Yes | Z10: Yes | AA10: Yes | AB10: Yes | AC10: Yes | AD10: Yes | AE10: Yes | AF10: Yes | AG10: Yes | AH10: Yes | AK10: 10 | AL10: 10 | AM10: 10 | AN10: =SUM(AK10:AM10) -> 30 | AP10: SS2 | AR10: =IF(AND($D10=AR$6,$AN10>=$AU$3),1,0) -> 0 | AS10: 0 | AT10: 1 | AU10: 0 | AV10: 0 | AW10: 0 | AX10: 0 | AY10: 0 | BA10: =IF(AI10="YES",D10,"") ->  | BJ10: =IF(AN10>0,D10,"") -> 3
A11: 3 | B11: Johnson Headley | C11: Male | D11: 3 | E11: Yes | F11: Yes | G11: Yes | H11: Yes | I11: Yes | J11: Yes | K11: Yes | L11: Yes | M11: Yes | N11: Yes | O11: Yes | P11: Yes | Q11: Yes | R11: Yes | S11: Yes | T11: Yes | U11: Yes | V11: Yes | W11: Yes | X11: Yes | Y11: Yes | Z11: Yes | AA11: Yes | AB11: Yes | AC11: Yes | AD11: Yes | AE11: Yes | AF11: Yes | AG11: Yes | AH11: Yes | AK11: 10 | AL11: 10 | AM11: 10 | AN11: 30 | AP11: SS3 | AR11: 0 | AS11: 0 | AT11: 1 | AU11: 0 | AV11: 0 | AW11: 0 | AX11: 0 | AY11: 0 | BJ11: 3
A12: 4 | B12: Eduardo Garces | C12: Male | D12: 3 | E12: Yes | F12: Yes | G12: Yes | H12: Yes | I12: Yes | J12: Yes | K12: Yes | L12: Yes | M12: Yes | N12: Yes | O12: Yes | P12: Yes | Q12: Yes | R12: Yes | S12: Yes | T12: Yes | U12: Yes | V12: Yes | W12: Yes | X12: Yes | Y12: Yes | Z12: Yes | AA12: Yes | AB12: Yes | AC12: Yes | AD12: Yes | AE12: Yes | AF12: Yes | AG12: Yes | AH12: Yes | AK12: 10 | AL12: 10 | AM12: 10 | AN12: 30 | AP12: SS4 | AR12: 0 | AS12: 0 | AT12: 1 | AU12: 0 | AV12: 0 | AW12: 0 | AX12: 0 | AY12: 0 | BJ12: 3
A13: 5 | B13: Tyree Phillips | C13: Male | D13: 3 | E13: Yes | F13: Yes | G13: Yes | H13: Yes | I13: Yes | J13: Yes | K13: Yes | L13: Yes | M13: Yes | N13: Yes | O13: Yes | P13: Yes | Q13: Yes | R13: Yes | S13: Yes | T13: Yes | U13: Yes | V13: Yes | W13: Yes | X13: Yes | Y13: Yes | Z13: Yes | AA13: Yes | AB13: Yes | AC13: Yes | AD13: Yes | AE13: Yes | AF13: Yes | AG13: Yes | AH13: Yes | AK13: 10 | AL13: 10 | AM13: 10 | AN13: 30 | AP13: SS5 | AR13: 0 | AS13: 0 | AT13: 1 | AU13: 0 | AV13: 0 | AW13: 0 | AX13: 0 | AY13: 0 | BJ13: 3
A14: 6 | B14: Scott Laughlin | C14: Male | D14: 3 | E14: Yes | F14: Yes | G14: Yes | H14: Yes | I14: Yes | J14: Yes | K14: Yes | L14: Yes | M14: Yes | N14: Yes | O14: Yes | P14: Yes | Q14: Yes | R14: Yes | S14: Yes | T14: Yes | U14: Yes | V14: Yes | W14: Yes | X14: Yes | Y14: Yes | Z14: Yes | AA14: Yes | AB14: Yes | AC14: Yes | AD14: Yes | AE14: Yes | AF14: Yes | AG14: Yes | AH14: Yes | AK14: 10 | AL14: 10 | AM14: 10 | AN14: 30 | AP14: SS6 | AR14: 0 | AS14: 0 | AT14: 1 | AU14: 0 | AV14: 0 | AW14: 0 | AX14: 0 | AY14: 0 | BJ14: 3
A15: 7 | B15: Jared Edwards | C15: Male | D15: 3 | E15: Yes | F15: Yes | G15: Yes | H15: Yes | I15: Yes | J15: Yes | K15: Yes | L15: Yes | M15: Yes | N15: Yes | O15: Yes | P15: Yes | Q15: Yes | R15: Yes | S15: Yes | T15: Yes | U15: Yes | V15: Yes | W15: Yes | X15: Yes | Y15: Yes | Z15: Yes | AA15: Yes | AB15: Yes | AC15: Yes | AD15: Yes | AE15: Yes | AF15: Yes | AG15: Yes | AH15: Yes | AK15: 10 | AL15: 10 | AM15: 10 | AN15: 30 | AP15: SS7 | AR15: 0 | AS15: 0 | AT15: 1 | AU15: 0 | AV15: 0 | AW15: 0 | AX15: 0 | AY15: 0 | BJ15: 3
A16: 8 | D16: 3 | AK16: 0 | AL16: 0 | AM16: 0 | AN16: 0 | AP16: SS8 | AR16: 0 | AS16: 0 | AT16: 0 | AU16: 0 | AV16: 0 | AW16: 0 | AX16: 0 | AY16: 0
A17: 9 | D17: 3 | AK17: 0 | AL17: 0 | AM17: 0 | AN17: 0 | AP17: SS9 | AR17: 0 | AS17: 0 | AT17: 0 | AU17: 0 | AV17: 0 | AW17: 0 | AX17: 0 | AY17: 0
A18: 10 | D18: 3 | AK18: =COUNTIF(E18:N18,"Yes") -> 0 | AL18: =COUNTIF(O18:X18,"Yes") -> 0 | AM18: =COUNTIF(Y18:AH18,"Yes") -> 0 | AN18: =SUM(AK18:AM18) -> 0 | AP18: SS10 | AR18: 0 | AS18: 0 | AT18: 0 | AU18: 0 | AV18: 0 | AW18: 0 | AX18: 0 | AY18: 0
A19: 11 | D19: 3 | AK19: =COUNTIF(E19:N19,"Yes") -> 0 | AL19: =COUNTIF(O19:X19,"Yes") -> 0 | AM19: =COUNTIF(Y19:AH19,"Yes") -> 0 | AN19: =SUM(AK19:AM19) -> 0 | AR19: 0 | AS19: 0 | AT19: 0 | AU19: 0 | AV19: 0 | AW19: 0 | AX19: 0 | AY19: 0 | BA19: =IF(AI19="YES",D19,"") ->  | BJ19: =IF(AN19>0,D19,"") -> 
A20: 12 | D20: 3 | AK20: =COUNTIF(E20:N20,"Yes") -> 0 | AL20: =COUNTIF(O20:X20,"Yes") -> 0 | AM20: =COUNTIF(Y20:AH20,"Yes") -> 0 | AN20: =SUM(AK20:AM20) -> 0 | AR20: 0 | AS20: 0 | AT20: 0 | AU20: 0 | AV20: 0 | AW20: 0 | AX20: 0 | AY20: 0 | BA20: =IF(AI20="YES",D20,"") ->  | BJ20: =IF(AN20>0,D20,"") -> 
B23: Program #2
B24: Start Date | C24: 2014-02-17 | D24: Qtr | E24: Attendance | AN24: =IF(C25,((YEAR(C25)-YEAR($B$1))*12+MONTH(C25)-MONTH($B$1)+1),"") -> 8
B25: Completion Date | C25: 2014-05-02 | D25: =IF(C25,INT((AN24+2)/3),"") -> 3 | E25: SS1 | F25: SS2 | G25: SS3 | H25: SS4 | I25: SS5 | J25: SS6 | K25: SS7 | L25: SS8 | M25: SS9 | N25: SS10 | O25: AC1 | P25: AC2 | Q25: AC3 | R25: AC4 | S25: AC5 | T25: AC6 | U25: AC7 | V25: AC8 | W25: AC9 | X25: AC10 | Y25: MR1 | Z25: MR2 | AA25: MR3 | AB25: MR4 | AC25: MR5 | AD25: MR6 | AE25: MR7 | AF25: MR8 | AG25: MR9 | AH25: MR10 | AK25: Program 2 Summary | AN25: Month | AP25: =COUNTIF(AN28:AN37,30) -> 6 | BN25: Orange Box indicates they are among 10 lowest agerage skills scores for this group.
B26: Group Environment | C26: Community | D26: SS Choice | E26: =LEFT($AQ28,2) ->  | F26: =LEFT($AQ29,2) ->  | G26: =LEFT($AQ30,2) ->  | H26: =LEFT($AQ31,2) ->  | I26: =LEFT($AQ32,2) ->  | J26: =LEFT($AQ33,2) ->  | K26: =LEFT($AQ34,2) ->  | L26: =LEFT($AQ35,2) ->  | M26: =LEFT($AQ36,2) ->  | N26: =LEFT($AQ37,2) ->  | BN26: Skills in purple boxes are those recommended in ART manual.
B27: Participant Name | C27: Gender | AI27: Administrative Withdrawal? | AK27: SS Sessions Attended | AL27: AC Sessions Attended | AM27: MR Sessions Attended | AN27: TOTAL Sessions attended | AQ27: Skillstreaming Sessions | BI27: =D25 -> 3 | BN27: Mean Skill 01 | BO27: Mean Skill 02 | BP27: Mean Skill 03 | BQ27: Mean Skill 04 | BR27: Mean Skill 05 | BS27: Mean Skill 06 | BT27: Mean Skill 07 | BU27: Mean Skill 08 | BV27: Mean Skill 09 | BW27: Mean Skill 10 | BX27: Mean Skill 11 | BY27: Mean Skill 12 | BZ27: Mean Skill 13 | CA27: Mean Skill 14 | CB27: Mean Skill 15 | CC27: Mean Skill 16 | CD27: Mean Skill 17 | CE27: Mean Skill 18 | CF27: Mean Skill 19 | CG27: Mean Skill 20 | CH27: Mean Skill 21 | CI27: Mean Skill 22 | CJ27: Mean Skill 23 | CK27: Mean Skill 24 | CL27: Mean Skill 25 | CM27: Mean Skill 26 | CN27: Mean Skill 27 | CO27: Mean Skill 28 | CP27: Mean Skill 29 | CQ27: Mean Skill 30 | CR27: Mean Skill 31 | CS27: Mean Skill 32 | CT27: Mean Skill 33 | CU27: Mean Skill 34 | CV27: Mean Skill 35 | CW27: Mean Skill 36 | CX27: Mean Skill 37 | CY27: Mean Skill 38 | CZ27: Mean Skill 39 | DA27: Mean Skill 40 | DB27: Mean Skill 41 | DC27: Mean Skill 42 | DD27: Mean Skill 43 | DE27: Mean Skill 44 | DF27: Mean Skill 45 | DG27: Mean Skill 46 | DH27: Mean Skill 47 | DI27: Mean Skill 48 | DJ27: Mean Skill 49 | DK27: Mean Skill 50
A28: 1 | B28: Imani Corbin | C28: Female | D28: =$D$25 -> 3 | E28: Yes | F28: Yes | G28: Yes | H28: Yes | I28: Yes | J28: Yes | K28: Yes | L28: Yes | M28: Yes | N28: Yes | O28: Yes | P28: Yes | Q28: Yes | R28: Yes | S28: Yes | T28: Yes | U28: Yes | V28: Yes | W28: Yes | X28: Yes | Y28: Yes | Z28: Yes | AA28: Yes | AB28: Yes | AC28: Yes | AD28: Yes | AE28: Yes | AF28: Yes | AG28: Yes | AH28: Yes | AK28: =COUNTIF(E28:N28,"Yes") -> 10 | AL28: =COUNTIF(O28:X28,"Yes") -> 10 | AM28: =COUNTIF(Y28:AH28,"Yes") -> 10 | AN28: =SUM(AK28:AM28) -> 30 | AP28: SS1 | AR28: =IF(AND($D28=AR$6,$AN28>=$AU$3),1,0) -> 0 | AS28: =IF(AND($D28=AS$6,$AN28>=$AU$3),1,0) -> 0 | AT28: 1 | AU28: 0 | AV28: 0 | AW28: 0 | AX28: 0 | AY28: 0 | BJ28: 3 | BM28: =SMALL(BN28:DK28,10) -> 2.75 | BN28: =AVERAGE('SS PrePost'!D16:D27) -> 3.375 | BO28: =AVERAGE('SS PrePost'!E16:E27) -> 4 | BP28: =AVERAGE('SS PrePost'!F16:F27) -> 3.75 | BQ28: =AVERAGE('SS PrePost'!G16:G27) -> 3.625 | BR28: =AVERAGE('SS PrePost'!H16:H27) -> 3.75 | BS28: =AVERAGE('SS PrePost'!I16:I27) -> 3.75 | BT28: =AVERAGE('SS PrePost'!J16:J27) -> 2.75 | BU28: =AVERAGE('SS PrePost'!K16:K27) -> 3.5 | BV28: =AVERAGE('SS PrePost'!L16:L27) -> 3.25 | BW28: =AVERAGE('SS PrePost'!M16:M27) -> 3.125 | BX28: =AVERAGE('SS PrePost'!N16:N27) -> 2.375 | BY28: =AVERAGE('SS PrePost'!O16:O27) -> 2.75 | BZ28: =AVERAGE('SS PrePost'!P16:P27) -> 3.875 | CA28: =AVERAGE('SS PrePost'!Q16:Q27) -> 2.75 | CB28: =AVERAGE('SS PrePost'!R16:R27) -> 3.75 | CC28: =AVERAGE('SS PrePost'!S16:S27) -> 3 | CD28: =AVERAGE('SS PrePost'!T16:T27) -> 3.625 | CE28: =AVERAGE('SS PrePost'!U16:U27) -> 3.375 | CF28: =AVERAGE('SS PrePost'!V16:V27) -> 3.875 | CG28: =AVERAGE('SS PrePost'!W16:W27) -> 2.75 | CH28: =AVERAGE('SS PrePost'!X16:X27) -> 3.625 | CI28: =AVERAGE('SS PrePost'!Y16:Y27) -> 3.625 | CJ28: =AVERAGE('SS PrePost'!Z16:Z27) -> 3 | CK28: =AVERAGE('SS PrePost'!AA16:AA27) -> 3.25 | CL28: =AVERAGE('SS PrePost'!AB16:AB27) -> 3.625 | CM28: =AVERAGE('SS PrePost'!AC16:AC27) -> 2.875 | CN28: =AVERAGE('SS PrePost'!AD16:AD27) -> 4 | CO28: =AVERAGE('SS PrePost'!AE16:AE27) -> 3 | CP28: =AVERAGE('SS PrePost'!AF16:AF27) -> 3.625 | CQ28: =AVERAGE('SS PrePost'!AG16:AG27) -> 3.125 | CR28: =AVERAGE('SS PrePost'!AH16:AH27) -> 2.75 | CS28: =AVERAGE('SS PrePost'!AI16:AI27) -> 2 | CT28: =AVERAGE('SS PrePost'!AJ16:AJ27) -> 2.625 | CU28: =AVERAGE('SS PrePost'!AK16:AK27) -> 2.75 | CV28: =AVERAGE('SS PrePost'!AL16:AL27) -> 3 | CW28: =AVERAGE('SS PrePost'!AM16:AM27) -> 3.142857143 | CX28: =AVERAGE('SS PrePost'!AN16:AN27) -> 3.142857143 | CY28: =AVERAGE('SS PrePost'!AO16:AO27) -> 3.75 | CZ28: =AVERAGE('SS PrePost'!AP16:AP27) -> 2.75 | DA28: =AVERAGE('SS PrePost'!AQ16:AQ27) -> 2 | DB28: =AVERAGE('SS PrePost'!AR16:AR27) -> 2.5 | DC28: =AVERAGE('SS PrePost'!AS16:AS27) -> 3.125 | DD28: =AVERAGE('SS PrePost'!AT16:AT27) -> 3.375 | DE28: =AVERAGE('SS PrePost'!AU16:AU27) -> 3.5 | DF28: =AVERAGE('SS PrePost'!AV16:AV27) -> 2.625 | DG28: =AVERAGE('SS PrePost'!AW16:AW27) -> 3.125 | DH28: =AVERAGE('SS PrePost'!AX16:AX27) -> 3 | DI28: =AVERAGE('SS PrePost'!AY16:AY27) -> 3 | DJ28: =AVERAGE('SS PrePost'!AZ16:AZ27) -> 3.125 | DK28: =AVERAGE('SS PrePost'!BA16:BA27) -> 3.75
A29: 2 | B29: Serenity Jones | C29: Female | D29: =$D$25 -> 3 | E29: Yes | F29: Yes | G29: Yes | H29: Yes | I29: Yes | J29: Yes | K29: Yes | L29: Yes | M29: Yes | N29: Yes | O29: Yes | P29: Yes | Q29: Yes | R29: Yes | S29: Yes | T29: Yes | U29: Yes | V29: Yes | W29: Yes | X29: Yes | Y29: Yes | Z29: Yes | AA29: Yes | AB29: Yes | AC29: Yes | AD29: Yes | AE29: Yes | AF29: Yes | AG29: Yes | AH29: Yes | AK29: 10 | AL29: 10 | AM29: 10 | AN29: =SUM(AK29:AM29) -> 30 | AP29: SS2 | AR29: =IF(AND($D29=AR$6,$AN29>=$AU$3),1,0) -> 0 | AS29: 0 | AT29: 1 | AU29: 0 | AV29: 0 | AW29: 0 | AX29: 0 | AY29: 0 | BJ29: 3
A30: 3 | B30: Ameenah Muhammed | C30: Female | D30: 3 | E30: No | F30: Yes | G30: Yes | H30: Yes | I30: Yes | J30: Yes | K30: Yes | L30: Yes | M30: Yes | N30: Yes | O30: No | P30: Yes | Q30: Yes | R30: Yes | S30: Yes | T30: Yes | U30: Yes | V30: Yes | W30: Yes | X30: Yes | Y30: No | Z30: Yes | AA30: Yes | AB30: Yes | AC30: Yes | AD30: Yes | AE30: Yes | AF30: Yes | AG30: Yes | AH30: Yes | AK30: 9 | AL30: 9 | AM30: 9 | AN30: 27 | AP30: SS3 | AR30: 0 | AS30: 0 | AT30: 0 | AU30: 0 | AV30: 0 | AW30: 0 | AX30: 0 | AY30: 0 | BJ30: 3
A31: 4 | B31: Malesia Williams | C31: Female | D31: 3 | E31: Yes | F31: Yes | G31: Yes | H31: Yes | I31: Yes | J31: Yes | K31: Yes | L31: Yes | M31: Yes | N31: Yes | O31: Yes | P31: Yes | Q31: Yes | R31: Yes | S31: Yes | T31: Yes | U31: Yes | V31: Yes | W31: Yes | X31: Yes | Y31: Yes | Z31: Yes | AA31: Yes | AB31: Yes | AC31: Yes | AD31: Yes | AE31: Yes | AF31: Yes | AG31: Yes | AH31: Yes | AK31: 10 | AL31: 10 | AM31: 10 | AN31: 30 | AP31: SS4 | AR31: 0 | AS31: 0 | AT31: 1 | AU31: 0 | AV31: 0 | AW31: 0 | AX31: 0 | AY31: 0 | BJ31: 3
A32: 5 | B32: Cerarmani Barnes | C32: Female | D32: 3 | E32: Yes | F32: Yes | G32: Yes | H32: Yes | I32: Yes | J32: Yes | K32: Yes | L32: Yes | M32: Yes | N32: Yes | O32: Yes | P32: Yes | Q32: Yes | R32: Yes | S32: Yes | T32: Yes | U32: Yes | V32: Yes | W32: Yes | X32: Yes | Y32: Yes | Z32: Yes | AA32: Yes | AB32: Yes | AC32: Yes | AD32: Yes | AE32: Yes | AF32: Yes | AG32: Yes | AH32: Yes | AK32: 10 | AL32: 10 | AM32: 10 | AN32: 30 | AP32: SS5 | AR32: 0 | AS32: 0 | AT32: 1 | AU32: 0 | AV32: 0 | AW32: 0 | AX32: 0 | AY32: 0 | BJ32: 3
A33: 6 | B33: Kaia Christopher | C33: Female | D33: 3 | E33: Yes | F33: Yes | G33: Yes | H33: Yes | I33: Yes | J33: Yes | K33: Yes | L33: Yes | M33: Yes | N33: Yes | O33: Yes | P33: Yes | Q33: Yes | R33: Yes | S33: Yes | T33: Yes | U33: Yes | V33: Yes | W33: Yes | X33: Yes | Y33: Yes | Z33: Yes | AA33: Yes | AB33: Yes | AC33: Yes | AD33: Yes | AE33: Yes | AF33: Yes | AG33: Yes | AH33: Yes | AK33: 10 | AL33: 10 | AM33: 10 | AN33: 30 | AP33: SS6 | AR33: 0 | AS33: 0 | AT33: 1 | AU33: 0 | AV33: 0 | AW33: 0 | AX33: 0 | AY33: 0 | BJ33: 3
A34: 7 | B34: Tychell Brock | C34: Female | D34: 3 | E34: No | F34: Yes | G34: Yes | H34: Yes | I34: Yes | J34: Yes | K34: Yes | L34: Yes | M34: Yes | N34: Yes | O34: No | P34: Yes | Q34: Yes | R34: Yes | S34: Yes | T34: Yes | U34: Yes | V34: Yes | W34: Yes | X34: Yes | Y34: No | Z34: Yes | AA34: Yes | AB34: Yes | AC34: Yes | AD34: Yes | AE34: Yes | AF34: Yes | AG34: Yes | AH34: Yes | AK34: 9 | AL34: 9 | AM34: 9 | AN34: 27 | AP34: SS7 | AR34: 0 | AS34: 0 | AT34: 0 | AU34: 0 | AV34: 0 | AW34: 0 | AX34: 0 | AY34: 0 | BJ34: 3
A35: 8 | B35: Samiyah White | C35: Female | D35: 3 | E35: Yes | F35: Yes | G35: Yes | H35: Yes | I35: Yes | J35: Yes | K35: Yes | L35: Yes | M35: Yes | N35: Yes | O35: Yes | P35: Yes | Q35: Yes | R35: Yes | S35: Yes | T35: Yes | U35: Yes | V35: Yes | W35: Yes | X35: Yes | Y35: Yes | Z35: Yes | AA35: Yes | AB35: Yes | AC35: Yes | AD35: Yes | AE35: Yes | AF35: Yes | AG35: Yes | AH35: Yes | AK35: 10 | AL35: 10 | AM35: 10 | AN35: 30 | AP35: SS8 | AR35: 0 | AS35: 0 | AT35: 1 | AU35: 0 | AV35: 0 | AW35: 0 | AX35: 0 | AY35: 0 | BJ35: 3
A36: 9 | D36: 3 | AK36: 0 | AL36: 0 | AM36: 0 | AN36: 0 | AP36: SS9 | AR36: 0 | AS36: 0 | AT36: 0 | AU36: 0 | AV36: 0 | AW36: 0 | AX36: 0 | AY36: 0
A37: 10 | D37: 3 | AK37: =COUNTIF(E37:N37,"Yes") -> 0 | AL37: =COUNTIF(O37:X37,"Yes") -> 0 | AM37: =COUNTIF(Y37:AH37,"Yes") -> 0 | AN37: =SUM(AK37:AM37) -> 0 | AP37: SS10 | AR37: 0 | AS37: 0 | AT37: 0 | AU37: 0 | AV37: 0 | AW37: 0 | AX37: 0 | AY37: 0
A38: 11 | D38: 3 | AK38: =COUNTIF(E38:N38,"Yes") -> 0 | AL38: =COUNTIF(O38:X38,"Yes") -> 0 | AM38: =COUNTIF(Y38:AH38,"Yes") -> 0 | AN38: =SUM(AK38:AM38) -> 0 | AR38: 0 | AS38: 0 | AT38: 0 | AU38: 0 | AV38: 0 | AW38: 0 | AX38: 0 | AY38: 0 | BA38: =IF(AI38="YES",D38,"") ->  | BJ38: =IF(AN38>0,D38,"") -> 
A39: 12 | D39: 3 | AK39: =COUNTIF(E39:N39,"Yes") -> 0 | AL39: =COUNTIF(O39:X39,"Yes") -> 0 | AM39: =COUNTIF(Y39:AH39,"Yes") -> 0 | AN39: =SUM(AK39:AM39) -> 0 | AR39: 0 | AS39: 0 | AT39: 0 | AU39: 0 | AV39: 0 | AW39: 0 | AX39: 0 | AY39: 0 | BA39: =IF(AI39="YES",D39,"") ->  | BJ39: =IF(AN39>0,D39,"") -> 
B42: Program #3
B43: Start Date | C43: 2014-08-04 | D43: Qtr | E43: Attendance | AN43: =IF(C44,((YEAR(C44)-YEAR($B$1))*12+MONTH(C44)-MONTH($B$1)+1),"") -> 13
B44: Completion Date | C44: 2014-10-09 | D44: =IF(C44,INT((AN43+2)/3),"") -> 5 | E44: SS1 | F44: SS2 | G44: SS3 | H44: SS4 | I44: SS5 | J44: SS6 | K44: SS7 | L44: SS8 | M44: SS9 | N44: SS10 | O44: AC1 | P44: AC2 | Q44: AC3 | R44: AC4 | S44: AC5 | T44: AC6 | U44: AC7 | V44: AC8 | W44: AC9 | X44: AC10 | Y44: MR1 | Z44: MR2 | AA44: MR3 | AB44: MR4 | AC44: MR5 | AD44: MR6 | AE44: MR7 | AF44: MR8 | AG44: MR9 | AH44: MR10 | AK44: Program 3 Summary | AN44: Month | AP44: =COUNTIF(AN47:AN56,30) -> 1 | BN44: Orange Box indicates they are among 10 lowest agerage skills scores for this group.
B45: Group Environment | C45: Community | D45: SS choice | E45: =LEFT($AQ47,2) ->  | F45: =LEFT($AQ48,2) ->  | G45: =LEFT($AQ49,2) ->  | H45: =LEFT($AQ50,2) ->  | I45: =LEFT($AQ51,2) ->  | J45: =LEFT($AQ52,2) ->  | K45: =LEFT($AQ53,2) ->  | L45: =LEFT($AQ54,2) ->  | M45: =LEFT($AQ55,2) ->  | N45: =LEFT($AQ56,2) ->  | BN45: Skills in purple boxes are those recommended in ART manual.
B46: Participant Name | C46: Gender | AI46: Administrative Withdrawal? | AK46: SS Sessions Attended | AL46: AC Sessions Attended | AM46: MR Sessions Attended | AN46: TOTAL Sessions attended | AQ46: Skillstreaming Sessions | BI46: =D44 -> 5 | BN46: Mean Skill 01 | BO46: Mean Skill 02 | BP46: Mean Skill 03 | BQ46: Mean Skill 04 | BR46: Mean Skill 05 | BS46: Mean Skill 06 | BT46: Mean Skill 07 | BU46: Mean Skill 08 | BV46: Mean Skill 09 | BW46: Mean Skill 10 | BX46: Mean Skill 11 | BY46: Mean Skill 12 | BZ46: Mean Skill 13 | CA46: Mean Skill 14 | CB46: Mean Skill 15 | CC46: Mean Skill 16 | CD46: Mean Skill 17 | CE46: Mean Skill 18 | CF46: Mean Skill 19 | CG46: Mean Skill 20 | CH46: Mean Skill 21 | CI46: Mean Skill 22 | CJ46: Mean Skill 23 | CK46: Mean Skill 24 | CL46: Mean Skill 25 | CM46: Mean Skill 26 | CN46: Mean Skill 27 | CO46: Mean Skill 28 | CP46: Mean Skill 29 | CQ46: Mean Skill 30 | CR46: Mean Skill 31 | CS46: Mean Skill 32 | CT46: Mean Skill 33 | CU46: Mean Skill 34 | CV46: Mean Skill 35 | CW46: Mean Skill 36 | CX46: Mean Skill 37 | CY46: Mean Skill 38 | CZ46: Mean Skill 39 | DA46: Mean Skill 40 | DB46: Mean Skill 41 | DC46: Mean Skill 42 | DD46: Mean Skill 43 | DE46: Mean Skill 44 | DF46: Mean Skill 45 | DG46: Mean Skill 46 | DH46: Mean Skill 47 | DI46: Mean Skill 48 | DJ46: Mean Skill 49 | DK46: Mean Skill 50
A47: 1 | B47: Mohagany Lovett-King | C47: Female | D47: =$D$44 -> 5 | E47: Yes | F47: Yes | G47: Yes | H47: No | I47: Yes | J47: Yes | K47: Yes | L47: Yes | M47: Yes | N47: Yes | O47: Yes | P47: Yes | Q47: Yes | R47: No | S47: Yes | T47: Yes | U47: Yes | V47: Yes | W47: Yes | X47: Yes | Y47: Yes | Z47: Yes | AA47: Yes | AB47: Yes | AC47: Yes | AD47: Yes | AE47: Yes | AF47: Yes | AG47: Yes | AH47: Yes | AK47: =COUNTIF(E47:N47,"Yes") -> 9 | AL47: =COUNTIF(O47:X47,"Yes") -> 9 | AM47: =COUNTIF(Y47:AH47,"Yes") -> 10 | AN47: =SUM(AK47:AM47) -> 28 | AP47: SS1 | AR47: =IF(AND($D47=AR$6,$AN47>=$AU$3),1,0) -> 0 | AS47: =IF(AND($D47=AS$6,$AN47>=$AU$3),1,0) -> 0 | AT47: 0 | AU47: 0 | AV47: 1 | AW47: 0 | AX47: 0 | AY47: 0 | BJ47: 5 | BM47: =SMALL(BN47:DK47,10) -> 3 | BN47: =AVERAGE('SS PrePost'!D28:D39) -> 4 | BO47: =AVERAGE('SS PrePost'!E28:E39) -> 3 | BP47: =AVERAGE('SS PrePost'!F28:F39) -> 3.375 | BQ47: =AVERAGE('SS PrePost'!G28:G39) -> 4.125 | BR47: =AVERAGE('SS PrePost'!H28:H39) -> 4.625 | BS47: =AVERAGE('SS PrePost'!I28:I39) -> 3.25 | BT47: =AVERAGE('SS PrePost'!J28:J39) -> 3.25 | BU47: =AVERAGE('SS PrePost'!K28:K39) -> 3.125 | BV47: =AVERAGE('SS PrePost'!L28:L39) -> 3.875 | BW47: =AVERAGE('SS PrePost'!M28:M39) -> 3.125 | BX47: =AVERAGE('SS PrePost'!N28:N39) -> 3.25 | BY47: =AVERAGE('SS PrePost'!O28:O39) -> 3.125 | BZ47: =AVERAGE('SS PrePost'!P28:P39) -> 3.625 | CA47: =AVERAGE('SS PrePost'!Q28:Q39) -> 3.125 | CB47: =AVERAGE('SS PrePost'!R28:R39) -> 3.75 | CC47: =AVERAGE('SS PrePost'!S28:S39) -> 2.125 | CD47: =AVERAGE('SS PrePost'!T28:T39) -> 3.375 | CE47: =AVERAGE('SS PrePost'!U28:U39) -> 3 | CF47: =AVERAGE('SS PrePost'!V28:V39) -> 4.375 | CG47: =AVERAGE('SS PrePost'!W28:W39) -> 2.5 | CH47: =AVERAGE('SS PrePost'!X28:X39) -> 3.375 | CI47: =AVERAGE('SS PrePost'!Y28:Y39) -> 3.625 | CJ47: =AVERAGE('SS PrePost'!Z28:Z39) -> 3.375 | CK47: =AVERAGE('SS PrePost'!AA28:AA39) -> 4 | CL47: =AVERAGE('SS PrePost'!AB28:AB39) -> 2.875 | CM47: =AVERAGE('SS PrePost'!AC28:AC39) -> 2.125 | CN47: =AVERAGE('SS PrePost'!AD28:AD39) -> 4.625 | CO47: =AVERAGE('SS PrePost'!AE28:AE39) -> 2.75 | CP47: =AVERAGE('SS PrePost'!AF28:AF39) -> 3.625 | CQ47: =AVERAGE('SS PrePost'!AG28:AG39) -> 3.5 | CR47: =AVERAGE('SS PrePost'!AH28:AH39) -> 3.25 | CS47: =AVERAGE('SS PrePost'!AI28:AI39) -> 3 | CT47: =AVERAGE('SS PrePost'!AJ28:AJ39) -> 3 | CU47: =AVERAGE('SS PrePost'!AK28:AK39) -> 3.5 | CV47: =AVERAGE('SS PrePost'!AL28:AL39) -> 3.625 | CW47: =AVERAGE('SS PrePost'!AM28:AM39) -> 3.75 | CX47: =AVERAGE('SS PrePost'!AN28:AN39) -> 2.875 | CY47: =AVERAGE('SS PrePost'!AO28:AO39) -> 4 | CZ47: =AVERAGE('SS PrePost'!AP28:AP39) -> 2.875 | DA47: =AVERAGE('SS PrePost'!AQ28:AQ39) -> 1.875 | DB47: =AVERAGE('SS PrePost'!AR28:AR39) -> 3.125 | DC47: =AVERAGE('SS PrePost'!AS28:AS39) -> 4.375 | DD47: =AVERAGE('SS PrePost'!AT28:AT39) -> 3.5 | DE47: =AVERAGE('SS PrePost'!AU28:AU39) -> 3.5 | DF47: =AVERAGE('SS PrePost'!AV28:AV39) -> 3.5 | DG47: =AVERAGE('SS PrePost'!AW28:AW39) -> 3.625 | DH47: =AVERAGE('SS PrePost'!AX28:AX39) -> 3.375 | DI47: =AVERAGE('SS PrePost'!AY28:AY39) -> 3.625 | DJ47: =AVERAGE('SS PrePost'!AZ28:AZ39) -> 3.25 | DK47: =AVERAGE('SS PrePost'!BA28:BA39) -> 4
A48: 2 | B48: Dominique Sands | C48: Female | D48: =$D$44 -> 5 | E48: Yes | F48: Yes | G48: Yes | H48: Yes | I48: Yes | J48: Yes | K48: Yes | L48: Yes | M48: Yes | N48: Yes | O48: Yes | P48: Yes | Q48: Yes | R48: Yes | S48: Yes | T48: Yes | U48: Yes | V48: Yes | W48: Yes | X48: Yes | Y48: Yes | Z48: Yes | AA48: Yes | AB48: Yes | AC48: Yes | AD48: Yes | AE48: Yes | AF48: Yes | AG48: Yes | AH48: Yes | AK48: 10 | AL48: 10 | AM48: 10 | AN48: =SUM(AK48:AM48) -> 30 | AP48: SS2 | AR48: =IF(AND($D48=AR$6,$AN48>=$AU$3),1,0) -> 0 | AS48: 0 | AT48: 0 | AU48: 0 | AV48: 1 | AW48: 0 | AX48: 0 | AY48: 0 | BJ48: 5
A49: 3 | B49: Janelle Blake | C49: Female | D49: 5 | E49: Yes | F49: Yes | G49: Yes | H49: Yes | I49: Yes | J49: Yes | K49: Yes | L49: Yes | M49: Yes | N49: Yes | O49: Yes | P49: Yes | Q49: Yes | R49: Yes | S49: Yes | T49: Yes | U49: Yes | V49: Yes | W49: Yes | X49: Yes | Y49: Yes | Z49: No | AA49: Yes | AB49: Yes | AC49: Yes | AD49: Yes | AE49: Yes | AF49: Yes | AG49: Yes | AH49: Yes | AK49: 10 | AL49: 10 | AM49: 9 | AN49: 29 | AP49: SS3 | AR49: 0 | AS49: 0 | AT49: 0 | AU49: 0 | AV49: 1 | AW49: 0 | AX49: 0 | AY49: 0 | BJ49: 5
A50: 4 | B50: Christenesa Stinson | C50: Female | D50: 5 | E50: Yes | F50: Yes | G50: Yes | H50: Yes | I50: Yes | J50: Yes | K50: Yes | L50: Yes | M50: Yes | N50: Yes | O50: Yes | P50: Yes | Q50: Yes | R50: Yes | S50: Yes | T50: Yes | U50: Yes | V50: Yes | W50: No | X50: Yes | Y50: Yes | Z50: Yes | AA50: Yes | AB50: Yes | AC50: Yes | AD50: Yes | AE50: Yes | AF50: Yes | AG50: No | AH50: Yes | AK50: 10 | AL50: 9 | AM50: 9 | AN50: 28 | AP50: SS4 | AR50: 0 | AS50: 0 | AT50: 0 | AU50: 0 | AV50: 1 | AW50: 0 | AX50: 0 | AY50: 0 | BJ50: 5
A51: 5 | B51: Christhiena Stinson | C51: Female | D51: 5 | E51: No | F51: Yes | G51: Yes | H51: Yes | I51: Yes | J51: Yes | K51: Yes | L51: Yes | M51: Yes | N51: Yes | O51: Yes | P51: Yes | Q51: Yes | R51: Yes | S51: Yes | T51: Yes | U51: Yes | V51: Yes | W51: Yes | X51: Yes | Y51: Yes | Z51: Yes | AA51: Yes | AB51: Yes | AC51: Yes | AD51: Yes | AE51: Yes | AF51: Yes | AG51: Yes | AH51: Yes | AK51: 9 | AL51: 10 | AM51: 10 | AN51: 29 | AP51: SS5 | AR51: 0 | AS51: 0 | AT51: 0 | AU51: 0 | AV51: 1 | AW51: 0 | AX51: 0 | AY51: 0 | BJ51: 5
A52: 6 | B52: Naya Thompson | C52: Female | D52: 5 | E52: No | F52: Yes | G52: Yes | H52: Yes | I52: Yes | J52: Yes | K52: Yes | L52: Yes | M52: Yes | N52: Yes | O52: Yes | P52: Yes | Q52: Yes | R52: Yes | S52: Yes | T52: Yes | U52: Yes | V52: Yes | W52: Yes | X52: Yes | Y52: No | Z52: Yes | AA52: Yes | AB52: Yes | AC52: Yes | AD52: Yes | AE52: Yes | AF52: Yes | AG52: Yes | AH52: Yes | AK52: 9 | AL52: 10 | AM52: 9 | AN52: 28 | AP52: SS6 | AR52: 0 | AS52: 0 | AT52: 0 | AU52: 0 | AV52: 1 | AW52: 0 | AX52: 0 | AY52: 0 | BJ52: 5
A53: 7 | B53: Jada Jackson-Jones | C53: Female | D53: 5 | E53: Yes | F53: Yes | G53: Yes | H53: Yes | I53: Yes | J53: Yes | K53: Yes | L53: Yes | M53: Yes | N53: Yes | O53: Yes | P53: Yes | Q53: Yes | R53: Yes | S53: Yes | T53: Yes | U53: Yes | V53: No | W53: Yes | X53: Yes | Y53: Yes | Z53: Yes | AA53: Yes | AB53: Yes | AC53: Yes | AD53: No | AE53: Yes | AF53: Yes | AG53: Yes | AH53: Yes | AK53: 10 | AL53: 9 | AM53: 9 | AN53: 28 | AP53: SS7 | AR53: 0 | AS53: 0 | AT53: 0 | AU53: 0 | AV53: 1 | AW53: 0 | AX53: 0 | AY53: 0 | BJ53: 5
A54: 8 | B54: Shalynn Lonesone | C54: Female | D54: 5 | E54: Yes | F54: Yes | G54: Yes | H54: Yes | I54: No | J54: Yes | K54: Yes | L54: Yes | M54: Yes | N54: Yes | O54: Yes | P54: Yes | Q54: Yes | R54: Yes | S54: Yes | T54: Yes | U54: Yes | V54: Yes | W54: Yes | X54: Yes | Y54: Yes | Z54: Yes | AA54: Yes | AB54: Yes | AC54: Yes | AD54: Yes | AE54: Yes | AF54: Yes | AG54: Yes | AH54: Yes | AK54: 9 | AL54: 10 | AM54: 10 | AN54: 29 | AP54: SS8 | AR54: 0 | AS54: 0 | AT54: 0 | AU54: 0 | AV54: 1 | AW54: 0 | AX54: 0 | AY54: 0 | BJ54: 5
A55: 9 | D55: 5 | AK55: 0 | AL55: 0 | AM55: 0 | AN55: 0 | AP55: SS9 | AR55: 0 | AS55: 0 | AT55: 0 | AU55: 0 | AV55: 0 | AW55: 0 | AX55: 0 | AY55: 0
A56: 10 | D56: 5 | AK56: =COUNTIF(E56:N56,"Yes") -> 0 | AL56: =COUNTIF(O56:X56,"Yes") -> 0 | AM56: =COUNTIF(Y56:AH56,"Yes") -> 0 | AN56: =SUM(AK56:AM56) -> 0 | AP56: SS10 | AR56: 0 | AS56: 0 | AT56: 0 | AU56: 0 | AV56: 0 | AW56: 0 | AX56: 0 | AY56: 0
A57: 11 | D57: 5 | AK57: =COUNTIF(E57:N57,"Yes") -> 0 | AL57: =COUNTIF(O57:X57,"Yes") -> 0 | AM57: =COUNTIF(Y57:AH57,"Yes") -> 0 | AN57: =SUM(AK57:AM57) -> 0 | AR57: 0 | AS57: 0 | AT57: 0 | AU57: 0 | AV57: 0 | AW57: 0 | AX57: 0 | AY57: 0 | BA57: =IF(AI57="YES",D57,"") ->  | BJ57: =IF(AN57>0,D57,"") -> 
A58: 12 | D58: 5 | AK58: =COUNTIF(E58:N58,"Yes") -> 0 | AL58: =COUNTIF(O58:X58,"Yes") -> 0 | AM58: =COUNTIF(Y58:AH58,"Yes") -> 0 | AN58: =SUM(AK58:AM58) -> 0 | AR58: 0 | AS58: 0 | AT58: 0 | AU58: 0 | AV58: 0 | AW58: 0 | AX58: 0 | AY58: 0 | BA58: =IF(AI58="YES",D58,"") ->  | BJ58: =IF(AN58>0,D58,"") -> 
B61: Program #4
B62: Start Date | C62: 2015-01-20 | D62: Qtr | E62: Attendance | AN62: =IF(C63,((YEAR(C63)-YEAR($B$1))*12+MONTH(C63)-MONTH($B$1)+1),"") -> 18
B63: Completion Date | C63: 2015-03-26 | D63: =IF(C63,INT((AN62+2)/3),"") -> 6 | E63: SS1 | F63: SS2 | G63: SS3 | H63: SS4 | I63: SS5 | J63: SS6 | K63: SS7 | L63: SS8 | M63: SS9 | N63: SS10 | O63: AC1 | P63: AC2 | Q63: AC3 | R63: AC4 | S63: AC5 | T63: AC6 | U63: AC7 | V63: AC8 | W63: AC9 | X63: AC10 | Y63: MR1 | Z63: MR2 | AA63: MR3 | AB63: MR4 | AC63: MR5 | AD63: MR6 | AE63: MR7 | AF63: MR8 | AG63: MR9 | AH63: MR10 | AK63: Program 4 Summary | AN63: Month | AP63: =COUNTIF(AN66:AN75,30) -> 0 | BN63: Orange Box indicates they are among 10 lowest agerage skills scores for this group.
B64: Group Environment | C64: Community | D64: SS choice | E64: =LEFT($AQ66,2) ->  | F64: =LEFT($AQ67,2) ->  | G64: =LEFT($AQ68,2) ->  | H64: =LEFT($AQ69,2) ->  | I64: =LEFT($AQ70,2) ->  | J64: =LEFT($AQ71,2) ->  | K64: =LEFT($AQ72,2) ->  | L64: =LEFT($AQ73,2) ->  | M64: =LEFT($AQ74,2) ->  | N64: =LEFT($AQ75,2) ->  | BN64: Skills in purple boxes are those recommended in ART manual.
B65: Participant Name | C65: Gender | AI65: Administrative Withdrawal? | AK65: SS Sessions Attended | AL65: AC Sessions Attended | AM65: MR Sessions Attended | AN65: TOTAL Sessions attended | AQ65: Skillstreaming Sessions | BI65: =D63 -> 6 | BN65: Mean Skill 01 | BO65: Mean Skill 02 | BP65: Mean Skill 03 | BQ65: Mean Skill 04 | BR65: Mean Skill 05 | BS65: Mean Skill 06 | BT65: Mean Skill 07 | BU65: Mean Skill 08 | BV65: Mean Skill 09 | BW65: Mean Skill 10 | BX65: Mean Skill 11 | BY65: Mean Skill 12 | BZ65: Mean Skill 13 | CA65: Mean Skill 14 | CB65: Mean Skill 15 | CC65: Mean Skill 16 | CD65: Mean Skill 17 | CE65: Mean Skill 18 | CF65: Mean Skill 19 | CG65: Mean Skill 20 | CH65: Mean Skill 21 | CI65: Mean Skill 22 | CJ65: Mean Skill 23 | CK65: Mean Skill 24 | CL65: Mean Skill 25 | CM65: Mean Skill 26 | CN65: Mean Skill 27 | CO65: Mean Skill 28 | CP65: Mean Skill 29 | CQ65: Mean Skill 30 | CR65: Mean Skill 31 | CS65: Mean Skill 32 | CT65: Mean Skill 33 | CU65: Mean Skill 34 | CV65: Mean Skill 35 | CW65: Mean Skill 36 | CX65: Mean Skill 37 | CY65: Mean Skill 38 | CZ65: Mean Skill 39 | DA65: Mean Skill 40 | DB65: Mean Skill 41 | DC65: Mean Skill 42 | DD65: Mean Skill 43 | DE65: Mean Skill 44 | DF65: Mean Skill 45 | DG65: Mean Skill 46 | DH65: Mean Skill 47 | DI65: Mean Skill 48 | DJ65: Mean Skill 49 | DK65: Mean Skill 50
A66: 1 | B66: Kanaya Brown | C66: Female | D66: =$D$63 -> 6 | E66: No | F66: Yes | G66: Yes | H66: Yes | I66: Yes | J66: Yes | K66: Yes | L66: Yes | M66: Yes | N66: Yes | O66: No | P66: Yes | Q66: Yes | R66: Yes | S66: Yes | T66: Yes | U66: Yes | V66: No | W66: Yes | X66: Yes | Y66: Yes | Z66: Yes | AA66: No | AB66: Yes | AC66: Yes | AD66: Yes | AE66: Yes | AF66: Yes | AG66: Yes | AH66: Yes | AK66: =COUNTIF(E66:N66,"Yes") -> 9 | AL66: =COUNTIF(O66:X66,"Yes") -> 8 | AM66: =COUNTIF(Y66:AH66,"Yes") -> 9 | AN66: =SUM(AK66:AM66) -> 26 | AP66: SS1 | AR66: =IF(AND($D66=AR$6,$AN66>=$AU$3),1,0) -> 0 | AS66: =IF(AND($D66=AS$6,$AN66>=$AU$3),1,0) -> 0 | AT66: 0 | AU66: 0 | AV66: 0 | AW66: 0 | AX66: 0 | AY66: 0 | BJ66: 6 | BM66: =SMALL(BN66:DK66,10) -> 2.666666667 | BN66: =AVERAGE('SS PrePost'!D40:D51) -> 3.333333333 | BO66: =AVERAGE('SS PrePost'!E40:E51) -> 3.25 | BP66: =AVERAGE('SS PrePost'!F40:F51) -> 3.333333333 | BQ66: =AVERAGE('SS PrePost'!G40:G51) -> 3.666666667 | BR66: =AVERAGE('SS PrePost'!H40:H51) -> 3.833333333 | BS66: =AVERAGE('SS PrePost'!I40:I51) -> 3.416666667 | BT66: =AVERAGE('SS PrePost'!J40:J51) -> 3.083333333 | BU66: =AVERAGE('SS PrePost'!K40:K51) -> 2.916666667 | BV66: =AVERAGE('SS PrePost'!L40:L51) -> 3.25 | BW66: =AVERAGE('SS PrePost'!M40:M51) -> 2.666666667 | BX66: =AVERAGE('SS PrePost'!N40:N51) -> 3.166666667 | BY66: =AVERAGE('SS PrePost'!O40:O51) -> 3 | BZ66: =AVERAGE('SS PrePost'!P40:P51) -> 2.75 | CA66: =AVERAGE('SS PrePost'!Q40:Q51) -> 2.666666667 | CB66: =AVERAGE('SS PrePost'!R40:R51) -> 4 | CC66: =AVERAGE('SS PrePost'!S40:S51) -> 2.333333333 | CD66: =AVERAGE('SS PrePost'!T40:T51) -> 3.636363636 | CE66: =AVERAGE('SS PrePost'!U40:U51) -> 3.083333333 | CF66: =AVERAGE('SS PrePost'!V40:V51) -> 4 | CG66: =AVERAGE('SS PrePost'!W40:W51) -> 2.666666667 | CH66: =AVERAGE('SS PrePost'!X40:X51) -> 3.583333333 | CI66: =AVERAGE('SS PrePost'!Y40:Y51) -> 3.166666667 | CJ66: =AVERAGE('SS PrePost'!Z40:Z51) -> 2.666666667 | CK66: =AVERAGE('SS PrePost'!AA40:AA51) -> 3.166666667 | CL66: =AVERAGE('SS PrePost'!AB40:AB51) -> 2.25 | CM66: =AVERAGE('SS PrePost'!AC40:AC51) -> 2.833333333 | CN66: =AVERAGE('SS PrePost'!AD40:AD51) -> 4.166666667 | CO66: =AVERAGE('SS PrePost'!AE40:AE51) -> 3.25 | CP66: =AVERAGE('SS PrePost'!AF40:AF51) -> 3.818181818 | CQ66: =AVERAGE('SS PrePost'!AG40:AG51) -> 2.666666667 | CR66: =AVERAGE('SS PrePost'!AH40:AH51) -> 2.583333333 | CS66: =AVERAGE('SS PrePost'!AI40:AI51) -> 2.583333333 | CT66: =AVERAGE('SS PrePost'!AJ40:AJ51) -> 2.5 | CU66: =AVERAGE('SS PrePost'!AK40:AK51) -> 2.75 | CV66: =AVERAGE('SS PrePost'!AL40:AL51) -> 3.833333333 | CW66: =AVERAGE('SS PrePost'!AM40:AM51) -> 3.833333333 | CX66: =AVERAGE('SS PrePost'!AN40:AN51) -> 3 | CY66: =AVERAGE('SS PrePost'!AO40:AO51) -> 3.083333333 | CZ66: =AVERAGE('SS PrePost'!AP40:AP51) -> 2.583333333 | DA66: =AVERAGE('SS PrePost'!AQ40:AQ51) -> 2.166666667 | DB66: =AVERAGE('SS PrePost'!AR40:AR51) -> 2.333333333 | DC66: =AVERAGE('SS PrePost'!AS40:AS51) -> 3.416666667 | DD66: =AVERAGE('SS PrePost'!AT40:AT51) -> 3.166666667 | DE66: =AVERAGE('SS PrePost'!AU40:AU51) -> 3.166666667 | DF66: =AVERAGE('SS PrePost'!AV40:AV51) -> 2.666666667 | DG66: =AVERAGE('SS PrePost'!AW40:AW51) -> 2.666666667 | DH66: =AVERAGE('SS PrePost'!AX40:AX51) -> 2.727272727 | DI66: =AVERAGE('SS PrePost'!AY40:AY51) -> 2.818181818 | DJ66: =AVERAGE('SS PrePost'!AZ40:AZ51) -> 2.909090909 | DK66: =AVERAGE('SS PrePost'!BA40:BA51) -> 3
A67: 2 | B67: Laila Carter | C67: Female | D67: =$D$63 -> 6 | E67: No | F67: Yes | G67: Yes | H67: Yes | I67: Yes | J67: Yes | K67: Yes | L67: Yes | M67: Yes | N67: Yes | O67: Yes | P67: Yes | Q67: No | R67: Yes | S67: Yes | T67: Yes | U67: Yes | V67: Yes | W67: Yes | X67: Yes | Y67: Yes | Z67: Yes | AA67: No | AB67: Yes | AC67: Yes | AD67: Yes | AE67: Yes | AF67: Yes | AG67: Yes | AH67: Yes | AK67: 9 | AL67: 9 | AM67: 9 | AN67: =SUM(AK67:AM67) -> 27 | AP67: SS2 | AR67: =IF(AND($D67=AR$6,$AN67>=$AU$3),1,0) -> 0 | AS67: 0 | AT67: 0 | AU67: 0 | AV67: 0 | AW67: 0 | AX67: 0 | AY67: 0 | BJ67: 6
A68: 3 | B68: Kordaya Brown | C68: Female | D68: 6 | E68: Yes | F68: Yes | G68: Yes | H68: Yes | I68: Yes | J68: Yes | K68: Yes | L68: Yes | M68: Yes | N68: Yes | O68: Yes | P68: Yes | Q68: Yes | R68: Yes | S68: Yes | T68: Yes | U68: Yes | V68: Yes | W68: Yes | X68: Yes | Y68: Yes | Z68: Yes | AA68: Yes | AB68: No | AC68: Yes | AD68: Yes | AE68: Yes | AF68: Yes | AG68: Yes | AH68: Yes | AK68: 10 | AL68: 10 | AM68: 9 | AN68: 29 | AP68: SS3 | AR68: 0 | AS68: 0 | AT68: 0 | AU68: 0 | AV68: 0 | AW68: 1 | AX68: 0 | AY68: 0 | BJ68: 6
A69: 4 | B69: Alaina Griffin | C69: Female | D69: 6 | E69: Yes | F69: No | G69: Yes | H69: Yes | I69: Yes | J69: Yes | K69: Yes | L69: Yes | M69: Yes | N69: Yes | O69: Yes | P69: Yes | Q69: No | R69: Yes | S69: Yes | T69: Yes | U69: Yes | V69: Yes | W69: Yes | X69: Yes | Y69: Yes | Z69: No | AA69: Yes | AB69: Yes | AC69: Yes | AD69: Yes | AE69: Yes | AF69: Yes | AG69: Yes | AH69: Yes | AK69: 9 | AL69: 9 | AM69: 9 | AN69: 27 | AP69: SS4 | AR69: 0 | AS69: 0 | AT69: 0 | AU69: 0 | AV69: 0 | AW69: 0 | AX69: 0 | AY69: 0 | BJ69: 6
A70: 5 | B70: Jennifer Dolores | C70: Female | D70: 6 | E70: Yes | F70: Yes | G70: Yes | H70: Yes | I70: Yes | J70: Yes | K70: Yes | L70: Yes | M70: Yes | N70: Yes | O70: Yes | P70: Yes | Q70: Yes | R70: Yes | S70: Yes | T70: Yes | U70: Yes | V70: Yes | W70: Yes | X70: Yes | Y70: Yes | Z70: Yes | AA70: Yes | AB70: Yes | AC70: Yes | AD70: Yes | AE70: Yes | AF70: No | AG70: Yes | AH70: Yes | AK70: 10 | AL70: 10 | AM70: 9 | AN70: 29 | AP70: SS5 | AR70: 0 | AS70: 0 | AT70: 0 | AU70: 0 | AV70: 0 | AW70: 1 | AX70: 0 | AY70: 0 | BJ70: 6
A71: 6 | B71: Sandra Carrillo | C71: Female | D71: 6 | E71: Yes | F71: Yes | G71: Yes | H71: Yes | I71: Yes | J71: Yes | K71: Yes | L71: Yes | M71: Yes | N71: Yes | O71: Yes | P71: Yes | Q71: Yes | R71: Yes | S71: No | T71: Yes | U71: Yes | V71: Yes | W71: Yes | X71: Yes | Y71: Yes | Z71: Yes | AA71: Yes | AB71: Yes | AC71: Yes | AD71: Yes | AE71: Yes | AF71: Yes | AG71: Yes | AH71: Yes | AK71: 10 | AL71: 9 | AM71: 10 | AN71: 29 | AP71: SS6 | AR71: 0 | AS71: 0 | AT71: 0 | AU71: 0 | AV71: 0 | AW71: 1 | AX71: 0 | AY71: 0 | BJ71: 6
A72: 7 | B72: Fatimah Boyd | C72: Female | D72: 6 | E72: Yes | F72: Yes | G72: Yes | H72: Yes | I72: No | J72: Yes | K72: Yes | L72: Yes | M72: Yes | N72: Yes | O72: Yes | P72: Yes | Q72: No | R72: Yes | S72: Yes | T72: Yes | U72: Yes | V72: Yes | W72: Yes | X72: Yes | Y72: Yes | Z72: Yes | AA72: Yes | AB72: Yes | AC72: Yes | AD72: Yes | AE72: No | AF72: Yes | AG72: Yes | AH72: Yes | AK72: 9 | AL72: 9 | AM72: 9 | AN72: 27 | AP72: SS7 | AR72: 0 | AS72: 0 | AT72: 0 | AU72: 0 | AV72: 0 | AW72: 0 | AX72: 0 | AY72: 0 | BJ72: 6
A73: 8 | B73: Cori Jones | C73: Female | D73: 6 | E73: Yes | F73: Yes | G73: Yes | H73: Yes | I73: Yes | J73: Yes | K73: Yes | L73: Yes | M73: Yes | N73: Yes | O73: Yes | P73: Yes | Q73: Yes | R73: Yes | S73: Yes | T73: Yes | U73: No | V73: Yes | W73: Yes | X73: Yes | Y73: Yes | Z73: Yes | AA73: Yes | AB73: Yes | AC73: Yes | AD73: No | AE73: Yes | AF73: Yes | AG73: Yes | AH73: Yes | AK73: 10 | AL73: 9 | AM73: 9 | AN73: 28 | AP73: SS8 | AR73: 0 | AS73: 0 | AT73: 0 | AU73: 0 | AV73: 0 | AW73: 1 | AX73: 0 | AY73: 0 | BJ73: 6
A74: 9 | B74: Kinsey Scott | C74: Female | D74: 6 | E74: Yes | F74: Yes | G74: Yes | H74: Yes | I74: Yes | J74: Yes | K74: Yes | L74: No | M74: Yes | N74: Yes | O74: Yes | P74: Yes | Q74: Yes | R74: Yes | S74: Yes | T74: Yes | U74: Yes | V74: Yes | W74: Yes | X74: Yes | Y74: Yes | Z74: Yes | AA74: Yes | AB74: Yes | AC74: No | AD74: Yes | AE74: Yes | AF74: Yes | AG74: Yes | AH74: Yes | AK74: 9 | AL74: 10 | AM74: 9 | AN74: 28 | AP74: SS9 | AR74: 0 | AS74: 0 | AT74: 0 | AU74: 0 | AV74: 0 | AW74: 1 | AX74: 0 | AY74: 0 | BJ74: 6
A75: 10 | B75: Danica Hemmingway | C75: Female | D75: 6 | E75: No | F75: Yes | G75: Yes | H75: Yes | I75: Yes | J75: Yes | K75: Yes | L75: Yes | M75: Yes | N75: Yes | O75: Yes | P75: Yes | Q75: Yes | R75: Yes | S75: Yes | T75: Yes | U75: Yes | V75: Yes | W75: Yes | X75: Yes | Y75: Yes | Z75: Yes | AA75: Yes | AB75: Yes | AC75: Yes | AD75: Yes | AE75: Yes | AF75: Yes | AG75: Yes | AH75: Yes | AK75: =COUNTIF(E75:N75,"Yes") -> 9 | AL75: =COUNTIF(O75:X75,"Yes") -> 10 | AM75: =COUNTIF(Y75:AH75,"Yes") -> 10 | AN75: =SUM(AK75:AM75) -> 29 | AP75: SS10 | AR75: 0 | AS75: 0 | AT75: 0 | AU75: 0 | AV75: 0 | AW75: 1 | AX75: 0 | AY75: 0 | BJ75: 6
A76: 11 | B76: Kaya Carter | C76: Female | D76: 6 | E76: No | F76: Yes | G76: Yes | H76: Yes | I76: Yes | J76: Yes | K76: Yes | L76: Yes | M76: Yes | N76: Yes | O76: No | P76: Yes | Q76: Yes | R76: Yes | S76: Yes | T76: Yes | U76: Yes | V76: Yes | W76: Yes | X76: Yes | Y76: Yes | Z76: Yes | AA76: Yes | AB76: No | AC76: Yes | AD76: Yes | AE76: Yes | AF76: Yes | AG76: Yes | AH76: Yes | AK76: =COUNTIF(E76:N76,"Yes") -> 9 | AL76: =COUNTIF(O76:X76,"Yes") -> 9 | AM76: =COUNTIF(Y76:AH76,"Yes") -> 9 | AN76: =SUM(AK76:AM76) -> 27 | AR76: 0 | AS76: 0 | AT76: 0 | AU76: 0 | AV76: 0 | AW76: 0 | AX76: 0 | AY76: 0 | BA76: =IF(AI76="YES",D76,"") ->  | BJ76: =IF(AN76>0,D76,"") -> 6
A77: 12 | B77: Jamai King | C77: Female | D77: 6 | E77: Yes | F77: No | G77: Yes | H77: Yes | I77: Yes | J77: Yes | K77: Yes | L77: Yes | M77: Yes | N77: Yes | O77: Yes | P77: Yes | Q77: Yes | R77: Yes | S77: Yes | T77: Yes | U77: Yes | V77: Yes | W77: No | X77: Yes | Y77: Yes | Z77: No | AA77: Yes | AB77: Yes | AC77: Yes | AD77: Yes | AE77: Yes | AF77: Yes | AG77: Yes | AH77: Yes | AK77: =COUNTIF(E77:N77,"Yes") -> 9 | AL77: =COUNTIF(O77:X77,"Yes") -> 9 | AM77: =COUNTIF(Y77:AH77,"Yes") -> 9 | AN77: =SUM(AK77:AM77) -> 27 | AR77: 0 | AS77: 0 | AT77: 0 | AU77: 0 | AV77: 0 | AW77: 0 | AX77: 0 | AY77: 0 | BA77: =IF(AI77="YES",D77,"") ->  | BJ77: =IF(AN77>0,D77,"") -> 6
B80: Program #5
B81: Start Date | D81: Qtr | E81: Attendance | AN81: =IF(C82,((YEAR(C82)-YEAR($B$1))*12+MONTH(C82)-MONTH($B$1)+1),"") -> 
B82: Completion Date | D82: =IF(C82,INT((AN81+2)/3),"") ->  | E82: SS1 | F82: SS2 | G82: SS3 | H82: SS4 | I82: SS5 | J82: SS6 | K82: SS7 | L82: SS8 | M82: SS9 | N82: SS10 | O82: AC1 | P82: AC2 | Q82: AC3 | R82: AC4 | S82: AC5 | T82: AC6 | U82: AC7 | V82: AC8 | W82: AC9 | X82: AC10 | Y82: MR1 | Z82: MR2 | AA82: MR3 | AB82: MR4 | AC82: MR5 | AD82: MR6 | AE82: MR7 | AF82: MR8 | AG82: MR9 | AH82: MR10 | AK82: Program 5 Summary | AN82: Month | AP82: =COUNTIF(AN85:AN94,30) -> 0 | BA82: =IF(AI82="YES",D82,"") ->  | BN82: Orange Box indicates they are among 10 lowest agerage skills scores for this group.
B83: Group Environment | D83: SS Choice | E83: =LEFT($AQ85,2) ->  | F83: =LEFT($AQ86,2) ->  | G83: =LEFT($AQ87,2) ->  | H83: =LEFT($AQ88,2) ->  | I83: =LEFT($AQ89,2) ->  | J83: =LEFT($AQ90,2) ->  | K83: =LEFT($AQ91,2) ->  | L83: =LEFT($AQ92,2) ->  | M83: =LEFT($AQ93,2) ->  | N83: =LEFT($AQ94,2) ->  | BN83: Skills in purple boxes are those recommended in ART manual.
B84: Participant Name | C84: Gender | AI84: Administrative Withdrawal? | AK84: SS Sessions Attended | AL84: AC Sessions Attended | AM84: MR Sessions Attended | AN84: TOTAL Sessions attended | AQ84: Skillstreaming Sessions | BI84: =D82 ->  | BN84: Mean Skill 01 | BO84: Mean Skill 02 | BP84: Mean Skill 03 | BQ84: Mean Skill 04 | BR84: Mean Skill 05 | BS84: Mean Skill 06 | BT84: Mean Skill 07 | BU84: Mean Skill 08 | BV84: Mean Skill 09 | BW84: Mean Skill 10 | BX84: Mean Skill 11 | BY84: Mean Skill 12 | BZ84: Mean Skill 13 | CA84: Mean Skill 14 | CB84: Mean Skill 15 | CC84: Mean Skill 16 | CD84: Mean Skill 17 | CE84: Mean Skill 18 | CF84: Mean Skill 19 | CG84: Mean Skill 20 | CH84: Mean Skill 21 | CI84: Mean Skill 22 | CJ84: Mean Skill 23 | CK84: Mean Skill 24 | CL84: Mean Skill 25 | CM84: Mean Skill 26 | CN84: Mean Skill 27 | CO84: Mean Skill 28 | CP84: Mean Skill 29 | CQ84: Mean Skill 30 | CR84: Mean Skill 31 | CS84: Mean Skill 32 | CT84: Mean Skill 33 | CU84: Mean Skill 34 | CV84: Mean Skill 35 | CW84: Mean Skill 36 | CX84: Mean Skill 37 | CY84: Mean Skill 38 | CZ84: Mean Skill 39 | DA84: Mean Skill 40 | DB84: Mean Skill 41 | DC84: Mean Skill 42 | DD84: Mean Skill 43 | DE84: Mean Skill 44 | DF84: Mean Skill 45 | DG84: Mean Skill 46 | DH84: Mean Skill 47 | DI84: Mean Skill 48 | DJ84: Mean Skill 49 | DK84: Mean Skill 50
A85: 1 | D85: =$D$82 ->  | AK85: =COUNTIF(E85:N85,"Yes") -> 0 | AL85: =COUNTIF(O85:X85,"Yes") -> 0 | AM85: =COUNTIF(Y85:AH85,"Yes") -> 0 | AN85: =SUM(AK85:AM85) -> 0 | AP85: SS1 | AR85: =IF(AND($D85=AR$6,$AN85>=$AU$3),1,0) -> 0 | AS85: =IF(AND($D85=AS$6,$AN85>=$AU$3),1,0) -> 0 | AT85: 0 | AU85: 0 | AV85: 0 | AW85: 0 | AX85: 0 | AY85: 0 | BJ85: =IF(AN85>0,D85,"") ->  | BM85: =SMALL(BN85:DK85,10) ->  | BN85: =AVERAGE('SS PrePost'!D52:D63) ->  | BO85: =AVERAGE('SS PrePost'!E52:E63) ->  | BP85: =AVERAGE('SS PrePost'!F52:F63) ->  | BQ85: =AVERAGE('SS PrePost'!G52:G63) ->  | BR85: =AVERAGE('SS PrePost'!H52:H63) ->  | BS85: =AVERAGE('SS PrePost'!I52:I63) ->  | BT85: =AVERAGE('SS PrePost'!J52:J63) ->  | BU85: =AVERAGE('SS PrePost'!K52:K63) ->  | BV85: =AVERAGE('SS PrePost'!L52:L63) ->  | BW85: =AVERAGE('SS PrePost'!M52:M63) ->  | BX85: =AVERAGE('SS PrePost'!N52:N63) ->  | BY85: =AVERAGE('SS PrePost'!O52:O63) ->  | BZ85: =AVERAGE('SS PrePost'!P52:P63) ->  | CA85: =AVERAGE('SS PrePost'!Q52:Q63) ->  | CB85: =AVERAGE('SS PrePost'!R52:R63) ->  | CC85: =AVERAGE('SS PrePost'!S52:S63) ->  | CD85: =AVERAGE('SS PrePost'!T52:T63) ->  | CE85: =AVERAGE('SS PrePost'!U52:U63) ->  | CF85: =AVERAGE('SS PrePost'!V52:V63) ->  | CG85: =AVERAGE('SS PrePost'!W52:W63) ->  | CH85: =AVERAGE('SS PrePost'!X52:X63) ->  | CI85: =AVERAGE('SS PrePost'!Y52:Y63) ->  | CJ85: =AVERAGE('SS PrePost'!Z52:Z63) ->  | CK85: =AVERAGE('SS PrePost'!AA52:AA63) ->  | CL85: =AVERAGE('SS PrePost'!AB52:AB63) ->  | CM85: =AVERAGE('SS PrePost'!AC52:AC63) ->  | CN85: =AVERAGE('SS PrePost'!AD52:AD63) ->  | CO85: =AVERAGE('SS PrePost'!AE52:AE63) ->  | CP85: =AVERAGE('SS PrePost'!AF52:AF63) ->  | CQ85: =AVERAGE('SS PrePost'!AG52:AG63) ->  | CR85: =AVERAGE('SS PrePost'!AH52:AH63) ->  | CS85: =AVERAGE('SS PrePost'!AI52:AI63) ->  | CT85: =AVERAGE('SS PrePost'!AJ52:AJ63) ->  | CU85: =AVERAGE('SS PrePost'!AK52:AK63) ->  | CV85: =AVERAGE('SS PrePost'!AL52:AL63) ->  | CW85: =AVERAGE('SS PrePost'!AM52:AM63) ->  | CX85: =AVERAGE('SS PrePost'!AN52:AN63) ->  | CY85: =AVERAGE('SS PrePost'!AO52:AO63) ->  | CZ85: =AVERAGE('SS PrePost'!AP52:AP63) ->  | DA85: =AVERAGE('SS PrePost'!AQ52:AQ63) ->  | DB85: =AVERAGE('SS PrePost'!AR52:AR63) ->  | DC85: =AVERAGE('SS PrePost'!AS52:AS63) ->  | DD85: =AVERAGE('SS PrePost'!AT52:AT63) ->  | DE85: =AVERAGE('SS PrePost'!AU52:AU63) ->  | DF85: =AVERAGE('SS PrePost'!AV52:AV63) ->  | DG85: =AVERAGE('SS PrePost'!AW52:AW63) ->  | DH85: =AVERAGE('SS PrePost'!AX52:AX63) ->  | DI85: =AVERAGE('SS PrePost'!AY52:AY63) ->  | DJ85: =AVERAGE('SS PrePost'!AZ52:AZ63) ->  | DK85: =AVERAGE('SS PrePost'!BA52:BA63) -> 
A86: 2 | D86: =$D$82 ->  | AK86: 0 | AL86: 0 | AM86: 0 | AN86: =SUM(AK86:AM86) -> 0 | AP86: SS2 | AR86: =IF(AND($D86=AR$6,$AN86>=$AU$3),1,0) -> 0 | AS86: 0 | AT86: 0 | AU86: 0 | AV86: 0 | AW86: 0 | AX86: 0 | AY86: 0
A87: 3 | AK87: 0 | AL87: 0 | AM87: 0 | AN87: 0 | AP87: SS3 | AR87: 0 | AS87: 0 | AT87: 0 | AU87: 0 | AV87: 0 | AW87: 0 | AX87: 0 | AY87: 0
A88: 4 | AK88: 0 | AL88: 0 | AM88: 0 | AN88: 0 | AP88: SS4 | AR88: 0 | AS88: 0 | AT88: 0 | AU88: 0 | AV88: 0 | AW88: 0 | AX88: 0 | AY88: 0
A89: 5 | AK89: 0 | AL89: 0 | AM89: 0 | AN89: 0 | AP89: SS5 | AR89: 0 | AS89: 0 | AT89: 0 | AU89: 0 | AV89: 0 | AW89: 0 | AX89: 0 | AY89: 0
A90: 6 | AK90: 0 | AL90: 0 | AM90: 0 | AN90: 0 | AP90: SS6 | AR90: 0 | AS90: 0 | AT90: 0 | AU90: 0 | AV90: 0 | AW90: 0 | AX90: 0 | AY90: 0
A91: 7 | AK91: 0 | AL91: 0 | AM91: 0 | AN91: 0 | AP91: SS7 | AR91: 0 | AS91: 0 | AT91: 0 | AU91: 0 | AV91: 0 | AW91: 0 | AX91: 0 | AY91: 0
A92: 8 | AK92: 0 | AL92: 0 | AM92: 0 | AN92: 0 | AP92: SS8 | AR92: 0 | AS92: 0 | AT92: 0 | AU92: 0 | AV92: 0 | AW92: 0 | AX92: 0 | AY92: 0
A93: 9 | AK93: 0 | AL93: 0 | AM93: 0 | AN93: 0 | AP93: SS9 | AR93: 0 | AS93: 0 | AT93: 0 | AU93: 0 | AV93: 0 | AW93: 0 | AX93: 0 | AY93: 0
A94: 10 | AK94: =COUNTIF(E94:N94,"Yes") -> 0 | AL94: =COUNTIF(O94:X94,"Yes") -> 0 | AM94: =COUNTIF(Y94:AH94,"Yes") -> 0 | AN94: =SUM(AK94:AM94) -> 0 | AP94: SS10 | AR94: 0 | AS94: 0 | AT94: 0 | AU94: 0 | AV94: 0 | AW94: 0 | AX94: 0 | AY94: 0
A95: 11 | AK95: =COUNTIF(E95:N95,"Yes") -> 0 | AL95: =COUNTIF(O95:X95,"Yes") -> 0 | AM95: =COUNTIF(Y95:AH95,"Yes") -> 0 | AN95: =SUM(AK95:AM95) -> 0 | AR95: 0 | AS95: 0 | AT95: 0 | AU95: 0 | AV95: 0 | AW95: 0 | AX95: 0 | AY95: 0 | BA95: =IF(AI95="YES",D95,"") ->  | BJ95: =IF(AN95>0,D95,"") -> 
A96: 12 | AK96: =COUNTIF(E96:N96,"Yes") -> 0 | AL96: =COUNTIF(O96:X96,"Yes") -> 0 | AM96: =COUNTIF(Y96:AH96,"Yes") -> 0 | AN96: =SUM(AK96:AM96) -> 0 | AR96: 0 | AS96: 0 | AT96: 0 | AU96: 0 | AV96: 0 | AW96: 0 | AX96: 0 | AY96: 0 | BA96: =IF(AI96="YES",D96,"") ->  | BJ96: =IF(AN96>0,D96,"") -> 
B99: Program #6
B100: Start Date | D100: Qtr | E100: Attendance | AN100: =IF(C101,((YEAR(C101)-YEAR($B$1))*12+MONTH(C101)-MONTH($B$1)+1),"") -> 
B101: Completion Date | D101: =IF(C101,INT((AN100+2)/3),"") ->  | E101: SS1 | F101: SS2 | G101: SS3 | H101: SS4 | I101: SS5 | J101: SS6 | K101: SS7 | L101: SS8 | M101: SS9 | N101: SS10 | O101: AC1 | P101: AC2 | Q101: AC3 | R101: AC4 | S101: AC5 | T101: AC6 | U101: AC7 | V101: AC8 | W101: AC9 | X101: AC10 | Y101: MR1 | Z101: MR2 | AA101: MR3 | AB101: MR4 | AC101: MR5 | AD101: MR6 | AE101: MR7 | AF101: MR8 | AG101: MR9 | AH101: MR10 | AK101: Program 6 Summary | AN101: Month | AP101: =COUNTIF(AN104:AN113,30) -> 0 | BN101: Orange Box indicates they are among 10 lowest agerage skills scores for this group.
B102: Group Environment | D102: SS choice | E102: =LEFT($AQ104,2) ->  | F102: =LEFT($AQ105,2) ->  | G102: =LEFT($AQ106,2) ->  | H102: =LEFT($AQ107,2) ->  | I102: =LEFT($AQ108,2) ->  | J102: =LEFT($AQ109,2) ->  | K102: =LEFT($AQ110,2) ->  | L102: =LEFT($AQ111,2) ->  | M102: =LEFT($AQ112,2) ->  | N102: =LEFT($AQ113,2) ->  | BN102: Skills in purple boxes are those recommended in ART manual.
B103: Participant Name | C103: Gender | AI103: Administrative Withdrawal? | AK103: SS Sessions Attended | AL103: AC Sessions Attended | AM103: MR Sessions Attended | AN103: TOTAL Sessions attended | AQ103: Skillstreaming Sessions | BI103: =D101 ->  | BN103: Mean Skill 01 | BO103: Mean Skill 02 | BP103: Mean Skill 03 | BQ103: Mean Skill 04 | BR103: Mean Skill 05 | BS103: Mean Skill 06 | BT103: Mean Skill 07 | BU103: Mean Skill 08 | BV103: Mean Skill 09 | BW103: Mean Skill 10 | BX103: Mean Skill 11 | BY103: Mean Skill 12 | BZ103: Mean Skill 13 | CA103: Mean Skill 14 | CB103: Mean Skill 15 | CC103: Mean Skill 16 | CD103: Mean Skill 17 | CE103: Mean Skill 18 | CF103: Mean Skill 19 | CG103: Mean Skill 20 | CH103: Mean Skill 21 | CI103: Mean Skill 22 | CJ103: Mean Skill 23 | CK103: Mean Skill 24 | CL103: Mean Skill 25 | CM103: Mean Skill 26 | CN103: Mean Skill 27 | CO103: Mean Skill 28 | CP103: Mean Skill 29 | CQ103: Mean Skill 30 | CR103: Mean Skill 31 | CS103: Mean Skill 32 | CT103: Mean Skill 33 | CU103: Mean Skill 34 | CV103: Mean Skill 35 | CW103: Mean Skill 36 | CX103: Mean Skill 37 | CY103: Mean Skill 38 | CZ103: Mean Skill 39 | DA103: Mean Skill 40 | DB103: Mean Skill 41 | DC103: Mean Skill 42 | DD103: Mean Skill 43 | DE103: Mean Skill 44 | DF103: Mean Skill 45 | DG103: Mean Skill 46 | DH103: Mean Skill 47 | DI103: Mean Skill 48 | DJ103: Mean Skill 49 | DK103: Mean Skill 50
A104: 1 | D104: =$D$101 ->  | AK104: =COUNTIF(E104:N104,"Yes") -> 0 | AL104: =COUNTIF(O104:X104,"Yes") -> 0 | AM104: =COUNTIF(Y104:AH104,"Yes") -> 0 | AN104: =SUM(AK104:AM104) -> 0 | AP104: SS1 | AR104: =IF(AND($D104=AR$6,$AN104>=$AU$3),1,0) -> 0 | AS104: =IF(AND($D104=AS$6,$AN104>=$AU$3),1,0) -> 0 | AT104: 0 | AU104: 0 | AV104: 0 | AW104: 0 | AX104: 0 | AY104: 0 | BM104: =SMALL(BN104:DK104,10) ->  | BN104: =AVERAGE('SS PrePost'!D64:D75) ->  | BO104: =AVERAGE('SS PrePost'!E64:E75) ->  | BP104: =AVERAGE('SS PrePost'!F64:F75) ->  | BQ104: =AVERAGE('SS PrePost'!G64:G75) ->  | BR104: =AVERAGE('SS PrePost'!H64:H75) ->  | BS104: =AVERAGE('SS PrePost'!I64:I75) ->  | BT104: =AVERAGE('SS PrePost'!J64:J75) ->  | BU104: =AVERAGE('SS PrePost'!K64:K75) ->  | BV104: =AVERAGE('SS PrePost'!L64:L75) ->  | BW104: =AVERAGE('SS PrePost'!M64:M75) ->  | BX104: =AVERAGE('SS PrePost'!N64:N75) ->  | BY104: =AVERAGE('SS PrePost'!O64:O75) ->  | BZ104: =AVERAGE('SS PrePost'!P64:P75) ->  | CA104: =AVERAGE('SS PrePost'!Q64:Q75) ->  | CB104: =AVERAGE('SS PrePost'!R64:R75) ->  | CC104: =AVERAGE('SS PrePost'!S64:S75) ->  | CD104: =AVERAGE('SS PrePost'!T64:T75) ->  | CE104: =AVERAGE('SS PrePost'!U64:U75) ->  | CF104: =AVERAGE('SS PrePost'!V64:V75) ->  | CG104: =AVERAGE('SS PrePost'!W64:W75) ->  | CH104: =AVERAGE('SS PrePost'!X64:X75) ->  | CI104: =AVERAGE('SS PrePost'!Y64:Y75) ->  | CJ104: =AVERAGE('SS PrePost'!Z64:Z75) ->  | CK104: =AVERAGE('SS PrePost'!AA64:AA75) ->  | CL104: =AVERAGE('SS PrePost'!AB64:AB75) ->  | CM104: =AVERAGE('SS PrePost'!AC64:AC75) ->  | CN104: =AVERAGE('SS PrePost'!AD64:AD75) ->  | CO104: =AVERAGE('SS PrePost'!AE64:AE75) ->  | CP104: =AVERAGE('SS PrePost'!AF64:AF75) ->  | CQ104: =AVERAGE('SS PrePost'!AG64:AG75) ->  | CR104: =AVERAGE('SS PrePost'!AH64:AH75) ->  | CS104: =AVERAGE('SS PrePost'!AI64:AI75) ->  | CT104: =AVERAGE('SS PrePost'!AJ64:AJ75) ->  | CU104: =AVERAGE('SS PrePost'!AK64:AK75) ->  | CV104: =AVERAGE('SS PrePost'!AL64:AL75) ->  | CW104: =AVERAGE('SS PrePost'!AM64:AM75) ->  | CX104: =AVERAGE('SS PrePost'!AN64:AN75) ->  | CY104: =AVERAGE('SS PrePost'!AO64:AO75) ->  | CZ104: =AVERAGE('SS PrePost'!AP64:AP75) ->  | DA104: =AVERAGE('SS PrePost'!AQ64:AQ75) ->  | DB104: =AVERAGE('SS PrePost'!AR64:AR75) ->  | DC104: =AVERAGE('SS PrePost'!AS64:AS75) ->  | DD104: =AVERAGE('SS PrePost'!AT64:AT75) ->  | DE104: =AVERAGE('SS PrePost'!AU64:AU75) ->  | DF104: =AVERAGE('SS PrePost'!AV64:AV75) ->  | DG104: =AVERAGE('SS PrePost'!AW64:AW75) ->  | DH104: =AVERAGE('SS PrePost'!AX64:AX75) ->  | DI104: =AVERAGE('SS PrePost'!AY64:AY75) ->  | DJ104: =AVERAGE('SS PrePost'!AZ64:AZ75) ->  | DK104: =AVERAGE('SS PrePost'!BA64:BA75) -> 
A105: 2 | D105: =$D$101 ->  | AK105: 0 | AL105: 0 | AM105: 0 | AN105: =SUM(AK105:AM105) -> 0 | AP105: SS2 | AR105: =IF(AND($D105=AR$6,$AN105>=$AU$3),1,0) -> 0 | AS105: 0 | AT105: 0 | AU105: 0 | AV105: 0 | AW105: 0 | AX105: 0 | AY105: 0
A106: 3 | AK106: 0 | AL106: 0 | AM106: 0 | AN106: 0 | AP106: SS3 | AR106: 0 | AS106: 0 | AT106: 0 | AU106: 0 | AV106: 0 | AW106: 0 | AX106: 0 | AY106: 0
A107: 4 | AK107: 0 | AL107: 0 | AM107: 0 | AN107: 0 | AP107: SS4 | AR107: 0 | AS107: 0 | AT107: 0 | AU107: 0 | AV107: 0 | AW107: 0 | AX107: 0 | AY107: 0
A108: 5 | AK108: 0 | AL108: 0 | AM108: 0 | AN108: 0 | AP108: SS5 | AR108: 0 | AS108: 0 | AT108: 0 | AU108: 0 | AV108: 0 | AW108: 0 | AX108: 0 | AY108: 0
A109: 6 | AK109: 0 | AL109: 0 | AM109: 0 | AN109: 0 | AP109: SS6 | AR109: 0 | AS109: 0 | AT109: 0 | AU109: 0 | AV109: 0 | AW109: 0 | AX109: 0 | AY109: 0
A110: 7 | AK110: 0 | AL110: 0 | AM110: 0 | AN110: 0 | AP110: SS7 | AR110: 0 | AS110: 0 | AT110: 0 | AU110: 0 | AV110: 0 | AW110: 0 | AX110: 0 | AY110: 0
A111: 8 | AK111: 0 | AL111: 0 | AM111: 0 | AN111: 0 | AP111: SS8 | AR111: 0 | AS111: 0 | AT111: 0 | AU111: 0 | AV111: 0 | AW111: 0 | AX111: 0 | AY111: 0
A112: 9 | AK112: 0 | AL112: 0 | AM112: 0 | AN112: 0 | AP112: SS9 | AR112: 0 | AS112: 0 | AT112: 0 | AU112: 0 | AV112: 0 | AW112: 0 | AX112: 0 | AY112: 0
A113: 10 | AK113: =COUNTIF(E113:N113,"Yes") -> 0 | AL113: =COUNTIF(O113:X113,"Yes") -> 0 | AM113: =COUNTIF(Y113:AH113,"Yes") -> 0 | AN113: =SUM(AK113:AM113) -> 0 | AP113: SS10 | AR113: 0 | AS113: 0 | AT113: 0 | AU113: 0 | AV113: 0 | AW113: 0 | AX113: 0 | AY113: 0
A114: 11 | AK114: =COUNTIF(E114:N114,"Yes") -> 0 | AL114: =COUNTIF(O114:X114,"Yes") -> 0 | AM114: =COUNTIF(Y114:AH114,"Yes") -> 0 | AN114: =SUM(AK114:AM114) -> 0 | AR114: 0 | AS114: 0 | AT114: 0 | AU114: 0 | AV114: 0 | AW114: 0 | AX114: 0 | AY114: 0 | BA114: =IF(AI114="YES",D114,"") ->  | BJ114: =IF(AN114>0,D114,"") -> 
A115: 12 | AK115: =COUNTIF(E115:N115,"Yes") -> 0 | AL115: =COUNTIF(O115:X115,"Yes") -> 0 | AM115: =COUNTIF(Y115:AH115,"Yes") -> 0 | AN115: =SUM(AK115:AM115) -> 0 | AR115: 0 | AS115: 0 | AT115: 0 | AU115: 0 | AV115: 0 | AW115: 0 | AX115: 0 | AY115: 0 | BA115: =IF(AI115="YES",D115,"") ->  | BJ115: =IF(AN115>0,D115,"") -> 
B118: Program #7
B119: Start Date | D119: Qtr | E119: Attendance | AN119: =IF(C120,((YEAR(C120)-YEAR($B$1))*12+MONTH(C120)-MONTH($B$1)+1),"") -> 
B120: Completion Date | D120: =IF(C120,INT((AN119+2)/3),"") ->  | E120: SS1 | F120: SS2 | G120: SS3 | H120: SS4 | I120: SS5 | J120: SS6 | K120: SS7 | L120: SS8 | M120: SS9 | N120: SS10 | O120: AC1 | P120: AC2 | Q120: AC3 | R120: AC4 | S120: AC5 | T120: AC6 | U120: AC7 | V120: AC8 | W120: AC9 | X120: AC10 | Y120: MR1 | Z120: MR2 | AA120: MR3 | AB120: MR4 | AC120: MR5 | AD120: MR6 | AE120: MR7 | AF120: MR8 | AG120: MR9 | AH120: MR10 | AK120: Program 7 Summary | AN120: Month | AP120: =COUNTIF(AN123:AN132,30) -> 0 | BN120: Orange Box indicates they are among 10 lowest agerage skills scores for this group.
B121: Group Environment | D121: SS choice | E121: =LEFT($AQ123,2) ->  | F121: =LEFT($AQ124,2) ->  | G121: =LEFT($AQ125,2) ->  | H121: =LEFT($AQ126,2) ->  | I121: =LEFT($AQ127,2) ->  | J121: =LEFT($AQ128,2) ->  | K121: =LEFT($AQ129,2) ->  | L121: =LEFT($AQ130,2) ->  | M121: =LEFT($AQ131,2) ->  | N121: =LEFT($AQ132,2) ->  | BN121: Skills in purple boxes are those recommended in ART manual.
B122: Participant Name | C122: Gender | AI122: Administrative Withdrawal? | AK122: SS Sessions Attended | AL122: AC Sessions Attended | AM122: MR Sessions Attended | AN122: TOTAL Sessions attended | AQ122: Skillstreaming Sessions | BI122: =D120 ->  | BN122: Mean Skill 01 | BO122: Mean Skill 02 | BP122: Mean Skill 03 | BQ122: Mean Skill 04 | BR122: Mean Skill 05 | BS122: Mean Skill 06 | BT122: Mean Skill 07 | BU122: Mean Skill 08 | BV122: Mean Skill 09 | BW122: Mean Skill 10 | BX122: Mean Skill 11 | BY122: Mean Skill 12 | BZ122: Mean Skill 13 | CA122: Mean Skill 14 | CB122: Mean Skill 15 | CC122: Mean Skill 16 | CD122: Mean Skill 17 | CE122: Mean Skill 18 | CF122: Mean Skill 19 | CG122: Mean Skill 20 | CH122: Mean Skill 21 | CI122: Mean Skill 22 | CJ122: Mean Skill 23 | CK122: Mean Skill 24 | CL122: Mean Skill 25 | CM122: Mean Skill 26 | CN122: Mean Skill 27 | CO122: Mean Skill 28 | CP122: Mean Skill 29 | CQ122: Mean Skill 30 | CR122: Mean Skill 31 | CS122: Mean Skill 32 | CT122: Mean Skill 33 | CU122: Mean Skill 34 | CV122: Mean Skill 35 | CW122: Mean Skill 36 | CX122: Mean Skill 37 | CY122: Mean Skill 38 | CZ122: Mean Skill 39 | DA122: Mean Skill 40 | DB122: Mean Skill 41 | DC122: Mean Skill 42 | DD122: Mean Skill 43 | DE122: Mean Skill 44 | DF122: Mean Skill 45 | DG122: Mean Skill 46 | DH122: Mean Skill 47 | DI122: Mean Skill 48 | DJ122: Mean Skill 49 | DK122: Mean Skill 50
A123: 1 | D123: =$D$120 ->  | AK123: =COUNTIF(E123:N123,"Yes") -> 0 | AL123: =COUNTIF(O123:X123,"Yes") -> 0 | AM123: =COUNTIF(Y123:AH123,"Yes") -> 0 | AN123: =SUM(AK123:AM123) -> 0 | AP123: SS1 | AR123: =IF(AND($D123=AR$6,$AN123>=$AU$3),1,0) -> 0 | AS123: =IF(AND($D123=AS$6,$AN123>=$AU$3),1,0) -> 0 | AT123: 0 | AU123: 0 | AV123: 0 | AW123: 0 | AX123: 0 | AY123: 0 | BM123: =SMALL(BN123:DK123,10) ->  | BN123: =AVERAGE('SS PrePost'!D76:D87) ->  | BO123: =AVERAGE('SS PrePost'!E76:E87) ->  | BP123: =AVERAGE('SS PrePost'!F76:F87) ->  | BQ123: =AVERAGE('SS PrePost'!G76:G87) ->  | BR123: =AVERAGE('SS PrePost'!H76:H87) ->  | BS123: =AVERAGE('SS PrePost'!I76:I87) ->  | BT123: =AVERAGE('SS PrePost'!J76:J87) ->  | BU123: =AVERAGE('SS PrePost'!K76:K87) ->  | BV123: =AVERAGE('SS PrePost'!L76:L87) ->  | BW123: =AVERAGE('SS PrePost'!M76:M87) ->  | BX123: =AVERAGE('SS PrePost'!N76:N87) ->  | BY123: =AVERAGE('SS PrePost'!O76:O87) ->  | BZ123: =AVERAGE('SS PrePost'!P76:P87) ->  | CA123: =AVERAGE('SS PrePost'!Q76:Q87) ->  | CB123: =AVERAGE('SS PrePost'!R76:R87) ->  | CC123: =AVERAGE('SS PrePost'!S76:S87) ->  | CD123: =AVERAGE('SS PrePost'!T76:T87) ->  | CE123: =AVERAGE('SS PrePost'!U76:U87) ->  | CF123: =AVERAGE('SS PrePost'!V76:V87) ->  | CG123: =AVERAGE('SS PrePost'!W76:W87) ->  | CH123: =AVERAGE('SS PrePost'!X76:X87) ->  | CI123: =AVERAGE('SS PrePost'!Y76:Y87) ->  | CJ123: =AVERAGE('SS PrePost'!Z76:Z87) ->  | CK123: =AVERAGE('SS PrePost'!AA76:AA87) ->  | CL123: =AVERAGE('SS PrePost'!AB76:AB87) ->  | CM123: =AVERAGE('SS PrePost'!AC76:AC87) ->  | CN123: =AVERAGE('SS PrePost'!AD76:AD87) ->  | CO123: =AVERAGE('SS PrePost'!AE76:AE87) ->  | CP123: =AVERAGE('SS PrePost'!AF76:AF87) ->  | CQ123: =AVERAGE('SS PrePost'!AG76:AG87) ->  | CR123: =AVERAGE('SS PrePost'!AH76:AH87) ->  | CS123: =AVERAGE('SS PrePost'!AI76:AI87) ->  | CT123: =AVERAGE('SS PrePost'!AJ76:AJ87) ->  | CU123: =AVERAGE('SS PrePost'!AK76:AK87) ->  | CV123: =AVERAGE('SS PrePost'!AL76:AL87) ->  | CW123: =AVERAGE('SS PrePost'!AM76:AM87) ->  | CX123: =AVERAGE('SS PrePost'!AN76:AN87) ->  | CY123: =AVERAGE('SS PrePost'!AO76:AO87) ->  | CZ123: =AVERAGE('SS PrePost'!AP76:AP87) ->  | DA123: =AVERAGE('SS PrePost'!AQ76:AQ87) ->  | DB123: =AVERAGE('SS PrePost'!AR76:AR87) ->  | DC123: =AVERAGE('SS PrePost'!AS76:AS87) ->  | DD123: =AVERAGE('SS PrePost'!AT76:AT87) ->  | DE123: =AVERAGE('SS PrePost'!AU76:AU87) ->  | DF123: =AVERAGE('SS PrePost'!AV76:AV87) ->  | DG123: =AVERAGE('SS PrePost'!AW76:AW87) ->  | DH123: =AVERAGE('SS PrePost'!AX76:AX87) ->  | DI123: =AVERAGE('SS PrePost'!AY76:AY87) ->  | DJ123: =AVERAGE('SS PrePost'!AZ76:AZ87) ->  | DK123: =AVERAGE('SS PrePost'!BA76:BA87) -> 
A124: 2 | D124: =$D$120 ->  | AK124: 0 | AL124: 0 | AM124: 0 | AN124: =SUM(AK124:AM124) -> 0 | AP124: SS2 | AR124: =IF(AND($D124=AR$6,$AN124>=$AU$3),1,0) -> 0 | AS124: 0 | AT124: 0 | AU124: 0 | AV124: 0 | AW124: 0 | AX124: 0 | AY124: 0
A125: 3 | AK125: 0 | AL125: 0 | AM125: 0 | AN125: 0 | AP125: SS3 | AR125: 0 | AS125: 0 | AT125: 0 | AU125: 0 | AV125: 0 | AW125: 0 | AX125: 0 | AY125: 0
A126: 4 | AK126: 0 | AL126: 0 | AM126: 0 | AN126: 0 | AP126: SS4 | AR126: 0 | AS126: 0 | AT126: 0 | AU126: 0 | AV126: 0 | AW126: 0 | AX126: 0 | AY126: 0
A127: 5 | AK127: 0 | AL127: 0 | AM127: 0 | AN127: 0 | AP127: SS5 | AR127: 0 | AS127: 0 | AT127: 0 | AU127: 0 | AV127: 0 | AW127: 0 | AX127: 0 | AY127: 0
A128: 6 | AK128: 0 | AL128: 0 | AM128: 0 | AN128: 0 | AP128: SS6 | AR128: 0 | AS128: 0 | AT128: 0 | AU128: 0 | AV128: 0 | AW128: 0 | AX128: 0 | AY128: 0
A129: 7 | AK129: 0 | AL129: 0 | AM129: 0 | AN129: 0 | AP129: SS7 | AR129: 0 | AS129: 0 | AT129: 0 | AU129: 0 | AV129: 0 | AW129: 0 | AX129: 0 | AY129: 0
A130: 8 | AK130: 0 | AL130: 0 | AM130: 0 | AN130: 0 | AP130: SS8 | AR130: 0 | AS130: 0 | AT130: 0 | AU130: 0 | AV130: 0 | AW130: 0 | AX130: 0 | AY130: 0
A131: 9 | AK131: 0 | AL131: 0 | AM131: 0 | AN131: 0 | AP131: SS9 | AR131: 0 | AS131: 0 | AT131: 0 | AU131: 0 | AV131: 0 | AW131: 0 | AX131: 0 | AY131: 0
A132: 10 | AK132: =COUNTIF(E132:N132,"Yes") -> 0 | AL132: =COUNTIF(O132:X132,"Yes") -> 0 | AM132: =COUNTIF(Y132:AH132,"Yes") -> 0 | AN132: =SUM(AK132:AM132) -> 0 | AP132: SS10 | AR132: 0 | AS132: 0 | AT132: 0 | AU132: 0 | AV132: 0 | AW132: 0 | AX132: 0 | AY132: 0
A133: 11 | AK133: =COUNTIF(E133:N133,"Yes") -> 0 | AL133: =COUNTIF(O133:X133,"Yes") -> 0 | AM133: =COUNTIF(Y133:AH133,"Yes") -> 0 | AN133: =SUM(AK133:AM133) -> 0 | AR133: 0 | AS133: 0 | AT133: 0 | AU133: 0 | AV133: 0 | AW133: 0 | AX133: 0 | AY133: 0 | BA133: =IF(AI133="YES",D133,"") ->  | BJ133: =IF(AN133>0,D133,"") -> 
A134: 12 | AK134: =COUNTIF(E134:N134,"Yes") -> 0 | AL134: =COUNTIF(O134:X134,"Yes") -> 0 | AM134: =COUNTIF(Y134:AH134,"Yes") -> 0 | AN134: =SUM(AK134:AM134) -> 0 | AR134: 0 | AS134: 0 | AT134: 0 | AU134: 0 | AV134: 0 | AW134: 0 | AX134: 0 | AY134: 0 | BA134: =IF(AI134="YES",D134,"") ->  | BJ134: =IF(AN134>0,D134,"") -> 
B137: Program #8
B138: Start Date | D138: Qtr | E138: Attendance | AN138: =IF(C139,((YEAR(C139)-YEAR($B$1))*12+MONTH(C139)-MONTH($B$1)+1),"") -> 
B139: Completion Date | D139: =IF(C139,INT((AN138+2)/3),"") ->  | E139: SS1 | F139: SS2 | G139: SS3 | H139: SS4 | I139: SS5 | J139: SS6 | K139: SS7 | L139: SS8 | M139: SS9 | N139: SS10 | O139: AC1 | P139: AC2 | Q139: AC3 | R139: AC4 | S139: AC5 | T139: AC6 | U139: AC7 | V139: AC8 | W139: AC9 | X139: AC10 | Y139: MR1 | Z139: MR2 | AA139: MR3 | AB139: MR4 | AC139: MR5 | AD139: MR6 | AE139: MR7 | AF139: MR8 | AG139: MR9 | AH139: MR10 | AK139: Program 8 Summary | AN139: Month | AP139: =COUNTIF(AN142:AN151,30) -> 0 | BN139: Orange Box indicates they are among 10 lowest agerage skills scores for this group.
B140: Group Environment | D140: SS Choice | E140: =LEFT($AQ142,2) ->  | F140: =LEFT($AQ143,2) ->  | G140: =LEFT($AQ144,2) ->  | H140: =LEFT($AQ145,2) ->  | I140: =LEFT($AQ146,2) ->  | J140: =LEFT($AQ147,2) ->  | K140: =LEFT($AQ148,2) ->  | L140: =LEFT($AQ149,2) ->  | M140: =LEFT($AQ150,2) ->  | N140: =LEFT($AQ151,2) ->  | BN140: Skills in purple boxes are those recommended in ART manual.
B141: Participant Name | C141: Gender | AI141: Administrative Withdrawal? | AK141: SS Sessions Attended | AL141: AC Sessions Attended | AM141: MR Sessions Attended | AN141: TOTAL Sessions attended | AQ141: Skillstreaming Sessions | BI141: =D139 ->  | BN141: Mean Skill 01 | BO141: Mean Skill 02 | BP141: Mean Skill 03 | BQ141: Mean Skill 04 | BR141: Mean Skill 05 | BS141: Mean Skill 06 | BT141: Mean Skill 07 | BU141: Mean Skill 08 | BV141: Mean Skill 09 | BW141: Mean Skill 10 | BX141: Mean Skill 11 | BY141: Mean Skill 12 | BZ141: Mean Skill 13 | CA141: Mean Skill 14 | CB141: Mean Skill 15 | CC141: Mean Skill 16 | CD141: Mean Skill 17 | CE141: Mean Skill 18 | CF141: Mean Skill 19 | CG141: Mean Skill 20 | CH141: Mean Skill 21 | CI141: Mean Skill 22 | CJ141: Mean Skill 23 | CK141: Mean Skill 24 | CL141: Mean Skill 25 | CM141: Mean Skill 26 | CN141: Mean Skill 27 | CO141: Mean Skill 28 | CP141: Mean Skill 29 | CQ141: Mean Skill 30 | CR141: Mean Skill 31 | CS141: Mean Skill 32 | CT141: Mean Skill 33 | CU141: Mean Skill 34 | CV141: Mean Skill 35 | CW141: Mean Skill 36 | CX141: Mean Skill 37 | CY141: Mean Skill 38 | CZ141: Mean Skill 39 | DA141: Mean Skill 40 | DB141: Mean Skill 41 | DC141: Mean Skill 42 | DD141: Mean Skill 43 | DE141: Mean Skill 44 | DF141: Mean Skill 45 | DG141: Mean Skill 46 | DH141: Mean Skill 47 | DI141: Mean Skill 48 | DJ141: Mean Skill 49 | DK141: Mean Skill 50
A142: 1 | D142: =$D$139 ->  | AK142: =COUNTIF(E142:N142,"Yes") -> 0 | AL142: =COUNTIF(O142:X142,"Yes") -> 0 | AM142: =COUNTIF(Y142:AH142,"Yes") -> 0 | AN142: =SUM(AK142:AM142) -> 0 | AP142: SS1 | AR142: =IF(AND($D142=AR$6,$AN142>=$AU$3),1,0) -> 0 | AS142: =IF(AND($D142=AS$6,$AN142>=$AU$3),1,0) -> 0 | AT142: 0 | AU142: 0 | AV142: 0 | AW142: 0 | AX142: 0 | AY142: 0 | BM142: =SMALL(BN142:DK142,10) ->  | BN142: =AVERAGE('SS PrePost'!D88:D99) ->  | BO142: =AVERAGE('SS PrePost'!E88:E99) ->  | BP142: =AVERAGE('SS PrePost'!F88:F99) ->  | BQ142: =AVERAGE('SS PrePost'!G88:G99) ->  | BR142: =AVERAGE('SS PrePost'!H88:H99) ->  | BS142: =AVERAGE('SS PrePost'!I88:I99) ->  | BT142: =AVERAGE('SS PrePost'!J88:J99) ->  | BU142: =AVERAGE('SS PrePost'!K88:K99) ->  | BV142: =AVERAGE('SS PrePost'!L88:L99) ->  | BW142: =AVERAGE('SS PrePost'!M88:M99) ->  | BX142: =AVERAGE('SS PrePost'!N88:N99) ->  | BY142: =AVERAGE('SS PrePost'!O88:O99) ->  | BZ142: =AVERAGE('SS PrePost'!P88:P99) ->  | CA142: =AVERAGE('SS PrePost'!Q88:Q99) ->  | CB142: =AVERAGE('SS PrePost'!R88:R99) ->  | CC142: =AVERAGE('SS PrePost'!S88:S99) ->  | CD142: =AVERAGE('SS PrePost'!T88:T99) ->  | CE142: =AVERAGE('SS PrePost'!U88:U99) ->  | CF142: =AVERAGE('SS PrePost'!V88:V99) ->  | CG142: =AVERAGE('SS PrePost'!W88:W99) ->  | CH142: =AVERAGE('SS PrePost'!X88:X99) ->  | CI142: =AVERAGE('SS PrePost'!Y88:Y99) ->  | CJ142: =AVERAGE('SS PrePost'!Z88:Z99) ->  | CK142: =AVERAGE('SS PrePost'!AA88:AA99) ->  | CL142: =AVERAGE('SS PrePost'!AB88:AB99) ->  | CM142: =AVERAGE('SS PrePost'!AC88:AC99) ->  | CN142: =AVERAGE('SS PrePost'!AD88:AD99) ->  | CO142: =AVERAGE('SS PrePost'!AE88:AE99) ->  | CP142: =AVERAGE('SS PrePost'!AF88:AF99) ->  | CQ142: =AVERAGE('SS PrePost'!AG88:AG99) ->  | CR142: =AVERAGE('SS PrePost'!AH88:AH99) ->  | CS142: =AVERAGE('SS PrePost'!AI88:AI99) ->  | CT142: =AVERAGE('SS PrePost'!AJ88:AJ99) ->  | CU142: =AVERAGE('SS PrePost'!AK88:AK99) ->  | CV142: =AVERAGE('SS PrePost'!AL88:AL99) ->  | CW142: =AVERAGE('SS PrePost'!AM88:AM99) ->  | CX142: =AVERAGE('SS PrePost'!AN88:AN99) ->  | CY142: =AVERAGE('SS PrePost'!AO88:AO99) ->  | CZ142: =AVERAGE('SS PrePost'!AP88:AP99) ->  | DA142: =AVERAGE('SS PrePost'!AQ88:AQ99) ->  | DB142: =AVERAGE('SS PrePost'!AR88:AR99) ->  | DC142: =AVERAGE('SS PrePost'!AS88:AS99) ->  | DD142: =AVERAGE('SS PrePost'!AT88:AT99) ->  | DE142: =AVERAGE('SS PrePost'!AU88:AU99) ->  | DF142: =AVERAGE('SS PrePost'!AV88:AV99) ->  | DG142: =AVERAGE('SS PrePost'!AW88:AW99) ->  | DH142: =AVERAGE('SS PrePost'!AX88:AX99) ->  | DI142: =AVERAGE('SS PrePost'!AY88:AY99) ->  | DJ142: =AVERAGE('SS PrePost'!AZ88:AZ99) ->  | DK142: =AVERAGE('SS PrePost'!BA88:BA99) -> 
A143: 2 | D143: =$D$139 ->  | AK143: 0 | AL143: 0 | AM143: 0 | AN143: =SUM(AK143:AM143) -> 0 | AP143: SS2 | AR143: =IF(AND($D143=AR$6,$AN143>=$AU$3),1,0) -> 0 | AS143: 0 | AT143: 0 | AU143: 0 | AV143: 0 | AW143: 0 | AX143: 0 | AY143: 0
A144: 3 | AK144: 0 | AL144: 0 | AM144: 0 | AN144: 0 | AP144: SS3 | AR144: 0 | AS144: 0 | AT144: 0 | AU144: 0 | AV144: 0 | AW144: 0 | AX144: 0 | AY144: 0
A145: 4 | AK145: 0 | AL145: 0 | AM145: 0 | AN145: 0 | AP145: SS4 | AR145: 0 | AS145: 0 | AT145: 0 | AU145: 0 | AV145: 0 | AW145: 0 | AX145: 0 | AY145: 0
A146: 5 | AK146: 0 | AL146: 0 | AM146: 0 | AN146: 0 | AP146: SS5 | AR146: 0 | AS146: 0 | AT146: 0 | AU146: 0 | AV146: 0 | AW146: 0 | AX146: 0 | AY146: 0
A147: 6 | AK147: 0 | AL147: 0 | AM147: 0 | AN147: 0 | AP147: SS6 | AR147: 0 | AS147: 0 | AT147: 0 | AU147: 0 | AV147: 0 | AW147: 0 | AX147: 0 | AY147: 0
A148: 7 | AK148: 0 | AL148: 0 | AM148: 0 | AN148: 0 | AP148: SS7 | AR148: 0 | AS148: 0 | AT148: 0 | AU148: 0 | AV148: 0 | AW148: 0 | AX148: 0 | AY148: 0
A149: 8 | AK149: 0 | AL149: 0 | AM149: 0 | AN149: 0 | AP149: SS8 | AR149: 0 | AS149: 0 | AT149: 0 | AU149: 0 | AV149: 0 | AW149: 0 | AX149: 0 | AY149: 0
A150: 9 | AK150: 0 | AL150: 0 | AM150: 0 | AN150: 0 | AP150: SS9 | AR150: 0 | AS150: 0 | AT150: 0 | AU150: 0 | AV150: 0 | AW150: 0 | AX150: 0 | AY150: 0
A151: 10 | AK151: =COUNTIF(E151:N151,"Yes") -> 0 | AL151: =COUNTIF(O151:X151,"Yes") -> 0 | AM151: =COUNTIF(Y151:AH151,"Yes") -> 0 | AN151: =SUM(AK151:AM151) -> 0 | AP151: SS10 | AR151: 0 | AS151: 0 | AT151: 0 | AU151: 0 | AV151: 0 | AW151: 0 | AX151: 0 | AY151: 0
A152: 11 | AK152: =COUNTIF(E152:N152,"Yes") -> 0 | AL152: =COUNTIF(O152:X152,"Yes") -> 0 | AM152: =COUNTIF(Y152:AH152,"Yes") -> 0 | AN152: =SUM(AK152:AM152) -> 0 | AR152: 0 | AS152: 0 | AT152: 0 | AU152: 0 | AV152: 0 | AW152: 0 | AX152: 0 | AY152: 0 | BA152: =IF(AI152="YES",D152,"") ->  | BJ152: =IF(AN152>0,D152,"") -> 
A153: 12 | AK153: =COUNTIF(E153:N153,"Yes") -> 0 | AL153: =COUNTIF(O153:X153,"Yes") -> 0 | AM153: =COUNTIF(Y153:AH153,"Yes") -> 0 | AN153: =SUM(AK153:AM153) -> 0 | AR153: 0 | AS153: 0 | AT153: 0 | AU153: 0 | AV153: 0 | AW153: 0 | AX153: 0 | AY153: 0 | BA153: =IF(AI153="YES",D153,"") ->  | BJ153: =IF(AN153>0,D153,"") -> 
BA154: =IF(AI154="YES",D154,"") -> 
B156: Program #9
B157: Start Date | D157: Qtr | E157: Attendance | AN157: =IF(C158,((YEAR(C158)-YEAR($B$1))*12+MONTH(C158)-MONTH($B$1)+1),"") -> 
B158: Completion Date | D158: =IF(C158,INT((AN157+2)/3),"") ->  | E158: SS1 | F158: SS2 | G158: SS3 | H158: SS4 | I158: SS5 | J158: SS6 | K158: SS7 | L158: SS8 | M158: SS9 | N158: SS10 | O158: AC1 | P158: AC2 | Q158: AC3 | R158: AC4 | S158: AC5 | T158: AC6 | U158: AC7 | V158: AC8 | W158: AC9 | X158: AC10 | Y158: MR1 | Z158: MR2 | AA158: MR3 | AB158: MR4 | AC158: MR5 | AD158: MR6 | AE158: MR7 | AF158: MR8 | AG158: MR9 | AH158: MR10 | AK158: Program 9 Summary | AN158: Month | AP158: =COUNTIF(AN161:AN170,30) -> 0 | BN158: Orange Box indicates they are among 10 lowest agerage skills scores for this group.
B159: Group Environment | D159: SS choice | E159: =LEFT($AQ161,2) ->  | F159: =LEFT($AQ162,2) ->  | G159: =LEFT($AQ163,2) ->  | H159: =LEFT($AQ164,2) ->  | I159: =LEFT($AQ165,2) ->  | J159: =LEFT($AQ166,2) ->  | K159: =LEFT($AQ167,2) ->  | L159: =LEFT($AQ168,2) ->  | M159: =LEFT($AQ169,2) ->  | N159: =LEFT($AQ170,2) ->  | BN159: Skills in purple boxes are those recommended in ART manual.
B160: Participant Name | C160: Gender | AI160: Administrative Withdrawal? | AK160: SS Sessions Attended | AL160: AC Sessions Attended | AM160: MR Sessions Attended | AN160: TOTAL Sessions attended | AQ160: Skillstreaming Sessions | BI160: =D158 ->  | BN160: Mean Skill 01 | BO160: Mean Skill 02 | BP160: Mean Skill 03 | BQ160: Mean Skill 04 | BR160: Mean Skill 05 | BS160: Mean Skill 06 | BT160: Mean Skill 07 | BU160: Mean Skill 08 | BV160: Mean Skill 09 | BW160: Mean Skill 10 | BX160: Mean Skill 11 | BY160: Mean Skill 12 | BZ160: Mean Skill 13 | CA160: Mean Skill 14 | CB160: Mean Skill 15 | CC160: Mean Skill 16 | CD160: Mean Skill 17 | CE160: Mean Skill 18 | CF160: Mean Skill 19 | CG160: Mean Skill 20 | CH160: Mean Skill 21 | CI160: Mean Skill 22 | CJ160: Mean Skill 23 | CK160: Mean Skill 24 | CL160: Mean Skill 25 | CM160: Mean Skill 26 | CN160: Mean Skill 27 | CO160: Mean Skill 28 | CP160: Mean Skill 29 | CQ160: Mean Skill 30 | CR160: Mean Skill 31 | CS160: Mean Skill 32 | CT160: Mean Skill 33 | CU160: Mean Skill 34 | CV160: Mean Skill 35 | CW160: Mean Skill 36 | CX160: Mean Skill 37 | CY160: Mean Skill 38 | CZ160: Mean Skill 39 | DA160: Mean Skill 40 | DB160: Mean Skill 41 | DC160: Mean Skill 42 | DD160: Mean Skill 43 | DE160: Mean Skill 44 | DF160: Mean Skill 45 | DG160: Mean Skill 46 | DH160: Mean Skill 47 | DI160: Mean Skill 48 | DJ160: Mean Skill 49 | DK160: Mean Skill 50
A161: 1 | D161: =$D$158 ->  | AK161: =COUNTIF(E161:N161,"Yes") -> 0 | AL161: =COUNTIF(O161:X161,"Yes") -> 0 | AM161: =COUNTIF(Y161:AH161,"Yes") -> 0 | AN161: =SUM(AK161:AM161) -> 0 | AP161: SS1 | AR161: =IF(AND($D161=AR$6,$AN161>=$AU$3),1,0) -> 0 | AS161: =IF(AND($D161=AS$6,$AN161>=$AU$3),1,0) -> 0 | AT161: 0 | AU161: 0 | AV161: 0 | AW161: 0 | AX161: 0 | AY161: 0 | BJ161: =IF(AN161>0,D161,"") ->  | BM161: =SMALL(BN161:DK161,10) ->  | BN161: =AVERAGE('SS PrePost'!D100:D111) ->  | BO161: =AVERAGE('SS PrePost'!E100:E111) ->  | BP161: =AVERAGE('SS PrePost'!F100:F111) ->  | BQ161: =AVERAGE('SS PrePost'!G100:G111) ->  | BR161: =AVERAGE('SS PrePost'!H100:H111) ->  | BS161: =AVERAGE('SS PrePost'!I100:I111) ->  | BT161: =AVERAGE('SS PrePost'!J100:J111) ->  | BU161: =AVERAGE('SS PrePost'!K100:K111) ->  | BV161: =AVERAGE('SS PrePost'!L100:L111) ->  | BW161: =AVERAGE('SS PrePost'!M100:M111) ->  | BX161: =AVERAGE('SS PrePost'!N100:N111) ->  | BY161: =AVERAGE('SS PrePost'!O100:O111) ->  | BZ161: =AVERAGE('SS PrePost'!P100:P111) ->  | CA161: =AVERAGE('SS PrePost'!Q100:Q111) ->  | CB161: =AVERAGE('SS PrePost'!R100:R111) ->  | CC161: =AVERAGE('SS PrePost'!S100:S111) ->  | CD161: =AVERAGE('SS PrePost'!T100:T111) ->  | CE161: =AVERAGE('SS PrePost'!U100:U111) ->  | CF161: =AVERAGE('SS PrePost'!V100:V111) ->  | CG161: =AVERAGE('SS PrePost'!W100:W111) ->  | CH161: =AVERAGE('SS PrePost'!X100:X111) ->  | CI161: =AVERAGE('SS PrePost'!Y100:Y111) ->  | CJ161: =AVERAGE('SS PrePost'!Z100:Z111) ->  | CK161: =AVERAGE('SS PrePost'!AA100:AA111) ->  | CL161: =AVERAGE('SS PrePost'!AB100:AB111) ->  | CM161: =AVERAGE('SS PrePost'!AC100:AC111) ->  | CN161: =AVERAGE('SS PrePost'!AD100:AD111) ->  | CO161: =AVERAGE('SS PrePost'!AE100:AE111) ->  | CP161: =AVERAGE('SS PrePost'!AF100:AF111) ->  | CQ161: =AVERAGE('SS PrePost'!AG100:AG111) ->  | CR161: =AVERAGE('SS PrePost'!AH100:AH111) ->  | CS161: =AVERAGE('SS PrePost'!AI100:AI111) ->  | CT161: =AVERAGE('SS PrePost'!AJ100:AJ111) ->  | CU161: =AVERAGE('SS PrePost'!AK100:AK111) ->  | CV161: =AVERAGE('SS PrePost'!AL100:AL111) ->  | CW161: =AVERAGE('SS PrePost'!AM100:AM111) ->  | CX161: =AVERAGE('SS PrePost'!AN100:AN111) ->  | CY161: =AVERAGE('SS PrePost'!AO100:AO111) ->  | CZ161: =AVERAGE('SS PrePost'!AP100:AP111) ->  | DA161: =AVERAGE('SS PrePost'!AQ100:AQ111) ->  | DB161: =AVERAGE('SS PrePost'!AR100:AR111) ->  | DC161: =AVERAGE('SS PrePost'!AS100:AS111) ->  | DD161: =AVERAGE('SS PrePost'!AT100:AT111) ->  | DE161: =AVERAGE('SS PrePost'!AU100:AU111) ->  | DF161: =AVERAGE('SS PrePost'!AV100:AV111) ->  | DG161: =AVERAGE('SS PrePost'!AW100:AW111) ->  | DH161: =AVERAGE('SS PrePost'!AX100:AX111) ->  | DI161: =AVERAGE('SS PrePost'!AY100:AY111) ->  | DJ161: =AVERAGE('SS PrePost'!AZ100:AZ111) ->  | DK161: =AVERAGE('SS PrePost'!BA100:BA111) -> 
A162: 2 | D162: =$D$158 ->  | AK162: 0 | AL162: 0 | AM162: 0 | AN162: =SUM(AK162:AM162) -> 0 | AP162: SS2 | AR162: =IF(AND($D162=AR$6,$AN162>=$AU$3),1,0) -> 0 | AS162: 0 | AT162: 0 | AU162: 0 | AV162: 0 | AW162: 0 | AX162: 0 | AY162: 0
A163: 3 | AK163: 0 | AL163: 0 | AM163: 0 | AN163: 0 | AP163: SS3 | AR163: 0 | AS163: 0 | AT163: 0 | AU163: 0 | AV163: 0 | AW163: 0 | AX163: 0 | AY163: 0
A164: 4 | AK164: 0 | AL164: 0 | AM164: 0 | AN164: 0 | AP164: SS4 | AR164: 0 | AS164: 0 | AT164: 0 | AU164: 0 | AV164: 0 | AW164: 0 | AX164: 0 | AY164: 0
A165: 5 | AK165: 0 | AL165: 0 | AM165: 0 | AN165: 0 | AP165: SS5 | AR165: 0 | AS165: 0 | AT165: 0 | AU165: 0 | AV165: 0 | AW165: 0 | AX165: 0 | AY165: 0
A166: 6 | AK166: 0 | AL166: 0 | AM166: 0 | AN166: 0 | AP166: SS6 | AR166: 0 | AS166: 0 | AT166: 0 | AU166: 0 | AV166: 0 | AW166: 0 | AX166: 0 | AY166: 0
A167: 7 | AK167: 0 | AL167: 0 | AM167: 0 | AN167: 0 | AP167: SS7 | AR167: 0 | AS167: 0 | AT167: 0 | AU167: 0 | AV167: 0 | AW167: 0 | AX167: 0 | AY167: 0
A168: 8 | AK168: 0 | AL168: 0 | AM168: 0 | AN168: 0 | AP168: SS8 | AR168: 0 | AS168: 0 | AT168: 0 | AU168: 0 | AV168: 0 | AW168: 0 | AX168: 0 | AY168: 0
A169: 9 | AK169: 0 | AL169: 0 | AM169: 0 | AN169: 0 | AP169: SS9 | AR169: 0 | AS169: 0 | AT169: 0 | AU169: 0 | AV169: 0 | AW169: 0 | AX169: 0 | AY169: 0
A170: 10 | AK170: =COUNTIF(E170:N170,"Yes") -> 0 | AL170: =COUNTIF(O170:X170,"Yes") -> 0 | AM170: =COUNTIF(Y170:AH170,"Yes") -> 0 | AN170: =SUM(AK170:AM170) -> 0 | AP170: SS10 | AR170: 0 | AS170: 0 | AT170: 0 | AU170: 0 | AV170: 0 | AW170: 0 | AX170: 0 | AY170: 0
A171: 11 | AK171: =COUNTIF(E171:N171,"Yes") -> 0 | AL171: =COUNTIF(O171:X171,"Yes") -> 0 | AM171: =COUNTIF(Y171:AH171,"Yes") -> 0 | AN171: =SUM(AK171:AM171) -> 0 | AR171: 0 | AS171: 0 | AT171: 0 | AU171: 0 | AV171: 0 | AW171: 0 | AX171: 0 | AY171: 0 | BA171: =IF(AI171="YES",D171,"") ->  | BJ171: =IF(AN171>0,D171,"") -> 
A172: 12 | AK172: =COUNTIF(E172:N172,"Yes") -> 0 | AL172: =COUNTIF(O172:X172,"Yes") -> 0 | AM172: =COUNTIF(Y172:AH172,"Yes") -> 0 | AN172: =SUM(AK172:AM172) -> 0 | AR172: 0 | AS172: 0 | AT172: 0 | AU172: 0 | AV172: 0 | AW172: 0 | AX172: 0 | AY172: 0 | BA172: =IF(AI172="YES",D172,"") ->  | BJ172: =IF(AN172>0,D172,"") -> 
B175: Program #10
B176: Start Date | D176: Qtr | E176: Attendance | AN176: =IF(C177,((YEAR(C177)-YEAR($B$1))*12+MONTH(C177)-MONTH($B$1)+1),"") -> 
B177: Completion Date | D177: =IF(C177,INT((AN176+2)/3),"") ->  | E177: SS1 | F177: SS2 | G177: SS3 | H177: SS4 | I177: SS5 | J177: SS6 | K177: SS7 | L177: SS8 | M177: SS9 | N177: SS10 | O177: AC1 | P177: AC2 | Q177: AC3 | R177: AC4 | S177: AC5 | T177: AC6 | U177: AC7 | V177: AC8 | W177: AC9 | X177: AC10 | Y177: MR1 | Z177: MR2 | AA177: MR3 | AB177: MR4 | AC177: MR5 | AD177: MR6 | AE177: MR7 | AF177: MR8 | AG177: MR9 | AH177: MR10 | AK177: Program 10 Summary | AN177: Month | AP177: =COUNTIF(AN180:AN189,30) -> 0 | BN177: Orange Box indicates they are among 10 lowest agerage skills scores for this group.
B178: Group Environment | D178: SS choice | E178: =LEFT($AQ180,2) ->  | F178: =LEFT($AQ181,2) ->  | G178: =LEFT($AQ182,2) ->  | H178: =LEFT($AQ183,2) ->  | I178: =LEFT($AQ184,2) ->  | J178: =LEFT($AQ185,2) ->  | K178: =LEFT($AQ186,2) ->  | L178: =LEFT($AQ187,2) ->  | M178: =LEFT($AQ188,2) ->  | N178: =LEFT($AQ189,2) ->  | BN178: Skills in purple boxes are those recommended in ART manual.
B179: Participant Name | C179: Gender | AI179: Administrative Withdrawal? | AK179: SS Sessions Attended | AL179: AC Sessions Attended | AM179: MR Sessions Attended | AN179: TOTAL Sessions attended | AQ179: Skillstreaming Sessions | BI179: =D177 ->  | BN179: Mean Skill 01 | BO179: Mean Skill 02 | BP179: Mean Skill 03 | BQ179: Mean Skill 04 | BR179: Mean Skill 05 | BS179: Mean Skill 06 | BT179: Mean Skill 07 | BU179: Mean Skill 08 | BV179: Mean Skill 09 | BW179: Mean Skill 10 | BX179: Mean Skill 11 | BY179: Mean Skill 12 | BZ179: Mean Skill 13 | CA179: Mean Skill 14 | CB179: Mean Skill 15 | CC179: Mean Skill 16 | CD179: Mean Skill 17 | CE179: Mean Skill 18 | CF179: Mean Skill 19 | CG179: Mean Skill 20 | CH179: Mean Skill 21 | CI179: Mean Skill 22 | CJ179: Mean Skill 23 | CK179: Mean Skill 24 | CL179: Mean Skill 25 | CM179: Mean Skill 26 | CN179: Mean Skill 27 | CO179: Mean Skill 28 | CP179: Mean Skill 29 | CQ179: Mean Skill 30 | CR179: Mean Skill 31 | CS179: Mean Skill 32 | CT179: Mean Skill 33 | CU179: Mean Skill 34 | CV179: Mean Skill 35 | CW179: Mean Skill 36 | CX179: Mean Skill 37 | CY179: Mean Skill 38 | CZ179: Mean Skill 39 | DA179: Mean Skill 40 | DB179: Mean Skill 41 | DC179: Mean Skill 42 | DD179: Mean Skill 43 | DE179: Mean Skill 44 | DF179: Mean Skill 45 | DG179: Mean Skill 46 | DH179: Mean Skill 47 | DI179: Mean Skill 48 | DJ179: Mean Skill 49 | DK179: Mean Skill 50
A180: 1 | D180: =$D$177 ->  | AK180: =COUNTIF(E180:N180,"Yes") -> 0 | AL180: =COUNTIF(O180:X180,"Yes") -> 0 | AM180: =COUNTIF(Y180:AH180,"Yes") -> 0 | AN180: =SUM(AK180:AM180) -> 0 | AP180: SS1 | AR180: =IF(AND($D180=AR$6,$AN180>=$AU$3),1,0) -> 0 | AS180: =IF(AND($D180=AS$6,$AN180>=$AU$3),1,0) -> 0 | AT180: 0 | AU180: 0 | AV180: 0 | AW180: 0 | AX180: 0 | AY180: 0 | BM180: =SMALL(BN180:DK180,10) ->  | BN180: =AVERAGE('SS PrePost'!D112:D123) ->  | BO180: =AVERAGE('SS PrePost'!E112:E123) ->  | BP180: =AVERAGE('SS PrePost'!F112:F123) ->  | BQ180: =AVERAGE('SS PrePost'!G112:G123) ->  | BR180: =AVERAGE('SS PrePost'!H112:H123) ->  | BS180: =AVERAGE('SS PrePost'!I112:I123) ->  | BT180: =AVERAGE('SS PrePost'!J112:J123) ->  | BU180: =AVERAGE('SS PrePost'!K112:K123) ->  | BV180: =AVERAGE('SS PrePost'!L112:L123) ->  | BW180: =AVERAGE('SS PrePost'!M112:M123) ->  | BX180: =AVERAGE('SS PrePost'!N112:N123) ->  | BY180: =AVERAGE('SS PrePost'!O112:O123) ->  | BZ180: =AVERAGE('SS PrePost'!P112:P123) ->  | CA180: =AVERAGE('SS PrePost'!Q112:Q123) ->  | CB180: =AVERAGE('SS PrePost'!R112:R123) ->  | CC180: =AVERAGE('SS PrePost'!S112:S123) ->  | CD180: =AVERAGE('SS PrePost'!T112:T123) ->  | CE180: =AVERAGE('SS PrePost'!U112:U123) ->  | CF180: =AVERAGE('SS PrePost'!V112:V123) ->  | CG180: =AVERAGE('SS PrePost'!W112:W123) ->  | CH180: =AVERAGE('SS PrePost'!X112:X123) ->  | CI180: =AVERAGE('SS PrePost'!Y112:Y123) ->  | CJ180: =AVERAGE('SS PrePost'!Z112:Z123) ->  | CK180: =AVERAGE('SS PrePost'!AA112:AA123) ->  | CL180: =AVERAGE('SS PrePost'!AB112:AB123) ->  | CM180: =AVERAGE('SS PrePost'!AC112:AC123) ->  | CN180: =AVERAGE('SS PrePost'!AD112:AD123) ->  | CO180: =AVERAGE('SS PrePost'!AE112:AE123) ->  | CP180: =AVERAGE('SS PrePost'!AF112:AF123) ->  | CQ180: =AVERAGE('SS PrePost'!AG112:AG123) ->  | CR180: =AVERAGE('SS PrePost'!AH112:AH123) ->  | CS180: =AVERAGE('SS PrePost'!AI112:AI123) ->  | CT180: =AVERAGE('SS PrePost'!AJ112:AJ123) ->  | CU180: =AVERAGE('SS PrePost'!AK112:AK123) ->  | CV180: =AVERAGE('SS PrePost'!AL112:AL123) ->  | CW180: =AVERAGE('SS PrePost'!AM112:AM123) ->  | CX180: =AVERAGE('SS PrePost'!AN112:AN123) ->  | CY180: =AVERAGE('SS PrePost'!AO112:AO123) ->  | CZ180: =AVERAGE('SS PrePost'!AP112:AP123) ->  | DA180: =AVERAGE('SS PrePost'!AQ112:AQ123) ->  | DB180: =AVERAGE('SS PrePost'!AR112:AR123) ->  | DC180: =AVERAGE('SS PrePost'!AS112:AS123) ->  | DD180: =AVERAGE('SS PrePost'!AT112:AT123) ->  | DE180: =AVERAGE('SS PrePost'!AU112:AU123) ->  | DF180: =AVERAGE('SS PrePost'!AV112:AV123) ->  | DG180: =AVERAGE('SS PrePost'!AW112:AW123) ->  | DH180: =AVERAGE('SS PrePost'!AX112:AX123) ->  | DI180: =AVERAGE('SS PrePost'!AY112:AY123) ->  | DJ180: =AVERAGE('SS PrePost'!AZ112:AZ123) ->  | DK180: =AVERAGE('SS PrePost'!BA112:BA123) -> 
A181: 2 | D181: =$D$177 ->  | AK181: 0 | AL181: 0 | AM181: 0 | AN181: =SUM(AK181:AM181) -> 0 | AP181: SS2 | AR181: =IF(AND($D181=AR$6,$AN181>=$AU$3),1,0) -> 0 | AS181: 0 | AT181: 0 | AU181: 0 | AV181: 0 | AW181: 0 | AX181: 0 | AY181: 0
A182: 3 | AK182: 0 | AL182: 0 | AM182: 0 | AN182: 0 | AP182: SS3 | AR182: 0 | AS182: 0 | AT182: 0 | AU182: 0 | AV182: 0 | AW182: 0 | AX182: 0 | AY182: 0
A183: 4 | AK183: 0 | AL183: 0 | AM183: 0 | AN183: 0 | AP183: SS4 | AR183: 0 | AS183: 0 | AT183: 0 | AU183: 0 | AV183: 0 | AW183: 0 | AX183: 0 | AY183: 0
A184: 5 | AK184: 0 | AL184: 0 | AM184: 0 | AN184: 0 | AP184: SS5 | AR184: 0 | AS184: 0 | AT184: 0 | AU184: 0 | AV184: 0 | AW184: 0 | AX184: 0 | AY184: 0
A185: 6 | AK185: 0 | AL185: 0 | AM185: 0 | AN185: 0 | AP185: SS6 | AR185: 0 | AS185: 0 | AT185: 0 | AU185: 0 | AV185: 0 | AW185: 0 | AX185: 0 | AY185: 0
A186: 7 | AK186: 0 | AL186: 0 | AM186: 0 | AN186: 0 | AP186: SS7 | AR186: 0 | AS186: 0 | AT186: 0 | AU186: 0 | AV186: 0 | AW186: 0 | AX186: 0 | AY186: 0
A187: 8 | AK187: 0 | AL187: 0 | AM187: 0 | AN187: 0 | AP187: SS8 | AR187: 0 | AS187: 0 | AT187: 0 | AU187: 0 | AV187: 0 | AW187: 0 | AX187: 0 | AY187: 0
A188: 9 | AK188: 0 | AL188: 0 | AM188: 0 | AN188: 0 | AP188: SS9 | AR188: 0 | AS188: 0 | AT188: 0 | AU188: 0 | AV188: 0 | AW188: 0 | AX188: 0 | AY188: 0
A189: 10 | AK189: =COUNTIF(E189:N189,"Yes") -> 0 | AL189: =COUNTIF(O189:X189,"Yes") -> 0 | AM189: =COUNTIF(Y189:AH189,"Yes") -> 0 | AN189: =SUM(AK189:AM189) -> 0 | AP189: SS10 | AR189: 0 | AS189: 0 | AT189: 0 | AU189: 0 | AV189: 0 | AW189: 0 | AX189: 0 | AY189: 0
A190: 11 | AK190: =COUNTIF(E190:N190,"Yes") -> 0 | AL190: =COUNTIF(O190:X190,"Yes") -> 0 | AM190: =COUNTIF(Y190:AH190,"Yes") -> 0 | AN190: =SUM(AK190:AM190) -> 0 | AR190: 0 | AS190: 0 | AT190: 0 | AU190: 0 | AV190: 0 | AW190: 0 | AX190: 0 | AY190: 0 | BA190: =IF(AI190="YES",D190,"") ->  | BJ190: =IF(AN190>0,D190,"") -> 
A191: 12 | AK191: =COUNTIF(E191:N191,"Yes") -> 0 | AL191: =COUNTIF(O191:X191,"Yes") -> 0 | AM191: =COUNTIF(Y191:AH191,"Yes") -> 0 | AN191: =SUM(AK191:AM191) -> 0 | AR191: 0 | AS191: 0 | AT191: 0 | AU191: 0 | AV191: 0 | AW191: 0 | AX191: 0 | AY191: 0 | BA191: =IF(AI191="YES",D191,"") ->  | BJ191: =IF(AN191>0,D191,"") -> 
B194: Program #11
B195: Start Date | D195: Qtr | E195: Attendance | AN195: =IF(C196,((YEAR(C196)-YEAR($B$1))*12+MONTH(C196)-MONTH($B$1)+1),"") -> 
B196: Completion Date | D196: =IF(C196,INT((AN195+2)/3),"") ->  | E196: SS1 | F196: SS2 | G196: SS3 | H196: SS4 | I196: SS5 | J196: SS6 | K196: SS7 | L196: SS8 | M196: SS9 | N196: SS10 | O196: AC1 | P196: AC2 | Q196: AC3 | R196: AC4 | S196: AC5 | T196: AC6 | U196: AC7 | V196: AC8 | W196: AC9 | X196: AC10 | Y196: MR1 | Z196: MR2 | AA196: MR3 | AB196: MR4 | AC196: MR5 | AD196: MR6 | AE196: MR7 | AF196: MR8 | AG196: MR9 | AH196: MR10 | AK196: Program 11 Summary | AN196: Month | AP196: =COUNTIF(AN199:AN208,30) -> 0 | BN196: Orange Box indicates they are among 10 lowest agerage skills scores for this group.
B197: Group Environment | D197: SS Choice | E197: =LEFT($AQ199,2) ->  | F197: =LEFT($AQ200,2) ->  | G197: =LEFT($AQ201,2) ->  | H197: =LEFT($AQ202,2) ->  | I197: =LEFT($AQ203,2) ->  | J197: =LEFT($AQ204,2) ->  | K197: =LEFT($AQ205,2) ->  | L197: =LEFT($AQ206,2) ->  | M197: =LEFT($AQ207,2) ->  | N197: =LEFT($AQ208,2) ->  | BN197: Skills in purple boxes are those recommended in ART manual.
B198: Participant Name | C198: Gender | AI198: Administrative Withdrawal? | AK198: SS Sessions Attended | AL198: AC Sessions Attended | AM198: MR Sessions Attended | AN198: TOTAL Sessions attended | AQ198: Skillstreaming Sessions | BI198: =D196 ->  | BN198: Mean Skill 01 | BO198: Mean Skill 02 | BP198: Mean Skill 03 | BQ198: Mean Skill 04 | BR198: Mean Skill 05 | BS198: Mean Skill 06 | BT198: Mean Skill 07 | BU198: Mean Skill 08 | BV198: Mean Skill 09 | BW198: Mean Skill 10 | BX198: Mean Skill 11 | BY198: Mean Skill 12 | BZ198: Mean Skill 13 | CA198: Mean Skill 14 | CB198: Mean Skill 15 | CC198: Mean Skill 16 | CD198: Mean Skill 17 | CE198: Mean Skill 18 | CF198: Mean Skill 19 | CG198: Mean Skill 20 | CH198: Mean Skill 21 | CI198: Mean Skill 22 | CJ198: Mean Skill 23 | CK198: Mean Skill 24 | CL198: Mean Skill 25 | CM198: Mean Skill 26 | CN198: Mean Skill 27 | CO198: Mean Skill 28 | CP198: Mean Skill 29 | CQ198: Mean Skill 30 | CR198: Mean Skill 31 | CS198: Mean Skill 32 | CT198: Mean Skill 33 | CU198: Mean Skill 34 | CV198: Mean Skill 35 | CW198: Mean Skill 36 | CX198: Mean Skill 37 | CY198: Mean Skill 38 | CZ198: Mean Skill 39 | DA198: Mean Skill 40 | DB198: Mean Skill 41 | DC198: Mean Skill 42 | DD198: Mean Skill 43 | DE198: Mean Skill 44 | DF198: Mean Skill 45 | DG198: Mean Skill 46 | DH198: Mean Skill 47 | DI198: Mean Skill 48 | DJ198: Mean Skill 49 | DK198: Mean Skill 50
A199: 1 | D199: =$D$196 ->  | AK199: =COUNTIF(E199:N199,"Yes") -> 0 | AL199: =COUNTIF(O199:X199,"Yes") -> 0 | AM199: =COUNTIF(Y199:AH199,"Yes") -> 0 | AN199: =SUM(AK199:AM199) -> 0 | AP199: SS1 | AR199: =IF(AND($D199=AR$6,$AN199>=$AU$3),1,0) -> 0 | AS199: =IF(AND($D199=AS$6,$AN199>=$AU$3),1,0) -> 0 | AT199: 0 | AU199: 0 | AV199: 0 | AW199: 0 | AX199: 0 | AY199: 0 | BM199: =SMALL(BN199:DK199,10) ->  | BN199: =AVERAGE('SS PrePost'!D124:D135) ->  | BO199: =AVERAGE('SS PrePost'!E124:E135) ->  | BP199: =AVERAGE('SS PrePost'!F124:F135) ->  | BQ199: =AVERAGE('SS PrePost'!G124:G135) ->  | BR199: =AVERAGE('SS PrePost'!H124:H135) ->  | BS199: =AVERAGE('SS PrePost'!I124:I135) ->  | BT199: =AVERAGE('SS PrePost'!J124:J135) ->  | BU199: =AVERAGE('SS PrePost'!K124:K135) ->  | BV199: =AVERAGE('SS PrePost'!L124:L135) ->  | BW199: =AVERAGE('SS PrePost'!M124:M135) ->  | BX199: =AVERAGE('SS PrePost'!N124:N135) ->  | BY199: =AVERAGE('SS PrePost'!O124:O135) ->  | BZ199: =AVERAGE('SS PrePost'!P124:P135) ->  | CA199: =AVERAGE('SS PrePost'!Q124:Q135) ->  | CB199: =AVERAGE('SS PrePost'!R124:R135) ->  | CC199: =AVERAGE('SS PrePost'!S124:S135) ->  | CD199: =AVERAGE('SS PrePost'!T124:T135) ->  | CE199: =AVERAGE('SS PrePost'!U124:U135) ->  | CF199: =AVERAGE('SS PrePost'!V124:V135) ->  | CG199: =AVERAGE('SS PrePost'!W124:W135) ->  | CH199: =AVERAGE('SS PrePost'!X124:X135) ->  | CI199: =AVERAGE('SS PrePost'!Y124:Y135) ->  | CJ199: =AVERAGE('SS PrePost'!Z124:Z135) ->  | CK199: =AVERAGE('SS PrePost'!AA124:AA135) ->  | CL199: =AVERAGE('SS PrePost'!AB124:AB135) ->  | CM199: =AVERAGE('SS PrePost'!AC124:AC135) ->  | CN199: =AVERAGE('SS PrePost'!AD124:AD135) ->  | CO199: =AVERAGE('SS PrePost'!AE124:AE135) ->  | CP199: =AVERAGE('SS PrePost'!AF124:AF135) ->  | CQ199: =AVERAGE('SS PrePost'!AG124:AG135) ->  | CR199: =AVERAGE('SS PrePost'!AH124:AH135) ->  | CS199: =AVERAGE('SS PrePost'!AI124:AI135) ->  | CT199: =AVERAGE('SS PrePost'!AJ124:AJ135) ->  | CU199: =AVERAGE('SS PrePost'!AK124:AK135) ->  | CV199: =AVERAGE('SS PrePost'!AL124:AL135) ->  | CW199: =AVERAGE('SS PrePost'!AM124:AM135) ->  | CX199: =AVERAGE('SS PrePost'!AN124:AN135) ->  | CY199: =AVERAGE('SS PrePost'!AO124:AO135) ->  | CZ199: =AVERAGE('SS PrePost'!AP124:AP135) ->  | DA199: =AVERAGE('SS PrePost'!AQ124:AQ135) ->  | DB199: =AVERAGE('SS PrePost'!AR124:AR135) ->  | DC199: =AVERAGE('SS PrePost'!AS124:AS135) ->  | DD199: =AVERAGE('SS PrePost'!AT124:AT135) ->  | DE199: =AVERAGE('SS PrePost'!AU124:AU135) ->  | DF199: =AVERAGE('SS PrePost'!AV124:AV135) ->  | DG199: =AVERAGE('SS PrePost'!AW124:AW135) ->  | DH199: =AVERAGE('SS PrePost'!AX124:AX135) ->  | DI199: =AVERAGE('SS PrePost'!AY124:AY135) ->  | DJ199: =AVERAGE('SS PrePost'!AZ124:AZ135) ->  | DK199: =AVERAGE('SS PrePost'!BA124:BA135) -> 
A200: 2 | D200: =$D$196 ->  | AK200: 0 | AL200: 0 | AM200: 0 | AN200: =SUM(AK200:AM200) -> 0 | AP200: SS2 | AR200: =IF(AND($D200=AR$6,$AN200>=$AU$3),1,0) -> 0 | AS200: 0 | AT200: 0 | AU200: 0 | AV200: 0 | AW200: 0 | AX200: 0 | AY200: 0
A201: 3 | AK201: 0 | AL201: 0 | AM201: 0 | AN201: 0 | AP201: SS3 | AR201: 0 | AS201: 0 | AT201: 0 | AU201: 0 | AV201: 0 | AW201: 0 | AX201: 0 | AY201: 0
A202: 4 | AK202: 0 | AL202: 0 | AM202: 0 | AN202: 0 | AP202: SS4 | AR202: 0 | AS202: 0 | AT202: 0 | AU202: 0 | AV202: 0 | AW202: 0 | AX202: 0 | AY202: 0
A203: 5 | AK203: 0 | AL203: 0 | AM203: 0 | AN203: 0 | AP203: SS5 | AR203: 0 | AS203: 0 | AT203: 0 | AU203: 0 | AV203: 0 | AW203: 0 | AX203: 0 | AY203: 0
A204: 6 | AK204: 0 | AL204: 0 | AM204: 0 | AN204: 0 | AP204: SS6 | AR204: 0 | AS204: 0 | AT204: 0 | AU204: 0 | AV204: 0 | AW204: 0 | AX204: 0 | AY204: 0
A205: 7 | AK205: 0 | AL205: 0 | AM205: 0 | AN205: 0 | AP205: SS7 | AR205: 0 | AS205: 0 | AT205: 0 | AU205: 0 | AV205: 0 | AW205: 0 | AX205: 0 | AY205: 0
A206: 8 | AK206: 0 | AL206: 0 | AM206: 0 | AN206: 0 | AP206: SS8 | AR206: 0 | AS206: 0 | AT206: 0 | AU206: 0 | AV206: 0 | AW206: 0 | AX206: 0 | AY206: 0
A207: 9 | AK207: 0 | AL207: 0 | AM207: 0 | AN207: 0 | AP207: SS9 | AR207: 0 | AS207: 0 | AT207: 0 | AU207: 0 | AV207: 0 | AW207: 0 | AX207: 0 | AY207: 0
A208: 10 | AK208: =COUNTIF(E208:N208,"Yes") -> 0 | AL208: =COUNTIF(O208:X208,"Yes") -> 0 | AM208: =COUNTIF(Y208:AH208,"Yes") -> 0 | AN208: =SUM(AK208:AM208) -> 0 | AP208: SS10 | AR208: 0 | AS208: 0 | AT208: 0 | AU208: 0 | AV208: 0 | AW208: 0 | AX208: 0 | AY208: 0
A209: 11 | AK209: =COUNTIF(E209:N209,"Yes") -> 0 | AL209: =COUNTIF(O209:X209,"Yes") -> 0 | AM209: =COUNTIF(Y209:AH209,"Yes") -> 0 | AN209: =SUM(AK209:AM209) -> 0 | AR209: 0 | AS209: 0 | AT209: 0 | AU209: 0 | AV209: 0 | AW209: 0 | AX209: 0 | AY209: 0 | BA209: =IF(AI209="YES",D209,"") ->  | BJ209: =IF(AN209>0,D209,"") -> 
A210: 12 | AK210: =COUNTIF(E210:N210,"Yes") -> 0 | AL210: =COUNTIF(O210:X210,"Yes") -> 0 | AM210: =COUNTIF(Y210:AH210,"Yes") -> 0 | AN210: =SUM(AK210:AM210) -> 0 | AR210: 0 | AS210: 0 | AT210: 0 | AU210: 0 | AV210: 0 | AW210: 0 | AX210: 0 | AY210: 0 | BA210: =IF(AI210="YES",D210,"") ->  | BJ210: =IF(AN210>0,D210,"") -> 
B213: Program #12
B214: Start Date | D214: Qtr | E214: Attendance | AN214: =IF(C215,((YEAR(C215)-YEAR($B$1))*12+MONTH(C215)-MONTH($B$1)+1),"") -> 
B215: Completion Date | D215: =IF(C215,INT((AN214+2)/3),"") ->  | E215: SS1 | F215: SS2 | G215: SS3 | H215: SS4 | I215: SS5 | J215: SS6 | K215: SS7 | L215: SS8 | M215: SS9 | N215: SS10 | O215: AC1 | P215: AC2 | Q215: AC3 | R215: AC4 | S215: AC5 | T215: AC6 | U215: AC7 | V215: AC8 | W215: AC9 | X215: AC10 | Y215: MR1 | Z215: MR2 | AA215: MR3 | AB215: MR4 | AC215: MR5 | AD215: MR6 | AE215: MR7 | AF215: MR8 | AG215: MR9 | AH215: MR10 | AK215: Program 12 Summary | AN215: Month | AP215: =COUNTIF(AN218:AN227,30) -> 0 | BN215: Orange Box indicates they are among 10 lowest agerage skills scores for this group.
B216: Group Environment | D216: SS choice | E216: =LEFT($AQ218,2) ->  | F216: =LEFT($AQ219,2) ->  | G216: =LEFT($AQ220,2) ->  | H216: =LEFT($AQ221,2) ->  | I216: =LEFT($AQ222,2) ->  | J216: =LEFT($AQ223,2) ->  | K216: =LEFT($AQ224,2) ->  | L216: =LEFT($AQ225,2) ->  | M216: =LEFT($AQ226,2) ->  | N216: =LEFT($AQ227,2) ->  | BN216: Skills in purple boxes are those recommended in ART manual.
B217: Participant Name | C217: Gender | AI217: Administrative Withdrawal? | AK217: SS Sessions Attended | AL217: AC Sessions Attended | AM217: MR Sessions Attended | AN217: TOTAL Sessions attended | AQ217: Skillstreaming Sessions | BI217: =D215 ->  | BN217: Mean Skill 01 | BO217: Mean Skill 02 | BP217: Mean Skill 03 | BQ217: Mean Skill 04 | BR217: Mean Skill 05 | BS217: Mean Skill 06 | BT217: Mean Skill 07 | BU217: Mean Skill 08 | BV217: Mean Skill 09 | BW217: Mean Skill 10 | BX217: Mean Skill 11 | BY217: Mean Skill 12 | BZ217: Mean Skill 13 | CA217: Mean Skill 14 | CB217: Mean Skill 15 | CC217: Mean Skill 16 | CD217: Mean Skill 17 | CE217: Mean Skill 18 | CF217: Mean Skill 19 | CG217: Mean Skill 20 | CH217: Mean Skill 21 | CI217: Mean Skill 22 | CJ217: Mean Skill 23 | CK217: Mean Skill 24 | CL217: Mean Skill 25 | CM217: Mean Skill 26 | CN217: Mean Skill 27 | CO217: Mean Skill 28 | CP217: Mean Skill 29 | CQ217: Mean Skill 30 | CR217: Mean Skill 31 | CS217: Mean Skill 32 | CT217: Mean Skill 33 | CU217: Mean Skill 34 | CV217: Mean Skill 35 | CW217: Mean Skill 36 | CX217: Mean Skill 37 | CY217: Mean Skill 38 | CZ217: Mean Skill 39 | DA217: Mean Skill 40 | DB217: Mean Skill 41 | DC217: Mean Skill 42 | DD217: Mean Skill 43 | DE217: Mean Skill 44 | DF217: Mean Skill 45 | DG217: Mean Skill 46 | DH217: Mean Skill 47 | DI217: Mean Skill 48 | DJ217: Mean Skill 49 | DK217: Mean Skill 50
A218: 1 | D218: =$D$215 ->  | AK218: =COUNTIF(E218:N218,"Yes") -> 0 | AL218: =COUNTIF(O218:X218,"Yes") -> 0 | AM218: =COUNTIF(Y218:AH218,"Yes") -> 0 | AN218: =SUM(AK218:AM218) -> 0 | AP218: SS1 | AR218: =IF(AND($D218=AR$6,$AN218>=$AU$3),1,0) -> 0 | AS218: =IF(AND($D218=AS$6,$AN218>=$AU$3),1,0) -> 0 | AT218: 0 | AU218: 0 | AV218: 0 | AW218: 0 | AX218: 0 | AY218: 0 | BM218: =SMALL(BN218:DK218,10) ->  | BN218: =AVERAGE('SS PrePost'!D136:D147) ->  | BO218: =AVERAGE('SS PrePost'!E136:E147) ->  | BP218: =AVERAGE('SS PrePost'!F136:F147) ->  | BQ218: =AVERAGE('SS PrePost'!G136:G147) ->  | BR218: =AVERAGE('SS PrePost'!H136:H147) ->  | BS218: =AVERAGE('SS PrePost'!I136:I147) ->  | BT218: =AVERAGE('SS PrePost'!J136:J147) ->  | BU218: =AVERAGE('SS PrePost'!K136:K147) ->  | BV218: =AVERAGE('SS PrePost'!L136:L147) ->  | BW218: =AVERAGE('SS PrePost'!M136:M147) ->  | BX218: =AVERAGE('SS PrePost'!N136:N147) ->  | BY218: =AVERAGE('SS PrePost'!O136:O147) ->  | BZ218: =AVERAGE('SS PrePost'!P136:P147) ->  | CA218: =AVERAGE('SS PrePost'!Q136:Q147) ->  | CB218: =AVERAGE('SS PrePost'!R136:R147) ->  | CC218: =AVERAGE('SS PrePost'!S136:S147) ->  | CD218: =AVERAGE('SS PrePost'!T136:T147) ->  | CE218: =AVERAGE('SS PrePost'!U136:U147) ->  | CF218: =AVERAGE('SS PrePost'!V136:V147) ->  | CG218: =AVERAGE('SS PrePost'!W136:W147) ->  | CH218: =AVERAGE('SS PrePost'!X136:X147) ->  | CI218: =AVERAGE('SS PrePost'!Y136:Y147) ->  | CJ218: =AVERAGE('SS PrePost'!Z136:Z147) ->  | CK218: =AVERAGE('SS PrePost'!AA136:AA147) ->  | CL218: =AVERAGE('SS PrePost'!AB136:AB147) ->  | CM218: =AVERAGE('SS PrePost'!AC136:AC147) ->  | CN218: =AVERAGE('SS PrePost'!AD136:AD147) ->  | CO218: =AVERAGE('SS PrePost'!AE136:AE147) ->  | CP218: =AVERAGE('SS PrePost'!AF136:AF147) ->  | CQ218: =AVERAGE('SS PrePost'!AG136:AG147) ->  | CR218: =AVERAGE('SS PrePost'!AH136:AH147) ->  | CS218: =AVERAGE('SS PrePost'!AI136:AI147) ->  | CT218: =AVERAGE('SS PrePost'!AJ136:AJ147) ->  | CU218: =AVERAGE('SS PrePost'!AK136:AK147) ->  | CV218: =AVERAGE('SS PrePost'!AL136:AL147) ->  | CW218: =AVERAGE('SS PrePost'!AM136:AM147) ->  | CX218: =AVERAGE('SS PrePost'!AN136:AN147) ->  | CY218: =AVERAGE('SS PrePost'!AO136:AO147) ->  | CZ218: =AVERAGE('SS PrePost'!AP136:AP147) ->  | DA218: =AVERAGE('SS PrePost'!AQ136:AQ147) ->  | DB218: =AVERAGE('SS PrePost'!AR136:AR147) ->  | DC218: =AVERAGE('SS PrePost'!AS136:AS147) ->  | DD218: =AVERAGE('SS PrePost'!AT136:AT147) ->  | DE218: =AVERAGE('SS PrePost'!AU136:AU147) ->  | DF218: =AVERAGE('SS PrePost'!AV136:AV147) ->  | DG218: =AVERAGE('SS PrePost'!AW136:AW147) ->  | DH218: =AVERAGE('SS PrePost'!AX136:AX147) ->  | DI218: =AVERAGE('SS PrePost'!AY136:AY147) ->  | DJ218: =AVERAGE('SS PrePost'!AZ136:AZ147) ->  | DK218: =AVERAGE('SS PrePost'!BA136:BA147) -> 
A219: 2 | D219: =$D$215 ->  | AK219: 0 | AL219: 0 | AM219: 0 | AN219: =SUM(AK219:AM219) -> 0 | AP219: SS2 | AR219: =IF(AND($D219=AR$6,$AN219>=$AU$3),1,0) -> 0 | AS219: 0 | AT219: 0 | AU219: 0 | AV219: 0 | AW219: 0 | AX219: 0 | AY219: 0
A220: 3 | AK220: 0 | AL220: 0 | AM220: 0 | AN220: 0 | AP220: SS3 | AR220: 0 | AS220: 0 | AT220: 0 | AU220: 0 | AV220: 0 | AW220: 0 | AX220: 0 | AY220: 0
A221: 4 | AK221: 0 | AL221: 0 | AM221: 0 | AN221: 0 | AP221: SS4 | AR221: 0 | AS221: 0 | AT221: 0 | AU221: 0 | AV221: 0 | AW221: 0 | AX221: 0 | AY221: 0
... 144 more rows

Sheet AQ PrePost
A1: =Instructions!$A$1 -> 2.2 Version - 7/1/2013 | B1: Aggression Questionnaire Pre-Post | D1: VER | E1: HOS | F1: ANG | G1: VER | H1: HOS | I1: VER | J1: ANG | K1: PHY | L1: HOS | M1: PHY | N1: PHY | O1: ANG | P1: IND | Q1: IND | R1: IND | S1: HOS | T1: PHY | U1: IND | V1: ANG | W1: VER | X1: HOS | Y1: ANG | Z1: PHY | AA1: PHY | AB1: PHY | AC1: VER | AD1: PHY | AE1: HOS | AF1: ANG | AG1: IND | AH1: HOS | AI1: ANG | AJ1: HOS | AK1: IND | AL1: VER | AM1: HOS | AN1: ANG | AO1: VER | AP1: HOS | AQ1: VER | AR1: ANG | AS1: PHY | AT1: HOS | AU1: PHY | AV1: PHY | AW1: ANG | AX1: IND | AY1: IND | AZ1: IND | BA1: HOS | BB1: PHY | BC1: IND | BD1: ANG | BE1: VER | BF1: HOS | BG1: ANG | BH1: PHY | BI1: PHY | BJ1: PHY | BK1: VER | BL1: PHY | BM1: HOS | BN1: ANG | BO1: IND | BP1: HOS | BQ1: ANG | BR1: HOS | BS1: IND | BU1: AQ Calculations Pre-Test | CF1: Invalid PRE Survey Rate | CG1: =COUNTIF(CG4:CG243,">4")/COUNTIF(CF4:CF243,">0") -> 0.2857142857 | DC1: AQ Calculations Post-Test | DN1: Invalid POST Survey Rate | DO1: =COUNTIF(DO4:DO243,">4")/COUNTIF(DN4:DN243,">0") -> 0.2941176471 | EC1: Change Pre-Post | EE1: GREEN | EF1: = Desired change | EH1: RED | EI1: = Un-desired change | EK1: BLACK | EL1: = No change | ER1: Positive Change Counter - by Quarter number | FB1: Total | FE1: PHY | FG1: VER | FI1: ANG | FK1: HOS | FM1: IND | FO1: AQ
C2: Completion Date | D2: Pre | E2: Pre | F2: Pre | G2: Pre | H2: Pre | I2: Pre | J2: Pre | K2: Pre | L2: Pre | M2: Pre | N2: Pre | O2: Pre | P2: Pre | Q2: Pre | R2: Pre | S2: Pre | T2: Pre | U2: Pre | V2: Pre | W2: Pre | X2: Pre | Y2: Pre | Z2: Pre | AA2: Pre | AB2: Pre | AC2: Pre | AD2: Pre | AE2: Pre | AF2: Pre | AG2: Pre | AH2: Pre | AI2: Pre | AJ2: Pre | AK2: Pre | AL2: Post | AM2: Post | AN2: Post | AO2: Post | AP2: Post | AQ2: Post | AR2: Post | AS2: Post | AT2: Post | AU2: Post | AV2: Post | AW2: Post | AX2: Post | AY2: Post | AZ2: Post | BA2: Post | BB2: Post | BC2: Post | BD2: Post | BE2: Post | BF2: Post | BG2: Post | BH2: Post | BI2: Post | BJ2: Post | BK2: Post | BL2: Post | BM2: Post | BN2: Post | BO2: Post | BP2: Post | BQ2: Post | BR2: Post | BS2: Post | BU2: PHY-Pre | BW2: VER-Pre | BY2: ANG-Pre | CA2: HOS-Pre | CC2: IND-Pre | CE2: AQ | CG2: INC Score | CH2: INC pair | CI2: INC pair | CJ2: INC pair | CK2: INC pair | CL2: INC pair | CM2: INC pair | CN2: INC pair | CO2: INC pair | CP2: INC pair | CQ2: INC pair | CR2: INC pair | CS2: INC pair | DC2: PHY-Post | DE2: VER-Post | DG2: ANG-Post | DI2: HOS-Post | DK2: IND-Post | DM2: AQ | DO2: INC Score | DP2: INC pair | DQ2: INC pair | DR2: INC pair | DS2: INC pair | DT2: INC pair | DU2: INC pair | DV2: INC pair | DW2: INC pair | DX2: INC pair | DY2: INC pair | DZ2: INC pair | EA2: INC pair | EC2: PHY-Post Change | EE2: VER-Post Change | EG2: ANG-Post Change | EI2: HOS-Post Change | EK2: IND-Post Change | EM2: AQ Change | ER2: PHY-Post Change | ET2: VER-Post Change | EV2: ANG-Post Change | EX2: HOS-Post Change | EZ2: IND-Post Change | FB2: AQ Change | FE2: Change | FG2: Change | FI2: Change | FK2: Change | FM2: Change | FO2: Change
B3: Participant Name | D3: Q 1 | E3: Q 2 | F3: Q 3 | G3: Q 4 | H3: Q 5 | I3: Q 6 | J3: Q 7 | K3: Q 8 | L3: Q 9 | M3: Q 10 | N3: Q 11 | O3: Q 12 | P3: Q 13 | Q3: Q 14 | R3: Q 15 | S3: Q 16 | T3: Q 17 | U3: Q 18 | V3: Q 19 | W3: Q 20 | X3: Q 21 | Y3: Q 22 | Z3: Q 23 | AA3: Q 24 | AB3: Q 25 | AC3: Q 26 | AD3: Q 27 | AE3: Q 28 | AF3: Q 29 | AG3: Q 30 | AH3: Q 31 | AI3: Q 32 | AJ3: Q 33 | AK3: Q 34 | AL3: Q 1 | AM3: Q 2 | AN3: Q 3 | AO3: Q 4 | AP3: Q 5 | AQ3: Q 6 | AR3: Q 7 | AS3: Q 8 | AT3: Q 9 | AU3: Q 10 | AV3: Q 11 | AW3: Q 12 | AX3: Q 13 | AY3: Q 14 | AZ3: Q 15 | BA3: Q 16 | BB3: Q 17 | BC3: Q 18 | BD3: Q 19 | BE3: Q 20 | BF3: Q 21 | BG3: Q 22 | BH3: Q 23 | BI3: Q 24 | BJ3: Q 25 | BK3: Q 26 | BL3: Q 27 | BM3: Q 28 | BN3: Q 29 | BO3: Q 30 | BP3: Q 31 | BQ3: Q 32 | BR3: Q 33 | BS3: Q 34 | BU3: Raw | BV3: T | BW3: Raw | BX3: T | BY3: Raw | BZ3: T | CA3: Raw | CB3: T | CC3: Raw | CD3: T | CE3: Raw | CF3: T | CH3: 1 | CI3: 2 | CJ3: 3 | CK3: 4 | CL3: 5 | CM3: 6 | CN3: 7 | CO3: 8 | CP3: 9 | CQ3: 10 | CR3: 11 | CS3: 12 | DC3: Raw | DD3: T | DE3: Raw | DF3: T | DG3: Raw | DH3: T | DI3: Raw | DJ3: T | DK3: Raw | DL3: T | DM3: Raw | DN3: T | DP3: 1 | DQ3: 2 | DR3: 3 | DS3: 4 | DT3: 5 | DU3: 6 | DV3: 7 | DW3: 8 | DX3: 9 | DY3: 10 | DZ3: 11 | EA3: 12 | EC3: Mean | ED3: T | EE3: Mean | EF3: T | EG3: Mean | EH3: T | EI3: Mean | EJ3: T | EK3: Mean | EL3: T | EM3: Mean | EN3: T | EP3: Qtr | EQ3: Completed | ER3: Mean | ES3: T | ET3: Mean | EU3: T | EV3: Mean | EW3: T | EX3: Mean | EY3: T | EZ3: Mean | FA3: T | FB3: Mean | FC3: T | FE3: RCI | FF3: Sdev | FG3: RCI | FH3: Sdev | FI3: RCI | FJ3: Sdev | FK3: RCI | FL3: Sdev | FM3: RCI | FN3: Sdev | FO3: RCI | FP3: Sdev
A4: Program 1 | B4: =Programs!B9 -> Dennys Moreno | C4: =IF(Programs!$C$6="","",Programs!$C$6) -> 2014-05-02 | D4: 3 | E4: 4 | F4: 3 | G4: 2 | H4: 4 | I4: 4 | J4: 5 | K4: 5 | L4: 5 | M4: 3 | N4: 3 | O4: 5 | P4: 5 | Q4: 5 | R4: 4 | S4: 4 | T4: 5 | U4: 3 | V4: 1 | W4: 5 | X4: 2 | Y4: 5 | Z4: 4 | AA4: 3 | AB4: 5 | AC4: 4 | AD4: 5 | AE4: 5 | AF4: 5 | AG4: 4 | AH4: 4 | AI4: 3 | AJ4: 3 | AK4: 4 | AL4: 2 | AM4: 4 | AN4: 3 | AO4: 3 | AP4: 3 | AQ4: 2 | AR4: 4 | AS4: 3 | AT4: 2 | AU4: 3 | AV4: 3 | AW4: 3 | AX4: 4 | AY4: 2 | AZ4: 2 | BA4: 3 | BB4: 1 | BC4: 3 | BD4: 4 | BE4: 4 | BF4: 4 | BG4: 3 | BH4: 2 | BI4: 2 | BK4: 1 | BL4: 3 | BM4: 3 | BN4: 3 | BO4: 4 | BP4: 3 | BQ4: 2 | BR4: 3 | BS4: 4 | BT4: =Programs!C9 -> Male | BU4: =SUM(K4,M4,N4,T4,Z4,AA4,AB4,AD4) -> 33 | BV4: =IF(OR($BT4=0,BU4=0),"",(IF($BT4="Male",(VLOOKUP(BU4,PHYMT,3,FALSE)),(VLOOKUP(BU4,PHFMT,2,FALSE))))) -> 64 | BW4: =SUM(D4,G4,I4,W4,AC4) -> 18 | BX4: =IF(BW4=0,"",VLOOKUP(BW4,VER,5,FALSE)) -> 60 | BY4: =SUM(F4,J4,O4,LOOKUP(V4,{0,1,2,3,4,5},{0,5,4,3,2,1}),Y4,AF4,AI4) -> 31 | BZ4: =IF(BY4=0,"",VLOOKUP(BY4,ANG,4,FALSE)) -> 71 | CA4: =SUM(E4,H4,L4,S4,X4,AE4,AH4,AJ4) -> 31 | CB4: =IF(CA4=0,"",IF(CA4>38,81,VLOOKUP(CA4,HOS,3,FALSE))) -> 66 | CC4: =SUM(P4,Q4,R4,U4,AG4,AK4) -> 25 | CD4: =IF(CC4=0,"",VLOOKUP(CC4,IND,2,FALSE)) -> 68 | CE4: =SUM(BU4,BW4,BY4,CA4,CC4) -> 138 | CF4: =IF(CE4=0,"",VLOOKUP(CE4,AQT,2,FALSE)) -> 69 | CG4: =SUM(CH4:CS4) -> 7 | CH4: =IF(ABS(D4-Y4)>1,1,0) -> 1 | CI4: =IF(ABS(E4-H4)>1,1,0) -> 0 | CJ4: =IF(ABS(G4-I4)>1,1,0) -> 1 | CK4: =IF(ABS(J4-AJ4)>1,1,0) -> 1 | CL4: =IF(ABS(K4-N4)>1,1,0) -> 1 | CM4: =IF(ABS(L4-AF4)>1,1,0) -> 0 | CN4: =IF(ABS(M4-P4)>1,1,0) -> 1 | CO4: =IF(ABS(O4-AI4)>1,1,0) -> 1 | CP4: =IF(ABS(Q4-T4)>1,1,0) -> 0 | CQ4: =IF(ABS(X4-AH4)>1,1,0) -> 1 | CR4: =IF(ABS(Z4-AA4)>1,1,0) -> 0 | CS4: =IF(ABS(AB4-AD4)>1,1,0) -> 0 | DC4: =SUM(AS4,AU4,AV4,BB4,BH4,BI4,BJ4,BL4) -> 17 | DD4: =IF(OR($BT4=0,DC4=0),"",(IF($BT4="Male",(VLOOKUP(DC4,PHYMT,3,FALSE)),(VLOOKUP(DC4,PHFMT,2,FALSE))))) -> 46 | DE4: =SUM(AL4,AO4,AQ4,BE4,BK4) -> 12 | DF4: =IF(DE4=0,"",VLOOKUP(DE4,VER,5,FALSE)) -> 48 | DG4: =SUM(AN4,AR4,AW4,LOOKUP(BD4,{0,1,2,3,4,5},{0,5,4,3,2,1}),BG4,BN4,BQ4) -> 20 | DH4: =IF(DG4=0,"",VLOOKUP(DG4,ANG,4,FALSE)) -> 55 | DI4: =SUM(AM4,AP4,AT4,BA4,BF4,BM4,BP4,BR4) -> 25 | DJ4: =IF(DI4=0,"",VLOOKUP(DI4,HOS,3,FALSE)) -> 58 | DK4: =SUM(AX4,AY4,AZ4,BC4,BO4,BS4) -> 19 | DL4: =IF(DK4=0,"",VLOOKUP(DK4,IND,2,FALSE)) -> 58 | DM4: =SUM(DC4,DE4,DG4,DI4,DK4) -> 93 | DN4: =IF(DM4=0,"",IF(DM4<39,24,VLOOKUP(DM4,AQT,2,FALSE))) -> 53 | DO4: =SUM(DP4:EA4) -> 1 | DP4: =IF(ABS(AL4-BG4)>1,1,0) -> 0 | DQ4: =IF(ABS(AM4-AP4)>1,1,0) -> 0 | DR4: =IF(ABS(AO4-AQ4)>1,1,0) -> 0 | DS4: =IF(ABS(AR4-BR4)>1,1,0) -> 0 | DT4: =IF(ABS(AS4-AV4)>1,1,0) -> 0 | DU4: =IF(ABS(AT4-BN4)>1,1,0) -> 0 | DV4: =IF(ABS(AU4-AX4)>1,1,0) -> 0 | DW4: =IF(ABS(AW4-BQ4)>1,1,0) -> 0 | DX4: =IF(ABS(AY4-BB4)>1,1,0) -> 0 | DY4: =IF(ABS(BF4-BP4)>1,1,0) -> 0 | DZ4: =IF(ABS(BH4-BI4)>1,1,0) -> 0 | EA4: =IF(ABS(BJ4-BL4)>1,1,0) -> 1 | EC4: =IF(EQ4<>"",(DC4/8)-(BU4/8),"") -> -2 | ED4: =IF(EQ4<>"",IF(BT4=0,"",DD4-BV4),"") -> -18 | EE4: =IF(EQ4<>"",(DE4/5)-(BW4/5),"") -> -1.2 | EF4: =IF(EQ4<>"",DF4-BX4,"") -> -12 | EG4: =IF(EQ4<>"",(DG4/7)-(BY4/7),"") -> -1.571428571 | EH4: =IF(EQ4<>"",DH4-BZ4,"") -> -16 | EI4: =IF(EQ4<>"",(DI4/8)-(CA4/8),"") -> -0.75 | EJ4: =IF(EQ4<>"",DJ4-CB4,"") -> -8 | EK4: =IF(EQ4<>"",(DK4/6)-(CC4/6),"") -> -1 | EL4: =IF(EQ4<>"",DL4-CD4,"") -> -10 | EM4: =IF(EQ4<>"",(DM4/34)-(CE4/34),"") -> -1.323529412 | EN4: =IF(EQ4<>"",DN4-CF4,"") -> -16 | EP4: =IF(Programs!$D$6="","",Programs!$D$6) -> 3 | EQ4: =IF(AND(COUNT(D4:AK4)>30,COUNT(AL4:BS4)>30),EP4,"") -> 3 | ER4: =IF($EQ4="","",IF(AND(ABS(EC4)>FE4,EC4<0),$EQ4,"")) -> 3 | ES4: =IF(ED4<0,$EQ4,"") -> 3 | ET4: =IF($EQ4="","",IF(AND(ABS(EE4)>FG4,EE4<0),$EQ4,"")) -> 3 | EU4: =IF(EF4<0,$EQ4,"") -> 3 | EV4: =IF($EQ4="","",IF(AND(ABS(EG4)>FI4,EG4<0),$EQ4,"")) -> 3 | EW4: =IF(EH4<0,$EQ4,"") -> 3 | EX4: =IF($EQ4="","",IF(AND(ABS(EI4)>FK4,EI4<0),$EQ4,"")) ->  | EY4: =IF(EJ4<0,$EQ4,"") -> 3 | EZ4: =IF($EQ4="","",IF(AND(ABS(EK4)>FM4,EK4<0),$EQ4,"")) -> 3 | FA4: =IF(EL4<0,$EQ4,"") -> 3 | FB4: =IF($EQ4="","",IF(AND(ABS(EM4)>FO4,EM4<0),$EQ4,"")) -> 3 | FC4: =IF(EN4<0,$EQ4,"") -> 3 | FE4: =lists!$J$4*(FF4)*1.414*SQRT(1-lists!$I$4) -> 1.162383999 | FF4: =STDEVA(K4:K15, M4:M15, N4:N15, T4:T15, Z4:Z15, AA4:AA15, AB4:AB15, AD4:AD15) -> 1.585240364 | FG4: =lists!$J$4*(FH4)*1.414*SQRT(1-lists!$I$4) -> 0.8942679235 | FH4: =STDEVA(D4:D15,G4:G15,I4:I15,W4:W15,AC4:AC15) -> 1.219588028 | FI4: =lists!$J$4*(FJ4)*1.414*SQRT(1-lists!$I$4) -> 0.9723578108 | FJ4: =STDEVA(F4:F15,J4:J15,O4:O15,V4:V15,Y4:Y15,AF4:AF15,AI4:AI15) -> 1.326085744 | FK4: =lists!$J$4*(FL4)*1.414*SQRT(1-lists!$I$4) -> 1.030137541 | FL4: =STDEVA(E4:E15,H4:H15,L4:L15,S4:S15,X4:X15,AE4:AE15,AH4:AH15,AJ4:AJ15) -> 1.404884799 | FM4: =lists!$J$4*(FN4)*1.414*SQRT(1-lists!$I$4) -> 0.9436537886 | FN4: =STDEVA(P4:R15,U4:U15,AG4:AG15,AK4:AK15) -> 1.286939666 | FO4: =lists!$J$4*(FP4)*1.414*SQRT(1-lists!$I$4) -> 1.021236462 | FP4: =STDEVA(D4:AK15) -> 1.392745653
B5: =Programs!B10 -> Daeshaun Widener | C5: =IF(Programs!$C$6="","",Programs!$C$6) -> 2014-05-02 | D5: 1 | E5: 1 | F5: 1 | G5: 1 | H5: 1 | I5: 1 | J5: 1 | K5: 1 | L5: 1 | M5: 1 | N5: 1 | O5: 1 | P5: 1 | Q5: 1 | R5: 1 | S5: 2 | T5: 1 | U5: 1 | V5: 2 | W5: 2 | X5: 1 | Y5: 1 | Z5: 1 | AA5: 1 | AB5: 2 | AC5: 2 | AD5: 2 | AE5: 2 | AF5: 1 | AG5: 2 | AH5: 1 | AI5: 1 | AJ5: 1 | AK5: 1 | AL5: 3 | AM5: 3 | AN5: 3 | AO5: 2 | AP5: 4 | AQ5: 3 | AS5: 2 | AT5: 2 | AU5: 3 | AV5: 4 | AW5: 3 | AX5: 3 | AY5: 3 | AZ5: 4 | BA5: 2 | BB5: 3 | BC5: 4 | BD5: 3 | BE5: 3 | BG5: 4 | BH5: 2 | BI5: 3 | BJ5: 2 | BK5: 3 | BL5: 1 | BM5: 4 | BN5: 4 | BO5: 3 | BP5: 2 | BQ5: 4 | BR5: 3 | BS5: 5 | BT5: =Programs!C10 -> Male | BU5: =SUM(K5,M5,N5,T5,Z5,AA5,AB5,AD5) -> 10 | BV5: 36 | BW5: =SUM(D5,G5,I5,W5,AC5) -> 7 | BX5: 34 | BY5: =SUM(F5,J5,O5,LOOKUP(V5,{0,1,2,3,4,5},{0,5,4,3,2,1}),Y5,AF5,AI5) -> 10 | BZ5: 38 | CA5: =SUM(E5,H5,L5,S5,X5,AE5,AH5,AJ5) -> 10 | CB5: 34 | CC5: =SUM(P5,Q5,R5,U5,AG5,AK5) -> 7 | CD5: 30 | CE5: =SUM(BU5,BW5,BY5,CA5,CC5) -> 44 | CF5: 30 | CG5: 0 | CH5: =IF(ABS(D5-Y5)>1,1,0) -> 0 | CI5: =IF(ABS(E5-H5)>1,1,0) -> 0 | CJ5: =IF(ABS(G5-I5)>1,1,0) -> 0 | CK5: =IF(ABS(J5-AJ5)>1,1,0) -> 0 | CL5: =IF(ABS(K5-N5)>1,1,0) -> 0 | CM5: =IF(ABS(L5-AF5)>1,1,0) -> 0 | CN5: =IF(ABS(M5-P5)>1,1,0) -> 0 | CO5: =IF(ABS(O5-AI5)>1,1,0) -> 0 | CP5: =IF(ABS(Q5-T5)>1,1,0) -> 0 | CQ5: =IF(ABS(X5-AH5)>1,1,0) -> 0 | CR5: =IF(ABS(Z5-AA5)>1,1,0) -> 0 | CS5: =IF(ABS(AB5-AD5)>1,1,0) -> 0 | DC5: =SUM(AS5,AU5,AV5,BB5,BH5,BI5,BJ5,BL5) -> 20 | DD5: 49 | DE5: =SUM(AL5,AO5,AQ5,BE5,BK5) -> 14 | DF5: 53 | DG5: =SUM(AN5,AR5,AW5,LOOKUP(BD5,{0,1,2,3,4,5},{0,5,4,3,2,1}),BG5,BN5,BQ5) -> 21 | DH5: 56 | DI5: =SUM(AM5,AP5,AT5,BA5,BF5,BM5,BP5,BR5) -> 20 | DJ5: 51 | DK5: =SUM(AX5,AY5,AZ5,BC5,BO5,BS5) -> 22 | DL5: 63 | DM5: =SUM(DC5,DE5,DG5,DI5,DK5) -> 97 | DN5: 55 | DO5: =SUM(DP5:EA5) -> 4 | DP5: =IF(ABS(AL5-BG5)>1,1,0) -> 0 | DQ5: =IF(ABS(AM5-AP5)>1,1,0) -> 0 | DR5: =IF(ABS(AO5-AQ5)>1,1,0) -> 0 | DS5: =IF(ABS(AR5-BR5)>1,1,0) -> 1 | DT5: =IF(ABS(AS5-AV5)>1,1,0) -> 1 | DU5: =IF(ABS(AT5-BN5)>1,1,0) -> 1 | DV5: =IF(ABS(AU5-AX5)>1,1,0) -> 0 | DW5: =IF(ABS(AW5-BQ5)>1,1,0) -> 0 | DX5: =IF(ABS(AY5-BB5)>1,1,0) -> 0 | DY5: =IF(ABS(BF5-BP5)>1,1,0) -> 1 | DZ5: =IF(ABS(BH5-BI5)>1,1,0) -> 0 | EA5: =IF(ABS(BJ5-BL5)>1,1,0) -> 0 | EC5: =IF(EQ5<>"",(DC5/8)-(BU5/8),"") -> 1.25 | ED5: =IF(EQ5<>"",IF(BT5=0,"",DD5-BV5),"") -> 13 | EE5: =IF(EQ5<>"",(DE5/5)-(BW5/5),"") -> 1.4 | EF5: =IF(EQ5<>"",DF5-BX5,"") -> 19 | EG5: =IF(EQ5<>"",(DG5/7)-(BY5/7),"") -> 1.571428571 | EH5: =IF(EQ5<>"",DH5-BZ5,"") -> 18 | EI5: =IF(EQ5<>"",(DI5/8)-(CA5/8),"") -> 1.25 | EJ5: =IF(EQ5<>"",DJ5-CB5,"") -> 17 | EK5: =IF(EQ5<>"",(DK5/6)-(CC5/6),"") -> 2.5 | EL5: =IF(EQ5<>"",DL5-CD5,"") -> 33 | EM5: =IF(EQ5<>"",(DM5/34)-(CE5/34),"") -> 1.558823529 | EN5: =IF(EQ5<>"",DN5-CF5,"") -> 25 | EP5: =IF(Programs!$D$6="","",Programs!$D$6) -> 3 | EQ5: =IF(AND(COUNT(D5:AK5)>30,COUNT(AL5:BS5)>30),EP5,"") -> 3 | ER5: =IF($EQ5="","",IF(AND(ABS(EC5)>FE5,EC5<0),$EQ5,"")) ->  | ES5: =IF(ED5<0,$EQ5,"") ->  | ET5: =IF($EQ5="","",IF(AND(ABS(EE5)>FG5,EE5<0),$EQ5,"")) ->  | EU5: =IF(EF5<0,$EQ5,"") ->  | EV5: =IF($EQ5="","",IF(AND(ABS(EG5)>FI5,EG5<0),$EQ5,"")) ->  | EW5: =IF(EH5<0,$EQ5,"") ->  | EX5: =IF($EQ5="","",IF(AND(ABS(EI5)>FK5,EI5<0),$EQ5,"")) ->  | EY5: =IF(EJ5<0,$EQ5,"") ->  | EZ5: =IF($EQ5="","",IF(AND(ABS(EK5)>FM5,EK5<0),$EQ5,"")) ->  | FA5: =IF(EL5<0,$EQ5,"") ->  | FB5: =IF($EQ5="","",IF(AND(ABS(EM5)>FO5,EM5<0),$EQ5,"")) ->  | FC5: =IF(EN5<0,$EQ5,"") ->  | FE5: =INDIRECT(ADDRESS(ROW()-1,COLUMN(),4)) -> 1.162383999 | FG5: 0.8942679235 | FI5: 0.9723578108 | FK5: 1.030137541 | FM5: 0.9436537886 | FO5: 1.021236462
B6: =Programs!B11 -> Johnson Headley | C6: =IF(Programs!$C$6="","",Programs!$C$6) -> 2014-05-02 | D6: 3 | E6: 1 | F6: 3 | G6: 2 | H6: 5 | I6: 1 | J6: 1 | K6: 1 | L6: 1 | M6: 4 | N6: 1 | O6: 3 | P6: 1 | Q6: 1 | R6: 1 | S6: 1 | T6: 1 | U6: 1 | V6: 2 | W6: 1 | X6: 1 | Y6: 1 | Z6: 1 | AA6: 1 | AB6: 4 | AC6: 4 | AD6: 5 | AE6: 5 | AF6: 1 | AG6: 1 | AH6: 1 | AI6: 1 | AJ6: 1 | AK6: 1 | AL6: 4 | AM6: 4 | AN6: 4 | AO6: 3 | AP6: 4 | AQ6: 3 | AR6: 3 | AS6: 3 | AT6: 4 | AU6: 3 | AV6: 4 | AW6: 2 | AX6: 3 | AY6: 4 | AZ6: 4 | BA6: 3 | BB6: 5 | BC6: 2 | BD6: 4 | BE6: 5 | BF6: 5 | BG6: 4 | BH6: 4 | BI6: 3 | BJ6: 3 | BK6: 3 | BL6: 4 | BM6: 4 | BN6: 3 | BO6: 5 | BP6: 3 | BQ6: 4 | BR6: 4 | BS6: 4 | BT6: =Programs!C11 -> Male | BU6: 18 | BV6: 47 | BW6: 11 | BX6: 46 | BY6: =SUM(F6,J6,O6,LOOKUP(V6,{0,1,2,3,4,5},{0,5,4,3,2,1}),Y6,AF6,AI6) -> 14 | BZ6: 46 | CA6: 16 | CB6: 45 | CC6: 6 | CD6: 25 | CE6: 65 | CF6: 43 | CG6: 4 | CH6: 1 | CI6: 1 | CJ6: 0 | CK6: 0 | CL6: 0 | CM6: 0 | CN6: 1 | CO6: 1 | CP6: 0 | CQ6: 0 | CR6: 0 | CS6: 0 | DC6: 29 | DD6: 59 | DE6: 18 | DF6: 60 | DG6: =SUM(AN6,AR6,AW6,LOOKUP(BD6,{0,1,2,3,4,5},{0,5,4,3,2,1}),BG6,BN6,BQ6) -> 22 | DH6: 57 | DI6: 31 | DJ6: 66 | DK6: 22 | DL6: 63 | DM6: 122 | DN6: 64 | DO6: 2 | DP6: 0 | DQ6: 0 | DR6: 0 | DS6: 0 | DT6: 0 | DU6: 0 | DV6: 0 | DW6: 1 | DX6: 0 | DY6: 1 | DZ6: 0 | EA6: 0 | EC6: 1.375 | ED6: 12 | EE6: 1.4 | EF6: 14 | EG6: 1.142857143 | EH6: 11 | EI6: 1.875 | EJ6: 21 | EK6: 2.666666667 | EL6: 38 | EM6: 1.676470588 | EN6: 21 | EP6: =IF(Programs!$D$6="","",Programs!$D$6) -> 3 | EQ6: 3 | ER6: =IF($EQ6="","",IF(AND(ABS(EC6)>FE6,EC6<0),$EQ6,"")) ->  | ES6: =IF(ED6<0,$EQ6,"") ->  | ET6: =IF($EQ6="","",IF(AND(ABS(EE6)>FG6,EE6<0),$EQ6,"")) ->  | EU6: =IF(EF6<0,$EQ6,"") ->  | EV6: =IF($EQ6="","",IF(AND(ABS(EG6)>FI6,EG6<0),$EQ6,"")) ->  | EW6: =IF(EH6<0,$EQ6,"") ->  | EX6: =IF($EQ6="","",IF(AND(ABS(EI6)>FK6,EI6<0),$EQ6,"")) ->  | EY6: =IF(EJ6<0,$EQ6,"") ->  | EZ6: =IF($EQ6="","",IF(AND(ABS(EK6)>FM6,EK6<0),$EQ6,"")) ->  | FA6: =IF(EL6<0,$EQ6,"") ->  | FB6: =IF($EQ6="","",IF(AND(ABS(EM6)>FO6,EM6<0),$EQ6,"")) ->  | FC6: =IF(EN6<0,$EQ6,"") ->  | FE6: 1.162383999 | FG6: 0.8942679235 | FI6: 0.9723578108 | FK6: 1.030137541 | FM6: 0.9436537886 | FO6: 1.021236462
B7: =Programs!B12 -> Eduardo Garces | C7: =IF(Programs!$C$6="","",Programs!$C$6) -> 2014-05-02 | D7: 2 | E7: 2 | F7: 3 | G7: 3 | H7: 2 | I7: 2 | J7: 1 | K7: 4 | L7: 2 | M7: 3 | N7: 5 | O7: 2 | P7: 1 | Q7: 3 | R7: 3 | S7: 5 | T7: 4 | U7: 1 | V7: 3 | W7: 3 | X7: 4 | Y7: 2 | Z7: 2 | AA7: 1 | AB7: 5 | AC7: 5 | AD7: 5 | AE7: 4 | AF7: 4 | AG7: 4 | AH7: 3 | AI7: 5 | AJ7: 1 | AK7: 2 | AL7: 4 | AM7: 4 | AN7: 3 | AO7: 4 | AP7: 3 | AQ7: 4 | AR7: 4 | AS7: 3 | AT7: 3 | AU7: 3 | AV7: 3 | AW7: 2 | AX7: 2 | AY7: 4 | AZ7: 4 | BA7: 3 | BB7: 2 | BC7: 2 | BD7: 4 | BE7: 3 | BF7: 4 | BG7: 3 | BH7: 4 | BI7: 2 | BJ7: 3 | BK7: 3 | BL7: 3 | BM7: 4 | BN7: 4 | BO7: 3 | BP7: 3 | BQ7: 4 | BR7: 4 | BS7: 5 | BT7: =Programs!C12 -> Male | BU7: 29 | BV7: 59 | BW7: 15 | BX7: 55 | BY7: =SUM(F7,J7,O7,LOOKUP(V7,{0,1,2,3,4,5},{0,5,4,3,2,1}),Y7,AF7,AI7) -> 20 | BZ7: 55 | CA7: 23 | CB7: 55 | CC7: 14 | CD7: 48 | CE7: 101 | CF7: 56 | CG7: 3 | CH7: 0 | CI7: 0 | CJ7: 0 | CK7: 0 | CL7: 0 | CM7: 1 | CN7: 1 | CO7: 1 | CP7: 0 | CQ7: 0 | CR7: 0 | CS7: 0 | DC7: 23 | DD7: 53 | DE7: 18 | DF7: 60 | DG7: =SUM(AN7,AR7,AW7,LOOKUP(BD7,{0,1,2,3,4,5},{0,5,4,3,2,1}),BG7,BN7,BQ7) -> 22 | DH7: 57 | DI7: 28 | DJ7: 62 | DK7: 20 | DL7: 59 | DM7: 111 | DN7: 60 | DO7: 3 | DP7: 0 | DQ7: 0 | DR7: 0 | DS7: 0 | DT7: 0 | DU7: 0 | DV7: 0 | DW7: 1 | DX7: 1 | DY7: 0 | DZ7: 1 | EA7: 0 | EC7: -0.75 | ED7: -6 | EE7: 0.6 | EF7: 5 | EG7: 0.2857142857 | EH7: 2 | EI7: 0.625 | EJ7: 7 | EK7: 1 | EL7: 11 | EM7: 0.2941176471 | EN7: 4 | EP7: =IF(Programs!$D$6="","",Programs!$D$6) -> 3 | EQ7: 3 | ES7: 3 | FE7: 1.162383999 | FG7: 0.8942679235 | FI7: 0.9723578108 | FK7: 1.030137541 | FM7: 0.9436537886 | FO7: 1.021236462
B8: =Programs!B13 -> Tyree Phillips | C8: =IF(Programs!$C$6="","",Programs!$C$6) -> 2014-05-02 | D8: 2 | E8: 1 | F8: 1 | G8: 1 | H8: 1 | I8: 1 | J8: 1 | K8: 1 | L8: 2 | M8: 1 | N8: 2 | O8: 2 | P8: 1 | Q8: 2 | R8: 1 | S8: 2 | T8: 1 | U8: 2 | V8: 2 | W8: 2 | X8: 2 | Y8: 1 | Z8: 1 | AA8: 1 | AB8: 1 | AC8: 2 | AD8: 2 | AE8: 2 | AF8: 2 | AG8: 2 | AH8: 2 | AI8: 2 | AJ8: 2 | AK8: 2 | AL8: 3 | AM8: 3 | AN8: 5 | AO8: 5 | AP8: 5 | AQ8: 3 | AR8: 3 | AS8: 4 | AT8: 4 | AU8: 3 | AV8: 3 | AW8: 3 | AX8: 3 | AY8: 3 | AZ8: 4 | BA8: 5 | BB8: 5 | BC8: 5 | BD8: 3 | BE8: 3 | BF8: 3 | BG8: 3 | BH8: 4 | BI8: 4 | BJ8: 4 | BK8: 5 | BL8: 5 | BM8: 3 | BN8: 4 | BO8: 2 | BP8: 5 | BQ8: 2 | BR8: 5 | BS8: 4 | BT8: =Programs!C13 -> Male | BU8: 10 | BV8: 36 | BW8: 8 | BX8: 38 | BY8: =SUM(F8,J8,O8,LOOKUP(V8,{0,1,2,3,4,5},{0,5,4,3,2,1}),Y8,AF8,AI8) -> 13 | BZ8: 44 | CA8: 14 | CB8: 42 | CC8: 10 | CD8: 40 | CE8: 55 | CF8: 38 | CG8: 0 | CH8: 0 | CI8: 0 | CJ8: 0 | CK8: 0 | CL8: 0 | CM8: 0 | CN8: 0 | CO8: 0 | CP8: 0 | CQ8: 0 | CR8: 0 | CS8: 0 | DC8: 32 | DD8: 63 | DE8: 19 | DF8: 62 | DG8: =SUM(AN8,AR8,AW8,LOOKUP(BD8,{0,1,2,3,4,5},{0,5,4,3,2,1}),BG8,BN8,BQ8) -> 23 | DH8: 59 | DI8: 33 | DJ8: 69 | DK8: 21 | DL8: 61 | DM8: 128 | DN8: 67 | DO8: 5 | DP8: 0 | DQ8: 1 | DR8: 1 | DS8: 1 | DT8: 0 | DU8: 0 | DV8: 0 | DW8: 0 | DX8: 1 | DY8: 1 | DZ8: 0 | EA8: 0 | EC8: 2.75 | ED8: 27 | EE8: 2.2 | EF8: 24 | EG8: 1.428571429 | EH8: 15 | EI8: 2.375 | EJ8: 27 | EK8: 1.833333333 | EL8: 21 | EM8: 2.147058824 | EN8: 29 | EP8: =IF(Programs!$D$6="","",Programs!$D$6) -> 3 | EQ8: 3 | FE8: 1.162383999 | FG8: 0.8942679235 | FI8: 0.9723578108 | FK8: 1.030137541 | FM8: 0.9436537886 | FO8: 1.021236462
B9: =Programs!B14 -> Scott Laughlin | C9: =IF(Programs!$C$6="","",Programs!$C$6) -> 2014-05-02 | D9: 2 | E9: 1 | F9: 2 | G9: 2 | H9: 3 | I9: 1 | J9: 1 | K9: 2 | L9: 1 | M9: 2 | N9: 2 | O9: 2 | P9: 1 | Q9: 2 | R9: 2 | S9: 2 | T9: 2 | U9: 1 | V9: 2 | W9: 2 | X9: 2 | Y9: 2 | Z9: 2 | AA9: 1 | AB9: 2 | AC9: 2 | AD9: 2 | AE9: 2 | AF9: 2 | AG9: 1 | AH9: 2 | AI9: 2 | AJ9: 1 | AK9: 5 | AL9: 3 | AM9: 3 | AN9: 3 | AO9: 3 | AP9: 3 | AQ9: 3 | AR9: 3 | AS9: 3 | AT9: 3 | AU9: 3 | AV9: 3 | AW9: 3 | AX9: 3 | AY9: 3 | AZ9: 3 | BA9: 3 | BB9: 3 | BC9: 3 | BD9: 3 | BE9: 3 | BF9: 3 | BG9: 3 | BH9: 3 | BI9: 3 | BJ9: 3 | BK9: 3 | BL9: 3 | BM9: 3 | BN9: 3 | BO9: 3 | BP9: 3 | BQ9: 3 | BR9: 3 | BS9: 3 | BT9: =Programs!C14 -> Male | BU9: 15 | BV9: 43 | BW9: 9 | BX9: 41 | BY9: =SUM(F9,J9,O9,LOOKUP(V9,{0,1,2,3,4,5},{0,5,4,3,2,1}),Y9,AF9,AI9) -> 15 | BZ9: 48 | CA9: 14 | CB9: 42 | CC9: 12 | CD9: 45 | CE9: 65 | CF9: 43 | CG9: 1 | CH9: 0 | CI9: 1 | CJ9: 0 | CK9: 0 | CL9: 0 | CM9: 0 | CN9: 0 | CO9: 0 | CP9: 0 | CQ9: 0 | CR9: 0 | CS9: 0 | DC9: 24 | DD9: 54 | DE9: 15 | DF9: 55 | DG9: =SUM(AN9,AR9,AW9,LOOKUP(BD9,{0,1,2,3,4,5},{0,5,4,3,2,1}),BG9,BN9,BQ9) -> 21 | DH9: 56 | DI9: 24 | DJ9: 56 | DK9: 18 | DL9: 56 | DM9: 102 | DN9: 57 | DO9: 0 | DP9: 0 | DQ9: 0 | DR9: 0 | DS9: 0 | DT9: 0 | DU9: 0 | DV9: 0 | DW9: 0 | DX9: 0 | DY9: 0 | DZ9: 0 | EA9: 0 | EC9: 1.125 | ED9: 11 | EE9: 1.2 | EF9: 14 | EG9: 0.8571428571 | EH9: 8 | EI9: 1.25 | EJ9: 14 | EK9: 1 | EL9: 11 | EM9: 1.088235294 | EN9: 14 | EP9: =IF(Programs!$D$6="","",Programs!$D$6) -> 3 | EQ9: 3 | FE9: 1.162383999 | FG9: 0.8942679235 | FI9: 0.9723578108 | FK9: 1.030137541 | FM9: 0.9436537886 | FO9: 1.021236462
B10: =Programs!B15 -> Jared Edwards | C10: =IF(Programs!$C$6="","",Programs!$C$6) -> 2014-05-02 | D10: 3 | E10: 3 | F10: 3 | G10: 4 | H10: 4 | I10: 2 | J10: 1 | K10: 4 | L10: 4 | M10: 5 | N10: 5 | O10: 3 | P10: 3 | Q10: 3 | R10: 1 | S10: 4 | T10: 5 | U10: 1 | V10: 3 | W10: 3 | X10: 1 | Y10: 4 | Z10: 4 | AA10: 4 | AB10: 5 | AC10: 5 | AD10: 3 | AE10: 5 | AF10: 5 | AG10: 2 | AH10: 1 | AI10: 3 | AJ10: 1 | AK10: 2 | AL10: 3 | AM10: 5 | AN10: 4 | AO10: 4 | AP10: 5 | AQ10: 5 | AR10: 2 | AS10: 4 | AT10: 4 | AU10: 5 | AV10: 4 | AW10: 5 | AX10: 4 | AY10: 5 | AZ10: 4 | BA10: 5 | BB10: 5 | BC10: 5 | BD10: 4 | BE10: 4 | BF10: 4 | BG10: 4 | BH10: 2 | BI10: 4 | BJ10: 4 | BK10: 4 | BL10: 5 | BM10: 4 | BN10: 4 | BO10: 5 | BP10: 4 | BQ10: 5 | BR10: 4 | BS10: 5 | BT10: =Programs!C15 -> Male | BU10: 35 | BV10: 67 | BW10: 17 | BX10: 59 | BY10: =SUM(F10,J10,O10,LOOKUP(V10,{0,1,2,3,4,5},{0,5,4,3,2,1}),Y10,AF10,AI10) -> 22 | BZ10: 57 | CA10: 23 | CB10: 55 | CC10: 12 | CD10: 45 | CE10: 109 | CF10: 59 | CG10: 4 | CH10: 0 | CI10: 0 | CJ10: 1 | CK10: 0 | CL10: 0 | CM10: 0 | CN10: 1 | CO10: 0 | CP10: 1 | CQ10: 0 | CR10: 0 | CS10: 1 | DC10: 33 | DD10: 64 | DE10: 20 | DF10: 64 | DG10: =SUM(AN10,AR10,AW10,LOOKUP(BD10,{0,1,2,3,4,5},{0,5,4,3,2,1}),BG10,BN10,BQ10) -> 26 | DH10: 63 | DI10: 35 | DJ10: 72 | DK10: 28 | DL10: 73 | DM10: 142 | DN10: 71 | DO10: 2 | DP10: 0 | DQ10: 0 | DR10: 0 | DS10: 1 | DT10: 0 | DU10: 0 | DV10: 0 | DW10: 0 | DX10: 0 | DY10: 0 | DZ10: 1 | EA10: 0 | EC10: -0.25 | ED10: -3 | EE10: 0.6 | EF10: 5 | EG10: 0.5714285714 | EH10: 6 | EI10: 1.5 | EJ10: 17 | EK10: 2.666666667 | EL10: 28 | EM10: 0.9705882353 | EN10: 12 | EP10: =IF(Programs!$D$6="","",Programs!$D$6) -> 3 | EQ10: 3 | ES10: 3 | FE10: 1.162383999 | FG10: 0.8942679235 | FI10: 0.9723578108 | FK10: 1.030137541 | FM10: 0.9436537886 | FO10: 1.021236462
B11: =Programs!B16 -> 0 | C11: =IF(Programs!$C$6="","",Programs!$C$6) -> 2014-05-02 | BT11: =Programs!C16 -> 0 | BU11: 0 | BW11: 0 | BY11: =SUM(F11,J11,O11,LOOKUP(V11,{0,1,2,3,4,5},{0,5,4,3,2,1}),Y11,AF11,AI11) -> 0 | CA11: 0 | CC11: 0 | CE11: 0 | CG11: 0 | CH11: 0 | CI11: 0 | CJ11: 0 | CK11: 0 | CL11: 0 | CM11: 0 | CN11: 0 | CO11: 0 | CP11: 0 | CQ11: 0 | CR11: 0 | CS11: 0 | DC11: 0 | DE11: 0 | DG11: =SUM(AN11,AR11,AW11,LOOKUP(BD11,{0,1,2,3,4,5},{0,5,4,3,2,1}),BG11,BN11,BQ11) -> 0 | DI11: 0 | DK11: 0 | DM11: 0 | DO11: 0 | DP11: 0 | DQ11: 0 | DR11: 0 | DS11: 0 | DT11: 0 | DU11: 0 | DV11: 0 | DW11: 0 | DX11: 0 | DY11: 0 | DZ11: 0 | EA11: 0 | EP11: =IF(Programs!$D$6="","",Programs!$D$6) -> 3 | FE11: 1.162383999 | FG11: 0.8942679235 | FI11: 0.9723578108 | FK11: 1.030137541 | FM11: 0.9436537886 | FO11: 1.021236462
B12: =Programs!B17 -> 0 | C12: =IF(Programs!$C$6="","",Programs!$C$6) -> 2014-05-02 | BT12: =Programs!C17 -> 0 | BU12: =SUM(K12,M12,N12,T12,Z12,AA12,AB12,AD12) -> 0 | BV12: =IF(OR($BT12=0,BU12=0),"",(IF($BT12="Male",(VLOOKUP(BU12,PHYMT,3,FALSE)),(VLOOKUP(BU12,PHFMT,2,FALSE))))) ->  | BW12: =SUM(D12,G12,I12,W12,AC12) -> 0 | BX12: =IF(BW12=0,"",VLOOKUP(BW12,VER,5,FALSE)) ->  | BY12: =SUM(F12,J12,O12,LOOKUP(V12,{0,1,2,3,4,5},{0,5,4,3,2,1}),Y12,AF12,AI12) -> 0 | BZ12: =IF(BY12=0,"",VLOOKUP(BY12,ANG,4,FALSE)) ->  | CA12: =SUM(E12,H12,L12,S12,X12,AE12,AH12,AJ12) -> 0 | CB12: =IF(CA12=0,"",IF(CA12>38,81,VLOOKUP(CA12,HOS,3,FALSE))) ->  | CC12: =SUM(P12,Q12,R12,U12,AG12,AK12) -> 0 | CD12: =IF(CC12=0,"",VLOOKUP(CC12,IND,2,FALSE)) ->  | CE12: =SUM(BU12,BW12,BY12,CA12,CC12) -> 0 | CF12: =IF(CE12=0,"",VLOOKUP(CE12,AQT,2,FALSE)) ->  | CG12: =SUM(CH12:CS12) -> 0 | CH12: =IF(ABS(D12-Y12)>1,1,0) -> 0 | CI12: =IF(ABS(E12-H12)>1,1,0) -> 0 | CJ12: =IF(ABS(G12-I12)>1,1,0) -> 0 | CK12: =IF(ABS(J12-AJ12)>1,1,0) -> 0 | CL12: =IF(ABS(K12-N12)>1,1,0) -> 0 | CM12: =IF(ABS(L12-AF12)>1,1,0) -> 0 | CN12: =IF(ABS(M12-P12)>1,1,0) -> 0 | CO12: =IF(ABS(O12-AI12)>1,1,0) -> 0 | CP12: =IF(ABS(Q12-T12)>1,1,0) -> 0 | CQ12: =IF(ABS(X12-AH12)>1,1,0) -> 0 | CR12: =IF(ABS(Z12-AA12)>1,1,0) -> 0 | CS12: =IF(ABS(AB12-AD12)>1,1,0) -> 0 | DC12: =SUM(AS12,AU12,AV12,BB12,BH12,BI12,BJ12,BL12) -> 0 | DD12: =IF(OR($BT12=0,DC12=0),"",(IF($BT12="Male",(VLOOKUP(DC12,PHYMT,3,FALSE)),(VLOOKUP(DC12,PHFMT,2,FALSE))))) ->  | DE12: =SUM(AL12,AO12,AQ12,BE12,BK12) -> 0 | DF12: =IF(DE12=0,"",VLOOKUP(DE12,VER,5,FALSE)) ->  | DG12: =SUM(AN12,AR12,AW12,LOOKUP(BD12,{0,1,2,3,4,5},{0,5,4,3,2,1}),BG12,BN12,BQ12) -> 0 | DH12: =IF(DG12=0,"",VLOOKUP(DG12,ANG,4,FALSE)) ->  | DI12: =SUM(AM12,AP12,AT12,BA12,BF12,BM12,BP12,BR12) -> 0 | DJ12: =IF(DI12=0,"",VLOOKUP(DI12,HOS,3,FALSE)) ->  | DK12: =SUM(AX12,AY12,AZ12,BC12,BO12,BS12) -> 0 | DL12: =IF(DK12=0,"",VLOOKUP(DK12,IND,2,FALSE)) ->  | DM12: =SUM(DC12,DE12,DG12,DI12,DK12) -> 0 | DN12: =IF(DM12=0,"",IF(DM12<39,24,VLOOKUP(DM12,AQT,2,FALSE))) ->  | DO12: =SUM(DP12:EA12) -> 0 | DP12: =IF(ABS(AL12-BG12)>1,1,0) -> 0 | DQ12: =IF(ABS(AM12-AP12)>1,1,0) -> 0 | DR12: =IF(ABS(AO12-AQ12)>1,1,0) -> 0 | DS12: =IF(ABS(AR12-BR12)>1,1,0) -> 0 | DT12: =IF(ABS(AS12-AV12)>1,1,0) -> 0 | DU12: =IF(ABS(AT12-BN12)>1,1,0) -> 0 | DV12: =IF(ABS(AU12-AX12)>1,1,0) -> 0 | DW12: =IF(ABS(AW12-BQ12)>1,1,0) -> 0 | DX12: =IF(ABS(AY12-BB12)>1,1,0) -> 0 | DY12: =IF(ABS(BF12-BP12)>1,1,0) -> 0 | DZ12: =IF(ABS(BH12-BI12)>1,1,0) -> 0 | EA12: =IF(ABS(BJ12-BL12)>1,1,0) -> 0 | EC12: =IF(EQ12<>"",(DC12/8)-(BU12/8),"") ->  | ED12: =IF(EQ12<>"",IF(BT12=0,"",DD12-BV12),"") ->  | EE12: =IF(EQ12<>"",(DE12/5)-(BW12/5),"") ->  | EF12: =IF(EQ12<>"",DF12-BX12,"") ->  | EG12: =IF(EQ12<>"",(DG12/7)-(BY12/7),"") ->  | EH12: =IF(EQ12<>"",DH12-BZ12,"") ->  | EI12: =IF(EQ12<>"",(DI12/8)-(CA12/8),"") ->  | EJ12: =IF(EQ12<>"",DJ12-CB12,"") ->  | EK12: =IF(EQ12<>"",(DK12/6)-(CC12/6),"") ->  | EL12: =IF(EQ12<>"",DL12-CD12,"") ->  | EM12: =IF(EQ12<>"",(DM12/34)-(CE12/34),"") ->  | EN12: =IF(EQ12<>"",DN12-CF12,"") ->  | EP12: =IF(Programs!$D$6="","",Programs!$D$6) -> 3 | EQ12: =IF(AND(COUNT(D12:AK12)>30,COUNT(AL12:BS12)>30),EP12,"") ->  | ER12: =IF($EQ12="","",IF(AND(ABS(EC12)>FE12,EC12<0),$EQ12,"")) ->  | ES12: =IF(ED12<0,$EQ12,"") ->  | ET12: =IF($EQ12="","",IF(AND(ABS(EE12)>FG12,EE12<0),$EQ12,"")) ->  | EU12: =IF(EF12<0,$EQ12,"") ->  | EV12: =IF($EQ12="","",IF(AND(ABS(EG12)>FI12,EG12<0),$EQ12,"")) ->  | EW12: =IF(EH12<0,$EQ12,"") ->  | EX12: =IF($EQ12="","",IF(AND(ABS(EI12)>FK12,EI12<0),$EQ12,"")) ->  | EY12: =IF(EJ12<0,$EQ12,"") ->  | EZ12: =IF($EQ12="","",IF(AND(ABS(EK12)>FM12,EK12<0),$EQ12,"")) ->  | FA12: =IF(EL12<0,$EQ12,"") ->  | FB12: =IF($EQ12="","",IF(AND(ABS(EM12)>FO12,EM12<0),$EQ12,"")) ->  | FC12: =IF(EN12<0,$EQ12,"") ->  | FE12: 1.162383999 | FG12: 0.8942679235 | FI12: 0.9723578108 | FK12: 1.030137541 | FM12: 0.9436537886 | FO12: 1.021236462
B13: =Programs!B18 -> 0 | C13: =IF(Programs!$C$6="","",Programs!$C$6) -> 2014-05-02 | BT13: =Programs!C18 -> 0 | BU13: =SUM(K13,M13,N13,T13,Z13,AA13,AB13,AD13) -> 0 | BV13: =IF(OR($BT13=0,BU13=0),"",(IF($BT13="Male",(VLOOKUP(BU13,PHYMT,3,FALSE)),(VLOOKUP(BU13,PHFMT,2,FALSE))))) ->  | BW13: =SUM(D13,G13,I13,W13,AC13) -> 0 | BX13: =IF(BW13=0,"",VLOOKUP(BW13,VER,5,FALSE)) ->  | BY13: =SUM(F13,J13,O13,LOOKUP(V13,{0,1,2,3,4,5},{0,5,4,3,2,1}),Y13,AF13,AI13) -> 0 | BZ13: =IF(BY13=0,"",VLOOKUP(BY13,ANG,4,FALSE)) ->  | CA13: =SUM(E13,H13,L13,S13,X13,AE13,AH13,AJ13) -> 0 | CB13: =IF(CA13=0,"",IF(CA13>38,81,VLOOKUP(CA13,HOS,3,FALSE))) ->  | CC13: =SUM(P13,Q13,R13,U13,AG13,AK13) -> 0 | CD13: =IF(CC13=0,"",VLOOKUP(CC13,IND,2,FALSE)) ->  | CE13: =SUM(BU13,BW13,BY13,CA13,CC13) -> 0 | CF13: =IF(CE13=0,"",VLOOKUP(CE13,AQT,2,FALSE)) ->  | CG13: =SUM(CH13:CS13) -> 0 | CH13: =IF(ABS(D13-Y13)>1,1,0) -> 0 | CI13: =IF(ABS(E13-H13)>1,1,0) -> 0 | CJ13: =IF(ABS(G13-I13)>1,1,0) -> 0 | CK13: =IF(ABS(J13-AJ13)>1,1,0) -> 0 | CL13: =IF(ABS(K13-N13)>1,1,0) -> 0 | CM13: =IF(ABS(L13-AF13)>1,1,0) -> 0 | CN13: =IF(ABS(M13-P13)>1,1,0) -> 0 | CO13: =IF(ABS(O13-AI13)>1,1,0) -> 0 | CP13: =IF(ABS(Q13-T13)>1,1,0) -> 0 | CQ13: =IF(ABS(X13-AH13)>1,1,0) -> 0 | CR13: =IF(ABS(Z13-AA13)>1,1,0) -> 0 | CS13: =IF(ABS(AB13-AD13)>1,1,0) -> 0 | DC13: =SUM(AS13,AU13,AV13,BB13,BH13,BI13,BJ13,BL13) -> 0 | DD13: =IF(OR($BT13=0,DC13=0),"",(IF($BT13="Male",(VLOOKUP(DC13,PHYMT,3,FALSE)),(VLOOKUP(DC13,PHFMT,2,FALSE))))) ->  | DE13: =SUM(AL13,AO13,AQ13,BE13,BK13) -> 0 | DF13: =IF(DE13=0,"",VLOOKUP(DE13,VER,5,FALSE)) ->  | DG13: =SUM(AN13,AR13,AW13,LOOKUP(BD13,{0,1,2,3,4,5},{0,5,4,3,2,1}),BG13,BN13,BQ13) -> 0 | DH13: =IF(DG13=0,"",VLOOKUP(DG13,ANG,4,FALSE)) ->  | DI13: =SUM(AM13,AP13,AT13,BA13,BF13,BM13,BP13,BR13) -> 0 | DJ13: =IF(DI13=0,"",VLOOKUP(DI13,HOS,3,FALSE)) ->  | DK13: =SUM(AX13,AY13,AZ13,BC13,BO13,BS13) -> 0 | DL13: =IF(DK13=0,"",VLOOKUP(DK13,IND,2,FALSE)) ->  | DM13: =SUM(DC13,DE13,DG13,DI13,DK13) -> 0 | DN13: =IF(DM13=0,"",IF(DM13<39,24,VLOOKUP(DM13,AQT,2,FALSE))) ->  | DO13: =SUM(DP13:EA13) -> 0 | DP13: =IF(ABS(AL13-BG13)>1,1,0) -> 0 | DQ13: =IF(ABS(AM13-AP13)>1,1,0) -> 0 | DR13: =IF(ABS(AO13-AQ13)>1,1,0) -> 0 | DS13: =IF(ABS(AR13-BR13)>1,1,0) -> 0 | DT13: =IF(ABS(AS13-AV13)>1,1,0) -> 0 | DU13: =IF(ABS(AT13-BN13)>1,1,0) -> 0 | DV13: =IF(ABS(AU13-AX13)>1,1,0) -> 0 | DW13: =IF(ABS(AW13-BQ13)>1,1,0) -> 0 | DX13: =IF(ABS(AY13-BB13)>1,1,0) -> 0 | DY13: =IF(ABS(BF13-BP13)>1,1,0) -> 0 | DZ13: =IF(ABS(BH13-BI13)>1,1,0) -> 0 | EA13: =IF(ABS(BJ13-BL13)>1,1,0) -> 0 | EC13: =IF(EQ13<>"",(DC13/8)-(BU13/8),"") ->  | ED13: =IF(EQ13<>"",IF(BT13=0,"",DD13-BV13),"") ->  | EE13: =IF(EQ13<>"",(DE13/5)-(BW13/5),"") ->  | EF13: =IF(EQ13<>"",DF13-BX13,"") ->  | EG13: =IF(EQ13<>"",(DG13/7)-(BY13/7),"") ->  | EH13: =IF(EQ13<>"",DH13-BZ13,"") ->  | EI13: =IF(EQ13<>"",(DI13/8)-(CA13/8),"") ->  | EJ13: =IF(EQ13<>"",DJ13-CB13,"") ->  | EK13: =IF(EQ13<>"",(DK13/6)-(CC13/6),"") ->  | EL13: =IF(EQ13<>"",DL13-CD13,"") ->  | EM13: =IF(EQ13<>"",(DM13/34)-(CE13/34),"") ->  | EN13: =IF(EQ13<>"",DN13-CF13,"") ->  | EP13: =IF(Programs!$D$6="","",Programs!$D$6) -> 3 | EQ13: =IF(AND(COUNT(D13:AK13)>30,COUNT(AL13:BS13)>30),EP13,"") ->  | ER13: =IF($EQ13="","",IF(AND(ABS(EC13)>FE13,EC13<0),$EQ13,"")) ->  | ES13: =IF(ED13<0,$EQ13,"") ->  | ET13: =IF($EQ13="","",IF(AND(ABS(EE13)>FG13,EE13<0),$EQ13,"")) ->  | EU13: =IF(EF13<0,$EQ13,"") ->  | EV13: =IF($EQ13="","",IF(AND(ABS(EG13)>FI13,EG13<0),$EQ13,"")) ->  | EW13: =IF(EH13<0,$EQ13,"") ->  | EX13: =IF($EQ13="","",IF(AND(ABS(EI13)>FK13,EI13<0),$EQ13,"")) ->  | EY13: =IF(EJ13<0,$EQ13,"") ->  | EZ13: =IF($EQ13="","",IF(AND(ABS(EK13)>FM13,EK13<0),$EQ13,"")) ->  | FA13: =IF(EL13<0,$EQ13,"") ->  | FB13: =IF($EQ13="","",IF(AND(ABS(EM13)>FO13,EM13<0),$EQ13,"")) ->  | FC13: =IF(EN13<0,$EQ13,"") ->  | FE13: 1.162383999 | FG13: 0.8942679235 | FI13: 0.9723578108 | FK13: 1.030137541 | FM13: 0.9436537886 | FO13: 1.021236462
B14: =Programs!B19 -> 0 | C14: =IF(Programs!$C$6="","",Programs!$C$6) -> 2014-05-02 | BT14: =Programs!C19 -> 0 | BU14: =SUM(K14,M14,N14,T14,Z14,AA14,AB14,AD14) -> 0 | BV14: =IF(OR($BT14=0,BU14=0),"",(IF($BT14="Male",(VLOOKUP(BU14,PHYMT,3,FALSE)),(VLOOKUP(BU14,PHFMT,2,FALSE))))) ->  | BW14: =SUM(D14,G14,I14,W14,AC14) -> 0 | BX14: =IF(BW14=0,"",VLOOKUP(BW14,VER,5,FALSE)) ->  | BY14: =SUM(F14,J14,O14,LOOKUP(V14,{0,1,2,3,4,5},{0,5,4,3,2,1}),Y14,AF14,AI14) -> 0 | BZ14: =IF(BY14=0,"",VLOOKUP(BY14,ANG,4,FALSE)) ->  | CA14: =SUM(E14,H14,L14,S14,X14,AE14,AH14,AJ14) -> 0 | CB14: =IF(CA14=0,"",IF(CA14>38,81,VLOOKUP(CA14,HOS,3,FALSE))) ->  | CC14: =SUM(P14,Q14,R14,U14,AG14,AK14) -> 0 | CD14: =IF(CC14=0,"",VLOOKUP(CC14,IND,2,FALSE)) ->  | CE14: =SUM(BU14,BW14,BY14,CA14,CC14) -> 0 | CF14: =IF(CE14=0,"",VLOOKUP(CE14,AQT,2,FALSE)) ->  | CG14: =SUM(CH14:CS14) -> 0 | CH14: =IF(ABS(D14-Y14)>1,1,0) -> 0 | CI14: =IF(ABS(E14-H14)>1,1,0) -> 0 | CJ14: =IF(ABS(G14-I14)>1,1,0) -> 0 | CK14: =IF(ABS(J14-AJ14)>1,1,0) -> 0 | CL14: =IF(ABS(K14-N14)>1,1,0) -> 0 | CM14: =IF(ABS(L14-AF14)>1,1,0) -> 0 | CN14: =IF(ABS(M14-P14)>1,1,0) -> 0 | CO14: =IF(ABS(O14-AI14)>1,1,0) -> 0 | CP14: =IF(ABS(Q14-T14)>1,1,0) -> 0 | CQ14: =IF(ABS(X14-AH14)>1,1,0) -> 0 | CR14: =IF(ABS(Z14-AA14)>1,1,0) -> 0 | CS14: =IF(ABS(AB14-AD14)>1,1,0) -> 0 | DC14: =SUM(AS14,AU14,AV14,BB14,BH14,BI14,BJ14,BL14) -> 0 | DD14: =IF(OR($BT14=0,DC14=0),"",(IF($BT14="Male",(VLOOKUP(DC14,PHYMT,3,FALSE)),(VLOOKUP(DC14,PHFMT,2,FALSE))))) ->  | DE14: =SUM(AL14,AO14,AQ14,BE14,BK14) -> 0 | DF14: =IF(DE14=0,"",VLOOKUP(DE14,VER,5,FALSE)) ->  | DG14: =SUM(AN14,AR14,AW14,LOOKUP(BD14,{0,1,2,3,4,5},{0,5,4,3,2,1}),BG14,BN14,BQ14) -> 0 | DH14: =IF(DG14=0,"",VLOOKUP(DG14,ANG,4,FALSE)) ->  | DI14: =SUM(AM14,AP14,AT14,BA14,BF14,BM14,BP14,BR14) -> 0 | DJ14: =IF(DI14=0,"",VLOOKUP(DI14,HOS,3,FALSE)) ->  | DK14: =SUM(AX14,AY14,AZ14,BC14,BO14,BS14) -> 0 | DL14: =IF(DK14=0,"",VLOOKUP(DK14,IND,2,FALSE)) ->  | DM14: =SUM(DC14,DE14,DG14,DI14,DK14) -> 0 | DN14: =IF(DM14=0,"",IF(DM14<39,24,VLOOKUP(DM14,AQT,2,FALSE))) ->  | DO14: =SUM(DP14:EA14) -> 0 | DP14: =IF(ABS(AL14-BG14)>1,1,0) -> 0 | DQ14: =IF(ABS(AM14-AP14)>1,1,0) -> 0 | DR14: =IF(ABS(AO14-AQ14)>1,1,0) -> 0 | DS14: =IF(ABS(AR14-BR14)>1,1,0) -> 0 | DT14: =IF(ABS(AS14-AV14)>1,1,0) -> 0 | DU14: =IF(ABS(AT14-BN14)>1,1,0) -> 0 | DV14: =IF(ABS(AU14-AX14)>1,1,0) -> 0 | DW14: =IF(ABS(AW14-BQ14)>1,1,0) -> 0 | DX14: =IF(ABS(AY14-BB14)>1,1,0) -> 0 | DY14: =IF(ABS(BF14-BP14)>1,1,0) -> 0 | DZ14: =IF(ABS(BH14-BI14)>1,1,0) -> 0 | EA14: =IF(ABS(BJ14-BL14)>1,1,0) -> 0 | EC14: =IF(EQ14<>"",(DC14/8)-(BU14/8),"") ->  | ED14: =IF(EQ14<>"",IF(BT14=0,"",DD14-BV14),"") ->  | EE14: =IF(EQ14<>"",(DE14/5)-(BW14/5),"") ->  | EF14: =IF(EQ14<>"",DF14-BX14,"") ->  | EG14: =IF(EQ14<>"",(DG14/7)-(BY14/7),"") ->  | EH14: =IF(EQ14<>"",DH14-BZ14,"") ->  | EI14: =IF(EQ14<>"",(DI14/8)-(CA14/8),"") ->  | EJ14: =IF(EQ14<>"",DJ14-CB14,"") ->  | EK14: =IF(EQ14<>"",(DK14/6)-(CC14/6),"") ->  | EL14: =IF(EQ14<>"",DL14-CD14,"") ->  | EM14: =IF(EQ14<>"",(DM14/34)-(CE14/34),"") ->  | EN14: =IF(EQ14<>"",DN14-CF14,"") ->  | EP14: =IF(Programs!$D$6="","",Programs!$D$6) -> 3 | EQ14: =IF(AND(COUNT(D14:AK14)>30,COUNT(AL14:BS14)>30),EP14,"") ->  | ER14: =IF($EQ14="","",IF(AND(ABS(EC14)>FE14,EC14<0),$EQ14,"")) ->  | ES14: =IF(ED14<0,$EQ14,"") ->  | ET14: =IF($EQ14="","",IF(AND(ABS(EE14)>FG14,EE14<0),$EQ14,"")) ->  | EU14: =IF(EF14<0,$EQ14,"") ->  | EV14: =IF($EQ14="","",IF(AND(ABS(EG14)>FI14,EG14<0),$EQ14,"")) ->  | EW14: =IF(EH14<0,$EQ14,"") ->  | EX14: =IF($EQ14="","",IF(AND(ABS(EI14)>FK14,EI14<0),$EQ14,"")) ->  | EY14: =IF(EJ14<0,$EQ14,"") ->  | EZ14: =IF($EQ14="","",IF(AND(ABS(EK14)>FM14,EK14<0),$EQ14,"")) ->  | FA14: =IF(EL14<0,$EQ14,"") ->  | FB14: =IF($EQ14="","",IF(AND(ABS(EM14)>FO14,EM14<0),$EQ14,"")) ->  | FC14: =IF(EN14<0,$EQ14,"") ->  | FE14: 1.162383999 | FG14: 0.8942679235 | FI14: 0.9723578108 | FK14: 1.030137541 | FM14: 0.9436537886 | FO14: 1.021236462
B15: =Programs!B20 -> 0 | C15: =IF(Programs!$C$6="","",Programs!$C$6) -> 2014-05-02 | BT15: =Programs!C20 -> 0 | BU15: =SUM(K15,M15,N15,T15,Z15,AA15,AB15,AD15) -> 0 | BV15: =IF(OR($BT15=0,BU15=0),"",(IF($BT15="Male",(VLOOKUP(BU15,PHYMT,3,FALSE)),(VLOOKUP(BU15,PHFMT,2,FALSE))))) ->  | BW15: =SUM(D15,G15,I15,W15,AC15) -> 0 | BX15: =IF(BW15=0,"",VLOOKUP(BW15,VER,5,FALSE)) ->  | BY15: =SUM(F15,J15,O15,LOOKUP(V15,{0,1,2,3,4,5},{0,5,4,3,2,1}),Y15,AF15,AI15) -> 0 | BZ15: =IF(BY15=0,"",VLOOKUP(BY15,ANG,4,FALSE)) ->  | CA15: =SUM(E15,H15,L15,S15,X15,AE15,AH15,AJ15) -> 0 | CB15: =IF(CA15=0,"",IF(CA15>38,81,VLOOKUP(CA15,HOS,3,FALSE))) ->  | CC15: =SUM(P15,Q15,R15,U15,AG15,AK15) -> 0 | CD15: =IF(CC15=0,"",VLOOKUP(CC15,IND,2,FALSE)) ->  | CE15: =SUM(BU15,BW15,BY15,CA15,CC15) -> 0 | CF15: =IF(CE15=0,"",VLOOKUP(CE15,AQT,2,FALSE)) ->  | CG15: =SUM(CH15:CS15) -> 0 | CH15: =IF(ABS(D15-Y15)>1,1,0) -> 0 | CI15: =IF(ABS(E15-H15)>1,1,0) -> 0 | CJ15: =IF(ABS(G15-I15)>1,1,0) -> 0 | CK15: =IF(ABS(J15-AJ15)>1,1,0) -> 0 | CL15: =IF(ABS(K15-N15)>1,1,0) -> 0 | CM15: =IF(ABS(L15-AF15)>1,1,0) -> 0 | CN15: =IF(ABS(M15-P15)>1,1,0) -> 0 | CO15: =IF(ABS(O15-AI15)>1,1,0) -> 0 | CP15: =IF(ABS(Q15-T15)>1,1,0) -> 0 | CQ15: =IF(ABS(X15-AH15)>1,1,0) -> 0 | CR15: =IF(ABS(Z15-AA15)>1,1,0) -> 0 | CS15: =IF(ABS(AB15-AD15)>1,1,0) -> 0 | DC15: =SUM(AS15,AU15,AV15,BB15,BH15,BI15,BJ15,BL15) -> 0 | DD15: =IF(OR($BT15=0,DC15=0),"",(IF($BT15="Male",(VLOOKUP(DC15,PHYMT,3,FALSE)),(VLOOKUP(DC15,PHFMT,2,FALSE))))) ->  | DE15: =SUM(AL15,AO15,AQ15,BE15,BK15) -> 0 | DF15: =IF(DE15=0,"",VLOOKUP(DE15,VER,5,FALSE)) ->  | DG15: =SUM(AN15,AR15,AW15,LOOKUP(BD15,{0,1,2,3,4,5},{0,5,4,3,2,1}),BG15,BN15,BQ15) -> 0 | DH15: =IF(DG15=0,"",VLOOKUP(DG15,ANG,4,FALSE)) ->  | DI15: =SUM(AM15,AP15,AT15,BA15,BF15,BM15,BP15,BR15) -> 0 | DJ15: =IF(DI15=0,"",VLOOKUP(DI15,HOS,3,FALSE)) ->  | DK15: =SUM(AX15,AY15,AZ15,BC15,BO15,BS15) -> 0 | DL15: =IF(DK15=0,"",VLOOKUP(DK15,IND,2,FALSE)) ->  | DM15: =SUM(DC15,DE15,DG15,DI15,DK15) -> 0 | DN15: =IF(DM15=0,"",IF(DM15<39,24,VLOOKUP(DM15,AQT,2,FALSE))) ->  | DO15: =SUM(DP15:EA15) -> 0 | DP15: =IF(ABS(AL15-BG15)>1,1,0) -> 0 | DQ15: =IF(ABS(AM15-AP15)>1,1,0) -> 0 | DR15: =IF(ABS(AO15-AQ15)>1,1,0) -> 0 | DS15: =IF(ABS(AR15-BR15)>1,1,0) -> 0 | DT15: =IF(ABS(AS15-AV15)>1,1,0) -> 0 | DU15: =IF(ABS(AT15-BN15)>1,1,0) -> 0 | DV15: =IF(ABS(AU15-AX15)>1,1,0) -> 0 | DW15: =IF(ABS(AW15-BQ15)>1,1,0) -> 0 | DX15: =IF(ABS(AY15-BB15)>1,1,0) -> 0 | DY15: =IF(ABS(BF15-BP15)>1,1,0) -> 0 | DZ15: =IF(ABS(BH15-BI15)>1,1,0) -> 0 | EA15: =IF(ABS(BJ15-BL15)>1,1,0) -> 0 | EC15: =IF(EQ15<>"",(DC15/8)-(BU15/8),"") ->  | ED15: =IF(EQ15<>"",IF(BT15=0,"",DD15-BV15),"") ->  | EE15: =IF(EQ15<>"",(DE15/5)-(BW15/5),"") ->  | EF15: =IF(EQ15<>"",DF15-BX15,"") ->  | EG15: =IF(EQ15<>"",(DG15/7)-(BY15/7),"") ->  | EH15: =IF(EQ15<>"",DH15-BZ15,"") ->  | EI15: =IF(EQ15<>"",(DI15/8)-(CA15/8),"") ->  | EJ15: =IF(EQ15<>"",DJ15-CB15,"") ->  | EK15: =IF(EQ15<>"",(DK15/6)-(CC15/6),"") ->  | EL15: =IF(EQ15<>"",DL15-CD15,"") ->  | EM15: =IF(EQ15<>"",(DM15/34)-(CE15/34),"") ->  | EN15: =IF(EQ15<>"",DN15-CF15,"") ->  | EP15: =IF(Programs!$D$6="","",Programs!$D$6) -> 3 | EQ15: =IF(AND(COUNT(D15:AK15)>30,COUNT(AL15:BS15)>30),EP15,"") ->  | ER15: =IF($EQ15="","",IF(AND(ABS(EC15)>FE15,EC15<0),$EQ15,"")) ->  | ES15: =IF(ED15<0,$EQ15,"") ->  | ET15: =IF($EQ15="","",IF(AND(ABS(EE15)>FG15,EE15<0),$EQ15,"")) ->  | EU15: =IF(EF15<0,$EQ15,"") ->  | EV15: =IF($EQ15="","",IF(AND(ABS(EG15)>FI15,EG15<0),$EQ15,"")) ->  | EW15: =IF(EH15<0,$EQ15,"") ->  | EX15: =IF($EQ15="","",IF(AND(ABS(EI15)>FK15,EI15<0),$EQ15,"")) ->  | EY15: =IF(EJ15<0,$EQ15,"") ->  | EZ15: =IF($EQ15="","",IF(AND(ABS(EK15)>FM15,EK15<0),$EQ15,"")) ->  | FA15: =IF(EL15<0,$EQ15,"") ->  | FB15: =IF($EQ15="","",IF(AND(ABS(EM15)>FO15,EM15<0),$EQ15,"")) ->  | FC15: =IF(EN15<0,$EQ15,"") ->  | FE15: 1.162383999 | FG15: 0.8942679235 | FI15: 0.9723578108 | FK15: 1.030137541 | FM15: 0.9436537886 | FO15: 1.021236462
A16: Program 2 | B16: =Programs!B28 -> Imani Corbin | C16: =IF(Programs!$C$25="","",Programs!$C$25) -> 2014-05-02 | D16: 5 | E16: 1 | F16: 5 | G16: 3 | H16: 1 | I16: 2 | J16: 1 | K16: 2 | L16: 1 | M16: 1 | N16: 1 | O16: 5 | P16: 1 | Q16: 1 | R16: 5 | S16: 2 | T16: 2 | U16: 1 | V16: 5 | W16: 5 | X16: 1 | Y16: 4 | Z16: 1 | AA16: 4 | AB16: 4 | AC16: 5 | AD16: 5 | AE16: 4 | AF16: 2 | AG16: 5 | AH16: 1 | AI16: 5 | AJ16: 1 | AK16: 4 | AL16: 1 | AM16: 1 | AN16: 4 | AO16: 1 | AP16: 1 | AQ16: 2 | AR16: 3 | AS16: 3 | AT16: 3 | AV16: 2 | AW16: 1 | AX16: 3 | AY16: 4 | AZ16: 2 | BA16: 3 | BB16: 3 | BC16: 2 | BD16: 3 | BE16: 2 | BF16: 2 | BG16: 3 | BH16: 4 | BI16: 3 | BJ16: 3 | BK16: 2 | BL16: 3 | BM16: 3 | BN16: 3 | BO16: 3 | BP16: 2 | BQ16: 1 | BR16: 1 | BS16: 1 | BT16: =Programs!C28 -> Female | BU16: 20 | BV16: 54 | BW16: 20 | BX16: 64 | BY16: =SUM(F16,J16,O16,LOOKUP(V16,{0,1,2,3,4,5},{0,5,4,3,2,1}),Y16,AF16,AI16) -> 23 | BZ16: 59 | CA16: 12 | CB16: 38 | CC16: 17 | CD16: 54 | CE16: 92 | CF16: 53 | CG16: 1 | CH16: 0 | CI16: 0 | CJ16: 0 | CK16: 0 | CL16: 0 | CM16: 0 | CN16: 0 | CO16: 0 | CP16: 0 | CQ16: 0 | CR16: 1 | CS16: 0 | DC16: 21 | DD16: 55 | DE16: 8 | DF16: 38 | DG16: =SUM(AN16,AR16,AW16,LOOKUP(BD16,{0,1,2,3,4,5},{0,5,4,3,2,1}),BG16,BN16,BQ16) -> 18 | DH16: 52 | DI16: 16 | DJ16: 45 | DK16: 15 | DL16: 50 | DM16: 78 | DN16: 48 | DO16: 3 | DP16: 1 | DQ16: 0 | DR16: 0 | DS16: 1 | DT16: 0 | DU16: 0 | DV16: 1 | DW16: 0 | DX16: 0 | DY16: 0 | DZ16: 0 | EA16: 0 | EC16: 0.125 | ED16: 1 | EE16: -2.4 | EF16: -26 | EG16: -0.7142857143 | EH16: -7 | EI16: 0.5 | EJ16: 7 | EK16: -0.3333333333 | EL16: -4 | EM16: -0.4117647059 | EN16: -5 | EP16: =IF(Programs!$D$25="","",Programs!$D$25) -> 3 | EQ16: 3 | ER16: =IF($EQ16="","",IF(AND(ABS(EC16)>FE16,EC16<0),$EQ16,"")) ->  | ES16: =IF(ED16<0,$EQ16,"") ->  | ET16: =IF($EQ16="","",IF(AND(ABS(EE16)>FG16,EE16<0),$EQ16,"")) -> 3 | EU16: =IF(EF16<0,$EQ16,"") -> 3 | EV16: =IF($EQ16="","",IF(AND(ABS(EG16)>FI16,EG16<0),$EQ16,"")) ->  | EW16: =IF(EH16<0,$EQ16,"") -> 3 | EX16: =IF($EQ16="","",IF(AND(ABS(EI16)>FK16,EI16<0),$EQ16,"")) ->  | EY16: =IF(EJ16<0,$EQ16,"") ->  | EZ16: =IF($EQ16="","",IF(AND(ABS(EK16)>FM16,EK16<0),$EQ16,"")) ->  | FA16: =IF(EL16<0,$EQ16,"") -> 3 | FB16: =IF($EQ16="","",IF(AND(ABS(EM16)>FO16,EM16<0),$EQ16,"")) ->  | FC16: =IF(EN16<0,$EQ16,"") -> 3 | FE16: =lists!$J$4*(FF16)*1.414*SQRT(1-lists!$I$4) -> 1.215086729 | FF16: =STDEVA(K16:K27, M16:M27, N16:N27, T16:T27, Z16:Z27, AA16:AA27, AB16:AB27, AD16:AD27) -> 1.65711549 | FG16: =lists!$J$4*(FH16)*1.414*SQRT(1-lists!$I$4) -> 1.036811699 | FH16: =STDEVA(D16:D27,G16:G27,I16:I27,W16:W27,AC16:AC27) -> 1.413986907 | FI16: =lists!$J$4*(FJ16)*1.414*SQRT(1-lists!$I$4) -> 1.12618916 | FJ16: =STDEVA(F16:F27,J16:J27,O16:O27,V16:V27,Y16:Y27,AF16:AF27,AI16:AI27) -> 1.535878432 | FK16: =lists!$J$4*(FL16)*1.414*SQRT(1-lists!$I$4) -> 1.300344081 | FL16: =STDEVA(E16:E27,H16:H27,L16:L27,S16:S27,X16:X27,AE16:AE27,AH16:AH27,AJ16:AJ27) -> 1.773388078 | FM16: =lists!$J$4*(FN16)*1.414*SQRT(1-lists!$I$4) -> 1.203751227 | FN16: =STDEVA(P16:R27,U16:U27,AG16:AG27,AK16:AK27) -> 1.641656316 | FO16: =lists!$J$4*(FP16)*1.414*SQRT(1-lists!$I$4) -> 1.191402488 | FP16: =STDEVA(D16:AK27) -> 1.624815307
B17: =Programs!B29 -> Serenity Jones | C17: =IF(Programs!$C$25="","",Programs!$C$25) -> 2014-05-02 | D17: 3 | E17: 2 | F17: 5 | G17: 1 | H17: 1 | I17: 1 | J17: 1 | K17: 5 | L17: 1 | M17: 2 | N17: 5 | O17: 4 | P17: 1 | Q17: 5 | R17: 1 | S17: 1 | T17: 1 | U17: 1 | V17: 2 | W17: 5 | X17: 5 | Y17: 3 | Z17: 1 | AA17: 1 | AB17: 5 | AC17: 1 | AD17: 5 | AE17: 2 | AG17: 1 | AH17: 5 | AI17: 3 | AJ17: 1 | AK17: 2 | AL17: 5 | AM17: 4 | AN17: 2 | AO17: 4 | AP17: 3 | AQ17: 4 | AR17: 4 | AS17: 4 | AT17: 3 | AU17: 5 | AV17: 5 | AW17: 3 | AX17: 3 | AY17: 4 | AZ17: 3 | BA17: 4 | BB17: 2 | BC17: 5 | BD17: 2 | BE17: 4 | BF17: 3 | BG17: 4 | BH17: 3 | BI17: 3 | BJ17: 3 | BK17: 4 | BL17: 5 | BM17: 4 | BN17: 4 | BO17: 1 | BP17: 4 | BQ17: 4 | BR17: 3 | BS17: 1 | BT17: =Programs!C29 -> Female | BU17: 25 | BV17: 58 | BW17: 11 | BX17: 46 | BY17: =SUM(F17,J17,O17,LOOKUP(V17,{0,1,2,3,4,5},{0,5,4,3,2,1}),Y17,AF17,AI17) -> 20 | BZ17: 55 | CA17: 18 | CB17: 48 | CC17: 11 | CD17: 43 | CE17: 85 | CF17: 51 | CG17: 1 | CH17: 0 | CI17: 0 | CJ17: 0 | CK17: 0 | CL17: 0 | CM17: 0 | CN17: 0 | CO17: 0 | CP17: 1 | CQ17: 0 | CR17: 0 | CS17: 0 | DC17: 30 | DD17: 63 | DE17: 21 | DF17: 65 | DG17: =SUM(AN17,AR17,AW17,LOOKUP(BD17,{0,1,2,3,4,5},{0,5,4,3,2,1}),BG17,BN17,BQ17) -> 25 | DH17: 62 | DI17: 28 | DJ17: 62 | DK17: 17 | DL17: 54 | DM17: 121 | DN17: 64 | DO17: 3 | DP17: 0 | DQ17: 0 | DR17: 0 | DS17: 0 | DT17: 0 | DU17: 0 | DV17: 1 | DW17: 0 | DX17: 1 | DY17: 0 | DZ17: 0 | EA17: 1 | EC17: 0.625 | ED17: 5 | EE17: 2 | EF17: 19 | EG17: 0.7142857143 | EH17: 7 | EI17: 1.25 | EJ17: 14 | EK17: 1 | EL17: 11 | EM17: 1.058823529 | EN17: 13 | EP17: =IF(Programs!$D$25="","",Programs!$D$25) -> 3 | EQ17: 3 | FE17: 1.215086729 | FG17: 1.036811699 | FI17: 1.12618916 | FK17: 1.300344081 | FM17: 1.203751227 | FO17: 1.191402488
B18: =Programs!B30 -> Ameenah Muhammed | C18: =IF(Programs!$C$25="","",Programs!$C$25) -> 2014-05-02 | D18: 4 | E18: 3 | F18: 3 | G18: 3 | H18: 1 | I18: 3 | J18: 1 | K18: 4 | L18: 1 | M18: 3 | N18: 5 | O18: 3 | P18: 3 | Q18: 5 | R18: 2 | S18: 2 | T18: 3 | U18: 3 | V18: 4 | W18: 4 | X18: 1 | Y18: 3 | Z18: 2 | AA18: 1 | AB18: 5 | AC18: 4 | AD18: 5 | AE18: 3 | AF18: 1 | AG18: 1 | AH18: 2 | AI18: 2 | AJ18: 1 | AK18: 1 | AL18: 5 | AM18: 3 | AN18: 2 | AO18: 2 | AP18: 3 | AQ18: 2 | AR18: 4 | AS18: 3 | AT18: 2 | AU18: 3 | AV18: 4 | AW18: 3 | AX18: 3 | AY18: 3 | AZ18: 3 | BA18: 2 | BB18: 4 | BC18: 5 | BD18: 4 | BE18: 4 | BF18: 2 | BG18: 3 | BH18: 2 | BI18: 2 | BJ18: 4 | BK18: 3 | BL18: 3 | BM18: 3 | BN18: 2 | BO18: 3 | BP18: 4 | BQ18: 3 | BR18: 3 | BS18: 3 | BT18: =Programs!C30 -> Female | BU18: 28 | BV18: 62 | BW18: 18 | BX18: 60 | BY18: =SUM(F18,J18,O18,LOOKUP(V18,{0,1,2,3,4,5},{0,5,4,3,2,1}),Y18,AF18,AI18) -> 15 | BZ18: 48 | CA18: 14 | CB18: 42 | CC18: 15 | CD18: 50 | CE18: 90 | CF18: 52 | CG18: 2 | CH18: 0 | CI18: 1 | CJ18: 0 | CK18: 0 | CL18: 0 | CM18: 0 | CN18: 0 | CO18: 0 | CP18: 1 | CQ18: 0 | CR18: 0 | CS18: 0 | DC18: 25 | DD18: 58 | DE18: 16 | DF18: 57 | DG18: =SUM(AN18,AR18,AW18,LOOKUP(BD18,{0,1,2,3,4,5},{0,5,4,3,2,1}),BG18,BN18,BQ18) -> 19 | DH18: 54 | DI18: 22 | DJ18: 53 | DK18: 20 | DL18: 59 | DM18: 102 | DN18: 57 | DO18: 2 | DP18: 1 | DQ18: 0 | DR18: 0 | DS18: 0 | DT18: 0 | DU18: 0 | DV18: 0 | DW18: 0 | DX18: 0 | DY18: 1 | DZ18: 0 | EA18: 0 | EC18: -0.375 | ED18: -4 | EE18: -0.4 | EF18: -3 | EG18: 0.5714285714 | EH18: 6 | EI18: 1 | EJ18: 11 | EK18: 0.8333333333 | EL18: 9 | EM18: 0.3529411765 | EN18: 5 | EP18: =IF(Programs!$D$25="","",Programs!$D$25) -> 3 | EQ18: 3 | ES18: 3 | EU18: 3 | FE18: 1.215086729 | FG18: 1.036811699 | FI18: 1.12618916 | FK18: 1.300344081 | FM18: 1.203751227 | FO18: 1.191402488
B19: =Programs!B31 -> Malesia Williams | C19: =IF(Programs!$C$25="","",Programs!$C$25) -> 2014-05-02 | D19: 1 | E19: 5 | F19: 2 | G19: 2 | H19: 2 | I19: 2 | J19: 1 | K19: 1 | L19: 1 | M19: 1 | N19: 1 | O19: 1 | P19: 5 | Q19: 1 | R19: 1 | S19: 1 | T19: 1 | U19: 1 | V19: 5 | W19: 2 | X19: 5 | Y19: 2 | Z19: 1 | AA19: 1 | AB19: 4 | AC19: 5 | AD19: 1 | AE19: 2 | AF19: 4 | AG19: 5 | AH19: 5 | AI19: 1 | AJ19: 1 | AK19: 1 | AL19: 3 | AM19: 3 | AN19: 3 | AO19: 4 | AP19: 3 | AQ19: 2 | AR19: 2 | AS19: 4 | AU19: 3 | AV19: 5 | AW19: 3 | AX19: 2 | AY19: 3 | AZ19: 3 | BA19: 4 | BB19: 3 | BC19: 4 | BD19: 3 | BE19: 4 | BF19: 3 | BG19: 3 | BH19: 2 | BI19: 1 | BJ19: 5 | BK19: 3 | BL19: 4 | BM19: 4 | BN19: 4 | BO19: 3 | BP19: 3 | BQ19: 4 | BR19: 2 | BS19: 1 | BT19: =Programs!C31 -> Female | BU19: 11 | BV19: 43 | BW19: 12 | BX19: 48 | BY19: =SUM(F19,J19,O19,LOOKUP(V19,{0,1,2,3,4,5},{0,5,4,3,2,1}),Y19,AF19,AI19) -> 12 | BZ19: 43 | CA19: 22 | CB19: 53 | CC19: 14 | CD19: 48 | CE19: 71 | CF19: 46 | CG19: 4 | CH19: 0 | CI19: 1 | CJ19: 0 | CK19: 0 | CL19: 0 | CM19: 1 | CN19: 1 | CO19: 0 | CP19: 0 | CQ19: 0 | CR19: 0 | CS19: 1 | DC19: 27 | DD19: 61 | DE19: 16 | DF19: 57 | DG19: =SUM(AN19,AR19,AW19,LOOKUP(BD19,{0,1,2,3,4,5},{0,5,4,3,2,1}),BG19,BN19,BQ19) -> 22 | DH19: 57 | DI19: 22 | DJ19: 53 | DK19: 16 | DL19: 52 | DM19: 103 | DN19: 57 | DO19: 2 | DP19: 0 | DQ19: 0 | DR19: 1 | DS19: 0 | DT19: 0 | DU19: 1 | DV19: 0 | DW19: 0 | DX19: 0 | DY19: 0 | DZ19: 0 | EA19: 0 | EC19: 2 | ED19: 18 | EE19: 0.8 | EF19: 9 | EG19: 1.428571429 | EH19: 14 | EI19: 0 | EJ19: 0 | EK19: 0.3333333333 | EL19: 4 | EM19: 0.9411764706 | EN19: 11 | EP19: =IF(Programs!$D$25="","",Programs!$D$25) -> 3 | EQ19: 3 | FE19: 1.215086729 | FG19: 1.036811699 | FI19: 1.12618916 | FK19: 1.300344081 | FM19: 1.203751227 | FO19: 1.191402488
B20: =Programs!B32 -> Cerarmani Barnes | C20: =IF(Programs!$C$25="","",Programs!$C$25) -> 2014-05-02 | D20: 3 | E20: 3 | F20: 4 | G20: 5 | H20: 5 | I20: 4 | J20: 5 | K20: 5 | L20: 5 | M20: 2 | N20: 5 | O20: 5 | P20: 3 | Q20: 5 | R20: 3 | S20: 5 | T20: 5 | U20: 3 | V20: 2 | W20: 5 | X20: 5 | Y20: 3 | Z20: 5 | AA20: 3 | AB20: 5 | AC20: 5 | AD20: 5 | AE20: 5 | AF20: 5 | AG20: 5 | AH20: 1 | AI20: 2 | AJ20: 1 | AK20: 3 | AL20: 4 | AM20: 2 | AN20: 4 | AO20: 3 | AP20: 2 | AQ20: 3 | AR20: 4 | AS20: 3 | AT20: 3 | AU20: 4 | AV20: 3 | AW20: 2 | AX20: 3 | AY20: 4 | AZ20: 2 | BA20: 3 | BB20: 3 | BC20: 3 | BD20: 2 | BE20: 3 | BF20: 4 | BG20: 3 | BH20: 3 | BI20: 1 | BJ20: 5 | BK20: 3 | BL20: 4 | BM20: 4 | BO20: 4 | BP20: 3 | BQ20: 2 | BR20: 1 | BS20: 2 | BT20: =Programs!C32 -> Female | BU20: 35 | BV20: 69 | BW20: 22 | BX20: 67 | BY20: =SUM(F20,J20,O20,LOOKUP(V20,{0,1,2,3,4,5},{0,5,4,3,2,1}),Y20,AF20,AI20) -> 28 | BZ20: 67 | CA20: 30 | CB20: 65 | CC20: 22 | CD20: 63 | CE20: 137 | CF20: 69 | CG20: 5 | CH20: 0 | CI20: 1 | CJ20: 0 | CK20: 1 | CL20: 0 | CM20: 0 | CN20: 0 | CO20: 1 | CP20: 0 | CQ20: 1 | CR20: 1 | CS20: 0 | DC20: 26 | DD20: 60 | DE20: 16 | DF20: 57 | DG20: =SUM(AN20,AR20,AW20,LOOKUP(BD20,{0,1,2,3,4,5},{0,5,4,3,2,1}),BG20,BN20,BQ20) -> 19 | DH20: 54 | DI20: 22 | DJ20: 53 | DK20: 18 | DL20: 56 | DM20: 101 | DN20: 56 | DO20: 3 | DP20: 0 | DQ20: 0 | DR20: 0 | DS20: 1 | DT20: 0 | DU20: 1 | DV20: 0 | DW20: 0 | DX20: 0 | DY20: 0 | DZ20: 1 | EA20: 0 | EC20: -1.125 | ED20: -9 | EE20: -1.2 | EF20: -10 | EG20: -1.285714286 | EH20: -13 | EI20: -1 | EJ20: -12 | EK20: -0.6666666667 | EL20: -7 | EM20: -1.058823529 | EN20: -13 | EP20: =IF(Programs!$D$25="","",Programs!$D$25) -> 3 | EQ20: 3 | ES20: 3 | ET20: 3 | EU20: 3 | EV20: 3 | EW20: 3 | EY20: 3 | FA20: 3 | FC20: 3 | FE20: 1.215086729 | FG20: 1.036811699 | FI20: 1.12618916 | FK20: 1.300344081 | FM20: 1.203751227 | FO20: 1.191402488
B21: =Programs!B33 -> Kaia Christopher | C21: =IF(Programs!$C$25="","",Programs!$C$25) -> 2014-05-02 | D21: 2 | E21: 5 | F21: 5 | G21: 2 | H21: 1 | I21: 3 | J21: 5 | K21: 5 | L21: 5 | M21: 3 | N21: 5 | O21: 5 | P21: 3 | Q21: 5 | R21: 5 | S21: 5 | T21: 5 | U21: 3 | V21: 2 | W21: 5 | X21: 3 | Y21: 3 | Z21: 5 | AA21: 3 | AB21: 5 | AC21: 5 | AD21: 5 | AE21: 5 | AF21: 5 | AG21: 5 | AH21: 3 | AI21: 5 | AJ21: 1 | AK21: 4 | AL21: 2 | AM21: 4 | AN21: 4 | AO21: 3 | AP21: 4 | AQ21: 3 | AR21: 4 | AS21: 5 | AT21: 4 | AU21: 3 | AV21: 3 | AW21: 3 | AX21: 4 | AY21: 2 | AZ21: 4 | BA21: 3 | BB21: 1 | BC21: 4 | BD21: 3 | BE21: 5 | BF21: 2 | BG21: 5 | BH21: 4 | BI21: 3 | BJ21: 4 | BK21: 3 | BL21: 2 | BM21: 2 | BN21: 2 | BO21: 4 | BP21: 2 | BQ21: 3 | BR21: 2 | BS21: 1 | BT21: =Programs!C33 -> Female | BU21: 36 | BV21: 70 | BW21: 17 | BX21: 59 | BY21: =SUM(F21,J21,O21,LOOKUP(V21,{0,1,2,3,4,5},{0,5,4,3,2,1}),Y21,AF21,AI21) -> 32 | BZ21: 73 | CA21: 28 | CB21: 62 | CC21: 25 | CD21: 68 | CE21: 138 | CF21: 69 | CG21: 3 | CH21: 0 | CI21: 1 | CJ21: 0 | CK21: 1 | CL21: 0 | CM21: 0 | CN21: 0 | CO21: 0 | CP21: 0 | CQ21: 0 | CR21: 1 | CS21: 0 | DC21: 25 | DD21: 58 | DE21: 16 | DF21: 57 | DG21: =SUM(AN21,AR21,AW21,LOOKUP(BD21,{0,1,2,3,4,5},{0,5,4,3,2,1}),BG21,BN21,BQ21) -> 24 | DH21: 60 | DI21: 23 | DJ21: 55 | DK21: 19 | DL21: 58 | DM21: 107 | DN21: 58 | DO21: 5 | DP21: 1 | DQ21: 0 | DR21: 0 | DS21: 1 | DT21: 1 | DU21: 1 | DV21: 0 | DW21: 0 | DX21: 0 | DY21: 0 | DZ21: 0 | EA21: 1 | EC21: -1.375 | ED21: -12 | EE21: -0.2 | EF21: -2 | EG21: -1.142857143 | EH21: -13 | EI21: -0.625 | EJ21: -7 | EK21: -1 | EL21: -10 | EM21: -0.9117647059 | EN21: -11 | EP21: =IF(Programs!$D$25="","",Programs!$D$25) -> 3 | EQ21: 3 | ER21: 3 | ES21: 3 | EU21: 3 | EV21: 3 | EW21: 3 | EY21: 3 | FA21: 3 | FC21: 3 | FE21: 1.215086729 | FG21: 1.036811699 | FI21: 1.12618916 | FK21: 1.300344081 | FM21: 1.203751227 | FO21: 1.191402488
B22: =Programs!B34 -> Tychell Brock | C22: =IF(Programs!$C$25="","",Programs!$C$25) -> 2014-05-02 | D22: 3 | E22: 2 | F22: 1 | G22: 4 | H22: 4 | I22: 5 | J22: 5 | K22: 4 | L22: 5 | M22: 3 | N22: 4 | O22: 5 | P22: 4 | Q22: 5 | R22: 5 | S22: 5 | T22: 5 | U22: 4 | V22: 1 | W22: 5 | X22: 5 | Y22: 5 | Z22: 5 | AA22: 4 | AB22: 5 | AC22: 5 | AD22: 4 | AE22: 5 | AF22: 5 | AG22: 5 | AH22: 5 | AI22: 4 | AJ22: 5 | AK22: 4 | AL22: 4 | AM22: 1 | AN22: 2 | AO22: 2 | AP22: 2 | AQ22: 4 | AR22: 4 | AS22: 3 | AT22: 2 | AU22: 5 | AV22: 5 | AW22: 2 | AX22: 3 | AY22: 4 | AZ22: 3 | BA22: 1 | BB22: 1 | BC22: 5 | BD22: 3 | BE22: 4 | BF22: 1 | BG22: 3 | BH22: 2 | BI22: 2 | BJ22: 5 | BK22: 3 | BL22: 2 | BM22: 2 | BN22: 3 | BO22: 5 | BP22: 4 | BQ22: 4 | BR22: 1 | BS22: 3 | BT22: =Programs!C34 -> Female | BU22: 34 | BV22: 67 | BW22: 22 | BX22: 67 | BY22: =SUM(F22,J22,O22,LOOKUP(V22,{0,1,2,3,4,5},{0,5,4,3,2,1}),Y22,AF22,AI22) -> 30 | BZ22: 70 | CA22: 36 | CB22: 73 | CC22: 27 | CD22: 71 | CE22: 149 | CF22: 74 | CG22: 2 | CH22: 1 | CI22: 1 | CJ22: 0 | CK22: 0 | CL22: 0 | CM22: 0 | CN22: 0 | CO22: 0 | CP22: 0 | CQ22: 0 | CR22: 0 | CS22: 0 | DC22: 25 | DD22: 58 | DE22: 17 | DF22: 59 | DG22: =SUM(AN22,AR22,AW22,LOOKUP(BD22,{0,1,2,3,4,5},{0,5,4,3,2,1}),BG22,BN22,BQ22) -> 21 | DH22: 56 | DI22: 14 | DJ22: 42 | DK22: 23 | DL22: 64 | DM22: 100 | DN22: 56 | DO22: 8 | DP22: 0 | DQ22: 0 | DR22: 1 | DS22: 1 | DT22: 1 | DU22: 0 | DV22: 1 | DW22: 1 | DX22: 1 | DY22: 1 | DZ22: 0 | EA22: 1 | EC22: -1.125 | ED22: -9 | EE22: -1 | EF22: -8 | EG22: -1.285714286 | EH22: -14 | EI22: -2.75 | EJ22: -31 | EK22: -0.6666666667 | EL22: -7 | EM22: -1.441176471 | EN22: -18 | EP22: =IF(Programs!$D$25="","",Programs!$D$25) -> 3 | EQ22: 3 | ES22: 3 | EU22: 3 | EV22: 3 | EW22: 3 | EX22: 3 | EY22: 3 | FA22: 3 | FB22: 3 | FC22: 3 | FE22: 1.215086729 | FG22: 1.036811699 | FI22: 1.12618916 | FK22: 1.300344081 | FM22: 1.203751227 | FO22: 1.191402488
B23: =Programs!B35 -> Samiyah White | C23: =IF(Programs!$C$25="","",Programs!$C$25) -> 2014-05-02 | D23: 2 | F23: 4 | G23: 3 | H23: 1 | I23: 4 | J23: 2 | K23: 3 | L23: 3 | M23: 1 | N23: 3 | O23: 5 | P23: 1 | Q23: 5 | R23: 3 | S23: 4 | T23: 4 | U23: 4 | V23: 4 | W23: 5 | X23: 5 | Y23: 5 | Z23: 5 | AA23: 1 | AB23: 5 | AC23: 5 | AD23: 5 | AE23: 5 | AF23: 5 | AG23: 5 | AH23: 5 | AI23: 3 | AJ23: 5 | AK23: 3 | AL23: 2 | AN23: 4 | AO23: 3 | AP23: 1 | AQ23: 4 | AR23: 2 | AS23: 3 | AT23: 3 | AU23: 1 | AV23: 3 | AW23: 5 | AX23: 1 | AY23: 5 | AZ23: 3 | BA23: 4 | BB23: 4 | BC23: 4 | BD23: 4 | BE23: 5 | BF23: 5 | BG23: 5 | BH23: 5 | BI23: 1 | BJ23: 5 | BK23: 5 | BL23: 5 | BM23: 5 | BN23: 5 | BO23: 5 | BP23: 5 | BQ23: 3 | BR23: 5 | BS23: 3 | BT23: =Programs!C35 -> Female | BU23: 27 | BV23: 61 | BW23: 19 | BX23: 62 | BY23: =SUM(F23,J23,O23,LOOKUP(V23,{0,1,2,3,4,5},{0,5,4,3,2,1}),Y23,AF23,AI23) -> 26 | BZ23: 63 | CA23: 28 | CB23: 62 | CC23: 21 | CD23: 61 | CE23: 121 | CF23: 64 | CG23: 5 | CH23: 1 | CI23: 0 | CJ23: 0 | CK23: 1 | CL23: 0 | CM23: 1 | CN23: 0 | CO23: 1 | CP23: 0 | CQ23: 0 | CR23: 1 | CS23: 0 | DC23: 27 | DD23: 61 | DE23: 19 | DF23: 62 | DG23: =SUM(AN23,AR23,AW23,LOOKUP(BD23,{0,1,2,3,4,5},{0,5,4,3,2,1}),BG23,BN23,BQ23) -> 26 | DH23: 63 | DI23: 28 | DJ23: 62 | DK23: 21 | DL23: 61 | DM23: 121 | DN23: 64 | DO23: 5 | DP23: 1 | DQ23: 0 | DR23: 0 | DS23: 1 | DT23: 0 | DU23: 1 | DV23: 0 | DW23: 1 | DX23: 0 | DY23: 0 | DZ23: 1 | EA23: 0 | EC23: 0 | ED23: 0 | EE23: 0 | EF23: 0 | EG23: 0 | EH23: 0 | EI23: 0 | EJ23: 0 | EK23: 0 | EL23: 0 | EM23: 0 | EN23: 0 | EP23: =IF(Programs!$D$25="","",Programs!$D$25) -> 3 | EQ23: 3 | FE23: =INDIRECT(ADDRESS(ROW()-1,COLUMN(),4)) -> 1.215086729 | FG23: =INDIRECT(ADDRESS(ROW()-1,COLUMN(),4)) -> 1.036811699 | FI23: =INDIRECT(ADDRESS(ROW()-1,COLUMN(),4)) -> 1.12618916 | FK23: =INDIRECT(ADDRESS(ROW()-1,COLUMN(),4)) -> 1.300344081 | FM23: =INDIRECT(ADDRESS(ROW()-1,COLUMN(),4)) -> 1.203751227 | FO23: =INDIRECT(ADDRESS(ROW()-1,COLUMN(),4)) -> 1.191402488
B24: =Programs!B36 -> 0 | C24: =IF(Programs!$C$25="","",Programs!$C$25) -> 2014-05-02 | BT24: =Programs!C36 -> 0 | BU24: =SUM(K24,M24,N24,T24,Z24,AA24,AB24,AD24) -> 0 | BV24: =IF(OR($BT24=0,BU24=0),"",(IF($BT24="Male",(VLOOKUP(BU24,PHYMT,3,FALSE)),(VLOOKUP(BU24,PHFMT,2,FALSE))))) ->  | BW24: =SUM(D24,G24,I24,W24,AC24) -> 0 | BX24: =IF(BW24=0,"",VLOOKUP(BW24,VER,5,FALSE)) ->  | BY24: =SUM(F24,J24,O24,LOOKUP(V24,{0,1,2,3,4,5},{0,5,4,3,2,1}),Y24,AF24,AI24) -> 0 | BZ24: =IF(BY24=0,"",VLOOKUP(BY24,ANG,4,FALSE)) ->  | CA24: =SUM(E24,H24,L24,S24,X24,AE24,AH24,AJ24) -> 0 | CB24: =IF(CA24=0,"",IF(CA24>38,81,VLOOKUP(CA24,HOS,3,FALSE))) ->  | CC24: =SUM(P24,Q24,R24,U24,AG24,AK24) -> 0 | CD24: =IF(CC24=0,"",VLOOKUP(CC24,IND,2,FALSE)) ->  | CE24: =SUM(BU24,BW24,BY24,CA24,CC24) -> 0 | CF24: =IF(CE24=0,"",VLOOKUP(CE24,AQT,2,FALSE)) ->  | CG24: =SUM(CH24:CS24) -> 0 | CH24: =IF(ABS(D24-Y24)>1,1,0) -> 0 | CI24: =IF(ABS(E24-H24)>1,1,0) -> 0 | CJ24: =IF(ABS(G24-I24)>1,1,0) -> 0 | CK24: =IF(ABS(J24-AJ24)>1,1,0) -> 0 | CL24: =IF(ABS(K24-N24)>1,1,0) -> 0 | CM24: =IF(ABS(L24-AF24)>1,1,0) -> 0 | CN24: =IF(ABS(M24-P24)>1,1,0) -> 0 | CO24: =IF(ABS(O24-AI24)>1,1,0) -> 0 | CP24: =IF(ABS(Q24-T24)>1,1,0) -> 0 | CQ24: =IF(ABS(X24-AH24)>1,1,0) -> 0 | CR24: =IF(ABS(Z24-AA24)>1,1,0) -> 0 | CS24: =IF(ABS(AB24-AD24)>1,1,0) -> 0 | DC24: =SUM(AS24,AU24,AV24,BB24,BH24,BI24,BJ24,BL24) -> 0 | DD24: =IF(OR($BT24=0,DC24=0),"",(IF($BT24="Male",(VLOOKUP(DC24,PHYMT,3,FALSE)),(VLOOKUP(DC24,PHFMT,2,FALSE))))) ->  | DE24: =SUM(AL24,AO24,AQ24,BE24,BK24) -> 0 | DF24: =IF(DE24=0,"",VLOOKUP(DE24,VER,5,FALSE)) ->  | DG24: =SUM(AN24,AR24,AW24,LOOKUP(BD24,{0,1,2,3,4,5},{0,5,4,3,2,1}),BG24,BN24,BQ24) -> 0 | DH24: =IF(DG24=0,"",VLOOKUP(DG24,ANG,4,FALSE)) ->  | DI24: =SUM(AM24,AP24,AT24,BA24,BF24,BM24,BP24,BR24) -> 0 | DJ24: =IF(DI24=0,"",VLOOKUP(DI24,HOS,3,FALSE)) ->  | DK24: =SUM(AX24,AY24,AZ24,BC24,BO24,BS24) -> 0 | DL24: =IF(DK24=0,"",VLOOKUP(DK24,IND,2,FALSE)) ->  | DM24: =SUM(DC24,DE24,DG24,DI24,DK24) -> 0 | DN24: =IF(DM24=0,"",IF(DM24<39,24,VLOOKUP(DM24,AQT,2,FALSE))) ->  | DO24: =SUM(DP24:EA24) -> 0 | DP24: =IF(ABS(AL24-BG24)>1,1,0) -> 0 | DQ24: =IF(ABS(AM24-AP24)>1,1,0) -> 0 | DR24: =IF(ABS(AO24-AQ24)>1,1,0) -> 0 | DS24: =IF(ABS(AR24-BR24)>1,1,0) -> 0 | DT24: =IF(ABS(AS24-AV24)>1,1,0) -> 0 | DU24: =IF(ABS(AT24-BN24)>1,1,0) -> 0 | DV24: =IF(ABS(AU24-AX24)>1,1,0) -> 0 | DW24: =IF(ABS(AW24-BQ24)>1,1,0) -> 0 | DX24: =IF(ABS(AY24-BB24)>1,1,0) -> 0 | DY24: =IF(ABS(BF24-BP24)>1,1,0) -> 0 | DZ24: =IF(ABS(BH24-BI24)>1,1,0) -> 0 | EA24: =IF(ABS(BJ24-BL24)>1,1,0) -> 0 | EC24: =IF(EQ24<>"",(DC24/8)-(BU24/8),"") ->  | ED24: =IF(EQ24<>"",IF(BT24=0,"",DD24-BV24),"") ->  | EE24: =IF(EQ24<>"",(DE24/5)-(BW24/5),"") ->  | EF24: =IF(EQ24<>"",DF24-BX24,"") ->  | EG24: =IF(EQ24<>"",(DG24/7)-(BY24/7),"") ->  | EH24: =IF(EQ24<>"",DH24-BZ24,"") ->  | EI24: =IF(EQ24<>"",(DI24/8)-(CA24/8),"") ->  | EJ24: =IF(EQ24<>"",DJ24-CB24,"") ->  | EK24: =IF(EQ24<>"",(DK24/6)-(CC24/6),"") ->  | EL24: =IF(EQ24<>"",DL24-CD24,"") ->  | EM24: =IF(EQ24<>"",(DM24/34)-(CE24/34),"") ->  | EN24: =IF(EQ24<>"",DN24-CF24,"") ->  | EP24: =IF(Programs!$D$25="","",Programs!$D$25) -> 3 | EQ24: =IF(AND(COUNT(D24:AK24)>30,COUNT(AL24:BS24)>30),EP24,"") ->  | ER24: =IF($EQ24="","",IF(AND(ABS(EC24)>FE24,EC24<0),$EQ24,"")) ->  | ES24: =IF(ED24<0,$EQ24,"") ->  | ET24: =IF($EQ24="","",IF(AND(ABS(EE24)>FG24,EE24<0),$EQ24,"")) ->  | EU24: =IF(EF24<0,$EQ24,"") ->  | EV24: =IF($EQ24="","",IF(AND(ABS(EG24)>FI24,EG24<0),$EQ24,"")) ->  | EW24: =IF(EH24<0,$EQ24,"") ->  | EX24: =IF($EQ24="","",IF(AND(ABS(EI24)>FK24,EI24<0),$EQ24,"")) ->  | EY24: =IF(EJ24<0,$EQ24,"") ->  | EZ24: =IF($EQ24="","",IF(AND(ABS(EK24)>FM24,EK24<0),$EQ24,"")) ->  | FA24: =IF(EL24<0,$EQ24,"") ->  | FB24: =IF($EQ24="","",IF(AND(ABS(EM24)>FO24,EM24<0),$EQ24,"")) ->  | FC24: =IF(EN24<0,$EQ24,"") ->  | FE24: =INDIRECT(ADDRESS(ROW()-1,COLUMN(),4)) -> 1.215086729 | FG24: =INDIRECT(ADDRESS(ROW()-1,COLUMN(),4)) -> 1.036811699 | FI24: =INDIRECT(ADDRESS(ROW()-1,COLUMN(),4)) -> 1.12618916 | FK24: =INDIRECT(ADDRESS(ROW()-1,COLUMN(),4)) -> 1.300344081 | FM24: =INDIRECT(ADDRESS(ROW()-1,COLUMN(),4)) -> 1.203751227 | FO24: =INDIRECT(ADDRESS(ROW()-1,COLUMN(),4)) -> 1.191402488
B25: =Programs!B37 -> 0 | C25: =IF(Programs!$C$25="","",Programs!$C$25) -> 2014-05-02 | BT25: =Programs!C37 -> 0 | BU25: =SUM(K25,M25,N25,T25,Z25,AA25,AB25,AD25) -> 0 | BV25: =IF(OR($BT25=0,BU25=0),"",(IF($BT25="Male",(VLOOKUP(BU25,PHYMT,3,FALSE)),(VLOOKUP(BU25,PHFMT,2,FALSE))))) ->  | BW25: =SUM(D25,G25,I25,W25,AC25) -> 0 | BX25: =IF(BW25=0,"",VLOOKUP(BW25,VER,5,FALSE)) ->  | BY25: =SUM(F25,J25,O25,LOOKUP(V25,{0,1,2,3,4,5},{0,5,4,3,2,1}),Y25,AF25,AI25) -> 0 | BZ25: =IF(BY25=0,"",VLOOKUP(BY25,ANG,4,FALSE)) ->  | CA25: =SUM(E25,H25,L25,S25,X25,AE25,AH25,AJ25) -> 0 | CB25: =IF(CA25=0,"",IF(CA25>38,81,VLOOKUP(CA25,HOS,3,FALSE))) ->  | CC25: =SUM(P25,Q25,R25,U25,AG25,AK25) -> 0 | CD25: =IF(CC25=0,"",VLOOKUP(CC25,IND,2,FALSE)) ->  | CE25: =SUM(BU25,BW25,BY25,CA25,CC25) -> 0 | CF25: =IF(CE25=0,"",VLOOKUP(CE25,AQT,2,FALSE)) ->  | CG25: =SUM(CH25:CS25) -> 0 | CH25: =IF(ABS(D25-Y25)>1,1,0) -> 0 | CI25: =IF(ABS(E25-H25)>1,1,0) -> 0 | CJ25: =IF(ABS(G25-I25)>1,1,0) -> 0 | CK25: =IF(ABS(J25-AJ25)>1,1,0) -> 0 | CL25: =IF(ABS(K25-N25)>1,1,0) -> 0 | CM25: =IF(ABS(L25-AF25)>1,1,0) -> 0 | CN25: =IF(ABS(M25-P25)>1,1,0) -> 0 | CO25: =IF(ABS(O25-AI25)>1,1,0) -> 0 | CP25: =IF(ABS(Q25-T25)>1,1,0) -> 0 | CQ25: =IF(ABS(X25-AH25)>1,1,0) -> 0 | CR25: =IF(ABS(Z25-AA25)>1,1,0) -> 0 | CS25: =IF(ABS(AB25-AD25)>1,1,0) -> 0 | DC25: =SUM(AS25,AU25,AV25,BB25,BH25,BI25,BJ25,BL25) -> 0 | DD25: =IF(OR($BT25=0,DC25=0),"",(IF($BT25="Male",(VLOOKUP(DC25,PHYMT,3,FALSE)),(VLOOKUP(DC25,PHFMT,2,FALSE))))) ->  | DE25: =SUM(AL25,AO25,AQ25,BE25,BK25) -> 0 | DF25: =IF(DE25=0,"",VLOOKUP(DE25,VER,5,FALSE)) ->  | DG25: =SUM(AN25,AR25,AW25,LOOKUP(BD25,{0,1,2,3,4,5},{0,5,4,3,2,1}),BG25,BN25,BQ25) -> 0 | DH25: =IF(DG25=0,"",VLOOKUP(DG25,ANG,4,FALSE)) ->  | DI25: =SUM(AM25,AP25,AT25,BA25,BF25,BM25,BP25,BR25) -> 0 | DJ25: =IF(DI25=0,"",VLOOKUP(DI25,HOS,3,FALSE)) ->  | DK25: =SUM(AX25,AY25,AZ25,BC25,BO25,BS25) -> 0 | DL25: =IF(DK25=0,"",VLOOKUP(DK25,IND,2,FALSE)) ->  | DM25: =SUM(DC25,DE25,DG25,DI25,DK25) -> 0 | DN25: =IF(DM25=0,"",IF(DM25<39,24,VLOOKUP(DM25,AQT,2,FALSE))) ->  | DO25: =SUM(DP25:EA25) -> 0 | DP25: =IF(ABS(AL25-BG25)>1,1,0) -> 0 | DQ25: =IF(ABS(AM25-AP25)>1,1,0) -> 0 | DR25: =IF(ABS(AO25-AQ25)>1,1,0) -> 0 | DS25: =IF(ABS(AR25-BR25)>1,1,0) -> 0 | DT25: =IF(ABS(AS25-AV25)>1,1,0) -> 0 | DU25: =IF(ABS(AT25-BN25)>1,1,0) -> 0 | DV25: =IF(ABS(AU25-AX25)>1,1,0) -> 0 | DW25: =IF(ABS(AW25-BQ25)>1,1,0) -> 0 | DX25: =IF(ABS(AY25-BB25)>1,1,0) -> 0 | DY25: =IF(ABS(BF25-BP25)>1,1,0) -> 0 | DZ25: =IF(ABS(BH25-BI25)>1,1,0) -> 0 | EA25: =IF(ABS(BJ25-BL25)>1,1,0) -> 0 | EC25: =IF(EQ25<>"",(DC25/8)-(BU25/8),"") ->  | ED25: =IF(EQ25<>"",IF(BT25=0,"",DD25-BV25),"") ->  | EE25: =IF(EQ25<>"",(DE25/5)-(BW25/5),"") ->  | EF25: =IF(EQ25<>"",DF25-BX25,"") ->  | EG25: =IF(EQ25<>"",(DG25/7)-(BY25/7),"") ->  | EH25: =IF(EQ25<>"",DH25-BZ25,"") ->  | EI25: =IF(EQ25<>"",(DI25/8)-(CA25/8),"") ->  | EJ25: =IF(EQ25<>"",DJ25-CB25,"") ->  | EK25: =IF(EQ25<>"",(DK25/6)-(CC25/6),"") ->  | EL25: =IF(EQ25<>"",DL25-CD25,"") ->  | EM25: =IF(EQ25<>"",(DM25/34)-(CE25/34),"") ->  | EN25: =IF(EQ25<>"",DN25-CF25,"") ->  | EP25: =IF(Programs!$D$25="","",Programs!$D$25) -> 3 | EQ25: =IF(AND(COUNT(D25:AK25)>30,COUNT(AL25:BS25)>30),EP25,"") ->  | ER25: =IF($EQ25="","",IF(AND(ABS(EC25)>FE25,EC25<0),$EQ25,"")) ->  | ES25: =IF(ED25<0,$EQ25,"") ->  | ET25: =IF($EQ25="","",IF(AND(ABS(EE25)>FG25,EE25<0),$EQ25,"")) ->  | EU25: =IF(EF25<0,$EQ25,"") ->  | EV25: =IF($EQ25="","",IF(AND(ABS(EG25)>FI25,EG25<0),$EQ25,"")) ->  | EW25: =IF(EH25<0,$EQ25,"") ->  | EX25: =IF($EQ25="","",IF(AND(ABS(EI25)>FK25,EI25<0),$EQ25,"")) ->  | EY25: =IF(EJ25<0,$EQ25,"") ->  | EZ25: =IF($EQ25="","",IF(AND(ABS(EK25)>FM25,EK25<0),$EQ25,"")) ->  | FA25: =IF(EL25<0,$EQ25,"") ->  | FB25: =IF($EQ25="","",IF(AND(ABS(EM25)>FO25,EM25<0),$EQ25,"")) ->  | FC25: =IF(EN25<0,$EQ25,"") ->  | FE25: =INDIRECT(ADDRESS(ROW()-1,COLUMN(),4)) -> 1.215086729 | FG25: =INDIRECT(ADDRESS(ROW()-1,COLUMN(),4)) -> 1.036811699 | FI25: =INDIRECT(ADDRESS(ROW()-1,COLUMN(),4)) -> 1.12618916 | FK25: =INDIRECT(ADDRESS(ROW()-1,COLUMN(),4)) -> 1.300344081 | FM25: =INDIRECT(ADDRESS(ROW()-1,COLUMN(),4)) -> 1.203751227 | FO25: =INDIRECT(ADDRESS(ROW()-1,COLUMN(),4)) -> 1.191402488
B26: =Programs!B38 -> 0 | C26: =IF(Programs!$C$25="","",Programs!$C$25) -> 2014-05-02 | BT26: =Programs!C38 -> 0 | BU26: =SUM(K26,M26,N26,T26,Z26,AA26,AB26,AD26) -> 0 | BV26: =IF(OR($BT26=0,BU26=0),"",(IF($BT26="Male",(VLOOKUP(BU26,PHYMT,3,FALSE)),(VLOOKUP(BU26,PHFMT,2,FALSE))))) ->  | BW26: =SUM(D26,G26,I26,W26,AC26) -> 0 | BX26: =IF(BW26=0,"",VLOOKUP(BW26,VER,5,FALSE)) ->  | BY26: =SUM(F26,J26,O26,LOOKUP(V26,{0,1,2,3,4,5},{0,5,4,3,2,1}),Y26,AF26,AI26) -> 0 | BZ26: =IF(BY26=0,"",VLOOKUP(BY26,ANG,4,FALSE)) ->  | CA26: =SUM(E26,H26,L26,S26,X26,AE26,AH26,AJ26) -> 0 | CB26: =IF(CA26=0,"",IF(CA26>38,81,VLOOKUP(CA26,HOS,3,FALSE))) ->  | CC26: =SUM(P26,Q26,R26,U26,AG26,AK26) -> 0 | CD26: =IF(CC26=0,"",VLOOKUP(CC26,IND,2,FALSE)) ->  | CE26: =SUM(BU26,BW26,BY26,CA26,CC26) -> 0 | CF26: =IF(CE26=0,"",VLOOKUP(CE26,AQT,2,FALSE)) ->  | CG26: =SUM(CH26:CS26) -> 0 | CH26: =IF(ABS(D26-Y26)>1,1,0) -> 0 | CI26: =IF(ABS(E26-H26)>1,1,0) -> 0 | CJ26: =IF(ABS(G26-I26)>1,1,0) -> 0 | CK26: =IF(ABS(J26-AJ26)>1,1,0) -> 0 | CL26: =IF(ABS(K26-N26)>1,1,0) -> 0 | CM26: =IF(ABS(L26-AF26)>1,1,0) -> 0 | CN26: =IF(ABS(M26-P26)>1,1,0) -> 0 | CO26: =IF(ABS(O26-AI26)>1,1,0) -> 0 | CP26: =IF(ABS(Q26-T26)>1,1,0) -> 0 | CQ26: =IF(ABS(X26-AH26)>1,1,0) -> 0 | CR26: =IF(ABS(Z26-AA26)>1,1,0) -> 0 | CS26: =IF(ABS(AB26-AD26)>1,1,0) -> 0 | DC26: =SUM(AS26,AU26,AV26,BB26,BH26,BI26,BJ26,BL26) -> 0 | DD26: =IF(OR($BT26=0,DC26=0),"",(IF($BT26="Male",(VLOOKUP(DC26,PHYMT,3,FALSE)),(VLOOKUP(DC26,PHFMT,2,FALSE))))) ->  | DE26: =SUM(AL26,AO26,AQ26,BE26,BK26) -> 0 | DF26: =IF(DE26=0,"",VLOOKUP(DE26,VER,5,FALSE)) ->  | DG26: =SUM(AN26,AR26,AW26,LOOKUP(BD26,{0,1,2,3,4,5},{0,5,4,3,2,1}),BG26,BN26,BQ26) -> 0 | DH26: =IF(DG26=0,"",VLOOKUP(DG26,ANG,4,FALSE)) ->  | DI26: =SUM(AM26,AP26,AT26,BA26,BF26,BM26,BP26,BR26) -> 0 | DJ26: =IF(DI26=0,"",VLOOKUP(DI26,HOS,3,FALSE)) ->  | DK26: =SUM(AX26,AY26,AZ26,BC26,BO26,BS26) -> 0 | DL26: =IF(DK26=0,"",VLOOKUP(DK26,IND,2,FALSE)) ->  | DM26: =SUM(DC26,DE26,DG26,DI26,DK26) -> 0 | DN26: =IF(DM26=0,"",IF(DM26<39,24,VLOOKUP(DM26,AQT,2,FALSE))) ->  | DO26: =SUM(DP26:EA26) -> 0 | DP26: =IF(ABS(AL26-BG26)>1,1,0) -> 0 | DQ26: =IF(ABS(AM26-AP26)>1,1,0) -> 0 | DR26: =IF(ABS(AO26-AQ26)>1,1,0) -> 0 | DS26: =IF(ABS(AR26-BR26)>1,1,0) -> 0 | DT26: =IF(ABS(AS26-AV26)>1,1,0) -> 0 | DU26: =IF(ABS(AT26-BN26)>1,1,0) -> 0 | DV26: =IF(ABS(AU26-AX26)>1,1,0) -> 0 | DW26: =IF(ABS(AW26-BQ26)>1,1,0) -> 0 | DX26: =IF(ABS(AY26-BB26)>1,1,0) -> 0 | DY26: =IF(ABS(BF26-BP26)>1,1,0) -> 0 | DZ26: =IF(ABS(BH26-BI26)>1,1,0) -> 0 | EA26: =IF(ABS(BJ26-BL26)>1,1,0) -> 0 | EC26: =IF(EQ26<>"",(DC26/8)-(BU26/8),"") ->  | ED26: =IF(EQ26<>"",IF(BT26=0,"",DD26-BV26),"") ->  | EE26: =IF(EQ26<>"",(DE26/5)-(BW26/5),"") ->  | EF26: =IF(EQ26<>"",DF26-BX26,"") ->  | EG26: =IF(EQ26<>"",(DG26/7)-(BY26/7),"") ->  | EH26: =IF(EQ26<>"",DH26-BZ26,"") ->  | EI26: =IF(EQ26<>"",(DI26/8)-(CA26/8),"") ->  | EJ26: =IF(EQ26<>"",DJ26-CB26,"") ->  | EK26: =IF(EQ26<>"",(DK26/6)-(CC26/6),"") ->  | EL26: =IF(EQ26<>"",DL26-CD26,"") ->  | EM26: =IF(EQ26<>"",(DM26/34)-(CE26/34),"") ->  | EN26: =IF(EQ26<>"",DN26-CF26,"") ->  | EP26: =IF(Programs!$D$25="","",Programs!$D$25) -> 3 | EQ26: =IF(AND(COUNT(D26:AK26)>30,COUNT(AL26:BS26)>30),EP26,"") ->  | ER26: =IF($EQ26="","",IF(AND(ABS(EC26)>FE26,EC26<0),$EQ26,"")) ->  | ES26: =IF(ED26<0,$EQ26,"") ->  | ET26: =IF($EQ26="","",IF(AND(ABS(EE26)>FG26,EE26<0),$EQ26,"")) ->  | EU26: =IF(EF26<0,$EQ26,"") ->  | EV26: =IF($EQ26="","",IF(AND(ABS(EG26)>FI26,EG26<0),$EQ26,"")) ->  | EW26: =IF(EH26<0,$EQ26,"") ->  | EX26: =IF($EQ26="","",IF(AND(ABS(EI26)>FK26,EI26<0),$EQ26,"")) ->  | EY26: =IF(EJ26<0,$EQ26,"") ->  | EZ26: =IF($EQ26="","",IF(AND(ABS(EK26)>FM26,EK26<0),$EQ26,"")) ->  | FA26: =IF(EL26<0,$EQ26,"") ->  | FB26: =IF($EQ26="","",IF(AND(ABS(EM26)>FO26,EM26<0),$EQ26,"")) ->  | FC26: =IF(EN26<0,$EQ26,"") ->  | FE26: =INDIRECT(ADDRESS(ROW()-1,COLUMN(),4)) -> 1.215086729 | FG26: =INDIRECT(ADDRESS(ROW()-1,COLUMN(),4)) -> 1.036811699 | FI26: =INDIRECT(ADDRESS(ROW()-1,COLUMN(),4)) -> 1.12618916 | FK26: =INDIRECT(ADDRESS(ROW()-1,COLUMN(),4)) -> 1.300344081 | FM26: =INDIRECT(ADDRESS(ROW()-1,COLUMN(),4)) -> 1.203751227 | FO26: =INDIRECT(ADDRESS(ROW()-1,COLUMN(),4)) -> 1.191402488
B27: =Programs!B39 -> 0 | C27: =IF(Programs!$C$25="","",Programs!$C$25) -> 2014-05-02 | BT27: =Programs!C39 -> 0 | BU27: =SUM(K27,M27,N27,T27,Z27,AA27,AB27,AD27) -> 0 | BV27: =IF(OR($BT27=0,BU27=0),"",(IF($BT27="Male",(VLOOKUP(BU27,PHYMT,3,FALSE)),(VLOOKUP(BU27,PHFMT,2,FALSE))))) ->  | BW27: =SUM(D27,G27,I27,W27,AC27) -> 0 | BX27: =IF(BW27=0,"",VLOOKUP(BW27,VER,5,FALSE)) ->  | BY27: =SUM(F27,J27,O27,LOOKUP(V27,{0,1,2,3,4,5},{0,5,4,3,2,1}),Y27,AF27,AI27) -> 0 | BZ27: =IF(BY27=0,"",VLOOKUP(BY27,ANG,4,FALSE)) ->  | CA27: =SUM(E27,H27,L27,S27,X27,AE27,AH27,AJ27) -> 0 | CB27: =IF(CA27=0,"",IF(CA27>38,81,VLOOKUP(CA27,HOS,3,FALSE))) ->  | CC27: =SUM(P27,Q27,R27,U27,AG27,AK27) -> 0 | CD27: =IF(CC27=0,"",VLOOKUP(CC27,IND,2,FALSE)) ->  | CE27: =SUM(BU27,BW27,BY27,CA27,CC27) -> 0 | CF27: =IF(CE27=0,"",VLOOKUP(CE27,AQT,2,FALSE)) ->  | CG27: =SUM(CH27:CS27) -> 0 | CH27: =IF(ABS(D27-Y27)>1,1,0) -> 0 | CI27: =IF(ABS(E27-H27)>1,1,0) -> 0 | CJ27: =IF(ABS(G27-I27)>1,1,0) -> 0 | CK27: =IF(ABS(J27-AJ27)>1,1,0) -> 0 | CL27: =IF(ABS(K27-N27)>1,1,0) -> 0 | CM27: =IF(ABS(L27-AF27)>1,1,0) -> 0 | CN27: =IF(ABS(M27-P27)>1,1,0) -> 0 | CO27: =IF(ABS(O27-AI27)>1,1,0) -> 0 | CP27: =IF(ABS(Q27-T27)>1,1,0) -> 0 | CQ27: =IF(ABS(X27-AH27)>1,1,0) -> 0 | CR27: =IF(ABS(Z27-AA27)>1,1,0) -> 0 | CS27: =IF(ABS(AB27-AD27)>1,1,0) -> 0 | DC27: =SUM(AS27,AU27,AV27,BB27,BH27,BI27,BJ27,BL27) -> 0 | DD27: =IF(OR($BT27=0,DC27=0),"",(IF($BT27="Male",(VLOOKUP(DC27,PHYMT,3,FALSE)),(VLOOKUP(DC27,PHFMT,2,FALSE))))) ->  | DE27: =SUM(AL27,AO27,AQ27,BE27,BK27) -> 0 | DF27: =IF(DE27=0,"",VLOOKUP(DE27,VER,5,FALSE)) ->  | DG27: =SUM(AN27,AR27,AW27,LOOKUP(BD27,{0,1,2,3,4,5},{0,5,4,3,2,1}),BG27,BN27,BQ27) -> 0 | DH27: =IF(DG27=0,"",VLOOKUP(DG27,ANG,4,FALSE)) ->  | DI27: =SUM(AM27,AP27,AT27,BA27,BF27,BM27,BP27,BR27) -> 0 | DJ27: =IF(DI27=0,"",VLOOKUP(DI27,HOS,3,FALSE)) ->  | DK27: =SUM(AX27,AY27,AZ27,BC27,BO27,BS27) -> 0 | DL27: =IF(DK27=0,"",VLOOKUP(DK27,IND,2,FALSE)) ->  | DM27: =SUM(DC27,DE27,DG27,DI27,DK27) -> 0 | DN27: =IF(DM27=0,"",IF(DM27<39,24,VLOOKUP(DM27,AQT,2,FALSE))) ->  | DO27: =SUM(DP27:EA27) -> 0 | DP27: =IF(ABS(AL27-BG27)>1,1,0) -> 0 | DQ27: =IF(ABS(AM27-AP27)>1,1,0) -> 0 | DR27: =IF(ABS(AO27-AQ27)>1,1,0) -> 0 | DS27: =IF(ABS(AR27-BR27)>1,1,0) -> 0 | DT27: =IF(ABS(AS27-AV27)>1,1,0) -> 0 | DU27: =IF(ABS(AT27-BN27)>1,1,0) -> 0 | DV27: =IF(ABS(AU27-AX27)>1,1,0) -> 0 | DW27: =IF(ABS(AW27-BQ27)>1,1,0) -> 0 | DX27: =IF(ABS(AY27-BB27)>1,1,0) -> 0 | DY27: =IF(ABS(BF27-BP27)>1,1,0) -> 0 | DZ27: =IF(ABS(BH27-BI27)>1,1,0) -> 0 | EA27: =IF(ABS(BJ27-BL27)>1,1,0) -> 0 | EC27: =IF(EQ27<>"",(DC27/8)-(BU27/8),"") ->  | ED27: =IF(EQ27<>"",IF(BT27=0,"",DD27-BV27),"") ->  | EE27: =IF(EQ27<>"",(DE27/5)-(BW27/5),"") ->  | EF27: =IF(EQ27<>"",DF27-BX27,"") ->  | EG27: =IF(EQ27<>"",(DG27/7)-(BY27/7),"") ->  | EH27: =IF(EQ27<>"",DH27-BZ27,"") ->  | EI27: =IF(EQ27<>"",(DI27/8)-(CA27/8),"") ->  | EJ27: =IF(EQ27<>"",DJ27-CB27,"") ->  | EK27: =IF(EQ27<>"",(DK27/6)-(CC27/6),"") ->  | EL27: =IF(EQ27<>"",DL27-CD27,"") ->  | EM27: =IF(EQ27<>"",(DM27/34)-(CE27/34),"") ->  | EN27: =IF(EQ27<>"",DN27-CF27,"") ->  | EP27: =IF(Programs!$D$25="","",Programs!$D$25) -> 3 | EQ27: =IF(AND(COUNT(D27:AK27)>30,COUNT(AL27:BS27)>30),EP27,"") ->  | ER27: =IF($EQ27="","",IF(AND(ABS(EC27)>FE27,EC27<0),$EQ27,"")) ->  | ES27: =IF(ED27<0,$EQ27,"") ->  | ET27: =IF($EQ27="","",IF(AND(ABS(EE27)>FG27,EE27<0),$EQ27,"")) ->  | EU27: =IF(EF27<0,$EQ27,"") ->  | EV27: =IF($EQ27="","",IF(AND(ABS(EG27)>FI27,EG27<0),$EQ27,"")) ->  | EW27: =IF(EH27<0,$EQ27,"") ->  | EX27: =IF($EQ27="","",IF(AND(ABS(EI27)>FK27,EI27<0),$EQ27,"")) ->  | EY27: =IF(EJ27<0,$EQ27,"") ->  | EZ27: =IF($EQ27="","",IF(AND(ABS(EK27)>FM27,EK27<0),$EQ27,"")) ->  | FA27: =IF(EL27<0,$EQ27,"") ->  | FB27: =IF($EQ27="","",IF(AND(ABS(EM27)>FO27,EM27<0),$EQ27,"")) ->  | FC27: =IF(EN27<0,$EQ27,"") ->  | FE27: =INDIRECT(ADDRESS(ROW()-1,COLUMN(),4)) -> 1.215086729 | FG27: =INDIRECT(ADDRESS(ROW()-1,COLUMN(),4)) -> 1.036811699 | FI27: =INDIRECT(ADDRESS(ROW()-1,COLUMN(),4)) -> 1.12618916 | FK27: =INDIRECT(ADDRESS(ROW()-1,COLUMN(),4)) -> 1.300344081 | FM27: =INDIRECT(ADDRESS(ROW()-1,COLUMN(),4)) -> 1.203751227 | FO27: =INDIRECT(ADDRESS(ROW()-1,COLUMN(),4)) -> 1.191402488
A28: Program 3 | B28: =Programs!B47 -> Mohagany Lovett-King | C28: =IF(Programs!$C$44="","",Programs!$C$44) -> 2014-10-09 | D28: 3 | E28: 2 | F28: 2 | G28: 4 | H28: 5 | I28: 3 | J28: 2 | K28: 5 | L28: 3 | M28: 1 | N28: 5 | O28: 5 | P28: 3 | Q28: 5 | R28: 5 | S28: 2 | T28: 4 | U28: 2 | V28: 3 | W28: 2 | X28: 2 | Y28: 5 | Z28: 5 | AA28: 5 | AB28: 5 | AC28: 5 | AD28: 5 | AE28: 2 | AF28: 5 | AG28: 5 | AH28: 5 | AI28: 5 | AJ28: 1 | AK28: 1 | AL28: 1 | AM28: 4 | AN28: 5 | AO28: 2 | AP28: 4 | AQ28: 5 | AR28: 2 | AS28: 5 | AT28: 3 | AV28: 5 | AW28: 5 | AX28: 3 | AY28: 5 | AZ28: 5 | BA28: 1 | BB28: 3 | BC28: 1 | BD28: 5 | BE28: 5 | BF28: 1 | BG28: 3 | BH28: 5 | BI28: 5 | BJ28: 5 | BK28: 5 | BL28: 5 | BM28: 5 | BN28: 3 | BO28: 5 | BP28: 5 | BQ28: 5 | BR28: 1 | BS28: 5 | BT28: =Programs!C47 -> Female | BU28: 35 | BV28: 69 | BW28: 17 | BX28: 59 | BY28: =SUM(F28,J28,O28,LOOKUP(V28,{0,1,2,3,4,5},{0,5,4,3,2,1}),Y28,AF28,AI28) -> 27 | BZ28: 65 | CA28: 22 | CB28: 53 | CC28: 21 | CD28: 61 | CE28: 122 | CF28: 64 | CG28: 5 | CH28: 1 | CI28: 1 | CJ28: 0 | CK28: 0 | CL28: 0 | CM28: 1 | CN28: 1 | CO28: 0 | CP28: 0 | CQ28: 1 | CR28: 0 | CS28: 0 | DC28: 33 | DD28: 66 | DE28: 18 | DF28: 60 | DG28: =SUM(AN28,AR28,AW28,LOOKUP(BD28,{0,1,2,3,4,5},{0,5,4,3,2,1}),BG28,BN28,BQ28) -> 24 | DH28: 60 | DI28: 24 | DJ28: 56 | DK28: 24 | DL28: 66 | DM28: 123 | DN28: 65 | DO28: 5 | DP28: 1 | DQ28: 0 | DR28: 1 | DS28: 0 | DT28: 0 | DU28: 0 | DV28: 1 | DW28: 0 | DX28: 1 | DY28: 1 | DZ28: 0 | EA28: 0 | EC28: -0.25 | ED28: -3 | EE28: 0.2 | EF28: 1 | EG28: -0.4285714286 | EH28: -5 | EI28: 0.25 | EJ28: 3 | EK28: 0.5 | EL28: 5 | EM28: 0.02941176471 | EN28: 1 | EP28: =IF(Programs!$D$44="","",Programs!$D$44) -> 5 | EQ28: 5 | ES28: 5 | EW28: 5 | FE28: =lists!$J$4*(FF28)*1.414*SQRT(1-lists!$I$4) -> 1.139436894 | FF28: =STDEVA(K28:K39, M28:M39, N28:N39, T28:T39, Z28:Z39, AA28:AA39, AB28:AB39, AD28:AD39) -> 1.553945476 | FG28: =lists!$J$4*(FH28)*1.414*SQRT(1-lists!$I$4) -> 0.9919625079 | FH28: =STDEVA(D28:D39,G28:G39,I28:I39,W28:W39,AC28:AC39) -> 1.352822311 | FI28: =lists!$J$4*(FJ28)*1.414*SQRT(1-lists!$I$4) -> 0.9779795932 | FJ28: =STDEVA(F28:F39,J28:J39,O28:O39,V28:V39,Y28:Y39,AF28:AF39,AI28:AI39) -> 1.33375264 | FK28: =lists!$J$4*(FL28)*1.414*SQRT(1-lists!$I$4) -> 1.081550356 | FL28: =STDEVA(E28:E39,H28:H39,L28:L39,S28:S39,X28:X39,AE28:AE39,AH28:AH39,AJ28:AJ39) -> 1.475000759 | FM28: =lists!$J$4*(FN28)*1.414*SQRT(1-lists!$I$4) -> 1.141874332 | FN28: =STDEVA(P28:R39,U28:U39,AG28:AG39,AK28:AK39) -> 1.557269615 | FO28: =lists!$J$4*(FP28)*1.414*SQRT(1-lists!$I$4) -> 1.086580348 | FP28: =STDEVA(D28:AK39) -> 1.481860581
B29: =Programs!B48 -> Dominique Sands | C29: =IF(Programs!$C$44="","",Programs!$C$44) -> 2014-10-09 | D29: 3 | E29: 1 | F29: 2 | G29: 3 | H29: 5 | I29: 4 | J29: 1 | K29: 1 | L29: 1 | M29: 2 | N29: 1 | O29: 3 | P29: 1 | Q29: 5 | R29: 3 | S29: 2 | T29: 5 | U29: 1 | V29: 3 | W29: 2 | X29: 1 | Y29: 1 | Z29: 1 | AA29: 1 | AB29: 1 | AC29: 5 | AD29: 1 | AE29: 1 | AF29: 5 | AG29: 5 | AH29: 3 | AI29: 1 | AJ29: 1 | AK29: 5 | AL29: 2 | AM29: 3 | AO29: 3 | AP29: 5 | AQ29: 1 | AR29: 1 | AS29: 1 | AT29: 2 | AU29: 1 | AV29: 1 | AW29: 3 | AX29: 1 | AY29: 5 | AZ29: 1 | BA29: 3 | BB29: 3 | BC29: 1 | BD29: 5 | BE29: 2 | BF29: 1 | BG29: 3 | BH29: 1 | BI29: 1 | BJ29: 1 | BK29: 5 | BL29: 1 | BM29: 1 | BN29: 1 | BO29: 5 | BP29: 4 | BQ29: 1 | BR29: 3 | BS29: 4 | BT29: =Programs!C48 -> Female | BU29: 13 | BV29: 46 | BW29: 17 | BX29: 59 | BY29: =SUM(F29,J29,O29,LOOKUP(V29,{0,1,2,3,4,5},{0,5,4,3,2,1}),Y29,AF29,AI29) -> 16 | BZ29: 49 | CA29: 15 | CB29: 43 | CC29: 20 | CD29: 59 | CE29: 81 | CF29: 49 | CG29: 5 | CH29: 1 | CI29: 1 | CJ29: 0 | CK29: 0 | CL29: 0 | CM29: 1 | CN29: 0 | CO29: 1 | CP29: 0 | CQ29: 1 | CR29: 0 | CS29: 0 | DC29: 10 | DD29: 41 | DE29: 13 | DF29: 51 | DG29: =SUM(AN29,AR29,AW29,LOOKUP(BD29,{0,1,2,3,4,5},{0,5,4,3,2,1}),BG29,BN29,BQ29) -> 10 | DH29: 38 | DI29: 22 | DJ29: 53 | DK29: 17 | DL29: 54 | DM29: 72 | DN29: 46 | DO29: 6 | DP29: 0 | DQ29: 1 | DR29: 1 | DS29: 1 | DT29: 0 | DU29: 0 | DV29: 0 | DW29: 1 | DX29: 1 | DY29: 1 | DZ29: 0 | EA29: 0 | EC29: =IF(EQ29<>"",(DC29/8)-(BU29/8),"") -> -0.375 | ED29: =IF(EQ29<>"",IF(BT29=0,"",DD29-BV29),"") -> -5 | EE29: =IF(EQ29<>"",(DE29/5)-(BW29/5),"") -> -0.8 | EF29: =IF(EQ29<>"",DF29-BX29,"") -> -8 | EG29: =IF(EQ29<>"",(DG29/7)-(BY29/7),"") -> -0.8571428571 | EH29: =IF(EQ29<>"",DH29-BZ29,"") -> -11 | EI29: =IF(EQ29<>"",(DI29/8)-(CA29/8),"") -> 0.875 | EJ29: =IF(EQ29<>"",DJ29-CB29,"") -> 10 | EK29: =IF(EQ29<>"",(DK29/6)-(CC29/6),"") -> -0.5 | EL29: =IF(EQ29<>"",DL29-CD29,"") -> -5 | EM29: =IF(EQ29<>"",(DM29/34)-(CE29/34),"") -> -0.2647058824 | EN29: =IF(EQ29<>"",DN29-CF29,"") -> -3 | EP29: =IF(Programs!$D$44="","",Programs!$D$44) -> 5 | EQ29: 5 | ES29: 5 | EU29: 5 | EW29: 5 | FA29: 5 | FC29: 5 | FE29: =INDIRECT(ADDRESS(ROW()-1,COLUMN(),4)) -> 1.139436894 | FG29: =INDIRECT(ADDRESS(ROW()-1,COLUMN(),4)) -> 0.9919625079 | FI29: =INDIRECT(ADDRESS(ROW()-1,COLUMN(),4)) -> 0.9779795932 | FK29: =INDIRECT(ADDRESS(ROW()-1,COLUMN(),4)) -> 1.081550356 | FM29: =INDIRECT(ADDRESS(ROW()-1,COLUMN(),4)) -> 1.141874332 | FO29: =INDIRECT(ADDRESS(ROW()-1,COLUMN(),4)) -> 1.086580348
B30: =Programs!B49 -> Janelle Blake | C30: =IF(Programs!$C$44="","",Programs!$C$44) -> 2014-10-09 | D30: 3 | E30: 2 | F30: 2 | G30: 2 | H30: 1 | I30: 1 | J30: 4 | K30: 1 | L30: 2 | M30: 1 | N30: 1 | O30: 4 | P30: 2 | Q30: 2 | R30: 3 | S30: 1 | T30: 3 | U30: 1 | V30: 3 | W30: 3 | X30: 1 | Y30: 2 | Z30: 1 | AA30: 1 | AB30: 4 | AC30: 4 | AD30: 4 | AE30: 4 | AF30: 2 | AG30: 5 | AH30: 3 | AI30: 3 | AJ30: 1 | AK30: 1 | AL30: 4 | AM30: 3 | AN30: 1 | AO30: 3 | AP30: 2 | AQ30: 1 | AR30: 4 | AS30: 3 | AT30: 2 | AU30: 1 | AV30: 3 | AW30: 5 | AX30: 3 | AY30: 4 | AZ30: 1 | BA30: 3 | BB30: 4 | BC30: 2 | BD30: 3 | BE30: 4 | BF30: 2 | BG30: 3 | BH30: 2 | BI30: 1 | BJ30: 5 | BK30: 5 | BL30: 5 | BM30: 5 | BN30: 4 | BO30: 3 | BP30: 4 | BQ30: 5 | BR30: 1 | BS30: 3 | BT30: =Programs!C49 -> Female | BU30: 16 | BV30: 50 | BW30: 13 | BX30: 51 | BY30: =SUM(F30,J30,O30,LOOKUP(V30,{0,1,2,3,4,5},{0,5,4,3,2,1}),Y30,AF30,AI30) -> 20 | BZ30: 55 | CA30: 15 | CB30: 43 | CC30: 14 | CD30: 48 | CE30: 78 | CF30: 48 | CG30: 2 | CH30: 0 | CI30: 0 | CJ30: 0 | CK30: 1 | CL30: 0 | CM30: 0 | CN30: 0 | CO30: 0 | CP30: 0 | CQ30: 1 | CR30: 0 | CS30: 0 | DC30: 24 | DD30: 57 | DE30: 17 | DF30: 59 | DG30: =SUM(AN30,AR30,AW30,LOOKUP(BD30,{0,1,2,3,4,5},{0,5,4,3,2,1}),BG30,BN30,BQ30) -> 25 | DH30: 62 | DI30: 22 | DJ30: 53 | DK30: 16 | DL30: 52 | DM30: 104 | DN30: 57 | DO30: 5 | DP30: 0 | DQ30: 0 | DR30: 1 | DS30: 1 | DT30: 0 | DU30: 1 | DV30: 1 | DW30: 0 | DX30: 0 | DY30: 1 | DZ30: 0 | EA30: 0 | EC30: 1 | ED30: 7 | EE30: 0.8 | EF30: 8 | EG30: 0.7142857143 | EH30: 7 | EI30: 0.875 | EJ30: 10 | EK30: 0.3333333333 | EL30: 4 | EM30: 0.7647058824 | EN30: 9 | EP30: =IF(Programs!$D$44="","",Programs!$D$44) -> 5 | EQ30: 5 | FE30: 1.139436894 | FG30: 0.9919625079 | FI30: 0.9779795932 | FK30: 1.081550356 | FM30: 1.141874332 | FO30: 1.086580348
B31: =Programs!B50 -> Christenesa Stinson | C31: =IF(Programs!$C$44="","",Programs!$C$44) -> 2014-10-09 | D31: 1 | E31: 3 | F31: 3 | G31: 1 | H31: 1 | I31: 1 | J31: 5 | K31: 5 | L31: 3 | M31: 5 | N31: 5 | O31: 5 | P31: 5 | Q31: 5 | R31: 5 | S31: 3 | T31: 5 | U31: 1 | V31: 3 | W31: 5 | X31: 1 | Y31: 1 | Z31: 5 | AA31: 1 | AB31: 5 | AC31: 5 | AD31: 3 | AE31: 5 | AF31: 4 | AG31: 3 | AH31: 5 | AI31: 5 | AJ31: 1 | AK31: 1 | BT31: =Programs!C50 -> Female | BU31: 34 | BV31: 67 | BW31: 13 | BX31: 51 | BY31: =SUM(F31,J31,O31,LOOKUP(V31,{0,1,2,3,4,5},{0,5,4,3,2,1}),Y31,AF31,AI31) -> 26 | BZ31: 63 | CA31: 22 | CB31: 53 | CC31: 20 | CD31: 59 | CE31: 115 | CF31: 62 | CG31: 5 | CH31: 0 | CI31: 1 | CJ31: 0 | CK31: 1 | CL31: 0 | CM31: 0 | CN31: 0 | CO31: 0 | CP31: 0 | CQ31: 1 | CR31: 1 | CS31: 1 | DC31: 0 | DE31: 0 | DG31: =SUM(AN31,AR31,AW31,LOOKUP(BD31,{0,1,2,3,4,5},{0,5,4,3,2,1}),BG31,BN31,BQ31) -> 0 | DI31: 0 | DK31: 0 | DM31: 0 | DO31: 0 | DP31: 0 | DQ31: 0 | DR31: 0 | DS31: 0 | DT31: 0 | DU31: 0 | DV31: 0 | DW31: 0 | DX31: 0 | DY31: 0 | DZ31: 0 | EA31: 0 | EP31: =IF(Programs!$D$44="","",Programs!$D$44) -> 5 | FE31: 1.139436894 | FG31: 0.9919625079 | FI31: 0.9779795932 | FK31: 1.081550356 | FM31: 1.141874332 | FO31: 1.086580348
B32: =Programs!B51 -> Christhiena Stinson | C32: =IF(Programs!$C$44="","",Programs!$C$44) -> 2014-10-09 | D32: 5 | E32: 4 | F32: 4 | G32: 5 | H32: 3 | I32: 5 | J32: 5 | K32: 5 | L32: 5 | M32: 3 | N32: 4 | O32: 5 | P32: 4 | Q32: 5 | R32: 4 | S32: 4 | T32: 5 | U32: 1 | V32: 3 | W32: 5 | X32: 1 | Y32: 3 | Z32: 4 | AA32: 2 | AB32: 5 | AC32: 5 | AD32: 5 | AE32: 5 | AF32: 5 | AG32: 5 | AH32: 5 | AI32: 5 | AJ32: 2 | AK32: 2 | AL32: 5 | AM32: 5 | AN32: 3 | AO32: 5 | AP32: 5 | AQ32: 5 | AR32: 5 | AS32: 5 | AT32: 5 | AU32: 5 | AV32: 5 | AW32: 5 | AX32: 5 | AY32: 5 | AZ32: 5 | BA32: 5 | BB32: 5 | BC32: 1 | BD32: 5 | BE32: 5 | BF32: 3 | BG32: 5 | BH32: 5 | BI32: 2 | BJ32: 5 | BK32: 5 | BL32: 5 | BM32: 5 | BN32: 5 | BO32: 5 | BP32: 2 | BQ32: 5 | BR32: 4 | BS32: 3 | BT32: =Programs!C51 -> Female | BU32: 33 | BV32: 66 | BW32: 25 | BX32: 75 | BY32: =SUM(F32,J32,O32,LOOKUP(V32,{0,1,2,3,4,5},{0,5,4,3,2,1}),Y32,AF32,AI32) -> 30 | BZ32: 70 | CA32: 29 | CB32: 63 | CC32: 21 | CD32: 61 | CE32: 138 | CF32: 69 | CG32: 4 | CH32: 1 | CI32: 0 | CJ32: 0 | CK32: 1 | CL32: 0 | CM32: 0 | CN32: 0 | CO32: 0 | CP32: 0 | CQ32: 1 | CR32: 1 | CS32: 0 | DC32: 37 | DD32: 72 | DE32: 25 | DF32: 75 | DG32: =SUM(AN32,AR32,AW32,LOOKUP(BD32,{0,1,2,3,4,5},{0,5,4,3,2,1}),BG32,BN32,BQ32) -> 29 | DH32: 69 | DI32: 34 | DJ32: 71 | DK32: 24 | DL32: 66 | DM32: 149 | DN32: 74 | DO32: 1 | DP32: 0 | DQ32: 0 | DR32: 0 | DS32: 0 | DT32: 0 | DU32: 0 | DV32: 0 | DW32: 0 | DX32: 0 | DY32: 0 | DZ32: 1 | EA32: 0 | EC32: 0.5 | ED32: 6 | EE32: 0 | EF32: 0 | EG32: -0.1428571429 | EH32: -1 | EI32: 0.625 | EJ32: 8 | EK32: 0.5 | EL32: 5 | EM32: 0.3235294118 | EN32: 5 | EP32: =IF(Programs!$D$44="","",Programs!$D$44) -> 5 | EQ32: 5 | EW32: 5 | FE32: 1.139436894 | FG32: 0.9919625079 | FI32: 0.9779795932 | FK32: 1.081550356 | FM32: 1.141874332 | FO32: 1.086580348
B33: =Programs!B52 -> Naya Thompson | C33: =IF(Programs!$C$44="","",Programs!$C$44) -> 2014-10-09 | D33: 2 | E33: 3 | F33: 2 | G33: 2 | H33: 3 | I33: 3 | J33: 2 | K33: 2 | L33: 1 | M33: 3 | N33: 4 | O33: 4 | P33: 4 | Q33: 4 | R33: 4 | S33: 3 | T33: 4 | U33: 4 | V33: 3 | W33: 4 | X33: 3 | Y33: 4 | Z33: 3 | AA33: 3 | AB33: 4 | AC33: 4 | AD33: 4 | AE33: 4 | AF33: 4 | AG33: 4 | AH33: 4 | AI33: 3 | AJ33: 1 | AK33: 4 | AL33: 3 | AM33: 1 | AN33: 2 | AO33: 4 | AP33: 3 | AQ33: 2 | AR33: 2 | AS33: 2 | AT33: 2 | AU33: 4 | AV33: 4 | AW33: 4 | AX33: 2 | AY33: 4 | AZ33: 4 | BA33: 2 | BB33: 4 | BC33: 4 | BD33: 3 | BE33: 4 | BF33: 2 | BG33: 4 | BH33: 3 | BI33: 2 | BJ33: 4 | BK33: 3 | BL33: 3 | BM33: 3 | BN33: 3 | BO33: 4 | BP33: 3 | BQ33: 4 | BR33: 1 | BS33: 1 | BT33: =Programs!C52 -> Female | BU33: 27 | BV33: 61 | BW33: 15 | BX33: 55 | BY33: =SUM(F33,J33,O33,LOOKUP(V33,{0,1,2,3,4,5},{0,5,4,3,2,1}),Y33,AF33,AI33) -> 22 | BZ33: 57 | CA33: 22 | CB33: 53 | CC33: 24 | CD33: 66 | CE33: 110 | CF33: 60 | CG33: 3 | CH33: 1 | CI33: 0 | CJ33: 0 | CK33: 0 | CL33: 1 | CM33: 1 | CN33: 0 | CO33: 0 | CP33: 0 | CQ33: 0 | CR33: 0 | CS33: 0 | DC33: 26 | DD33: 60 | DE33: 16 | DF33: 57 | DG33: =SUM(AN33,AR33,AW33,LOOKUP(BD33,{0,1,2,3,4,5},{0,5,4,3,2,1}),BG33,BN33,BQ33) -> 22 | DH33: 57 | DI33: 17 | DJ33: 46 | DK33: 19 | DL33: 58 | DM33: 100 | DN33: 56 | DO33: 4 | DP33: 0 | DQ33: 1 | DR33: 1 | DS33: 0 | DT33: 1 | DU33: 0 | DV33: 1 | DW33: 0 | DX33: 0 | DY33: 0 | DZ33: 0 | EA33: 0 | EC33: -0.125 | ED33: -1 | EE33: 0.2 | EF33: 2 | EG33: 0 | EH33: 0 | EI33: -0.625 | EJ33: -7 | EK33: -0.8333333333 | EL33: -8 | EM33: -0.2941176471 | EN33: -4 | EP33: =IF(Programs!$D$44="","",Programs!$D$44) -> 5 | EQ33: 5 | ES33: 5 | EY33: 5 | FA33: 5 | FC33: 5 | FE33: 1.139436894 | FG33: 0.9919625079 | FI33: 0.9779795932 | FK33: 1.081550356 | FM33: 1.141874332 | FO33: 1.086580348
B34: =Programs!B53 -> Jada Jackson-Jones | C34: =IF(Programs!$C$44="","",Programs!$C$44) -> 2014-10-09 | D34: 2 | E34: 3 | F34: 5 | G34: 4 | H34: 3 | I34: 4 | J34: 5 | K34: 3 | L34: 1 | N34: 5 | O34: 5 | P34: 4 | Q34: 5 | R34: 4 | S34: 1 | T34: 5 | U34: 5 | V34: 2 | W34: 5 | X34: 2 | Y34: 1 | Z34: 3 | AA34: 3 | AB34: 5 | AC34: 5 | AD34: 5 | AE34: 4 | AF34: 2 | AG34: 5 | AH34: 5 | AI34: 4 | AK34: 5 | AL34: 3 | AM34: 1 | AN34: 5 | AO34: 4 | AP34: 1 | AQ34: 4 | AR34: 5 | AS34: 4 | AT34: 2 | AU34: 5 | AV34: 5 | AW34: 5 | AX34: 5 | AY34: 5 | AZ34: 3 | BA34: 1 | BB34: 5 | BC34: 4 | BD34: 1 | BE34: 5 | BF34: 4 | BG34: 5 | BH34: 5 | BI34: 2 | BJ34: 5 | BK34: 5 | BL34: 5 | BN34: 5 | BO34: 5 | BP34: 5 | BQ34: 4 | BR34: 1 | BS34: 5 | BT34: =Programs!C53 -> Female | BU34: 29 | BV34: 63 | BW34: 20 | BX34: 64 | BY34: =SUM(F34,J34,O34,LOOKUP(V34,{0,1,2,3,4,5},{0,5,4,3,2,1}),Y34,AF34,AI34) -> 26 | BZ34: 63 | CA34: 19 | CB34: 49 | CC34: 28 | CD34: 73 | CE34: 122 | CF34: 64 | CG34: 4 | CH34: 0 | CI34: 0 | CJ34: 0 | CK34: 1 | CL34: 1 | CM34: 0 | CN34: 1 | CO34: 0 | CP34: 0 | CQ34: 1 | CR34: 0 | CS34: 0 | DC34: 36 | DD34: 70 | DE34: 21 | DF34: 65 | DG34: =SUM(AN34,AR34,AW34,LOOKUP(BD34,{0,1,2,3,4,5},{0,5,4,3,2,1}),BG34,BN34,BQ34) -> 34 | DH34: 76 | DI34: 15 | DJ34: 43 | DK34: 27 | DL34: 71 | DM34: 133 | DN34: 68 | DO34: 4 | DP34: 1 | DQ34: 0 | DR34: 0 | DS34: 1 | DT34: 0 | DU34: 1 | DV34: 0 | DW34: 0 | DX34: 0 | DY34: 0 | DZ34: 1 | EA34: 0 | EC34: 0.875 | ED34: 7 | EE34: 0.2 | EF34: 1 | EG34: 1.142857143 | EH34: 13 | EI34: -0.5 | EJ34: -6 | EK34: -0.1666666667 | EL34: -2 | EM34: 0.3235294118 | EN34: 4 | EP34: =IF(Programs!$D$44="","",Programs!$D$44) -> 5 | EQ34: 5 | EY34: 5 | FA34: 5 | FE34: 1.139436894 | FG34: 0.9919625079 | FI34: 0.9779795932 | FK34: 1.081550356 | FM34: 1.141874332 | FO34: 1.086580348
B35: =Programs!B54 -> Shalynn Lonesone | C35: =IF(Programs!$C$44="","",Programs!$C$44) -> 2014-10-09 | D35: 2 | E35: 3 | F35: 3 | G35: 3 | H35: 3 | I35: 2 | J35: 4 | K35: 3 | L35: 4 | M35: 4 | N35: 4 | O35: 5 | P35: 5 | Q35: 5 | R35: 3 | S35: 5 | T35: 5 | U35: 1 | V35: 4 | W35: 4 | X35: 4 | Y35: 3 | Z35: 4 | AA35: 2 | AB35: 5 | AC35: 4 | AD35: 5 | AE35: 5 | AF35: 5 | AG35: 5 | AH35: 5 | AI35: 4 | AJ35: 2 | AK35: 2 | AL35: 2 | AM35: 3 | AN35: 4 | AO35: 4 | AP35: 2 | AQ35: 3 | AR35: 5 | AS35: 4 | AT35: 3 | AU35: 5 | AV35: 5 | AW35: 5 | AX35: 5 | AY35: 5 | AZ35: 2 | BA35: 5 | BB35: 5 | BC35: 3 | BD35: 3 | BE35: 3 | BF35: 4 | BG35: 3 | BH35: 4 | BI35: 3 | BJ35: 5 | BK35: 4 | BL35: 5 | BM35: 5 | BN35: 5 | BO35: 4 | BP35: 5 | BQ35: 5 | BR35: 1 | BS35: 2 | BT35: =Programs!C54 -> Female | BU35: 32 | BV35: 65 | BW35: 15 | BX35: 55 | BY35: =SUM(F35,J35,O35,LOOKUP(V35,{0,1,2,3,4,5},{0,5,4,3,2,1}),Y35,AF35,AI35) -> 26 | BZ35: 63 | CA35: 31 | CB35: 66 | CC35: 21 | CD35: 61 | CE35: 125 | CF35: 66 | CG35: 2 | CH35: 0 | CI35: 0 | CJ35: 0 | CK35: 1 | CL35: 0 | CM35: 0 | CN35: 0 | CO35: 0 | CP35: 0 | CQ35: 0 | CR35: 1 | CS35: 0 | DC35: 36 | DD35: 70 | DE35: 16 | DF35: 57 | DG35: =SUM(AN35,AR35,AW35,LOOKUP(BD35,{0,1,2,3,4,5},{0,5,4,3,2,1}),BG35,BN35,BQ35) -> 30 | DH35: 70 | DI35: 28 | DJ35: 62 | DK35: 21 | DL35: 61 | DM35: 131 | DN35: 67 | DO35: 2 | DP35: 0 | DQ35: 0 | DR35: 0 | DS35: 1 | DT35: 0 | DU35: 1 | DV35: 0 | DW35: 0 | DX35: 0 | DY35: 0 | DZ35: 0 | EA35: 0 | EC35: 0.5 | ED35: 5 | EE35: 0.2 | EF35: 2 | EG35: 0.5714285714 | EH35: 7 | EI35: -0.375 | EJ35: -4 | EK35: 0 | EL35: 0 | EM35: 0.1764705882 | EN35: 1 | EP35: =IF(Programs!$D$44="","",Programs!$D$44) -> 5 | EQ35: 5 | EY35: 5 | FE35: 1.139436894 | FG35: 0.9919625079 | FI35: 0.9779795932 | FK35: 1.081550356 | FM35: 1.141874332 | FO35: 1.086580348
B36: =Programs!B55 -> 0 | C36: =IF(Programs!$C$44="","",Programs!$C$44) -> 2014-10-09 | BT36: =Programs!C55 -> 0 | BU36: =SUM(K36,M36,N36,T36,Z36,AA36,AB36,AD36) -> 0 | BV36: =IF(OR($BT36=0,BU36=0),"",(IF($BT36="Male",(VLOOKUP(BU36,PHYMT,3,FALSE)),(VLOOKUP(BU36,PHFMT,2,FALSE))))) ->  | BW36: =SUM(D36,G36,I36,W36,AC36) -> 0 | BX36: =IF(BW36=0,"",VLOOKUP(BW36,VER,5,FALSE)) ->  | BY36: =SUM(F36,J36,O36,LOOKUP(V36,{0,1,2,3,4,5},{0,5,4,3,2,1}),Y36,AF36,AI36) -> 0 | BZ36: =IF(BY36=0,"",VLOOKUP(BY36,ANG,4,FALSE)) ->  | CA36: =SUM(E36,H36,L36,S36,X36,AE36,AH36,AJ36) -> 0 | CB36: =IF(CA36=0,"",IF(CA36>38,81,VLOOKUP(CA36,HOS,3,FALSE))) ->  | CC36: =SUM(P36,Q36,R36,U36,AG36,AK36) -> 0 | CD36: =IF(CC36=0,"",VLOOKUP(CC36,IND,2,FALSE)) ->  | CE36: =SUM(BU36,BW36,BY36,CA36,CC36) -> 0 | CF36: =IF(CE36=0,"",VLOOKUP(CE36,AQT,2,FALSE)) ->  | CG36: =SUM(CH36:CS36) -> 0 | CH36: =IF(ABS(D36-Y36)>1,1,0) -> 0 | CI36: =IF(ABS(E36-H36)>1,1,0) -> 0 | CJ36: =IF(ABS(G36-I36)>1,1,0) -> 0 | CK36: =IF(ABS(J36-AJ36)>1,1,0) -> 0 | CL36: =IF(ABS(K36-N36)>1,1,0) -> 0 | CM36: =IF(ABS(L36-AF36)>1,1,0) -> 0 | CN36: =IF(ABS(M36-P36)>1,1,0) -> 0 | CO36: =IF(ABS(O36-AI36)>1,1,0) -> 0 | CP36: =IF(ABS(Q36-T36)>1,1,0) -> 0 | CQ36: =IF(ABS(X36-AH36)>1,1,0) -> 0 | CR36: =IF(ABS(Z36-AA36)>1,1,0) -> 0 | CS36: =IF(ABS(AB36-AD36)>1,1,0) -> 0 | DC36: =SUM(AS36,AU36,AV36,BB36,BH36,BI36,BJ36,BL36) -> 0 | DD36: =IF(OR($BT36=0,DC36=0),"",(IF($BT36="Male",(VLOOKUP(DC36,PHYMT,3,FALSE)),(VLOOKUP(DC36,PHFMT,2,FALSE))))) ->  | DE36: =SUM(AL36,AO36,AQ36,BE36,BK36) -> 0 | DF36: =IF(DE36=0,"",VLOOKUP(DE36,VER,5,FALSE)) ->  | DG36: =SUM(AN36,AR36,AW36,LOOKUP(BD36,{0,1,2,3,4,5},{0,5,4,3,2,1}),BG36,BN36,BQ36) -> 0 | DH36: =IF(DG36=0,"",VLOOKUP(DG36,ANG,4,FALSE)) ->  | DI36: =SUM(AM36,AP36,AT36,BA36,BF36,BM36,BP36,BR36) -> 0 | DJ36: =IF(DI36=0,"",VLOOKUP(DI36,HOS,3,FALSE)) ->  | DK36: =SUM(AX36,AY36,AZ36,BC36,BO36,BS36) -> 0 | DL36: =IF(DK36=0,"",VLOOKUP(DK36,IND,2,FALSE)) ->  | DM36: =SUM(DC36,DE36,DG36,DI36,DK36) -> 0 | DN36: =IF(DM36=0,"",IF(DM36<39,24,VLOOKUP(DM36,AQT,2,FALSE))) ->  | DO36: =SUM(DP36:EA36) -> 0 | DP36: =IF(ABS(AL36-BG36)>1,1,0) -> 0 | DQ36: =IF(ABS(AM36-AP36)>1,1,0) -> 0 | DR36: =IF(ABS(AO36-AQ36)>1,1,0) -> 0 | DS36: =IF(ABS(AR36-BR36)>1,1,0) -> 0 | DT36: =IF(ABS(AS36-AV36)>1,1,0) -> 0 | DU36: =IF(ABS(AT36-BN36)>1,1,0) -> 0 | DV36: =IF(ABS(AU36-AX36)>1,1,0) -> 0 | DW36: =IF(ABS(AW36-BQ36)>1,1,0) -> 0 | DX36: =IF(ABS(AY36-BB36)>1,1,0) -> 0 | DY36: =IF(ABS(BF36-BP36)>1,1,0) -> 0 | DZ36: =IF(ABS(BH36-BI36)>1,1,0) -> 0 | EA36: =IF(ABS(BJ36-BL36)>1,1,0) -> 0 | EC36: =IF(EQ36<>"",(DC36/8)-(BU36/8),"") ->  | ED36: =IF(EQ36<>"",IF(BT36=0,"",DD36-BV36),"") ->  | EE36: =IF(EQ36<>"",(DE36/5)-(BW36/5),"") ->  | EF36: =IF(EQ36<>"",DF36-BX36,"") ->  | EG36: =IF(EQ36<>"",(DG36/7)-(BY36/7),"") ->  | EH36: =IF(EQ36<>"",DH36-BZ36,"") ->  | EI36: =IF(EQ36<>"",(DI36/8)-(CA36/8),"") ->  | EJ36: =IF(EQ36<>"",DJ36-CB36,"") ->  | EK36: =IF(EQ36<>"",(DK36/6)-(CC36/6),"") ->  | EL36: =IF(EQ36<>"",DL36-CD36,"") ->  | EM36: =IF(EQ36<>"",(DM36/34)-(CE36/34),"") ->  | EN36: =IF(EQ36<>"",DN36-CF36,"") ->  | EP36: =IF(Programs!$D$44="","",Programs!$D$44) -> 5 | EQ36: =IF(AND(COUNT(D36:AK36)>30,COUNT(AL36:BS36)>30),EP36,"") ->  | ER36: =IF($EQ36="","",IF(AND(ABS(EC36)>FE36,EC36<0),$EQ36,"")) ->  | ES36: =IF(ED36<0,$EQ36,"") ->  | ET36: =IF($EQ36="","",IF(AND(ABS(EE36)>FG36,EE36<0),$EQ36,"")) ->  | EU36: =IF(EF36<0,$EQ36,"") ->  | EV36: =IF($EQ36="","",IF(AND(ABS(EG36)>FI36,EG36<0),$EQ36,"")) ->  | EW36: =IF(EH36<0,$EQ36,"") ->  | EX36: =IF($EQ36="","",IF(AND(ABS(EI36)>FK36,EI36<0),$EQ36,"")) ->  | EY36: =IF(EJ36<0,$EQ36,"") ->  | EZ36: =IF($EQ36="","",IF(AND(ABS(EK36)>FM36,EK36<0),$EQ36,"")) ->  | FA36: =IF(EL36<0,$EQ36,"") ->  | FB36: =IF($EQ36="","",IF(AND(ABS(EM36)>FO36,EM36<0),$EQ36,"")) ->  | FC36: =IF(EN36<0,$EQ36,"") ->  | FE36: 1.139436894 | FG36: 0.9919625079 | FI36: 0.9779795932 | FK36: 1.081550356 | FM36: 1.141874332 | FO36: 1.086580348
B37: =Programs!B56 -> 0 | C37: =IF(Programs!$C$44="","",Programs!$C$44) -> 2014-10-09 | BT37: =Programs!C56 -> 0 | BU37: =SUM(K37,M37,N37,T37,Z37,AA37,AB37,AD37) -> 0 | BV37: =IF(OR($BT37=0,BU37=0),"",(IF($BT37="Male",(VLOOKUP(BU37,PHYMT,3,FALSE)),(VLOOKUP(BU37,PHFMT,2,FALSE))))) ->  | BW37: =SUM(D37,G37,I37,W37,AC37) -> 0 | BX37: =IF(BW37=0,"",VLOOKUP(BW37,VER,5,FALSE)) ->  | BY37: =SUM(F37,J37,O37,LOOKUP(V37,{0,1,2,3,4,5},{0,5,4,3,2,1}),Y37,AF37,AI37) -> 0 | BZ37: =IF(BY37=0,"",VLOOKUP(BY37,ANG,4,FALSE)) ->  | CA37: =SUM(E37,H37,L37,S37,X37,AE37,AH37,AJ37) -> 0 | CB37: =IF(CA37=0,"",IF(CA37>38,81,VLOOKUP(CA37,HOS,3,FALSE))) ->  | CC37: =SUM(P37,Q37,R37,U37,AG37,AK37) -> 0 | CD37: =IF(CC37=0,"",VLOOKUP(CC37,IND,2,FALSE)) ->  | CE37: =SUM(BU37,BW37,BY37,CA37,CC37) -> 0 | CF37: =IF(CE37=0,"",VLOOKUP(CE37,AQT,2,FALSE)) ->  | CG37: =SUM(CH37:CS37) -> 0 | CH37: =IF(ABS(D37-Y37)>1,1,0) -> 0 | CI37: =IF(ABS(E37-H37)>1,1,0) -> 0 | CJ37: =IF(ABS(G37-I37)>1,1,0) -> 0 | CK37: =IF(ABS(J37-AJ37)>1,1,0) -> 0 | CL37: =IF(ABS(K37-N37)>1,1,0) -> 0 | CM37: =IF(ABS(L37-AF37)>1,1,0) -> 0 | CN37: =IF(ABS(M37-P37)>1,1,0) -> 0 | CO37: =IF(ABS(O37-AI37)>1,1,0) -> 0 | CP37: =IF(ABS(Q37-T37)>1,1,0) -> 0 | CQ37: =IF(ABS(X37-AH37)>1,1,0) -> 0 | CR37: =IF(ABS(Z37-AA37)>1,1,0) -> 0 | CS37: =IF(ABS(AB37-AD37)>1,1,0) -> 0 | DC37: =SUM(AS37,AU37,AV37,BB37,BH37,BI37,BJ37,BL37) -> 0 | DD37: =IF(OR($BT37=0,DC37=0),"",(IF($BT37="Male",(VLOOKUP(DC37,PHYMT,3,FALSE)),(VLOOKUP(DC37,PHFMT,2,FALSE))))) ->  | DE37: =SUM(AL37,AO37,AQ37,BE37,BK37) -> 0 | DF37: =IF(DE37=0,"",VLOOKUP(DE37,VER,5,FALSE)) ->  | DG37: =SUM(AN37,AR37,AW37,LOOKUP(BD37,{0,1,2,3,4,5},{0,5,4,3,2,1}),BG37,BN37,BQ37) -> 0 | DH37: =IF(DG37=0,"",VLOOKUP(DG37,ANG,4,FALSE)) ->  | DI37: =SUM(AM37,AP37,AT37,BA37,BF37,BM37,BP37,BR37) -> 0 | DJ37: =IF(DI37=0,"",VLOOKUP(DI37,HOS,3,FALSE)) ->  | DK37: =SUM(AX37,AY37,AZ37,BC37,BO37,BS37) -> 0 | DL37: =IF(DK37=0,"",VLOOKUP(DK37,IND,2,FALSE)) ->  | DM37: =SUM(DC37,DE37,DG37,DI37,DK37) -> 0 | DN37: =IF(DM37=0,"",IF(DM37<39,24,VLOOKUP(DM37,AQT,2,FALSE))) ->  | DO37: =SUM(DP37:EA37) -> 0 | DP37: =IF(ABS(AL37-BG37)>1,1,0) -> 0 | DQ37: =IF(ABS(AM37-AP37)>1,1,0) -> 0 | DR37: =IF(ABS(AO37-AQ37)>1,1,0) -> 0 | DS37: =IF(ABS(AR37-BR37)>1,1,0) -> 0 | DT37: =IF(ABS(AS37-AV37)>1,1,0) -> 0 | DU37: =IF(ABS(AT37-BN37)>1,1,0) -> 0 | DV37: =IF(ABS(AU37-AX37)>1,1,0) -> 0 | DW37: =IF(ABS(AW37-BQ37)>1,1,0) -> 0 | DX37: =IF(ABS(AY37-BB37)>1,1,0) -> 0 | DY37: =IF(ABS(BF37-BP37)>1,1,0) -> 0 | DZ37: =IF(ABS(BH37-BI37)>1,1,0) -> 0 | EA37: =IF(ABS(BJ37-BL37)>1,1,0) -> 0 | EC37: =IF(EQ37<>"",(DC37/8)-(BU37/8),"") ->  | ED37: =IF(EQ37<>"",IF(BT37=0,"",DD37-BV37),"") ->  | EE37: =IF(EQ37<>"",(DE37/5)-(BW37/5),"") ->  | EF37: =IF(EQ37<>"",DF37-BX37,"") ->  | EG37: =IF(EQ37<>"",(DG37/7)-(BY37/7),"") ->  | EH37: =IF(EQ37<>"",DH37-BZ37,"") ->  | EI37: =IF(EQ37<>"",(DI37/8)-(CA37/8),"") ->  | EJ37: =IF(EQ37<>"",DJ37-CB37,"") ->  | EK37: =IF(EQ37<>"",(DK37/6)-(CC37/6),"") ->  | EL37: =IF(EQ37<>"",DL37-CD37,"") ->  | EM37: =IF(EQ37<>"",(DM37/34)-(CE37/34),"") ->  | EN37: =IF(EQ37<>"",DN37-CF37,"") ->  | EP37: =IF(Programs!$D$44="","",Programs!$D$44) -> 5 | EQ37: =IF(AND(COUNT(D37:AK37)>30,COUNT(AL37:BS37)>30),EP37,"") ->  | ER37: =IF($EQ37="","",IF(AND(ABS(EC37)>FE37,EC37<0),$EQ37,"")) ->  | ES37: =IF(ED37<0,$EQ37,"") ->  | ET37: =IF($EQ37="","",IF(AND(ABS(EE37)>FG37,EE37<0),$EQ37,"")) ->  | EU37: =IF(EF37<0,$EQ37,"") ->  | EV37: =IF($EQ37="","",IF(AND(ABS(EG37)>FI37,EG37<0),$EQ37,"")) ->  | EW37: =IF(EH37<0,$EQ37,"") ->  | EX37: =IF($EQ37="","",IF(AND(ABS(EI37)>FK37,EI37<0),$EQ37,"")) ->  | EY37: =IF(EJ37<0,$EQ37,"") ->  | EZ37: =IF($EQ37="","",IF(AND(ABS(EK37)>FM37,EK37<0),$EQ37,"")) ->  | FA37: =IF(EL37<0,$EQ37,"") ->  | FB37: =IF($EQ37="","",IF(AND(ABS(EM37)>FO37,EM37<0),$EQ37,"")) ->  | FC37: =IF(EN37<0,$EQ37,"") ->  | FE37: 1.139436894 | FG37: 0.9919625079 | FI37: 0.9779795932 | FK37: 1.081550356 | FM37: 1.141874332 | FO37: 1.086580348
B38: =Programs!B57 -> 0 | C38: =IF(Programs!$C$44="","",Programs!$C$44) -> 2014-10-09 | BT38: =Programs!C57 -> 0 | BU38: =SUM(K38,M38,N38,T38,Z38,AA38,AB38,AD38) -> 0 | BV38: =IF(OR($BT38=0,BU38=0),"",(IF($BT38="Male",(VLOOKUP(BU38,PHYMT,3,FALSE)),(VLOOKUP(BU38,PHFMT,2,FALSE))))) ->  | BW38: =SUM(D38,G38,I38,W38,AC38) -> 0 | BX38: =IF(BW38=0,"",VLOOKUP(BW38,VER,5,FALSE)) ->  | BY38: =SUM(F38,J38,O38,LOOKUP(V38,{0,1,2,3,4,5},{0,5,4,3,2,1}),Y38,AF38,AI38) -> 0 | BZ38: =IF(BY38=0,"",VLOOKUP(BY38,ANG,4,FALSE)) ->  | CA38: =SUM(E38,H38,L38,S38,X38,AE38,AH38,AJ38) -> 0 | CB38: =IF(CA38=0,"",IF(CA38>38,81,VLOOKUP(CA38,HOS,3,FALSE))) ->  | CC38: =SUM(P38,Q38,R38,U38,AG38,AK38) -> 0 | CD38: =IF(CC38=0,"",VLOOKUP(CC38,IND,2,FALSE)) ->  | CE38: =SUM(BU38,BW38,BY38,CA38,CC38) -> 0 | CF38: =IF(CE38=0,"",VLOOKUP(CE38,AQT,2,FALSE)) ->  | CG38: =SUM(CH38:CS38) -> 0 | CH38: =IF(ABS(D38-Y38)>1,1,0) -> 0 | CI38: =IF(ABS(E38-H38)>1,1,0) -> 0 | CJ38: =IF(ABS(G38-I38)>1,1,0) -> 0 | CK38: =IF(ABS(J38-AJ38)>1,1,0) -> 0 | CL38: =IF(ABS(K38-N38)>1,1,0) -> 0 | CM38: =IF(ABS(L38-AF38)>1,1,0) -> 0 | CN38: =IF(ABS(M38-P38)>1,1,0) -> 0 | CO38: =IF(ABS(O38-AI38)>1,1,0) -> 0 | CP38: =IF(ABS(Q38-T38)>1,1,0) -> 0 | CQ38: =IF(ABS(X38-AH38)>1,1,0) -> 0 | CR38: =IF(ABS(Z38-AA38)>1,1,0) -> 0 | CS38: =IF(ABS(AB38-AD38)>1,1,0) -> 0 | DC38: =SUM(AS38,AU38,AV38,BB38,BH38,BI38,BJ38,BL38) -> 0 | DD38: =IF(OR($BT38=0,DC38=0),"",(IF($BT38="Male",(VLOOKUP(DC38,PHYMT,3,FALSE)),(VLOOKUP(DC38,PHFMT,2,FALSE))))) ->  | DE38: =SUM(AL38,AO38,AQ38,BE38,BK38) -> 0 | DF38: =IF(DE38=0,"",VLOOKUP(DE38,VER,5,FALSE)) ->  | DG38: =SUM(AN38,AR38,AW38,LOOKUP(BD38,{0,1,2,3,4,5},{0,5,4,3,2,1}),BG38,BN38,BQ38) -> 0 | DH38: =IF(DG38=0,"",VLOOKUP(DG38,ANG,4,FALSE)) ->  | DI38: =SUM(AM38,AP38,AT38,BA38,BF38,BM38,BP38,BR38) -> 0 | DJ38: =IF(DI38=0,"",VLOOKUP(DI38,HOS,3,FALSE)) ->  | DK38: =SUM(AX38,AY38,AZ38,BC38,BO38,BS38) -> 0 | DL38: =IF(DK38=0,"",VLOOKUP(DK38,IND,2,FALSE)) ->  | DM38: =SUM(DC38,DE38,DG38,DI38,DK38) -> 0 | DN38: =IF(DM38=0,"",IF(DM38<39,24,VLOOKUP(DM38,AQT,2,FALSE))) ->  | DO38: =SUM(DP38:EA38) -> 0 | DP38: =IF(ABS(AL38-BG38)>1,1,0) -> 0 | DQ38: =IF(ABS(AM38-AP38)>1,1,0) -> 0 | DR38: =IF(ABS(AO38-AQ38)>1,1,0) -> 0 | DS38: =IF(ABS(AR38-BR38)>1,1,0) -> 0 | DT38: =IF(ABS(AS38-AV38)>1,1,0) -> 0 | DU38: =IF(ABS(AT38-BN38)>1,1,0) -> 0 | DV38: =IF(ABS(AU38-AX38)>1,1,0) -> 0 | DW38: =IF(ABS(AW38-BQ38)>1,1,0) -> 0 | DX38: =IF(ABS(AY38-BB38)>1,1,0) -> 0 | DY38: =IF(ABS(BF38-BP38)>1,1,0) -> 0 | DZ38: =IF(ABS(BH38-BI38)>1,1,0) -> 0 | EA38: =IF(ABS(BJ38-BL38)>1,1,0) -> 0 | EC38: =IF(EQ38<>"",(DC38/8)-(BU38/8),"") ->  | ED38: =IF(EQ38<>"",IF(BT38=0,"",DD38-BV38),"") ->  | EE38: =IF(EQ38<>"",(DE38/5)-(BW38/5),"") ->  | EF38: =IF(EQ38<>"",DF38-BX38,"") ->  | EG38: =IF(EQ38<>"",(DG38/7)-(BY38/7),"") ->  | EH38: =IF(EQ38<>"",DH38-BZ38,"") ->  | EI38: =IF(EQ38<>"",(DI38/8)-(CA38/8),"") ->  | EJ38: =IF(EQ38<>"",DJ38-CB38,"") ->  | EK38: =IF(EQ38<>"",(DK38/6)-(CC38/6),"") ->  | EL38: =IF(EQ38<>"",DL38-CD38,"") ->  | EM38: =IF(EQ38<>"",(DM38/34)-(CE38/34),"") ->  | EN38: =IF(EQ38<>"",DN38-CF38,"") ->  | EP38: =IF(Programs!$D$44="","",Programs!$D$44) -> 5 | EQ38: =IF(AND(COUNT(D38:AK38)>30,COUNT(AL38:BS38)>30),EP38,"") ->  | ER38: =IF($EQ38="","",IF(AND(ABS(EC38)>FE38,EC38<0),$EQ38,"")) ->  | ES38: =IF(ED38<0,$EQ38,"") ->  | ET38: =IF($EQ38="","",IF(AND(ABS(EE38)>FG38,EE38<0),$EQ38,"")) ->  | EU38: =IF(EF38<0,$EQ38,"") ->  | EV38: =IF($EQ38="","",IF(AND(ABS(EG38)>FI38,EG38<0),$EQ38,"")) ->  | EW38: =IF(EH38<0,$EQ38,"") ->  | EX38: =IF($EQ38="","",IF(AND(ABS(EI38)>FK38,EI38<0),$EQ38,"")) ->  | EY38: =IF(EJ38<0,$EQ38,"") ->  | EZ38: =IF($EQ38="","",IF(AND(ABS(EK38)>FM38,EK38<0),$EQ38,"")) ->  | FA38: =IF(EL38<0,$EQ38,"") ->  | FB38: =IF($EQ38="","",IF(AND(ABS(EM38)>FO38,EM38<0),$EQ38,"")) ->  | FC38: =IF(EN38<0,$EQ38,"") ->  | FE38: 1.139436894 | FG38: 0.9919625079 | FI38: 0.9779795932 | FK38: 1.081550356 | FM38: 1.141874332 | FO38: 1.086580348
B39: =Programs!B58 -> 0 | C39: =IF(Programs!$C$44="","",Programs!$C$44) -> 2014-10-09 | BT39: =Programs!C58 -> 0 | BU39: =SUM(K39,M39,N39,T39,Z39,AA39,AB39,AD39) -> 0 | BV39: =IF(OR($BT39=0,BU39=0),"",(IF($BT39="Male",(VLOOKUP(BU39,PHYMT,3,FALSE)),(VLOOKUP(BU39,PHFMT,2,FALSE))))) ->  | BW39: =SUM(D39,G39,I39,W39,AC39) -> 0 | BX39: =IF(BW39=0,"",VLOOKUP(BW39,VER,5,FALSE)) ->  | BY39: =SUM(F39,J39,O39,LOOKUP(V39,{0,1,2,3,4,5},{0,5,4,3,2,1}),Y39,AF39,AI39) -> 0 | BZ39: =IF(BY39=0,"",VLOOKUP(BY39,ANG,4,FALSE)) ->  | CA39: =SUM(E39,H39,L39,S39,X39,AE39,AH39,AJ39) -> 0 | CB39: =IF(CA39=0,"",IF(CA39>38,81,VLOOKUP(CA39,HOS,3,FALSE))) ->  | CC39: =SUM(P39,Q39,R39,U39,AG39,AK39) -> 0 | CD39: =IF(CC39=0,"",VLOOKUP(CC39,IND,2,FALSE)) ->  | CE39: =SUM(BU39,BW39,BY39,CA39,CC39) -> 0 | CF39: =IF(CE39=0,"",VLOOKUP(CE39,AQT,2,FALSE)) ->  | CG39: =SUM(CH39:CS39) -> 0 | CH39: =IF(ABS(D39-Y39)>1,1,0) -> 0 | CI39: =IF(ABS(E39-H39)>1,1,0) -> 0 | CJ39: =IF(ABS(G39-I39)>1,1,0) -> 0 | CK39: =IF(ABS(J39-AJ39)>1,1,0) -> 0 | CL39: =IF(ABS(K39-N39)>1,1,0) -> 0 | CM39: =IF(ABS(L39-AF39)>1,1,0) -> 0 | CN39: =IF(ABS(M39-P39)>1,1,0) -> 0 | CO39: =IF(ABS(O39-AI39)>1,1,0) -> 0 | CP39: =IF(ABS(Q39-T39)>1,1,0) -> 0 | CQ39: =IF(ABS(X39-AH39)>1,1,0) -> 0 | CR39: =IF(ABS(Z39-AA39)>1,1,0) -> 0 | CS39: =IF(ABS(AB39-AD39)>1,1,0) -> 0 | DC39: =SUM(AS39,AU39,AV39,BB39,BH39,BI39,BJ39,BL39) -> 0 | DD39: =IF(OR($BT39=0,DC39=0),"",(IF($BT39="Male",(VLOOKUP(DC39,PHYMT,3,FALSE)),(VLOOKUP(DC39,PHFMT,2,FALSE))))) ->  | DE39: =SUM(AL39,AO39,AQ39,BE39,BK39) -> 0 | DF39: =IF(DE39=0,"",VLOOKUP(DE39,VER,5,FALSE)) ->  | DG39: =SUM(AN39,AR39,AW39,LOOKUP(BD39,{0,1,2,3,4,5},{0,5,4,3,2,1}),BG39,BN39,BQ39) -> 0 | DH39: =IF(DG39=0,"",VLOOKUP(DG39,ANG,4,FALSE)) ->  | DI39: =SUM(AM39,AP39,AT39,BA39,BF39,BM39,BP39,BR39) -> 0 | DJ39: =IF(DI39=0,"",VLOOKUP(DI39,HOS,3,FALSE)) ->  | DK39: =SUM(AX39,AY39,AZ39,BC39,BO39,BS39) -> 0 | DL39: =IF(DK39=0,"",VLOOKUP(DK39,IND,2,FALSE)) ->  | DM39: =SUM(DC39,DE39,DG39,DI39,DK39) -> 0 | DN39: =IF(DM39=0,"",IF(DM39<39,24,VLOOKUP(DM39,AQT,2,FALSE))) ->  | DO39: =SUM(DP39:EA39) -> 0 | DP39: =IF(ABS(AL39-BG39)>1,1,0) -> 0 | DQ39: =IF(ABS(AM39-AP39)>1,1,0) -> 0 | DR39: =IF(ABS(AO39-AQ39)>1,1,0) -> 0 | DS39: =IF(ABS(AR39-BR39)>1,1,0) -> 0 | DT39: =IF(ABS(AS39-AV39)>1,1,0) -> 0 | DU39: =IF(ABS(AT39-BN39)>1,1,0) -> 0 | DV39: =IF(ABS(AU39-AX39)>1,1,0) -> 0 | DW39: =IF(ABS(AW39-BQ39)>1,1,0) -> 0 | DX39: =IF(ABS(AY39-BB39)>1,1,0) -> 0 | DY39: =IF(ABS(BF39-BP39)>1,1,0) -> 0 | DZ39: =IF(ABS(BH39-BI39)>1,1,0) -> 0 | EA39: =IF(ABS(BJ39-BL39)>1,1,0) -> 0 | EC39: =IF(EQ39<>"",(DC39/8)-(BU39/8),"") ->  | ED39: =IF(EQ39<>"",IF(BT39=0,"",DD39-BV39),"") ->  | EE39: =IF(EQ39<>"",(DE39/5)-(BW39/5),"") ->  | EF39: =IF(EQ39<>"",DF39-BX39,"") ->  | EG39: =IF(EQ39<>"",(DG39/7)-(BY39/7),"") ->  | EH39: =IF(EQ39<>"",DH39-BZ39,"") ->  | EI39: =IF(EQ39<>"",(DI39/8)-(CA39/8),"") ->  | EJ39: =IF(EQ39<>"",DJ39-CB39,"") ->  | EK39: =IF(EQ39<>"",(DK39/6)-(CC39/6),"") ->  | EL39: =IF(EQ39<>"",DL39-CD39,"") ->  | EM39: =IF(EQ39<>"",(DM39/34)-(CE39/34),"") ->  | EN39: =IF(EQ39<>"",DN39-CF39,"") ->  | EP39: =IF(Programs!$D$44="","",Programs!$D$44) -> 5 | EQ39: =IF(AND(COUNT(D39:AK39)>30,COUNT(AL39:BS39)>30),EP39,"") ->  | ER39: =IF($EQ39="","",IF(AND(ABS(EC39)>FE39,EC39<0),$EQ39,"")) ->  | ES39: =IF(ED39<0,$EQ39,"") ->  | ET39: =IF($EQ39="","",IF(AND(ABS(EE39)>FG39,EE39<0),$EQ39,"")) ->  | EU39: =IF(EF39<0,$EQ39,"") ->  | EV39: =IF($EQ39="","",IF(AND(ABS(EG39)>FI39,EG39<0),$EQ39,"")) ->  | EW39: =IF(EH39<0,$EQ39,"") ->  | EX39: =IF($EQ39="","",IF(AND(ABS(EI39)>FK39,EI39<0),$EQ39,"")) ->  | EY39: =IF(EJ39<0,$EQ39,"") ->  | EZ39: =IF($EQ39="","",IF(AND(ABS(EK39)>FM39,EK39<0),$EQ39,"")) ->  | FA39: =IF(EL39<0,$EQ39,"") ->  | FB39: =IF($EQ39="","",IF(AND(ABS(EM39)>FO39,EM39<0),$EQ39,"")) ->  | FC39: =IF(EN39<0,$EQ39,"") ->  | FE39: 1.139436894 | FG39: 0.9919625079 | FI39: 0.9779795932 | FK39: 1.081550356 | FM39: 1.141874332 | FO39: 1.086580348
A40: Program 4 | B40: =Programs!B66 -> Kanaya Brown | C40: =IF(Programs!$C$63="","",Programs!$C$63) -> 2015-03-26 | D40: 3 | E40: 3 | F40: 3 | G40: 3 | H40: 3 | I40: 4 | J40: 4 | K40: 5 | L40: 3 | M40: 5 | N40: 5 | O40: 4 | P40: 4 | Q40: 5 | R40: 5 | S40: 3 | T40: 3 | V40: 3 | W40: 4 | X40: 1 | Y40: 5 | Z40: 5 | AA40: 3 | AB40: 5 | AC40: 5 | AD40: 5 | AE40: 5 | AF40: 4 | AG40: 3 | AH40: 5 | AI40: 4 | AJ40: 2 | AK40: 3 | AL40: 1 | AM40: 1 | AN40: 3 | AO40: 4 | AP40: 5 | AQ40: 5 | AR40: 5 | AS40: 5 | AT40: 3 | AU40: 5 | AV40: 5 | AW40: 5 | AX40: 5 | AY40: 5 | AZ40: 4 | BA40: 4 | BB40: 4 | BC40: 2 | BD40: 1 | BE40: 5 | BF40: 1 | BG40: 5 | BH40: 5 | BI40: 5 | BJ40: 5 | BK40: 5 | BL40: 4 | BM40: 1 | BN40: 5 | BO40: 4 | BP40: 1 | BQ40: 5 | BR40: 1 | BS40: 5 | BT40: =Programs!C66 -> Female | BU40: 36 | BV40: 70 | BW40: 19 | BX40: 62 | BY40: =SUM(F40,J40,O40,LOOKUP(V40,{0,1,2,3,4,5},{0,5,4,3,2,1}),Y40,AF40,AI40) -> 27 | BZ40: 65 | CA40: 25 | CB40: 58 | CC40: 20 | CD40: 59 | CE40: 127 | CF40: 66 | CG40: 5 | CH40: 1 | CI40: 0 | CJ40: 0 | CK40: 1 | CL40: 0 | CM40: 0 | CN40: 0 | CO40: 0 | CP40: 1 | CQ40: 1 | CR40: 1 | CS40: 0 | DC40: 38 | DD40: 74 | DE40: 20 | DF40: 64 | DG40: =SUM(AN40,AR40,AW40,LOOKUP(BD40,{0,1,2,3,4,5},{0,5,4,3,2,1}),BG40,BN40,BQ40) -> 33 | DH40: 74 | DI40: 17 | DJ40: 46 | DK40: 25 | DL40: 68 | DM40: 133 | DN40: 68 | DO40: 4 | DP40: 1 | DQ40: 1 | DR40: 0 | DS40: 1 | DT40: 0 | DU40: 1 | DV40: 0 | DW40: 0 | DX40: 0 | DY40: 0 | DZ40: 0 | EA40: 0 | EC40: 0.25 | ED40: 4 | EE40: 0.2 | EF40: 2 | EG40: 0.8571428571 | EH40: 9 | EI40: -1 | EJ40: -12 | EK40: 0.8333333333 | EL40: 9 | EM40: 0.1764705882 | EN40: 2 | EP40: =IF(Programs!$D$63="","",Programs!$D$63) -> 6 | EQ40: 6 | EX40: 6 | EY40: 6 | FE40: =lists!$J$4*(FF40)*1.414*SQRT(1-lists!$I$4) -> 0.957402038 | FF40: =STDEVA(K40:K51, M40:M51, N40:N51, T40:T51, Z40:Z51, AA40:AA51, AB40:AB51, AD40:AD51) -> 1.305689305 | FG40: =lists!$J$4*(FH40)*1.414*SQRT(1-lists!$I$4) -> 0.8752786732 | FH40: =STDEVA(D40:D51,G40:G51,I40:I51,W40:W51,AC40:AC51) -> 1.193690798 | FI40: =lists!$J$4*(FJ40)*1.414*SQRT(1-lists!$I$4) -> 0.9185112345 | FJ40: =STDEVA(F40:F51,J40:J51,O40:O51,V40:V51,Y40:Y51,AF40:AF51,AI40:AI51) -> 1.252650661 | FK40: =lists!$J$4*(FL40)*1.414*SQRT(1-lists!$I$4) -> 0.9447664113 | FL40: =STDEVA(E40:E51,H40:H51,L40:L51,S40:S51,X40:X51,AE40:AE51,AH40:AH51,AJ40:AJ51) -> 1.288457043 | FM40: =lists!$J$4*(FN40)*1.414*SQRT(1-lists!$I$4) -> 0.9471220622 | FN40: =STDEVA(P40:R51,U40:U51,AG40:AG51,AK40:AK51) -> 1.291669642 | FO40: =lists!$J$4*(FP40)*1.414*SQRT(1-lists!$I$4) -> 0.9596840347 | FP40: =STDEVA(D40:AK51) -> 1.308801455
B41: =Programs!B67 -> Laila Carter | C41: =IF(Programs!$C$63="","",Programs!$C$63) -> 2015-03-26 | D41: 3 | E41: 5 | F41: 1 | G41: 3 | H41: 1 | I41: 3 | J41: 5 | K41: 2 | L41: 3 | M41: 3 | N41: 3 | O41: 5 | P41: 5 | Q41: 5 | R41: 4 | S41: 2 | T41: 4 | U41: 1 | V41: 1 | W41: 5 | X41: 3 | Y41: 3 | Z41: 3 | AA41: 3 | AB41: 5 | AC41: 2 | AD41: 5 | AE41: 5 | AF41: 5 | AG41: 5 | AH41: 1 | AI41: 1 | AJ41: 1 | AK41: 1 | AL41: 2 | AM41: 2 | AN41: 1 | AO41: 2 | AP41: 2 | AQ41: 3 | AR41: 5 | AS41: 5 | AT41: 2 | AU41: 2 | AV41: 5 | AW41: 2 | AX41: 3 | AY41: 5 | AZ41: 2 | BA41: 2 | BB41: 2 | BC41: 3 | BD41: 3 | BE41: 2 | BF41: 2 | BG41: 3 | BH41: 2 | BJ41: 3 | BK41: 3 | BL41: 2 | BM41: 2 | BN41: 3 | BO41: 2 | BP41: 2 | BQ41: 2 | BR41: 2 | BS41: 2 | BT41: =Programs!C67 -> Female | BU41: 28 | BV41: 62 | BW41: 16 | BX41: 57 | BY41: =SUM(F41,J41,O41,LOOKUP(V41,{0,1,2,3,4,5},{0,5,4,3,2,1}),Y41,AF41,AI41) -> 25 | BZ41: 62 | CA41: 21 | CB41: 52 | CC41: 21 | CD41: 61 | CE41: 111 | CF41: 60 | CG41: 6 | CH41: 0 | CI41: 1 | CJ41: 0 | CK41: 1 | CL41: 0 | CM41: 1 | CN41: 1 | CO41: 1 | CP41: 0 | CQ41: 1 | CR41: 0 | CS41: 0 | DC41: 21 | DD41: 55 | DE41: 12 | DF41: 48 | DG41: =SUM(AN41,AR41,AW41,LOOKUP(BD41,{0,1,2,3,4,5},{0,5,4,3,2,1}),BG41,BN41,BQ41) -> 19 | DH41: 54 | DI41: 16 | DJ41: 45 | DK41: 17 | DL41: 54 | DM41: 85 | DN41: 51 | DO41: 3 | DP41: 0 | DQ41: 0 | DR41: 0 | DS41: 1 | DT41: 0 | DU41: 0 | DV41: 0 | DW41: 0 | DX41: 1 | DY41: 0 | DZ41: 1 | EA41: 0 | EC41: -0.875 | ED41: -7 | EE41: -0.8 | EF41: -9 | EG41: -0.8571428571 | EH41: -8 | EI41: -0.625 | EJ41: -7 | EK41: -0.6666666667 | EL41: -7 | EM41: -0.7647058824 | EN41: -9 | EP41: =IF(Programs!$D$63="","",Programs!$D$63) -> 6 | EQ41: 6 | ES41: 6 | EU41: 6 | EW41: 6 | EY41: 6 | FA41: 6 | FC41: 6 | FE41: =INDIRECT(ADDRESS(ROW()-1,COLUMN(),4)) -> 0.957402038 | FG41: =INDIRECT(ADDRESS(ROW()-1,COLUMN(),4)) -> 0.8752786732 | FI41: =INDIRECT(ADDRESS(ROW()-1,COLUMN(),4)) -> 0.9185112345 | FK41: =INDIRECT(ADDRESS(ROW()-1,COLUMN(),4)) -> 0.9447664113 | FM41: =INDIRECT(ADDRESS(ROW()-1,COLUMN(),4)) -> 0.9471220622 | FO41: =INDIRECT(ADDRESS(ROW()-1,COLUMN(),4)) -> 0.9596840347
B42: =Programs!B68 -> Kordaya Brown | C42: =IF(Programs!$C$63="","",Programs!$C$63) -> 2015-03-26 | D42: 5 | E42: 1 | F42: 4 | G42: 5 | H42: 1 | I42: 5 | J42: 5 | K42: 5 | L42: 3 | M42: 5 | N42: 5 | O42: 4 | P42: 5 | Q42: 5 | R42: 4 | S42: 1 | T42: 5 | U42: 1 | V42: 5 | W42: 5 | X42: 1 | Y42: 2 | Z42: 5 | AA42: 5 | AB42: 5 | AC42: 5 | AD42: 5 | AE42: 1 | AF42: 5 | AG42: 4 | AH42: 1 | AI42: 4 | AJ42: 3 | AK42: 3 | AL42: 2 | AM42: 1 | AN42: 2 | AO42: 1 | AP42: 1 | AQ42: 2 | AR42: 1 | AS42: 4 | AT42: 2 | AU42: 3 | AV42: 3 | AW42: 1 | AX42: 2 | AY42: 1 | AZ42: 3 | BA42: 1 | BB42: 1 | BC42: 1 | BD42: 5 | BE42: 5 | BF42: 1 | BG42: 1 | BH42: 1 | BI42: 3 | BJ42: 5 | BK42: 4 | BL42: 3 | BM42: 5 | BN42: 3 | BO42: 5 | BP42: 1 | BQ42: 2 | BR42: 1 | BS42: 4 | BT42: =Programs!C68 -> Female | BU42: 40 | BV42: =IF(OR($BT42=0,BU42=0),"",(IF($BT42="Male",(VLOOKUP(BU42,PHYMT,3,FALSE)),(VLOOKUP(BU42,PHFMT,2,FALSE))))) -> 80 | BW42: 25 | BX42: =IF(BW42=0,"",VLOOKUP(BW42,VER,5,FALSE)) -> 75 | BY42: =SUM(F42,J42,O42,LOOKUP(V42,{0,1,2,3,4,5},{0,5,4,3,2,1}),Y42,AF42,AI42) -> 25 | BZ42: =IF(BY42=0,"",VLOOKUP(BY42,ANG,4,FALSE)) -> 62 | CA42: 12 | CB42: =IF(CA42=0,"",IF(CA42>38,81,VLOOKUP(CA42,HOS,3,FALSE))) -> 38 | CC42: 22 | CD42: =IF(CC42=0,"",VLOOKUP(CC42,IND,2,FALSE)) -> 63 | CE42: 124 | CF42: =IF(CE42=0,"",VLOOKUP(CE42,AQT,2,FALSE)) -> 65 | CG42: 3 | CH42: 1 | CI42: 0 | CJ42: 0 | CK42: 1 | CL42: 0 | CM42: 1 | CN42: 0 | CO42: 0 | CP42: 0 | CQ42: 0 | CR42: 0 | CS42: 0 | DC42: 23 | DD42: =IF(OR($BT42=0,DC42=0),"",(IF($BT42="Male",(VLOOKUP(DC42,PHYMT,3,FALSE)),(VLOOKUP(DC42,PHFMT,2,FALSE))))) -> 57 | DE42: 14 | DF42: =IF(DE42=0,"",VLOOKUP(DE42,VER,5,FALSE)) -> 53 | DG42: =SUM(AN42,AR42,AW42,LOOKUP(BD42,{0,1,2,3,4,5},{0,5,4,3,2,1}),BG42,BN42,BQ42) -> 11 | DH42: =IF(DG42=0,"",VLOOKUP(DG42,ANG,4,FALSE)) -> 41 | DI42: 13 | DJ42: =IF(DI42=0,"",VLOOKUP(DI42,HOS,3,FALSE)) -> 40 | DK42: 16 | DL42: =IF(DK42=0,"",VLOOKUP(DK42,IND,2,FALSE)) -> 52 | DM42: 77 | DN42: =IF(DM42=0,"",IF(DM42<39,24,VLOOKUP(DM42,AQT,2,FALSE))) -> 48 | DO42: 2 | DP42: 0 | DQ42: 0 | DR42: 0 | DS42: 0 | DT42: 0 | DU42: 0 | DV42: 0 | DW42: 0 | DX42: 0 | DY42: 0 | DZ42: 1 | EA42: 1 | EC42: -2.125 | ED42: -23 | EE42: -2.2 | EF42: -22 | EG42: -2 | EH42: -21 | EI42: 0.125 | EJ42: 2 | EK42: -1 | EL42: -11 | EM42: -1.382352941 | EN42: -17 | EP42: =IF(Programs!$D$63="","",Programs!$D$63) -> 6 | EQ42: 6 | ER42: 6 | ES42: 6 | ET42: 6 | EU42: 6 | EV42: 6 | EW42: 6 | EZ42: 6 | FA42: 6 | FB42: 6 | FC42: 6 | FE42: 0.957402038 | FG42: 0.8752786732 | FI42: 0.9185112345 | FK42: 0.9447664113 | FM42: 0.9471220622 | FO42: 0.9596840347
B43: =Programs!B69 -> Alaina Griffin | C43: =IF(Programs!$C$63="","",Programs!$C$63) -> 2015-03-26 | D43: 2 | F43: 4 | G43: 3 | I43: 2 | J43: 2 | K43: 3 | L43: 3 | M43: 4 | N43: 5 | O43: 2 | P43: 2 | Q43: 5 | R43: 4 | S43: 3 | T43: 4 | U43: 3 | V43: 5 | W43: 5 | X43: 4 | Y43: 4 | Z43: 3 | AA43: 4 | AB43: 5 | AC43: 5 | AD43: 4 | AE43: 3 | AF43: 5 | AG43: 5 | AH43: 4 | AI43: 5 | AJ43: 3 | AK43: 3 | AL43: 2 | AN43: 5 | AO43: 3 | AP43: 4 | AQ43: 2 | AR43: 2 | AS43: 2 | AT43: 3 | AU43: 3 | AV43: 5 | AW43: 4 | AX43: 2 | AY43: 5 | AZ43: 5 | BA43: 5 | BB43: 4 | BC43: 1 | BD43: 5 | BE43: 5 | BF43: 5 | BG43: 2 | BH43: 3 | BI43: 4 | BJ43: 5 | BK43: 4 | BL43: 4 | BM43: 3 | BN43: 4 | BO43: 5 | BP43: 5 | BQ43: 5 | BR43: 3 | BS43: 4 | BT43: =Programs!C69 -> Female | BU43: 32 | BV43: 65 | BW43: 17 | BX43: 59 | BY43: =SUM(F43,J43,O43,LOOKUP(V43,{0,1,2,3,4,5},{0,5,4,3,2,1}),Y43,AF43,AI43) -> 23 | BZ43: 59 | CA43: 20 | CB43: 51 | CC43: 22 | CD43: 63 | CE43: 114 | CF43: 61 | CG43: 5 | CH43: 1 | CI43: 0 | CJ43: 0 | CK43: 0 | CL43: 1 | CM43: 1 | CN43: 1 | CO43: 1 | CP43: 0 | CQ43: 0 | CR43: 0 | CS43: 0 | DC43: 30 | DD43: 63 | DE43: 16 | DF43: 57 | DG43: =SUM(AN43,AR43,AW43,LOOKUP(BD43,{0,1,2,3,4,5},{0,5,4,3,2,1}),BG43,BN43,BQ43) -> 23 | DH43: 59 | DI43: 28 | DJ43: 62 | DK43: 22 | DL43: 63 | DM43: 119 | DN43: 63 | DO43: 2 | DP43: 0 | DQ43: 1 | DR43: 0 | DS43: 0 | DT43: 1 | DU43: 0 | DV43: 0 | DW43: 0 | DX43: 0 | DY43: 0 | DZ43: 0 | EA43: 0 | EC43: -0.25 | ED43: -2 | EE43: -0.2 | EF43: -2 | EG43: 0 | EH43: 0 | EI43: 1 | EJ43: 11 | EK43: 0 | EL43: 0 | EM43: 0.1470588235 | EN43: 2 | EP43: =IF(Programs!$D$63="","",Programs!$D$63) -> 6 | EQ43: 6 | ES43: 6 | EU43: 6 | FE43: 0.957402038 | FG43: 0.8752786732 | FI43: 0.9185112345 | FK43: 0.9447664113 | FM43: 0.9471220622 | FO43: 0.9596840347
B44: =Programs!B70 -> Jennifer Dolores | C44: =IF(Programs!$C$63="","",Programs!$C$63) -> 2015-03-26 | D44: 1 | E44: 3 | F44: 3 | G44: 3 | H44: 3 | I44: 4 | J44: 4 | K44: 4 | L44: 3 | M44: 3 | N44: 4 | O44: 5 | P44: 4 | Q44: 5 | R44: 3 | S44: 3 | T44: 5 | U44: 4 | V44: 1 | W44: 3 | X44: 4 | Y44: 5 | Z44: 4 | AA44: 2 | AB44: 2 | AC44: 3 | AD44: 3 | AE44: 3 | AF44: 5 | AG44: 5 | AH44: 4 | AI44: 2 | AJ44: 4 | AK44: 4 | AL44: 4 | AN44: 3 | AO44: 3 | AP44: 4 | AQ44: 3 | AR44: 5 | AS44: 5 | AT44: 3 | AU44: 3 | AV44: 5 | AW44: 2 | AX44: 5 | AY44: 5 | AZ44: 3 | BA44: 4 | BB44: 5 | BC44: 4 | BD44: 3 | BE44: 4 | BF44: 5 | BG44: 2 | BH44: 2 | BI44: 1 | BJ44: 3 | BK44: 2 | BL44: 2 | BM44: 2 | BN44: 3 | BO44: 4 | BP44: 5 | BQ44: 1 | BR44: 2 | BS44: 2 | BT44: =Programs!C70 -> Female | BU44: 27 | BV44: 61 | BW44: 14 | BX44: 53 | BY44: =SUM(F44,J44,O44,LOOKUP(V44,{0,1,2,3,4,5},{0,5,4,3,2,1}),Y44,AF44,AI44) -> 29 | BZ44: 69 | CA44: 27 | CB44: 61 | CC44: 25 | CD44: 68 | CE44: 122 | CF44: 64 | CG44: 4 | CH44: 1 | CI44: 0 | CJ44: 0 | CK44: 0 | CL44: 0 | CM44: 1 | CN44: 0 | CO44: 1 | CP44: 0 | CQ44: 0 | CR44: 1 | CS44: 0 | DC44: 26 | DD44: 60 | DE44: 16 | DF44: 57 | DG44: =SUM(AN44,AR44,AW44,LOOKUP(BD44,{0,1,2,3,4,5},{0,5,4,3,2,1}),BG44,BN44,BQ44) -> 19 | DH44: 54 | DI44: 25 | DJ44: 58 | DK44: 23 | DL44: 64 | DM44: 109 | DN44: 59 | DO44: 4 | DP44: 1 | DQ44: 1 | DR44: 0 | DS44: 1 | DT44: 0 | DU44: 0 | DV44: 1 | DW44: 0 | DX44: 0 | DY44: 0 | DZ44: 0 | EA44: 0 | EC44: -0.125 | ED44: -1 | EE44: 0.4 | EF44: 4 | EG44: -1.428571429 | EH44: -15 | EI44: -0.25 | EJ44: -3 | EK44: -0.3333333333 | EL44: -4 | EM44: -0.3823529412 | EN44: -5 | EP44: =IF(Programs!$D$63="","",Programs!$D$63) -> 6 | EQ44: 6 | ES44: 6 | EV44: 6 | EW44: 6 | EY44: 6 | FA44: 6 | FC44: 6 | FE44: 0.957402038 | FG44: 0.8752786732 | FI44: 0.9185112345 | FK44: 0.9447664113 | FM44: 0.9471220622 | FO44: 0.9596840347
B45: =Programs!B71 -> Sandra Carrillo | C45: =IF(Programs!$C$63="","",Programs!$C$63) -> 2015-03-26 | D45: 1 | E45: 3 | F45: 3 | G45: 3 | H45: 2 | I45: 1 | J45: 1 | K45: 1 | L45: 4 | M45: 1 | N45: 1 | O45: 2 | P45: 1 | Q45: 2 | R45: 3 | S45: 3 | T45: 4 | U45: 1 | V45: 5 | W45: 3 | X45: 4 | Y45: 3 | Z45: 1 | AA45: 1 | AB45: 3 | AC45: 3 | AD45: 3 | AE45: 4 | AF45: 4 | AG45: 5 | AH45: 5 | AI45: 1 | AJ45: 2 | AK45: 3 | AL45: 1 | AM45: 5 | AN45: 2 | AO45: 1 | AP45: 3 | AQ45: 2 | AR45: 1 | AS45: 1 | AT45: 4 | AU45: 1 | AV45: 1 | AW45: 2 | AX45: 1 | AY45: 1 | AZ45: 3 | BA45: 5 | BB45: 2 | BC45: 1 | BD45: 5 | BE45: 4 | BF45: 5 | BG45: 4 | BH45: 1 | BI45: 1 | BJ45: 3 | BK45: 2 | BL45: 3 | BM45: 4 | BN45: 5 | BO45: 5 | BP45: 5 | BQ45: 1 | BR45: 5 | BS45: 5 | BT45: =Programs!C71 -> Female | BU45: 15 | BV45: 48 | BW45: 11 | BX45: 46 | BY45: =SUM(F45,J45,O45,LOOKUP(V45,{0,1,2,3,4,5},{0,5,4,3,2,1}),Y45,AF45,AI45) -> 15 | BZ45: 48 | CA45: 27 | CB45: 61 | CC45: 15 | CD45: 50 | CE45: 83 | CF45: 50 | CG45: 3 | CH45: 1 | CI45: 0 | CJ45: 1 | CK45: 0 | CL45: 0 | CM45: 0 | CN45: 0 | CO45: 0 | CP45: 1 | CQ45: 0 | CR45: 0 | CS45: 0 | DC45: 13 | DD45: 46 | DE45: 10 | DF45: 44 | DG45: =SUM(AN45,AR45,AW45,LOOKUP(BD45,{0,1,2,3,4,5},{0,5,4,3,2,1}),BG45,BN45,BQ45) -> 16 | DH45: 49 | DI45: 36 | DJ45: 73 | DK45: 16 | DL45: 52 | DM45: 91 | DN45: 53 | DO45: 3 | DP45: 1 | DQ45: 1 | DR45: 0 | DS45: 1 | DT45: 0 | DU45: 0 | DV45: 0 | DW45: 0 | DX45: 0 | DY45: 0 | DZ45: 0 | EA45: 0 | EC45: -0.25 | ED45: -2 | EE45: -0.2 | EF45: -2 | EG45: 0.1428571429 | EH45: 1 | EI45: 1.125 | EJ45: 12 | EK45: 0.1666666667 | EL45: 2 | EM45: 0.2352941176 | EN45: 3 | EP45: =IF(Programs!$D$63="","",Programs!$D$63) -> 6 | EQ45: 6 | ES45: 6 | EU45: 6 | FE45: 0.957402038 | FG45: 0.8752786732 | FI45: 0.9185112345 | FK45: 0.9447664113 | FM45: 0.9471220622 | FO45: 0.9596840347
